Workbook

Sheet Cover
B7: Victorian Default Offer (VDO)
B9: Calculation model (Draft Version)
B11: 2025-26

Sheet Disclaimer
B1: VDO calculation model
B3: Essential Services Commission
B5: Disclaimer, copyright & terms and conditions of use The VDO Price Determination model (model) does not constitute a decision or determination by the Essential Services Commission (commission). The model has been designed by the commission to enable it to calculate the tariffs a retailer may charge prescribed customers under a standing offer. Limited access to this model is made available to third parties (users) for information purposes only and for the sole purpose of illustrating the modelling framework used by the commission to calculate the VDO tariffs. The commission gives no warranty and makes no representation as to the accuracy, reliability, timeliness or other features of the data contained in the model for use other than calculation by the commission of the VDO tariffs. Copyright and all other intellectual property rights in the model vests with the commission. The commission hereby permits a user to view the model, download and use the model, and display and print the model from the commission’s website only in unaltered form, for the purposes of internal study, research, criticism or review by the user only, provided the user acknowledges the source of the model or any parts of the model. A user must not disrupt, modify or interfere with the model, or alter or tamper with any information or material in or associated with the model, or gain or attempt to gain unauthorized access to secure parts of the model. A user must not make the model available to a third party and must direct a third party to access the model directly from the commission’s website. By viewing, downloading, using, displaying or printing the model or parts of the model, you agree to be bound by the disclaimer, copyright provisions and these terms and conditions of use. Note: If you have obtained the model otherwise than by downloading it from the commission’s website, the model may have been modified by a previous user. The commission accepts no liability in relation to modifications made by any user. Note for reading the model: Due to rounding, the sum of individual cost stacks may vary slightly from the total bill amount.

Sheet Contents
B1: =Disclaimer!$B$1 -> VDO calculation model
A2: =_xlfn.SHEET() -> 3 | B2: Contents
B3: Confidentiality | C3: Name | D3: Link | E3: Description
B4: Public | C4: Disclaimer | D4: Disclaimer!A1 | E4: This page contains a declaration regarding the limitations and use of this model.
B5: Public | C5: Contents | D5: Contents!A1
B6: Public | C6: User Guide | D6: User Guide'! | E6: Instructions for model operation.
B7: Public | C7: Calc_Rates | D7: Calc_Rates!A1 | E7: Calculations for cost stack rates.
B8: Public | C8: Calc_TU_values | D8: Calc_TU_values!A1 | E8: Calculations for total true up amounts to be recovered.
B9: Public | C9: Calc_TU_rates | D9: Calc_TU_rates!A1 | E9: Calculations for true up rates to be applied over the determination period.
B10: Public | C10: Inputs | D10: Inputs | E10: All cost and non-cost inputs used in the model.
B11: Public | C11: General Assumptions | D11: General Assumptions'!A1 | E11: Assumptions and constants used in the model.
B12: Public | C12: CPI | D12: CPI'!A1 | E12: Contains CPI indices used in the model.
B13: Public | C13: CH_CostStack_RES | D13: CH_CostStack_RES!A1 | E13: Creates the cost stack in the VDO paper for typical residential customer bill
B14: Public | C14: CH_CostStack_SME 10k | D14: CH_CostStack_SME 10k'!A1 | E14: Creates the cost stack in the VDO paper for small business customer bill with usage of 10Mwh/year
B15: Public | C15: CH_CostStack_SME | D15: CH_CostStack_SME!A1 | E15: Creates the cost stack in the VDO paper for small business customer bill for 20,000 KWh/year Usage

Sheet User Guide
A1: Worksheet description: | B1: << Back to Contents
A2: [Please provide a description of what this sheet does and any specific details or other notes the user needs to know] | C2: =[1]Disclaimer!$B$1 -> VDO calculation model
B3: =_xlfn.SHEET() -> 4 | C3: User Guide
A5: Section/Item notes (where necessary) | B5: =MAX(B$3:B4)+0.01 -> 4.01 | C5: Model Structure
A39: Section/Item notes (where necessary) | B39: =MAX(B$3:B38)+0.01 -> 4.02 | C39: Calculation methodology
C42: Calculated rates and prices
C61: True up costs and rates
C96: Annual bills
A106: Section/Item notes (where necessary) | B106: =MAX(B$3:B105)+0.01 -> 4.03 | C106: Worksheets
C108: Information
C109: Inupts and assumptions
C110: Cost calculations
C111: Output and summary
C112: Supporting information
C113: Charts

Sheet Calc_Rates
A1: Worksheet description: | B1: << Back to Contents | D1: Rate checks:
A2: [Please provide a description of what this sheet does and any specific details or other notes the user needs to know] | C2: =Disclaimer!$B$1 -> VDO calculation model | D2: =FY -> VDO 2025-26 - Draft | E2: =PY -> VDO 2024-25 - Final
B3: =_xlfn.SHEET() -> 5 | C3: Calculation | D3: =SUM($G$24:$K$24,$G$49:$K$49,$G$68:$K$68,$G$75:$K$75,$G$82:$K$82,$G$90:$K$90,$G$104:$K$104,$G$113:$K$113,$G$120:$K$120,$G$127:$K$127,$G$135:$K$135,$G$142:$K$142,$G$97:$K$97) -> 0 | E3: =SUM($G$294:$K$294,$G$319:$K$319,$G$338:$K$338,$G$345:$K$345,$G$352:$K$352,$G$360:$K$360,$G$367:$K$367,$G$374:$K$374,$G$383:$K$383,$G$390:$K$390,$G$397:$K$397,$G$405:$K$405,$G$412:$K$412) -> 0
C5: VDO decision | D5: =Inputs!E9 -> VDO 2025-26 - Draft
A7: Section/Item notes (where necessary) | B7: =MAX(B$3:B6)+0.01 -> 5.01 | C7: Rates
C9: Fixed costs | D9: Fixed/Variable | E9: Unit | F9: Customer type | G9: Ausnet | H9: Citipower | I9: Jemena | J9: Powercor | K9: United Energy
C10: Retail | D10: Fixed | E10: $ | F10: Residential | G10: =SUMIFS(Calc_Retail_1[Ausnet],Calc_Retail_1[[Fixed/Variable]:[Fixed/Variable]],$D10,Calc_Retail_1[[Customer type]:[Customer type]],$F10)+SUMIFS(Calc_Retail_1[Ausnet],Calc_Retail_1[Customer type],"="&"All") -> 192.2505256 | H10: =SUMIFS(Calc_Retail_1[Ausnet],Calc_Retail_1[[Fixed/Variable]:[Fixed/Variable]],$D10,Calc_Retail_1[[Customer type]:[Customer type]],$F10)+SUMIFS(Calc_Retail_1[Ausnet],Calc_Retail_1[Customer type],"="&"All") -> 192.2505256 | I10: =SUMIFS(Calc_Retail_1[Ausnet],Calc_Retail_1[[Fixed/Variable]:[Fixed/Variable]],$D10,Calc_Retail_1[[Customer type]:[Customer type]],$F10)+SUMIFS(Calc_Retail_1[Ausnet],Calc_Retail_1[Customer type],"="&"All") -> 192.2505256 | J10: =SUMIFS(Calc_Retail_1[Ausnet],Calc_Retail_1[[Fixed/Variable]:[Fixed/Variable]],$D10,Calc_Retail_1[[Customer type]:[Customer type]],$F10)+SUMIFS(Calc_Retail_1[Ausnet],Calc_Retail_1[Customer type],"="&"All") -> 192.2505256 | K10: =SUMIFS(Calc_Retail_1[Ausnet],Calc_Retail_1[[Fixed/Variable]:[Fixed/Variable]],$D10,Calc_Retail_1[[Customer type]:[Customer type]],$F10)+SUMIFS(Calc_Retail_1[Ausnet],Calc_Retail_1[Customer type],"="&"All") -> 192.2505256
C11: Retail | D11: Fixed | E11: $ | F11: Small business | G11: =SUMIFS(Calc_Retail_1[Ausnet],Calc_Retail_1[[Fixed/Variable]:[Fixed/Variable]],$D11,Calc_Retail_1[[Customer type]:[Customer type]],$F11)+SUMIFS(Calc_Retail_1[Ausnet],Calc_Retail_1[Customer type],"="&"All") -> 192.2505256 | H11: =SUMIFS(Calc_Retail_1[Ausnet],Calc_Retail_1[[Fixed/Variable]:[Fixed/Variable]],$D11,Calc_Retail_1[[Customer type]:[Customer type]],$F11)+SUMIFS(Calc_Retail_1[Ausnet],Calc_Retail_1[Customer type],"="&"All") -> 192.2505256 | I11: =SUMIFS(Calc_Retail_1[Ausnet],Calc_Retail_1[[Fixed/Variable]:[Fixed/Variable]],$D11,Calc_Retail_1[[Customer type]:[Customer type]],$F11)+SUMIFS(Calc_Retail_1[Ausnet],Calc_Retail_1[Customer type],"="&"All") -> 192.2505256 | J11: =SUMIFS(Calc_Retail_1[Ausnet],Calc_Retail_1[[Fixed/Variable]:[Fixed/Variable]],$D11,Calc_Retail_1[[Customer type]:[Customer type]],$F11)+SUMIFS(Calc_Retail_1[Ausnet],Calc_Retail_1[Customer type],"="&"All") -> 192.2505256 | K11: =SUMIFS(Calc_Retail_1[Ausnet],Calc_Retail_1[[Fixed/Variable]:[Fixed/Variable]],$D11,Calc_Retail_1[[Customer type]:[Customer type]],$F11)+SUMIFS(Calc_Retail_1[Ausnet],Calc_Retail_1[Customer type],"="&"All") -> 192.2505256
C12: Other | D12: Fixed | E12: $ | F12: All | G12: =SUMIFS(Calc_OtherCosts_1[Ausnet],Calc_OtherCosts_1[[Fixed/Variable]:[Fixed/Variable]],$D12,Calc_OtherCosts_1[[Customer type]:[Customer type]],$F12) -> 14.54775982 | H12: =SUMIFS(Calc_OtherCosts_1[Citipower],Calc_OtherCosts_1[[Fixed/Variable]:[Fixed/Variable]],$D12,Calc_OtherCosts_1[[Customer type]:[Customer type]],$F12) -> 14.54775982 | I12: =SUMIFS(Calc_OtherCosts_1[Jemena],Calc_OtherCosts_1[[Fixed/Variable]:[Fixed/Variable]],$D12,Calc_OtherCosts_1[[Customer type]:[Customer type]],$F12) -> 14.54775982 | J12: =SUMIFS(Calc_OtherCosts_1[Powercor],Calc_OtherCosts_1[[Fixed/Variable]:[Fixed/Variable]],$D12,Calc_OtherCosts_1[[Customer type]:[Customer type]],$F12) -> 14.54775982 | K12: =SUMIFS(Calc_OtherCosts_1[United Energy],Calc_OtherCosts_1[[Fixed/Variable]:[Fixed/Variable]],$D12,Calc_OtherCosts_1[[Customer type]:[Customer type]],$F12) -> 14.54775982
C13: Solar (FiT) | D13: Fixed | E13: $ | F13: All | G13: =SUMIFS(Calc_FiT_1[Ausnet],Calc_FiT_1[[Fixed/Variable]:[Fixed/Variable]],$D13,Calc_FiT_1[[Customer type]:[Customer type]],$F13) -> 0 | H13: =SUMIFS(Calc_FiT_1[Citipower],Calc_FiT_1[[Fixed/Variable]:[Fixed/Variable]],$D13,Calc_FiT_1[[Customer type]:[Customer type]],$F13) -> 0 | I13: =SUMIFS(Calc_FiT_1[Jemena],Calc_FiT_1[[Fixed/Variable]:[Fixed/Variable]],$D13,Calc_FiT_1[[Customer type]:[Customer type]],$F13) -> 0 | J13: =SUMIFS(Calc_FiT_1[Powercor],Calc_FiT_1[[Fixed/Variable]:[Fixed/Variable]],$D13,Calc_FiT_1[[Customer type]:[Customer type]],$F13) -> 0 | K13: =SUMIFS(Calc_FiT_1[United Energy],Calc_FiT_1[[Fixed/Variable]:[Fixed/Variable]],$D13,Calc_FiT_1[[Customer type]:[Customer type]],$F13) -> 0
C14: Metering | D14: Fixed | E14: $ | F14: All | G14: =SUMIFS(Calc_NetworkF_1[Ausnet],Calc_NetworkF_1[[Fixed/Variable]:[Fixed/Variable]],$D14,Calc_NetworkF_1[[Customer type]:[Customer type]],$F14) -> 85.71423106 | H14: =SUMIFS(Calc_NetworkF_1[Citipower],Calc_NetworkF_1[[Fixed/Variable]:[Fixed/Variable]],$D14,Calc_NetworkF_1[[Customer type]:[Customer type]],$F14) -> 77.8116195 | I14: =SUMIFS(Calc_NetworkF_1[Jemena],Calc_NetworkF_1[[Fixed/Variable]:[Fixed/Variable]],$D14,Calc_NetworkF_1[[Customer type]:[Customer type]],$F14) -> 66.59274765 | J14: =SUMIFS(Calc_NetworkF_1[Powercor],Calc_NetworkF_1[[Fixed/Variable]:[Fixed/Variable]],$D14,Calc_NetworkF_1[[Customer type]:[Customer type]],$F14) -> 73.43501926 | K14: =SUMIFS(Calc_NetworkF_1[United Energy],Calc_NetworkF_1[[Fixed/Variable]:[Fixed/Variable]],$D14,Calc_NetworkF_1[[Customer type]:[Customer type]],$F14) -> 52.87791171
C16: Residential charges - daily supply
C17: Anytime - supply
C18: Network charge | D18: - | E18: $ | F18: Residential | G18: =SUMIFS(Calc_NetworkF_1[Ausnet],Calc_NetworkF_1[[Cost item]:[Cost item]],$C17,Calc_NetworkF_1[[Customer type]:[Customer type]],$F18) -> 147.3680769 | H18: =SUMIFS(Calc_NetworkF_1[Citipower],Calc_NetworkF_1[[Cost item]:[Cost item]],$C17,Calc_NetworkF_1[[Customer type]:[Customer type]],$F18) -> 102.2105644 | I18: =SUMIFS(Calc_NetworkF_1[Jemena],Calc_NetworkF_1[[Cost item]:[Cost item]],$C17,Calc_NetworkF_1[[Customer type]:[Customer type]],$F18) -> 124.6116928 | J18: =SUMIFS(Calc_NetworkF_1[Powercor],Calc_NetworkF_1[[Cost item]:[Cost item]],$C17,Calc_NetworkF_1[[Customer type]:[Customer type]],$F18) -> 157.7741877 | K18: =SUMIFS(Calc_NetworkF_1[United Energy],Calc_NetworkF_1[[Cost item]:[Cost item]],$C17,Calc_NetworkF_1[[Customer type]:[Customer type]],$F18) -> 101.4014982
C19: Fixed costs | D19: - | E19: $ | F19: Residential | G19: =IF(G18=0,"-",SUMIFS(Calc_Fixed_1[Ausnet],Calc_Fixed_1[Customer type],"All")+SUMIFS(Calc_Fixed_1[Ausnet],Calc_Fixed_1[Customer type],$F19)) -> 292.5125165 | H19: =IF(H18=0,"-",SUMIFS(Calc_Fixed_1[Citipower],Calc_Fixed_1[[Customer type]:[Customer type]],"All")+SUMIFS(Calc_Fixed_1[Citipower],Calc_Fixed_1[[Customer type]:[Customer type]],$F19)) -> 284.609905 | I19: =IF(I18=0,"-",SUMIFS(Calc_Fixed_1[Jemena],Calc_Fixed_1[[Customer type]:[Customer type]],"All")+SUMIFS(Calc_Fixed_1[Jemena],Calc_Fixed_1[[Customer type]:[Customer type]],$F19)) -> 273.3910331 | J19: =IF(J18=0,"-",SUMIFS(Calc_Fixed_1[Powercor],Calc_Fixed_1[[Customer type]:[Customer type]],"All")+SUMIFS(Calc_Fixed_1[Powercor],Calc_Fixed_1[[Customer type]:[Customer type]],$F19)) -> 280.2333047 | K19: =IF(K18=0,"-",SUMIFS(Calc_Fixed_1[United Energy],Calc_Fixed_1[[Customer type]:[Customer type]],"All")+SUMIFS(Calc_Fixed_1[United Energy],Calc_Fixed_1[[Customer type]:[Customer type]],$F19)) -> 259.6761972
C20: Retail operating margin | D20: - | E20: $ | F20: Residential | G20: =IF(G18=0,"-",(G18+G19)*Calc_ROM_1[Ausnet]) -> 23.13771922 | H20: =IF(H18=0,"-",(H18+H19)*Calc_ROM_1[Citipower]) -> 20.34675669 | I20: =IF(I18=0,"-",(I18+I19)*Calc_ROM_1[Jemena]) -> 20.93494338 | J20: =IF(J18=0,"-",(J18+J19)*Calc_ROM_1[Powercor]) -> 23.0391941 | K20: =IF(K18=0,"-",(K18+K19)*Calc_ROM_1[United Energy]) -> 18.99268678
C21: GST | D21: - | E21: $ | F21: Residential | G21: =IF(G18=0,"-",(G18+G19+G20)*GST) -> 46.30183127 | H21: =IF(H18=0,"-",(H18+H19+H20)*GST) -> 40.71672261 | I21: =IF(I18=0,"-",(I18+I19+I20)*GST) -> 41.89376693 | J21: =IF(J18=0,"-",(J18+J19+J20)*GST) -> 46.10466866 | K21: =IF(K18=0,"-",(K18+K19+K20)*GST) -> 38.00703822
C22: Total fixed costs | D22: - | E22: $ | F22: Residential | G22: =IF(G18=0,"-",G18+G19+G20+G21) -> 509.320144 | H22: =IF(H18=0,"-",H18+H19+H20+H21) -> 447.8839487 | I22: =IF(I18=0,"-",I18+I19+I20+I21) -> 460.8314362 | J22: =IF(J18=0,"-",J18+J19+J20+J21) -> 507.1513552 | K22: =IF(K18=0,"-",K18+K19+K20+K21) -> 418.0774204
C23: =C17 -> Anytime - supply | D23: - | E23: $ | F23: Residential | G23: =IF(G18=0,"-",G22/DiY) -> 1.395397655 | H23: =IF(H18=0,"-",H22/DiY) -> 1.227079312 | I23: =IF(I18=0,"-",I22/DiY) -> 1.26255188 | J23: =IF(J18=0,"-",J22/DiY) -> 1.389455768 | K23: =IF(K18=0,"-",K22/DiY) -> 1.14541759
G24: =IF(G18=0,"-", IF(ROUND(G23,8)=ROUND(((( SUMIFS(Calc_NetworkF_1[Ausnet],Calc_NetworkF_1[[Cost item]:[Cost item]],$C17,Calc_NetworkF_1[[Customer type]:[Customer type]],$F18)+ SUMIFS(Calc_Fixed_1[Ausnet],Calc_Fixed_1[[Customer type]:[Customer type]],Calc_Rates!$F23)+SUMIFS(Calc_Fixed_1[Ausnet],Calc_Fixed_1[[Customer type]:[Customer type]],"All"))*(1+Calc_ROM_1[Ausnet]))*(1+GST))/DiY,8),0,1)) -> 0 | H24: =IF(H18=0,"-", IF(ROUND(H23,8)=ROUND(((( SUMIFS(Calc_NetworkF_1[Citipower],Calc_NetworkF_1[[Cost item]:[Cost item]],$C17,Calc_NetworkF_1[[Customer type]:[Customer type]],$F18)+ SUMIFS(Calc_Fixed_1[Citipower],Calc_Fixed_1[[Customer type]:[Customer type]],Calc_Rates!$F23)+SUMIFS(Calc_Fixed_1[Citipower],Calc_Fixed_1[[Customer type]:[Customer type]],"All"))*(1+Calc_ROM_1[Citipower]))*(1+GST))/DiY,8),0,1)) -> 0 | I24: =IF(I18=0,"-", IF(ROUND(I23,8)=ROUND(((( SUMIFS(Calc_NetworkF_1[Jemena],Calc_NetworkF_1[[Cost item]:[Cost item]],$C17,Calc_NetworkF_1[[Customer type]:[Customer type]],$F18)+ SUMIFS(Calc_Fixed_1[Jemena],Calc_Fixed_1[[Customer type]:[Customer type]],Calc_Rates!$F23)+SUMIFS(Calc_Fixed_1[Jemena],Calc_Fixed_1[[Customer type]:[Customer type]],"All"))*(1+Calc_ROM_1[Jemena]))*(1+GST))/DiY,8),0,1)) -> 0 | J24: =IF(J18=0,"-", IF(ROUND(J23,8)=ROUND(((( SUMIFS(Calc_NetworkF_1[Powercor],Calc_NetworkF_1[[Cost item]:[Cost item]],$C17,Calc_NetworkF_1[[Customer type]:[Customer type]],$F18)+ SUMIFS(Calc_Fixed_1[Powercor],Calc_Fixed_1[[Customer type]:[Customer type]],Calc_Rates!$F23)+SUMIFS(Calc_Fixed_1[Powercor],Calc_Fixed_1[[Customer type]:[Customer type]],"All"))*(1+Calc_ROM_1[Powercor]))*(1+GST))/DiY,8),0,1)) -> 0 | K24: =IF(K18=0,"-", IF(ROUND(K23,8)=ROUND(((( SUMIFS(Calc_NetworkF_1[United Energy],Calc_NetworkF_1[[Cost item]:[Cost item]],$C17,Calc_NetworkF_1[[Customer type]:[Customer type]],$F18)+ SUMIFS(Calc_Fixed_1[United Energy],Calc_Fixed_1[[Customer type]:[Customer type]],Calc_Rates!$F23)+SUMIFS(Calc_Fixed_1[United Energy],Calc_Fixed_1[[Customer type]:[Customer type]],"All"))*(1+Calc_ROM_1[United Energy]))*(1+GST))/DiY,8),0,1)) -> 0
C25: TOU - supply
C26: Network charge | D26: - | E26: $ | F26: Residential | G26: =SUMIFS(Calc_NetworkF_1[Ausnet],Calc_NetworkF_1[[Cost item]:[Cost item]],$C25,Calc_NetworkF_1[[Customer type]:[Customer type]],$F26) -> 147.3680769 | H26: =SUMIFS(Calc_NetworkF_1[Citipower],Calc_NetworkF_1[[Cost item]:[Cost item]],$C25,Calc_NetworkF_1[[Customer type]:[Customer type]],$F26) -> 102.2105644 | I26: =SUMIFS(Calc_NetworkF_1[Jemena],Calc_NetworkF_1[[Cost item]:[Cost item]],$C25,Calc_NetworkF_1[[Customer type]:[Customer type]],$F26) -> 124.6116928 | J26: =SUMIFS(Calc_NetworkF_1[Powercor],Calc_NetworkF_1[[Cost item]:[Cost item]],$C25,Calc_NetworkF_1[[Customer type]:[Customer type]],$F26) -> 157.7741877 | K26: =SUMIFS(Calc_NetworkF_1[United Energy],Calc_NetworkF_1[[Cost item]:[Cost item]],$C25,Calc_NetworkF_1[[Customer type]:[Customer type]],$F26) -> 101.4014982
C27: Fixed costs | D27: - | E27: $ | F27: Residential | G27: =IF(G26=0,"-",SUMIFS(Calc_Fixed_1[Ausnet],Calc_Fixed_1[[Customer type]:[Customer type]],"All")+SUMIFS(Calc_Fixed_1[Ausnet],Calc_Fixed_1[[Customer type]:[Customer type]],$F28)) -> 292.5125165 | H27: =IF(H26=0,"-",SUMIFS(Calc_Fixed_1[Citipower],Calc_Fixed_1[[Customer type]:[Customer type]],"All")+SUMIFS(Calc_Fixed_1[Citipower],Calc_Fixed_1[[Customer type]:[Customer type]],$F28)) -> 284.609905 | I27: =IF(I26=0,"-",SUMIFS(Calc_Fixed_1[Jemena],Calc_Fixed_1[[Customer type]:[Customer type]],"All")+SUMIFS(Calc_Fixed_1[Jemena],Calc_Fixed_1[[Customer type]:[Customer type]],$F28)) -> 273.3910331 | J27: =IF(J26=0,"-",SUMIFS(Calc_Fixed_1[Powercor],Calc_Fixed_1[[Customer type]:[Customer type]],"All")+SUMIFS(Calc_Fixed_1[Powercor],Calc_Fixed_1[[Customer type]:[Customer type]],$F28)) -> 280.2333047 | K27: =IF(K26=0,"-",SUMIFS(Calc_Fixed_1[United Energy],Calc_Fixed_1[[Customer type]:[Customer type]],"All")+SUMIFS(Calc_Fixed_1[United Energy],Calc_Fixed_1[[Customer type]:[Customer type]],$F28)) -> 259.6761972
C28: Retail operating margin | D28: - | E28: $ | F28: Residential | G28: =IF(G26=0,"-",(G26+G27)*Calc_ROM_1[Ausnet]) -> 23.13771922 | H28: =IF(H26=0,"-",(H26+H27)*Calc_ROM_1[Citipower]) -> 20.34675669 | I28: =IF(I26=0,"-",(I26+I27)*Calc_ROM_1[Jemena]) -> 20.93494338 | J28: =IF(J26=0,"-",(J26+J27)*Calc_ROM_1[Powercor]) -> 23.0391941 | K28: =IF(K26=0,"-",(K26+K27)*Calc_ROM_1[United Energy]) -> 18.99268678
C29: GST | D29: - | E29: $ | F29: Residential | G29: =IF(G26=0,"-",(G26+G27+G28)*GST) -> 46.30183127 | H29: =IF(H26=0,"-",(H26+H27+H28)*GST) -> 40.71672261 | I29: =IF(I26=0,"-",(I26+I27+I28)*GST) -> 41.89376693 | J29: =IF(J26=0,"-",(J26+J27+J28)*GST) -> 46.10466866 | K29: =IF(K26=0,"-",(K26+K27+K28)*GST) -> 38.00703822
C30: Total fixed costs | D30: - | E30: $ | F30: Residential | G30: =IF(G26=0,"-",G26+G27+G28+G29) -> 509.320144 | H30: =IF(H26=0,"-",H26+H27+H28+H29) -> 447.8839487 | I30: =IF(I26=0,"-",I26+I27+I28+I29) -> 460.8314362 | J30: =IF(J26=0,"-",J26+J27+J28+J29) -> 507.1513552 | K30: =IF(K26=0,"-",K26+K27+K28+K29) -> 418.0774204
C31: =C25 -> TOU - supply | D31: - | E31: $ | F31: Residential | G31: =IF(G26=0,"-",G30/DiY) -> 1.395397655 | H31: =IF(H26=0,"-",H30/DiY) -> 1.227079312 | I31: =IF(I26=0,"-",I30/DiY) -> 1.26255188 | J31: =IF(J26=0,"-",J30/DiY) -> 1.389455768 | K31: =IF(K26=0,"-",K30/DiY) -> 1.14541759
G32: =IF(G26=0,"-", IF(ROUND(G31,8)=ROUND(((( SUMIFS(Calc_NetworkF_1[Ausnet],Calc_NetworkF_1[[Cost item]:[Cost item]],$C25,Calc_NetworkF_1[[Customer type]:[Customer type]],$F26)+ SUMIFS(Calc_Fixed_1[Ausnet],Calc_Fixed_1[[Customer type]:[Customer type]],Calc_Rates!$F31)+SUMIFS(Calc_Fixed_1[Ausnet],Calc_Fixed_1[[Customer type]:[Customer type]],"All"))*(1+Calc_ROM_1[Ausnet]))*(1+GST))/DiY,8),0,1)) -> 0 | H32: =IF(H26=0,"-", IF(ROUND(H31,8)=ROUND(((( SUMIFS(Calc_NetworkF_1[Citipower],Calc_NetworkF_1[[Cost item]:[Cost item]],$C25,Calc_NetworkF_1[[Customer type]:[Customer type]],$F26)+ SUMIFS(Calc_Fixed_1[Citipower],Calc_Fixed_1[[Customer type]:[Customer type]],Calc_Rates!$F31)+SUMIFS(Calc_Fixed_1[Citipower],Calc_Fixed_1[[Customer type]:[Customer type]],"All"))*(1+Calc_ROM_1[Citipower]))*(1+GST))/DiY,8),0,1)) -> 0 | I32: =IF(I26=0,"-", IF(ROUND(I31,8)=ROUND(((( SUMIFS(Calc_NetworkF_1[Jemena],Calc_NetworkF_1[[Cost item]:[Cost item]],$C25,Calc_NetworkF_1[[Customer type]:[Customer type]],$F26)+ SUMIFS(Calc_Fixed_1[Jemena],Calc_Fixed_1[[Customer type]:[Customer type]],Calc_Rates!$F31)+SUMIFS(Calc_Fixed_1[Jemena],Calc_Fixed_1[[Customer type]:[Customer type]],"All"))*(1+Calc_ROM_1[Jemena]))*(1+GST))/DiY,8),0,1)) -> 0 | J32: =IF(J26=0,"-", IF(ROUND(J31,8)=ROUND(((( SUMIFS(Calc_NetworkF_1[Powercor],Calc_NetworkF_1[[Cost item]:[Cost item]],$C25,Calc_NetworkF_1[[Customer type]:[Customer type]],$F26)+ SUMIFS(Calc_Fixed_1[Powercor],Calc_Fixed_1[[Customer type]:[Customer type]],Calc_Rates!$F31)+SUMIFS(Calc_Fixed_1[Powercor],Calc_Fixed_1[[Customer type]:[Customer type]],"All"))*(1+Calc_ROM_1[Powercor]))*(1+GST))/DiY,8),0,1)) -> 0 | K32: =IF(K26=0,"-", IF(ROUND(K31,8)=ROUND(((( SUMIFS(Calc_NetworkF_1[United Energy],Calc_NetworkF_1[[Cost item]:[Cost item]],$C25,Calc_NetworkF_1[[Customer type]:[Customer type]],$F26)+ SUMIFS(Calc_Fixed_1[United Energy],Calc_Fixed_1[[Customer type]:[Customer type]],Calc_Rates!$F31)+SUMIFS(Calc_Fixed_1[United Energy],Calc_Fixed_1[[Customer type]:[Customer type]],"All"))*(1+Calc_ROM_1[United Energy]))*(1+GST))/DiY,8),0,1)) -> 0
C33: Small business charges - daily supply
C34: Anytime - supply
C35: Network charge | D35: - | E35: $ | F35: Small business | G35: =SUMIFS(Calc_NetworkF_1[Ausnet],Calc_NetworkF_1[[Cost item]:[Cost item]],$C34,Calc_NetworkF_1[[Customer type]:[Customer type]],$F35) -> 147.3680769 | H35: =SUMIFS(Calc_NetworkF_1[Citipower],Calc_NetworkF_1[[Cost item]:[Cost item]],$C34,Calc_NetworkF_1[[Customer type]:[Customer type]],$F35) -> 166.7894145 | I35: =SUMIFS(Calc_NetworkF_1[Jemena],Calc_NetworkF_1[[Cost item]:[Cost item]],$C34,Calc_NetworkF_1[[Customer type]:[Customer type]],$F35) -> 190.1751187 | J35: =SUMIFS(Calc_NetworkF_1[Powercor],Calc_NetworkF_1[[Cost item]:[Cost item]],$C34,Calc_NetworkF_1[[Customer type]:[Customer type]],$F35) -> 206.6988792 | K35: =SUMIFS(Calc_NetworkF_1[United Energy],Calc_NetworkF_1[[Cost item]:[Cost item]],$C34,Calc_NetworkF_1[[Customer type]:[Customer type]],$F35) -> 166.8527841
C36: Fixed costs | D36: - | E36: $ | F36: Small business | G36: =IF(G35=0,"-",SUMIFS(Calc_Fixed_1[Ausnet],Calc_Fixed_1[[Customer type]:[Customer type]],"All")+SUMIFS(Calc_Fixed_1[Ausnet],Calc_Fixed_1[[Customer type]:[Customer type]],$F37)) -> 292.5125165 | H36: =IF(H35=0,"-",SUMIFS(Calc_Fixed_1[Citipower],Calc_Fixed_1[[Customer type]:[Customer type]],"All")+SUMIFS(Calc_Fixed_1[Citipower],Calc_Fixed_1[[Customer type]:[Customer type]],$F37)) -> 284.609905 | I36: =IF(I35=0,"-",SUMIFS(Calc_Fixed_1[Jemena],Calc_Fixed_1[[Customer type]:[Customer type]],"All")+SUMIFS(Calc_Fixed_1[Jemena],Calc_Fixed_1[[Customer type]:[Customer type]],$F37)) -> 273.3910331 | J36: =IF(J35=0,"-",SUMIFS(Calc_Fixed_1[Powercor],Calc_Fixed_1[[Customer type]:[Customer type]],"All")+SUMIFS(Calc_Fixed_1[Powercor],Calc_Fixed_1[[Customer type]:[Customer type]],$F37)) -> 280.2333047 | K36: =IF(K35=0,"-",SUMIFS(Calc_Fixed_1[United Energy],Calc_Fixed_1[[Customer type]:[Customer type]],"All")+SUMIFS(Calc_Fixed_1[United Energy],Calc_Fixed_1[[Customer type]:[Customer type]],$F37)) -> 259.6761972
C37: Retail operating margin | D37: - | E37: $ | F37: Small business | G37: =IF(G35=0,"-",(G35+G36)*Calc_ROM_1[Ausnet]) -> 23.13771922 | H37: =IF(H35=0,"-",(H35+H36)*Calc_ROM_1[Citipower]) -> 23.74360421 | I37: =IF(I35=0,"-",(I35+I36)*Calc_ROM_1[Jemena]) -> 24.38357959 | J37: =IF(J35=0,"-",(J35+J36)*Calc_ROM_1[Powercor]) -> 25.61263288 | K37: =IF(K35=0,"-",(K35+K36)*Calc_ROM_1[United Energy]) -> 22.43542442
C38: GST | D38: - | E38: $ | F38: Small business | G38: =IF(G35=0,"-",(G35+G36+G37)*GST) -> 46.30183127 | H38: =IF(H35=0,"-",(H35+H36+H37)*GST) -> 47.51429237 | I38: =IF(I35=0,"-",(I35+I36+I37)*GST) -> 48.79497314 | J38: =IF(J35=0,"-",(J35+J36+J37)*GST) -> 51.25448168 | K38: =IF(K35=0,"-",(K35+K36+K37)*GST) -> 44.89644057
C39: Total fixed costs | D39: - | E39: $ | F39: Small business | G39: =IF(G35=0,"-",G35+G36+G37+G38) -> 509.320144 | H39: =IF(H35=0,"-",H35+H36+H37+H38) -> 522.6572161 | I39: =IF(I35=0,"-",I35+I36+I37+I38) -> 536.7447046 | J39: =IF(J35=0,"-",J35+J36+J37+J38) -> 563.7992985 | K39: =IF(K35=0,"-",K35+K36+K37+K38) -> 493.8608463
C40: =C34 -> Anytime - supply | D40: - | E40: $ | F40: Small business | G40: =IF(G35=0,"-",G39/DiY) -> 1.395397655 | H40: =IF(H35=0,"-",H39/DiY) -> 1.431937578 | I40: =IF(I35=0,"-",I39/DiY) -> 1.470533437 | J40: =IF(J35=0,"-",J39/DiY) -> 1.544655612 | K40: =IF(K35=0,"-",K39/DiY) -> 1.353043414
G41: =IF(G35=0,"-", IF(ROUND(G40,8)=ROUND(((( SUMIFS(Calc_NetworkF_1[Ausnet],Calc_NetworkF_1[[Cost item]:[Cost item]],$C34,Calc_NetworkF_1[[Customer type]:[Customer type]],$F35)+ SUMIFS(Calc_Fixed_1[Ausnet],Calc_Fixed_1[[Customer type]:[Customer type]],Calc_Rates!$F40)+SUMIFS(Calc_Fixed_1[Ausnet],Calc_Fixed_1[[Customer type]:[Customer type]],"All"))*(1+Calc_ROM_1[Ausnet]))*(1+GST))/DiY,8),0,1)) -> 0 | H41: =IF(H35=0,"-", IF(ROUND(H40,8)=ROUND(((( SUMIFS(Calc_NetworkF_1[Citipower],Calc_NetworkF_1[[Cost item]:[Cost item]],$C34,Calc_NetworkF_1[[Customer type]:[Customer type]],$F35)+ SUMIFS(Calc_Fixed_1[Citipower],Calc_Fixed_1[[Customer type]:[Customer type]],Calc_Rates!$F40)+SUMIFS(Calc_Fixed_1[Citipower],Calc_Fixed_1[[Customer type]:[Customer type]],"All"))*(1+Calc_ROM_1[Citipower]))*(1+GST))/DiY,8),0,1)) -> 0 | I41: =IF(I35=0,"-", IF(ROUND(I40,8)=ROUND(((( SUMIFS(Calc_NetworkF_1[Jemena],Calc_NetworkF_1[[Cost item]:[Cost item]],$C34,Calc_NetworkF_1[[Customer type]:[Customer type]],$F35)+ SUMIFS(Calc_Fixed_1[Jemena],Calc_Fixed_1[[Customer type]:[Customer type]],Calc_Rates!$F40)+SUMIFS(Calc_Fixed_1[Jemena],Calc_Fixed_1[[Customer type]:[Customer type]],"All"))*(1+Calc_ROM_1[Jemena]))*(1+GST))/DiY,8),0,1)) -> 0 | J41: =IF(J35=0,"-", IF(ROUND(J40,8)=ROUND(((( SUMIFS(Calc_NetworkF_1[Powercor],Calc_NetworkF_1[[Cost item]:[Cost item]],$C34,Calc_NetworkF_1[[Customer type]:[Customer type]],$F35)+ SUMIFS(Calc_Fixed_1[Powercor],Calc_Fixed_1[[Customer type]:[Customer type]],Calc_Rates!$F40)+SUMIFS(Calc_Fixed_1[Powercor],Calc_Fixed_1[[Customer type]:[Customer type]],"All"))*(1+Calc_ROM_1[Powercor]))*(1+GST))/DiY,8),0,1)) -> 0 | K41: =IF(K35=0,"-", IF(ROUND(K40,8)=ROUND(((( SUMIFS(Calc_NetworkF_1[United Energy],Calc_NetworkF_1[[Cost item]:[Cost item]],$C34,Calc_NetworkF_1[[Customer type]:[Customer type]],$F35)+ SUMIFS(Calc_Fixed_1[United Energy],Calc_Fixed_1[[Customer type]:[Customer type]],Calc_Rates!$F40)+SUMIFS(Calc_Fixed_1[United Energy],Calc_Fixed_1[[Customer type]:[Customer type]],"All"))*(1+Calc_ROM_1[United Energy]))*(1+GST))/DiY,8),0,1)) -> 0
C42: TOU - supply
C43: Network charge | D43: - | E43: $ | F43: Small business | G43: =SUMIFS(Calc_NetworkF_1[Ausnet],Calc_NetworkF_1[[Cost item]:[Cost item]],$C42,Calc_NetworkF_1[[Customer type]:[Customer type]],$F43) -> 147.3680769 | H43: =SUMIFS(Calc_NetworkF_1[Citipower],Calc_NetworkF_1[[Cost item]:[Cost item]],$C42,Calc_NetworkF_1[[Customer type]:[Customer type]],$F43) -> 166.7894145 | I43: =SUMIFS(Calc_NetworkF_1[Jemena],Calc_NetworkF_1[[Cost item]:[Cost item]],$C42,Calc_NetworkF_1[[Customer type]:[Customer type]],$F43) -> 300.8288807 | J43: =SUMIFS(Calc_NetworkF_1[Powercor],Calc_NetworkF_1[[Cost item]:[Cost item]],$C42,Calc_NetworkF_1[[Customer type]:[Customer type]],$F43) -> 206.6988792 | K43: =SUMIFS(Calc_NetworkF_1[United Energy],Calc_NetworkF_1[[Cost item]:[Cost item]],$C42,Calc_NetworkF_1[[Customer type]:[Customer type]],$F43) -> 166.8527841
C44: Fixed costs | D44: - | E44: $ | F44: Small business | G44: =IF(G43=0,"-",SUMIFS(Calc_Fixed_1[Ausnet],Calc_Fixed_1[[Customer type]:[Customer type]],"All")+SUMIFS(Calc_Fixed_1[Ausnet],Calc_Fixed_1[[Customer type]:[Customer type]],$F45)) -> 292.5125165 | H44: =IF(H43=0,"-",SUMIFS(Calc_Fixed_1[Citipower],Calc_Fixed_1[[Customer type]:[Customer type]],"All")+SUMIFS(Calc_Fixed_1[Citipower],Calc_Fixed_1[[Customer type]:[Customer type]],$F45)) -> 284.609905 | I44: =IF(I43=0,"-",SUMIFS(Calc_Fixed_1[Jemena],Calc_Fixed_1[[Customer type]:[Customer type]],"All")+SUMIFS(Calc_Fixed_1[Jemena],Calc_Fixed_1[[Customer type]:[Customer type]],$F45)) -> 273.3910331 | J44: =IF(J43=0,"-",SUMIFS(Calc_Fixed_1[Powercor],Calc_Fixed_1[[Customer type]:[Customer type]],"All")+SUMIFS(Calc_Fixed_1[Powercor],Calc_Fixed_1[[Customer type]:[Customer type]],$F45)) -> 280.2333047 | K44: =IF(K43=0,"-",SUMIFS(Calc_Fixed_1[United Energy],Calc_Fixed_1[[Customer type]:[Customer type]],"All")+SUMIFS(Calc_Fixed_1[United Energy],Calc_Fixed_1[[Customer type]:[Customer type]],$F45)) -> 259.6761972
C45: Retail operating margin | D45: - | E45: $ | F45: Small business | G45: =IF(G43=0,"-",(G43+G44)*Calc_ROM_1[Ausnet]) -> 23.13771922 | H45: =IF(H43=0,"-",(H43+H44)*Calc_ROM_1[Citipower]) -> 23.74360421 | I45: =IF(I43=0,"-",(I43+I44)*Calc_ROM_1[Jemena]) -> 30.20396747 | J45: =IF(J43=0,"-",(J43+J44)*Calc_ROM_1[Powercor]) -> 25.61263288 | K45: =IF(K43=0,"-",(K43+K44)*Calc_ROM_1[United Energy]) -> 22.43542442
C46: GST | D46: - | E46: $ | F46: Small business | G46: =IF(G43=0,"-",(G43+G44+G45)*GST) -> 46.30183127 | H46: =IF(H43=0,"-",(H43+H44+H45)*GST) -> 47.51429237 | I46: =IF(I43=0,"-",(I43+I44+I45)*GST) -> 60.44238813 | J46: =IF(J43=0,"-",(J43+J44+J45)*GST) -> 51.25448168 | K46: =IF(K43=0,"-",(K43+K44+K45)*GST) -> 44.89644057
C47: Total fixed costs | D47: - | E47: $ | F47: Small business | G47: =IF(G43=0,"-",G43+G44+G45+G46) -> 509.320144 | H47: =IF(H43=0,"-",H43+H44+H45+H46) -> 522.6572161 | I47: =IF(I43=0,"-",I43+I44+I45+I46) -> 664.8662695 | J47: =IF(J43=0,"-",J43+J44+J45+J46) -> 563.7992985 | K47: =IF(K43=0,"-",K43+K44+K45+K46) -> 493.8608463
C48: =C42 -> TOU - supply | D48: - | E48: $ | F48: Small business | G48: =IF(G43=0,"-",G47/DiY) -> 1.395397655 | H48: =IF(H43=0,"-",H47/DiY) -> 1.431937578 | I48: =IF(I43=0,"-",I47/DiY) -> 1.821551423 | J48: =IF(J43=0,"-",J47/DiY) -> 1.544655612 | K48: =IF(K43=0,"-",K47/DiY) -> 1.353043414
G49: =IF(G43=0,"-", IF(ROUND(G48,8)=ROUND(((( SUMIFS(Calc_NetworkF_1[Ausnet],Calc_NetworkF_1[[Cost item]:[Cost item]],$C42,Calc_NetworkF_1[[Customer type]:[Customer type]],$F43)+ SUMIFS(Calc_Fixed_1[Ausnet],Calc_Fixed_1[[Customer type]:[Customer type]],Calc_Rates!$F48)+SUMIFS(Calc_Fixed_1[Ausnet],Calc_Fixed_1[[Customer type]:[Customer type]],"All"))*(1+Calc_ROM_1[Ausnet]))*(1+GST))/DiY,8),0,1)) -> 0 | H49: =IF(H43=0,"-", IF(ROUND(H48,8)=ROUND(((( SUMIFS(Calc_NetworkF_1[Citipower],Calc_NetworkF_1[[Cost item]:[Cost item]],$C42,Calc_NetworkF_1[[Customer type]:[Customer type]],$F43)+ SUMIFS(Calc_Fixed_1[Citipower],Calc_Fixed_1[[Customer type]:[Customer type]],Calc_Rates!$F48)+SUMIFS(Calc_Fixed_1[Citipower],Calc_Fixed_1[[Customer type]:[Customer type]],"All"))*(1+Calc_ROM_1[Citipower]))*(1+GST))/DiY,8),0,1)) -> 0 | I49: =IF(I43=0,"-", IF(ROUND(I48,8)=ROUND(((( SUMIFS(Calc_NetworkF_1[Jemena],Calc_NetworkF_1[[Cost item]:[Cost item]],$C42,Calc_NetworkF_1[[Customer type]:[Customer type]],$F43)+ SUMIFS(Calc_Fixed_1[Jemena],Calc_Fixed_1[[Customer type]:[Customer type]],Calc_Rates!$F48)+SUMIFS(Calc_Fixed_1[Jemena],Calc_Fixed_1[[Customer type]:[Customer type]],"All"))*(1+Calc_ROM_1[Jemena]))*(1+GST))/DiY,8),0,1)) -> 0 | J49: =IF(J43=0,"-", IF(ROUND(J48,8)=ROUND(((( SUMIFS(Calc_NetworkF_1[Powercor],Calc_NetworkF_1[[Cost item]:[Cost item]],$C42,Calc_NetworkF_1[[Customer type]:[Customer type]],$F43)+ SUMIFS(Calc_Fixed_1[Powercor],Calc_Fixed_1[[Customer type]:[Customer type]],Calc_Rates!$F48)+SUMIFS(Calc_Fixed_1[Powercor],Calc_Fixed_1[[Customer type]:[Customer type]],"All"))*(1+Calc_ROM_1[Powercor]))*(1+GST))/DiY,8),0,1)) -> 0 | K49: =IF(K43=0,"-", IF(ROUND(K48,8)=ROUND(((( SUMIFS(Calc_NetworkF_1[United Energy],Calc_NetworkF_1[[Cost item]:[Cost item]],$C42,Calc_NetworkF_1[[Customer type]:[Customer type]],$F43)+ SUMIFS(Calc_Fixed_1[United Energy],Calc_Fixed_1[[Customer type]:[Customer type]],Calc_Rates!$F48)+SUMIFS(Calc_Fixed_1[United Energy],Calc_Fixed_1[[Customer type]:[Customer type]],"All"))*(1+Calc_ROM_1[United Energy]))*(1+GST))/DiY,8),0,1)) -> 0
C51: Variable costs | D51: Fixed/Variable | E51: Unit | F51: Customer type | G51: Ausnet | H51: Citipower | I51: Jemena | J51: Powercor | K51: United Energy
C52: Environmental programs | D52: Variable | E52: $/kWh | F52: All | G52: =SUMIFS(Calc_EnviroVEU_1[Ausnet],Calc_EnviroVEU_1[[Fixed/Variable]:[Fixed/Variable]],$D52,Calc_EnviroVEU_1[[Customer type]:[Customer type]],$F52,Calc_EnviroVEU_1[[Cost item]:[Cost item]],"VEU cost")+ SUMIFS(Calc_EnviroLRET_1[Ausnet],Calc_EnviroLRET_1[[Fixed/Variable]:[Fixed/Variable]],$D52,Calc_EnviroLRET_1[[Customer type]:[Customer type]],$F52,Calc_EnviroLRET_1[[Cost item]:[Cost item]],"LRET cost")+ SUMIFS(Calc_EnviroSRES_1[Ausnet],Calc_EnviroSRES_1[[Fixed/Variable]:[Fixed/Variable]],$D52,Calc_EnviroSRES_1[[Customer type]:[Customer type]],$F52,Calc_EnviroSRES_1[[Cost item]:[Cost item]],"SRES cost") -> 0.02788023934 | H52: =SUMIFS(Calc_EnviroVEU_1[Citipower],Calc_EnviroVEU_1[[Fixed/Variable]:[Fixed/Variable]],$D52,Calc_EnviroVEU_1[[Customer type]:[Customer type]],$F52,Calc_EnviroVEU_1[[Cost item]:[Cost item]],"VEU cost")+ SUMIFS(Calc_EnviroLRET_1[Citipower],Calc_EnviroLRET_1[[Fixed/Variable]:[Fixed/Variable]],$D52,Calc_EnviroLRET_1[[Customer type]:[Customer type]],$F52,Calc_EnviroLRET_1[[Cost item]:[Cost item]],"LRET cost")+ SUMIFS(Calc_EnviroSRES_1[Citipower],Calc_EnviroSRES_1[[Fixed/Variable]:[Fixed/Variable]],$D52,Calc_EnviroSRES_1[[Customer type]:[Customer type]],$F52,Calc_EnviroSRES_1[[Cost item]:[Cost item]],"SRES cost") -> 0.02788023934 | I52: =SUMIFS(Calc_EnviroVEU_1[Jemena],Calc_EnviroVEU_1[[Fixed/Variable]:[Fixed/Variable]],$D52,Calc_EnviroVEU_1[[Customer type]:[Customer type]],$F52,Calc_EnviroVEU_1[[Cost item]:[Cost item]],"VEU cost")+ SUMIFS(Calc_EnviroLRET_1[Jemena],Calc_EnviroLRET_1[[Fixed/Variable]:[Fixed/Variable]],$D52,Calc_EnviroLRET_1[[Customer type]:[Customer type]],$F52,Calc_EnviroLRET_1[[Cost item]:[Cost item]],"LRET cost")+ SUMIFS(Calc_EnviroSRES_1[Jemena],Calc_EnviroSRES_1[[Fixed/Variable]:[Fixed/Variable]],$D52,Calc_EnviroSRES_1[[Customer type]:[Customer type]],$F52,Calc_EnviroSRES_1[[Cost item]:[Cost item]],"SRES cost") -> 0.02788023934 | J52: =SUMIFS(Calc_EnviroVEU_1[Powercor],Calc_EnviroVEU_1[[Fixed/Variable]:[Fixed/Variable]],$D52,Calc_EnviroVEU_1[[Customer type]:[Customer type]],$F52,Calc_EnviroVEU_1[[Cost item]:[Cost item]],"VEU cost")+ SUMIFS(Calc_EnviroLRET_1[Powercor],Calc_EnviroLRET_1[[Fixed/Variable]:[Fixed/Variable]],$D52,Calc_EnviroLRET_1[[Customer type]:[Customer type]],$F52,Calc_EnviroLRET_1[[Cost item]:[Cost item]],"LRET cost")+ SUMIFS(Calc_EnviroSRES_1[Powercor],Calc_EnviroSRES_1[[Fixed/Variable]:[Fixed/Variable]],$D52,Calc_EnviroSRES_1[[Customer type]:[Customer type]],$F52,Calc_EnviroSRES_1[[Cost item]:[Cost item]],"SRES cost") -> 0.02788023934 | K52: =SUMIFS(Calc_EnviroVEU_1[United Energy],Calc_EnviroVEU_1[[Fixed/Variable]:[Fixed/Variable]],$D52,Calc_EnviroVEU_1[[Customer type]:[Customer type]],$F52,Calc_EnviroVEU_1[[Cost item]:[Cost item]],"VEU cost")+ SUMIFS(Calc_EnviroLRET_1[United Energy],Calc_EnviroLRET_1[[Fixed/Variable]:[Fixed/Variable]],$D52,Calc_EnviroLRET_1[[Customer type]:[Customer type]],$F52,Calc_EnviroLRET_1[[Cost item]:[Cost item]],"LRET cost")+ SUMIFS(Calc_EnviroSRES_1[United Energy],Calc_EnviroSRES_1[[Fixed/Variable]:[Fixed/Variable]],$D52,Calc_EnviroSRES_1[[Customer type]:[Customer type]],$F52,Calc_EnviroSRES_1[[Cost item]:[Cost item]],"SRES cost") -> 0.02788023934
C53: Solar (FiT) | D53: Variable | E53: $/kWh | F53: All | G53: =SUMIFS(Calc_FiT_1[Ausnet],Calc_FiT_1[[Fixed/Variable]:[Fixed/Variable]],$D53,Calc_FiT_1[[Customer type]:[Customer type]],$F53) -> 0.001797760821 | H53: =SUMIFS(Calc_FiT_1[Ausnet],Calc_FiT_1[[Fixed/Variable]:[Fixed/Variable]],$D53,Calc_FiT_1[[Customer type]:[Customer type]],$F53) -> 0.001797760821 | I53: =SUMIFS(Calc_FiT_1[Ausnet],Calc_FiT_1[[Fixed/Variable]:[Fixed/Variable]],$D53,Calc_FiT_1[[Customer type]:[Customer type]],$F53) -> 0.001797760821 | J53: =SUMIFS(Calc_FiT_1[Ausnet],Calc_FiT_1[[Fixed/Variable]:[Fixed/Variable]],$D53,Calc_FiT_1[[Customer type]:[Customer type]],$F53) -> 0.001797760821 | K53: =SUMIFS(Calc_FiT_1[Ausnet],Calc_FiT_1[[Fixed/Variable]:[Fixed/Variable]],$D53,Calc_FiT_1[[Customer type]:[Customer type]],$F53) -> 0.001797760821
C54: Other | D54: Variable | E54: $/kWh | F54: All | G54: =SUMIFS(Calc_OtherCosts_1[Ausnet],Calc_OtherCosts_1[Fixed/Variable],$D54,Calc_OtherCosts_1[Customer type],$F54) -> 0.001146160438 | H54: =SUMIFS(Calc_OtherCosts_1[Citipower],Calc_OtherCosts_1[[Fixed/Variable]:[Fixed/Variable]],$D54,Calc_OtherCosts_1[[Customer type]:[Customer type]],$F54) -> 0.001146160438 | I54: =SUMIFS(Calc_OtherCosts_1[Jemena],Calc_OtherCosts_1[[Fixed/Variable]:[Fixed/Variable]],$D54,Calc_OtherCosts_1[[Customer type]:[Customer type]],$F54) -> 0.001146160438 | J54: =SUMIFS(Calc_OtherCosts_1[Powercor],Calc_OtherCosts_1[[Fixed/Variable]:[Fixed/Variable]],$D54,Calc_OtherCosts_1[[Customer type]:[Customer type]],$F54) -> 0.001146160438 | K54: =SUMIFS(Calc_OtherCosts_1[United Energy],Calc_OtherCosts_1[[Fixed/Variable]:[Fixed/Variable]],$D54,Calc_OtherCosts_1[[Customer type]:[Customer type]],$F54) -> 0.001146160438
C55: Wholesale cost | D55: Variable | E55: $/kWh | F55: Residential | G55: =SUMIFS(Calc_WholesaleRES_1[Ausnet],Calc_WholesaleRES_1[[Fixed/Variable]:[Fixed/Variable]],$D55,Calc_WholesaleRES_1[[Customer type]:[Customer type]],$F55,Calc_WholesaleRES_1[[Cost item]:[Cost item]],$C55) -> 0.11177 | H55: =SUMIFS(Calc_WholesaleRES_1[Citipower],Calc_WholesaleRES_1[[Fixed/Variable]:[Fixed/Variable]],$D55,Calc_WholesaleRES_1[[Customer type]:[Customer type]],$F55,Calc_WholesaleRES_1[[Cost item]:[Cost item]],$C55) -> 0.10817 | I55: =SUMIFS(Calc_WholesaleRES_1[Jemena],Calc_WholesaleRES_1[[Fixed/Variable]:[Fixed/Variable]],$D55,Calc_WholesaleRES_1[[Customer type]:[Customer type]],$F55,Calc_WholesaleRES_1[[Cost item]:[Cost item]],$C55) -> 0.11504 | J55: =SUMIFS(Calc_WholesaleRES_1[Powercor],Calc_WholesaleRES_1[[Fixed/Variable]:[Fixed/Variable]],$D55,Calc_WholesaleRES_1[[Customer type]:[Customer type]],$F55,Calc_WholesaleRES_1[[Cost item]:[Cost item]],$C55) -> 0.11026 | K55: =SUMIFS(Calc_WholesaleRES_1[United Energy],Calc_WholesaleRES_1[[Fixed/Variable]:[Fixed/Variable]],$D55,Calc_WholesaleRES_1[[Customer type]:[Customer type]],$F55,Calc_WholesaleRES_1[[Cost item]:[Cost item]],$C55) -> 0.11269
C56: Wholesale cost | D56: Variable | E56: $/kWh | F56: Small business | G56: =SUMIFS(Calc_WholesaleSME_1[Ausnet],Calc_WholesaleSME_1[[Fixed/Variable]:[Fixed/Variable]],$D56,Calc_WholesaleSME_1[[Customer type]:[Customer type]],$F56,Calc_WholesaleSME_1[[Cost item]:[Cost item]],$C56) -> 0.09578 | H56: =SUMIFS(Calc_WholesaleSME_1[Citipower],Calc_WholesaleSME_1[[Fixed/Variable]:[Fixed/Variable]],$D56,Calc_WholesaleSME_1[[Customer type]:[Customer type]],$F56,Calc_WholesaleSME_1[[Cost item]:[Cost item]],$C56) -> 0.09414 | I56: =SUMIFS(Calc_WholesaleSME_1[Jemena],Calc_WholesaleSME_1[[Fixed/Variable]:[Fixed/Variable]],$D56,Calc_WholesaleSME_1[[Customer type]:[Customer type]],$F56,Calc_WholesaleSME_1[[Cost item]:[Cost item]],$C56) -> 0.09647 | J56: =SUMIFS(Calc_WholesaleSME_1[Powercor],Calc_WholesaleSME_1[[Fixed/Variable]:[Fixed/Variable]],$D56,Calc_WholesaleSME_1[[Customer type]:[Customer type]],$F56,Calc_WholesaleSME_1[[Cost item]:[Cost item]],$C56) -> 0.09406 | K56: =SUMIFS(Calc_WholesaleSME_1[United Energy],Calc_WholesaleSME_1[[Fixed/Variable]:[Fixed/Variable]],$D56,Calc_WholesaleSME_1[[Customer type]:[Customer type]],$F56,Calc_WholesaleSME_1[[Cost item]:[Cost item]],$C56) -> 0.09761
C57: Network losses | D57: Variable | E57: $/kWh | F57: Residential | G57: =(SUMIFS(G$52:G$56,$F$52:$F$56,"All")+SUMIFS(G$52:G$56,$F$52:$F$56,$F57))*INDEX($G$175:$K$175,1,MATCH(G$51,Calc_Losses_1[[#Headers],[Ausnet]:[United Energy]],0)) -> 0.01133682392 | H57: =(SUMIFS(H$52:H$56,$F$52:$F$56,"All")+SUMIFS(H$52:H$56,$F$52:$F$56,$F57))*INDEX($G$175:$K$175,1,MATCH(H$51,Calc_Losses_1[[#Headers],[Ausnet]:[United Energy]],0)) -> 0.006007692064 | I57: =(SUMIFS(I$52:I$56,$F$52:$F$56,"All")+SUMIFS(I$52:I$56,$F$52:$F$56,$F57))*INDEX($G$175:$K$175,1,MATCH(I$51,Calc_Losses_1[[#Headers],[Ausnet]:[United Energy]],0)) -> 0.006971498789 | J57: =(SUMIFS(J$52:J$56,$F$52:$F$56,"All")+SUMIFS(J$52:J$56,$F$52:$F$56,$F57))*INDEX($G$175:$K$175,1,MATCH(J$51,Calc_Losses_1[[#Headers],[Ausnet]:[United Energy]],0)) -> 0.009174775536 | K57: =(SUMIFS(K$52:K$56,$F$52:$F$56,"All")+SUMIFS(K$52:K$56,$F$52:$F$56,$F57))*INDEX($G$175:$K$175,1,MATCH(K$51,Calc_Losses_1[[#Headers],[Ausnet]:[United Energy]],0)) -> 0.006383975241
C58: Network losses | D58: Variable | E58: $/kWh | F58: Small business | G58: =(SUMIFS(G$52:G$56,$F$52:$F$56,"All")+SUMIFS(G$52:G$56,$F$52:$F$56,$F58))*INDEX($G$175:$K$175,1,MATCH(G$51,Calc_Losses_1[[#Headers],[Ausnet]:[United Energy]],0)) -> 0.01006555297 | H58: =(SUMIFS(H$52:H$56,$F$52:$F$56,"All")+SUMIFS(H$52:H$56,$F$52:$F$56,$F58))*INDEX($G$175:$K$175,1,MATCH(H$51,Calc_Losses_1[[#Headers],[Ausnet]:[United Energy]],0)) -> 0.005401278677 | I58: =(SUMIFS(I$52:I$56,$F$52:$F$56,"All")+SUMIFS(I$52:I$56,$F$52:$F$56,$F58))*INDEX($G$175:$K$175,1,MATCH(I$51,Calc_Losses_1[[#Headers],[Ausnet]:[United Energy]],0)) -> 0.006083955667 | J58: =(SUMIFS(J$52:J$56,$F$52:$F$56,"All")+SUMIFS(J$52:J$56,$F$52:$F$56,$F58))*INDEX($G$175:$K$175,1,MATCH(J$51,Calc_Losses_1[[#Headers],[Ausnet]:[United Energy]],0)) -> 0.008121281203 | K58: =(SUMIFS(K$52:K$56,$F$52:$F$56,"All")+SUMIFS(K$52:K$56,$F$52:$F$56,$F58))*INDEX($G$175:$K$175,1,MATCH(K$51,Calc_Losses_1[[#Headers],[Ausnet]:[United Energy]],0)) -> 0.00571316794
C60: Residential charges - usage
C61: Anytime usage
C62: Block 1
C63: Network charge | D63: - | E63: $/kWh | F63: Residential | G63: =SUMIFS(Calc_NetworkV_1[Ausnet],Calc_NetworkV_1[Cost item],$C62,Calc_NetworkV_1[Customer type],$F63) -> 0.1431813538 | H63: =SUMIFS(Calc_NetworkV_1[Citipower],Calc_NetworkV_1[[Cost item]:[Cost item]],$C62,Calc_NetworkV_1[[Customer type]:[Customer type]],$F63) -> 0 | I63: =SUMIFS(Calc_NetworkV_1[Jemena],Calc_NetworkV_1[[Cost item]:[Cost item]],$C62,Calc_NetworkV_1[[Customer type]:[Customer type]],$F63) -> 0 | J63: =SUMIFS(Calc_NetworkV_1[Powercor],Calc_NetworkV_1[[Cost item]:[Cost item]],$C62,Calc_NetworkV_1[[Customer type]:[Customer type]],$F63) -> 0 | K63: =SUMIFS(Calc_NetworkV_1[United Energy],Calc_NetworkV_1[[Cost item]:[Cost item]],$C62,Calc_NetworkV_1[[Customer type]:[Customer type]],$F63) -> 0
C64: Variable costs | D64: - | E64: $/kWh | F64: Residential | G64: =SUMIFS(Calc_Variable_1[Ausnet],Calc_Variable_1[Customer type],"All")+SUMIFS(Calc_Variable_1[Ausnet],Calc_Variable_1[Customer type],$F64) -> 0.1539309845 | H64: =SUMIFS(Calc_Variable_1[Citipower],Calc_Variable_1[[Customer type]:[Customer type]],"All")+SUMIFS(Calc_Variable_1[Citipower],Calc_Variable_1[[Customer type]:[Customer type]],$F64) -> 0.1450018527 | I64: =SUMIFS(Calc_Variable_1[Jemena],Calc_Variable_1[[Customer type]:[Customer type]],"All")+SUMIFS(Calc_Variable_1[Jemena],Calc_Variable_1[[Customer type]:[Customer type]],$F64) -> 0.1528356594 | J64: =SUMIFS(Calc_Variable_1[Powercor],Calc_Variable_1[[Customer type]:[Customer type]],"All")+SUMIFS(Calc_Variable_1[Powercor],Calc_Variable_1[[Customer type]:[Customer type]],$F64) -> 0.1502589361 | K64: =SUMIFS(Calc_Variable_1[United Energy],Calc_Variable_1[[Customer type]:[Customer type]],"All")+SUMIFS(Calc_Variable_1[United Energy],Calc_Variable_1[[Customer type]:[Customer type]],$F64) -> 0.1498981358
C65: Retail operating margin | D65: - | E65: $/kWh | F65: Residential | G65: =IF(G63=0,"-", (G63+G64)*Calc_ROM_1[Ausnet]) -> 0.015628109 | H65: =IF(H63=0,"-", (H63+H64)*Calc_ROM_1[Citipower]) -> - | I65: =IF(I63=0,"-", (I63+I64)*Calc_ROM_1[Jemena]) -> - | J65: =IF(J63=0,"-", (J63+J64)*Calc_ROM_1[Powercor]) -> - | K65: =IF(K63=0,"-", (K63+K64)*Calc_ROM_1[United Energy]) -> -
C66: GST | D66: - | E66: $/kWh | F66: Residential | G66: =IF(G63=0,"-", (G63+G64+G65)*GST) -> 0.03127404473 | H66: =IF(H63=0,"-", (H63+H64+H65)*GST) -> - | I66: =IF(I63=0,"-", (I63+I64+I65)*GST) -> - | J66: =IF(J63=0,"-", (J63+J64+J65)*GST) -> - | K66: =IF(K63=0,"-", (K63+K64+K65)*GST) -> -
C67: =C62&" charge" -> Block 1 charge | D67: - | E67: $/kWh | F67: Residential | G67: =IF(G63=0,"-", SUM(G63:G66)) -> 0.3440144921 | H67: =IF(H63=0,"-", SUM(H63:H66)) -> - | I67: =IF(I63=0,"-", SUM(I63:I66)) -> - | J67: =IF(J63=0,"-", SUM(J63:J66)) -> - | K67: =IF(K63=0,"-", SUM(K63:K66)) -> -
G68: =IF(G67="-","-", IF(ROUND(G67,8)=ROUND(((( SUMIFS(Calc_Variable_1[Ausnet],Calc_Variable_1[[Customer type]:[Customer type]],Calc_Rates!$F67)+ SUMIFS(Calc_Variable_1[Ausnet],Calc_Variable_1[[Customer type]:[Customer type]],"All")+G63)*(1+Calc_ROM_1[Ausnet]))*(1+GST)),8),0,1)) -> 0 | H68: =IF(H67="-","-", IF(ROUND(H67,8)=ROUND(((( SUMIFS(Calc_Variable_1[Citipower],Calc_Variable_1[[Customer type]:[Customer type]],Calc_Rates!$F67)+ SUMIFS(Calc_Variable_1[Citipower],Calc_Variable_1[[Customer type]:[Customer type]],"All")+H63)*(1+Calc_ROM_1[Citipower]))*(1+GST)),8),0,1)) -> - | I68: =IF(I67="-","-", IF(ROUND(I67,8)=ROUND(((( SUMIFS(Calc_Variable_1[Jemena],Calc_Variable_1[[Customer type]:[Customer type]],Calc_Rates!$F67)+ SUMIFS(Calc_Variable_1[Jemena],Calc_Variable_1[[Customer type]:[Customer type]],"All")+I63)*(1+Calc_ROM_1[Jemena]))*(1+GST)),8),0,1)) -> - | J68: =IF(J67="-","-", IF(ROUND(J67,8)=ROUND(((( SUMIFS(Calc_Variable_1[Powercor],Calc_Variable_1[[Customer type]:[Customer type]],Calc_Rates!$F67)+ SUMIFS(Calc_Variable_1[Powercor],Calc_Variable_1[[Customer type]:[Customer type]],"All")+J63)*(1+Calc_ROM_1[Powercor]))*(1+GST)),8),0,1)) -> - | K68: =IF(K67="-","-", IF(ROUND(K67,8)=ROUND(((( SUMIFS(Calc_Variable_1[United Energy],Calc_Variable_1[[Customer type]:[Customer type]],Calc_Rates!$F67)+ SUMIFS(Calc_Variable_1[United Energy],Calc_Variable_1[[Customer type]:[Customer type]],"All")+K63)*(1+Calc_ROM_1[United Energy]))*(1+GST)),8),0,1)) -> -
C69: Balance
C70: Network charge | D70: - | E70: $/kWh | F70: Residential | G70: =SUMIFS(Calc_NetworkV_1[Ausnet],Calc_NetworkV_1[[Cost item]:[Cost item]],$C69,Calc_NetworkV_1[[Customer type]:[Customer type]],$F70) -> 0.1431813538 | H70: =SUMIFS(Calc_NetworkV_1[Citipower],Calc_NetworkV_1[[Cost item]:[Cost item]],$C69,Calc_NetworkV_1[[Customer type]:[Customer type]],$F70) -> 0 | I70: =SUMIFS(Calc_NetworkV_1[Jemena],Calc_NetworkV_1[[Cost item]:[Cost item]],$C69,Calc_NetworkV_1[[Customer type]:[Customer type]],$F70) -> 0 | J70: =SUMIFS(Calc_NetworkV_1[Powercor],Calc_NetworkV_1[[Cost item]:[Cost item]],$C69,Calc_NetworkV_1[[Customer type]:[Customer type]],$F70) -> 0 | K70: =SUMIFS(Calc_NetworkV_1[United Energy],Calc_NetworkV_1[[Cost item]:[Cost item]],$C69,Calc_NetworkV_1[[Customer type]:[Customer type]],$F70) -> 0
C71: Variable costs | D71: - | E71: $/kWh | F71: Residential | G71: =SUMIFS(Calc_Variable_1[Ausnet],Calc_Variable_1[[Customer type]:[Customer type]],"All")+SUMIFS(Calc_Variable_1[Ausnet],Calc_Variable_1[[Customer type]:[Customer type]],$F71) -> 0.1539309845 | H71: =SUMIFS(Calc_Variable_1[Citipower],Calc_Variable_1[[Customer type]:[Customer type]],"All")+SUMIFS(Calc_Variable_1[Citipower],Calc_Variable_1[[Customer type]:[Customer type]],$F71) -> 0.1450018527 | I71: =SUMIFS(Calc_Variable_1[Jemena],Calc_Variable_1[[Customer type]:[Customer type]],"All")+SUMIFS(Calc_Variable_1[Jemena],Calc_Variable_1[[Customer type]:[Customer type]],$F71) -> 0.1528356594 | J71: =SUMIFS(Calc_Variable_1[Powercor],Calc_Variable_1[[Customer type]:[Customer type]],"All")+SUMIFS(Calc_Variable_1[Powercor],Calc_Variable_1[[Customer type]:[Customer type]],$F71) -> 0.1502589361 | K71: =SUMIFS(Calc_Variable_1[United Energy],Calc_Variable_1[[Customer type]:[Customer type]],"All")+SUMIFS(Calc_Variable_1[United Energy],Calc_Variable_1[[Customer type]:[Customer type]],$F71) -> 0.1498981358
C72: Retail operating margin | D72: - | E72: $/kWh | F72: Residential | G72: =IF(G70=0,"-", (G70+G71)*Calc_ROM_1[Ausnet]) -> 0.015628109 | H72: =IF(H70=0,"-", (H70+H71)*Calc_ROM_1[Citipower]) -> - | I72: =IF(I70=0,"-", (I70+I71)*Calc_ROM_1[Jemena]) -> - | J72: =IF(J70=0,"-", (J70+J71)*Calc_ROM_1[Powercor]) -> - | K72: =IF(K70=0,"-", (K70+K71)*Calc_ROM_1[United Energy]) -> -
C73: GST | D73: - | E73: $/kWh | F73: Residential | G73: =IF(G70=0,"-", (G70+G71+G72)*GST) -> 0.03127404473 | H73: =IF(H70=0,"-", (H70+H71+H72)*GST) -> - | I73: =IF(I70=0,"-", (I70+I71+I72)*GST) -> - | J73: =IF(J70=0,"-", (J70+J71+J72)*GST) -> - | K73: =IF(K70=0,"-", (K70+K71+K72)*GST) -> -
C74: =C69&" charge" -> Balance charge | D74: - | E74: $/kWh | F74: Residential | G74: =IF(G70=0,"-", SUM(G70:G73)) -> 0.3440144921 | H74: =IF(H70=0,"-", SUM(H70:H73)) -> - | I74: =IF(I70=0,"-", SUM(I70:I73)) -> - | J74: =IF(J70=0,"-", SUM(J70:J73)) -> - | K74: =IF(K70=0,"-", SUM(K70:K73)) -> -
G75: =IF(G74="-","-", IF(ROUND(G74,8)=ROUND(((( SUMIFS(Calc_Variable_1[Ausnet],Calc_Variable_1[[Customer type]:[Customer type]],Calc_Rates!$F74)+ SUMIFS(Calc_Variable_1[Ausnet],Calc_Variable_1[[Customer type]:[Customer type]],"All")+G70)*(1+Calc_ROM_1[Ausnet]))*(1+GST)),8),0,1)) -> 0 | H75: =IF(H74="-","-", IF(ROUND(H74,8)=ROUND(((( SUMIFS(Calc_Variable_1[Citipower],Calc_Variable_1[[Customer type]:[Customer type]],Calc_Rates!$F74)+ SUMIFS(Calc_Variable_1[Citipower],Calc_Variable_1[[Customer type]:[Customer type]],"All")+H70)*(1+Calc_ROM_1[Citipower]))*(1+GST)),8),0,1)) -> - | I75: =IF(I74="-","-", IF(ROUND(I74,8)=ROUND(((( SUMIFS(Calc_Variable_1[Jemena],Calc_Variable_1[[Customer type]:[Customer type]],Calc_Rates!$F74)+ SUMIFS(Calc_Variable_1[Jemena],Calc_Variable_1[[Customer type]:[Customer type]],"All")+I70)*(1+Calc_ROM_1[Jemena]))*(1+GST)),8),0,1)) -> - | J75: =IF(J74="-","-", IF(ROUND(J74,8)=ROUND(((( SUMIFS(Calc_Variable_1[Powercor],Calc_Variable_1[[Customer type]:[Customer type]],Calc_Rates!$F74)+ SUMIFS(Calc_Variable_1[Powercor],Calc_Variable_1[[Customer type]:[Customer type]],"All")+J70)*(1+Calc_ROM_1[Powercor]))*(1+GST)),8),0,1)) -> - | K75: =IF(K74="-","-", IF(ROUND(K74,8)=ROUND(((( SUMIFS(Calc_Variable_1[United Energy],Calc_Variable_1[[Customer type]:[Customer type]],Calc_Rates!$F74)+ SUMIFS(Calc_Variable_1[United Energy],Calc_Variable_1[[Customer type]:[Customer type]],"All")+K70)*(1+Calc_ROM_1[United Energy]))*(1+GST)),8),0,1)) -> -
C76: Single rate
C77: Network charge | D77: - | E77: $/kWh | F77: Residential | G77: =SUMIFS(Calc_NetworkV_1[Ausnet],Calc_NetworkV_1[[Cost item]:[Cost item]],$C76,Calc_NetworkV_1[[Customer type]:[Customer type]],$F77) -> 0 | H77: =SUMIFS(Calc_NetworkV_1[Citipower],Calc_NetworkV_1[[Cost item]:[Cost item]],$C76,Calc_NetworkV_1[[Customer type]:[Customer type]],$F77) -> 0.08785636328 | I77: =SUMIFS(Calc_NetworkV_1[Jemena],Calc_NetworkV_1[[Cost item]:[Cost item]],$C76,Calc_NetworkV_1[[Customer type]:[Customer type]],$F77) -> 0.1110142127 | J77: =SUMIFS(Calc_NetworkV_1[Powercor],Calc_NetworkV_1[[Cost item]:[Cost item]],$C76,Calc_NetworkV_1[[Customer type]:[Customer type]],$F77) -> 0.1035550759 | K77: =SUMIFS(Calc_NetworkV_1[United Energy],Calc_NetworkV_1[[Cost item]:[Cost item]],$C76,Calc_NetworkV_1[[Customer type]:[Customer type]],$F77) -> 0.09920985998
C78: Variable costs | D78: - | E78: $/kWh | F78: Residential | G78: =SUMIFS(Calc_Variable_1[Ausnet],Calc_Variable_1[[Customer type]:[Customer type]],"All")+SUMIFS(Calc_Variable_1[Ausnet],Calc_Variable_1[[Customer type]:[Customer type]],$F78) -> 0.1539309845 | H78: =SUMIFS(Calc_Variable_1[Citipower],Calc_Variable_1[[Customer type]:[Customer type]],"All")+SUMIFS(Calc_Variable_1[Citipower],Calc_Variable_1[[Customer type]:[Customer type]],$F78) -> 0.1450018527 | I78: =SUMIFS(Calc_Variable_1[Jemena],Calc_Variable_1[[Customer type]:[Customer type]],"All")+SUMIFS(Calc_Variable_1[Jemena],Calc_Variable_1[[Customer type]:[Customer type]],$F78) -> 0.1528356594 | J78: =SUMIFS(Calc_Variable_1[Powercor],Calc_Variable_1[[Customer type]:[Customer type]],"All")+SUMIFS(Calc_Variable_1[Powercor],Calc_Variable_1[[Customer type]:[Customer type]],$F78) -> 0.1502589361 | K78: =SUMIFS(Calc_Variable_1[United Energy],Calc_Variable_1[[Customer type]:[Customer type]],"All")+SUMIFS(Calc_Variable_1[United Energy],Calc_Variable_1[[Customer type]:[Customer type]],$F78) -> 0.1498981358
C79: Retail operating margin | D79: - | E79: $/kWh | F79: Residential | G79: =IF(G77=0,"-", (G77+G78)*Calc_ROM_1[Ausnet]) -> - | H79: =IF(H77=0,"-", (H77+H78)*Calc_ROM_1[Citipower]) -> 0.01224834216 | I79: =IF(I77=0,"-", (I77+I78)*Calc_ROM_1[Jemena]) -> 0.01387850327 | J79: =IF(J77=0,"-", (J77+J78)*Calc_ROM_1[Powercor]) -> 0.01335061703 | K79: =IF(K77=0,"-", (K77+K78)*Calc_ROM_1[United Energy]) -> 0.01310308058
C80: GST | D80: - | E80: $/kWh | F80: Residential | G80: =IF(G77=0,"-", (G77+G78+G79)*GST) -> - | H80: =IF(H77=0,"-", (H77+H78+H79)*GST) -> 0.02451065581 | I80: =IF(I77=0,"-", (I77+I78+I79)*GST) -> 0.02777283754 | J80: =IF(J77=0,"-", (J77+J78+J79)*GST) -> 0.0267164629 | K80: =IF(K77=0,"-", (K77+K78+K79)*GST) -> 0.02622110764
C81: =C76&" charge" -> Single rate charge | D81: - | E81: $/kWh | F81: Residential | G81: =IF(G77=0,"-", SUM(G77:G80)) -> - | H81: =IF(H77=0,"-", SUM(H77:H80)) -> 0.2696172139 | I81: =IF(I77=0,"-", SUM(I77:I80)) -> 0.3055012129 | J81: =IF(J77=0,"-", SUM(J77:J80)) -> 0.2938810919 | K81: =IF(K77=0,"-", SUM(K77:K80)) -> 0.288432184
G82: =IF(G81="-","-", IF(ROUND(G81,8)=ROUND(((( SUMIFS(Calc_Variable_1[Ausnet],Calc_Variable_1[[Customer type]:[Customer type]],Calc_Rates!$F81)+ SUMIFS(Calc_Variable_1[Ausnet],Calc_Variable_1[[Customer type]:[Customer type]],"All")+G77)*(1+Calc_ROM_1[Ausnet]))*(1+GST)),8),0,1)) -> - | H82: =IF(H81="-","-", IF(ROUND(H81,8)=ROUND(((( SUMIFS(Calc_Variable_1[Citipower],Calc_Variable_1[[Customer type]:[Customer type]],Calc_Rates!$F81)+ SUMIFS(Calc_Variable_1[Citipower],Calc_Variable_1[[Customer type]:[Customer type]],"All")+H77)*(1+Calc_ROM_1[Citipower]))*(1+GST)),8),0,1)) -> 0 | I82: =IF(I81="-","-", IF(ROUND(I81,8)=ROUND(((( SUMIFS(Calc_Variable_1[Jemena],Calc_Variable_1[[Customer type]:[Customer type]],Calc_Rates!$F81)+ SUMIFS(Calc_Variable_1[Jemena],Calc_Variable_1[[Customer type]:[Customer type]],"All")+I77)*(1+Calc_ROM_1[Jemena]))*(1+GST)),8),0,1)) -> 0 | J82: =IF(J81="-","-", IF(ROUND(J81,8)=ROUND(((( SUMIFS(Calc_Variable_1[Powercor],Calc_Variable_1[[Customer type]:[Customer type]],Calc_Rates!$F81)+ SUMIFS(Calc_Variable_1[Powercor],Calc_Variable_1[[Customer type]:[Customer type]],"All")+J77)*(1+Calc_ROM_1[Powercor]))*(1+GST)),8),0,1)) -> 0 | K82: =IF(K81="-","-", IF(ROUND(K81,8)=ROUND(((( SUMIFS(Calc_Variable_1[United Energy],Calc_Variable_1[[Customer type]:[Customer type]],Calc_Rates!$F81)+ SUMIFS(Calc_Variable_1[United Energy],Calc_Variable_1[[Customer type]:[Customer type]],"All")+K77)*(1+Calc_ROM_1[United Energy]))*(1+GST)),8),0,1)) -> 0
C83: TOU usage
C84: Peak
C85: Network charge | D85: - | E85: $/kWh | F85: Residential | G85: =SUMIFS(Calc_NetworkV_1[Ausnet],Calc_NetworkV_1[[Cost item]:[Cost item]],$C84,Calc_NetworkV_1[[Customer type]:[Customer type]],$F85) -> 0.2486565168 | H85: =SUMIFS(Calc_NetworkV_1[Citipower],Calc_NetworkV_1[[Cost item]:[Cost item]],$C84,Calc_NetworkV_1[[Customer type]:[Customer type]],$F85) -> 0.1692307088 | I85: =SUMIFS(Calc_NetworkV_1[Jemena],Calc_NetworkV_1[[Cost item]:[Cost item]],$C84,Calc_NetworkV_1[[Customer type]:[Customer type]],$F85) -> 0.1862794339 | J85: =SUMIFS(Calc_NetworkV_1[Powercor],Calc_NetworkV_1[[Cost item]:[Cost item]],$C84,Calc_NetworkV_1[[Customer type]:[Customer type]],$F85) -> 0.1965071285 | K85: =SUMIFS(Calc_NetworkV_1[United Energy],Calc_NetworkV_1[[Cost item]:[Cost item]],$C84,Calc_NetworkV_1[[Customer type]:[Customer type]],$F85) -> 0.1864001572
C86: Variable costs | D86: - | E86: $/kWh | F86: Residential | G86: =SUMIFS(Calc_Variable_1[Ausnet],Calc_Variable_1[[Customer type]:[Customer type]],"All")+SUMIFS(Calc_Variable_1[Ausnet],Calc_Variable_1[[Customer type]:[Customer type]],$F86) -> 0.1539309845 | H86: =SUMIFS(Calc_Variable_1[Citipower],Calc_Variable_1[[Customer type]:[Customer type]],"All")+SUMIFS(Calc_Variable_1[Citipower],Calc_Variable_1[[Customer type]:[Customer type]],$F86) -> 0.1450018527 | I86: =SUMIFS(Calc_Variable_1[Jemena],Calc_Variable_1[[Customer type]:[Customer type]],"All")+SUMIFS(Calc_Variable_1[Jemena],Calc_Variable_1[[Customer type]:[Customer type]],$F86) -> 0.1528356594 | J86: =SUMIFS(Calc_Variable_1[Powercor],Calc_Variable_1[[Customer type]:[Customer type]],"All")+SUMIFS(Calc_Variable_1[Powercor],Calc_Variable_1[[Customer type]:[Customer type]],$F86) -> 0.1502589361 | K86: =SUMIFS(Calc_Variable_1[United Energy],Calc_Variable_1[[Customer type]:[Customer type]],"All")+SUMIFS(Calc_Variable_1[United Energy],Calc_Variable_1[[Customer type]:[Customer type]],$F86) -> 0.1498981358
C87: Retail operating margin | D87: - | E87: $/kWh | F87: Residential | G87: =IF(G85=0,"-", (G85+G86)*Calc_ROM_1[Ausnet]) -> 0.02117610257 | H87: =IF(H85=0,"-", (H85+H86)*Calc_ROM_1[Citipower]) -> 0.01652863273 | I87: =IF(I85=0,"-", (I85+I86)*Calc_ROM_1[Jemena]) -> 0.01783745391 | J87: =IF(J85=0,"-", (J85+J86)*Calc_ROM_1[Powercor]) -> 0.018239895 | K87: =IF(K85=0,"-", (K85+K86)*Calc_ROM_1[United Energy]) -> 0.01768929021
C88: GST | D88: - | E88: $/kWh | F88: Residential | G88: =IF(G85=0,"-", (G85+G86+G87)*GST) -> 0.04237636039 | H88: =IF(H85=0,"-", (H85+H86+H87)*GST) -> 0.03307611942 | I88: =IF(I85=0,"-", (I85+I86+I87)*GST) -> 0.03569525472 | J88: =IF(J85=0,"-", (J85+J86+J87)*GST) -> 0.03650059596 | K88: =IF(K85=0,"-", (K85+K86+K87)*GST) -> 0.03539875833
C89: =C84&" charge" -> Peak charge | D89: - | E89: $/kWh | F89: Residential | G89: =IF(G85=0,"-", SUM(G85:G88)) -> 0.4661399643 | H89: =IF(H85=0,"-", SUM(H85:H88)) -> 0.3638373136 | I89: =IF(I85=0,"-", SUM(I85:I88)) -> 0.392647802 | J89: =IF(J85=0,"-", SUM(J85:J88)) -> 0.4015065556 | K89: =IF(K85=0,"-", SUM(K85:K88)) -> 0.3893863416
G90: =IF(G89="-","-", IF(ROUND(G89,8)=ROUND(((( SUMIFS(Calc_Variable_1[Ausnet],Calc_Variable_1[[Customer type]:[Customer type]],Calc_Rates!$F89)+ SUMIFS(Calc_Variable_1[Ausnet],Calc_Variable_1[[Customer type]:[Customer type]],"All")+G85)*(1+Calc_ROM_1[Ausnet]))*(1+GST)),8),0,1)) -> 0 | H90: =IF(H89="-","-", IF(ROUND(H89,8)=ROUND(((( SUMIFS(Calc_Variable_1[Citipower],Calc_Variable_1[[Customer type]:[Customer type]],Calc_Rates!$F89)+ SUMIFS(Calc_Variable_1[Citipower],Calc_Variable_1[[Customer type]:[Customer type]],"All")+H85)*(1+Calc_ROM_1[Citipower]))*(1+GST)),8),0,1)) -> 0 | I90: =IF(I89="-","-", IF(ROUND(I89,8)=ROUND(((( SUMIFS(Calc_Variable_1[Jemena],Calc_Variable_1[[Customer type]:[Customer type]],Calc_Rates!$F89)+ SUMIFS(Calc_Variable_1[Jemena],Calc_Variable_1[[Customer type]:[Customer type]],"All")+I85)*(1+Calc_ROM_1[Jemena]))*(1+GST)),8),0,1)) -> 0 | J90: =IF(J89="-","-", IF(ROUND(J89,8)=ROUND(((( SUMIFS(Calc_Variable_1[Powercor],Calc_Variable_1[[Customer type]:[Customer type]],Calc_Rates!$F89)+ SUMIFS(Calc_Variable_1[Powercor],Calc_Variable_1[[Customer type]:[Customer type]],"All")+J85)*(1+Calc_ROM_1[Powercor]))*(1+GST)),8),0,1)) -> 0 | K90: =IF(K89="-","-", IF(ROUND(K89,8)=ROUND(((( SUMIFS(Calc_Variable_1[United Energy],Calc_Variable_1[[Customer type]:[Customer type]],Calc_Rates!$F89)+ SUMIFS(Calc_Variable_1[United Energy],Calc_Variable_1[[Customer type]:[Customer type]],"All")+K85)*(1+Calc_ROM_1[United Energy]))*(1+GST)),8),0,1)) -> 0
C91: Off peak
C92: Network charge | D92: - | E92: $/kWh | F92: Residential | G92: =SUMIFS(Calc_NetworkV_1[Ausnet],Calc_NetworkV_1[[Cost item]:[Cost item]],$C91,Calc_NetworkV_1[[Customer type]:[Customer type]],$F92) -> 0.04958482127 | H92: =SUMIFS(Calc_NetworkV_1[Citipower],Calc_NetworkV_1[[Cost item]:[Cost item]],$C91,Calc_NetworkV_1[[Customer type]:[Customer type]],$F92) -> 0.04229951204 | I92: =SUMIFS(Calc_NetworkV_1[Jemena],Calc_NetworkV_1[[Cost item]:[Cost item]],$C91,Calc_NetworkV_1[[Customer type]:[Customer type]],$F92) -> 0.05249991266 | J92: =SUMIFS(Calc_NetworkV_1[Powercor],Calc_NetworkV_1[[Cost item]:[Cost item]],$C91,Calc_NetworkV_1[[Customer type]:[Customer type]],$F92) -> 0.04938552251 | K92: =SUMIFS(Calc_NetworkV_1[United Energy],Calc_NetworkV_1[[Cost item]:[Cost item]],$C91,Calc_NetworkV_1[[Customer type]:[Customer type]],$F92) -> 0.04641354452
C93: Variable costs | D93: - | E93: $/kWh | F93: Residential | G93: =SUMIFS(Calc_Variable_1[Ausnet],Calc_Variable_1[[Customer type]:[Customer type]],"All")+SUMIFS(Calc_Variable_1[Ausnet],Calc_Variable_1[[Customer type]:[Customer type]],$F93) -> 0.1539309845 | H93: =SUMIFS(Calc_Variable_1[Citipower],Calc_Variable_1[[Customer type]:[Customer type]],"All")+SUMIFS(Calc_Variable_1[Citipower],Calc_Variable_1[[Customer type]:[Customer type]],$F93) -> 0.1450018527 | I93: =SUMIFS(Calc_Variable_1[Jemena],Calc_Variable_1[[Customer type]:[Customer type]],"All")+SUMIFS(Calc_Variable_1[Jemena],Calc_Variable_1[[Customer type]:[Customer type]],$F93) -> 0.1528356594 | J93: =SUMIFS(Calc_Variable_1[Powercor],Calc_Variable_1[[Customer type]:[Customer type]],"All")+SUMIFS(Calc_Variable_1[Powercor],Calc_Variable_1[[Customer type]:[Customer type]],$F93) -> 0.1502589361 | K93: =SUMIFS(Calc_Variable_1[United Energy],Calc_Variable_1[[Customer type]:[Customer type]],"All")+SUMIFS(Calc_Variable_1[United Energy],Calc_Variable_1[[Customer type]:[Customer type]],$F93) -> 0.1498981358
C94: Retail operating margin | D94: - | E94: $/kWh | F94: Residential | G94: =IF(G92=0,"-", (G92+G93)*Calc_ROM_1[Ausnet]) -> 0.01070493139 | H94: =IF(H92=0,"-", (H92+H93)*Calc_ROM_1[Citipower]) -> 0.009852051783 | I94: =IF(I92=0,"-", (I92+I93)*Calc_ROM_1[Jemena]) -> 0.01080065109 | J94: =IF(J92=0,"-", (J92+J93)*Calc_ROM_1[Powercor]) -> 0.01050129852 | K94: =IF(K92=0,"-", (K92+K93)*Calc_ROM_1[United Energy]) -> 0.01032599439
C95: GST | D95: - | E95: $/kWh | F95: Residential | G95: =IF(G92=0,"-", (G92+G93+G94)*GST) -> 0.02142207372 | H95: =IF(H92=0,"-", (H92+H93+H94)*GST) -> 0.01971534165 | I95: =IF(I92=0,"-", (I92+I93+I94)*GST) -> 0.02161362231 | J95: =IF(J92=0,"-", (J92+J93+J94)*GST) -> 0.02101457572 | K95: =IF(K92=0,"-", (K92+K93+K94)*GST) -> 0.02066376748
C96: =C91&" charge" -> Off peak charge | D96: - | E96: $/kWh | F96: Residential | G96: =IF(G92=0,"-", SUM(G92:G95)) -> 0.2356428109 | H96: =IF(H92=0,"-", SUM(H92:H95)) -> 0.2168687581 | I96: =IF(I92=0,"-", SUM(I92:I95)) -> 0.2377498455 | J96: =IF(J92=0,"-", SUM(J92:J95)) -> 0.2311603329 | K96: =IF(K92=0,"-", SUM(K92:K95)) -> 0.2273014422
G97: =IF(G96="-","-", IF(ROUND(G96,8)=ROUND(((( SUMIFS(Calc_Variable_1[Ausnet],Calc_Variable_1[[Customer type]:[Customer type]],Calc_Rates!$F96)+ SUMIFS(Calc_Variable_1[Ausnet],Calc_Variable_1[[Customer type]:[Customer type]],"All")+G92)*(1+Calc_ROM_1[Ausnet]))*(1+GST)),8),0,1)) -> 0 | H97: =IF(H96="-","-", IF(ROUND(H96,8)=ROUND(((( SUMIFS(Calc_Variable_1[Citipower],Calc_Variable_1[[Customer type]:[Customer type]],Calc_Rates!$F96)+ SUMIFS(Calc_Variable_1[Citipower],Calc_Variable_1[[Customer type]:[Customer type]],"All")+H92)*(1+Calc_ROM_1[Citipower]))*(1+GST)),8),0,1)) -> 0 | I97: =IF(I96="-","-", IF(ROUND(I96,8)=ROUND(((( SUMIFS(Calc_Variable_1[Jemena],Calc_Variable_1[[Customer type]:[Customer type]],Calc_Rates!$F96)+ SUMIFS(Calc_Variable_1[Jemena],Calc_Variable_1[[Customer type]:[Customer type]],"All")+I92)*(1+Calc_ROM_1[Jemena]))*(1+GST)),8),0,1)) -> 0 | J97: =IF(J96="-","-", IF(ROUND(J96,8)=ROUND(((( SUMIFS(Calc_Variable_1[Powercor],Calc_Variable_1[[Customer type]:[Customer type]],Calc_Rates!$F96)+ SUMIFS(Calc_Variable_1[Powercor],Calc_Variable_1[[Customer type]:[Customer type]],"All")+J92)*(1+Calc_ROM_1[Powercor]))*(1+GST)),8),0,1)) -> 0 | K97: =IF(K96="-","-", IF(ROUND(K96,8)=ROUND(((( SUMIFS(Calc_Variable_1[United Energy],Calc_Variable_1[[Customer type]:[Customer type]],Calc_Rates!$F96)+ SUMIFS(Calc_Variable_1[United Energy],Calc_Variable_1[[Customer type]:[Customer type]],"All")+K92)*(1+Calc_ROM_1[United Energy]))*(1+GST)),8),0,1)) -> 0
C98: Controlled load
C99: Network charge | D99: - | E99: $/kWh | F99: Residential | G99: =SUMIFS(Calc_NetworkV_1[Ausnet],Calc_NetworkV_1[[Cost item]:[Cost item]],$C98,Calc_NetworkV_1[[Customer type]:[Customer type]],$F99) -> 0.04983763449 | H99: =SUMIFS(Calc_NetworkV_1[Citipower],Calc_NetworkV_1[[Cost item]:[Cost item]],$C98,Calc_NetworkV_1[[Customer type]:[Customer type]],$F99) -> 0.02491211531 | I99: =SUMIFS(Calc_NetworkV_1[Jemena],Calc_NetworkV_1[[Cost item]:[Cost item]],$C98,Calc_NetworkV_1[[Customer type]:[Customer type]],$F99) -> 0.047645424 | J99: =SUMIFS(Calc_NetworkV_1[Powercor],Calc_NetworkV_1[[Cost item]:[Cost item]],$C98,Calc_NetworkV_1[[Customer type]:[Customer type]],$F99) -> 0.02769136903 | K99: =SUMIFS(Calc_NetworkV_1[United Energy],Calc_NetworkV_1[[Cost item]:[Cost item]],$C98,Calc_NetworkV_1[[Customer type]:[Customer type]],$F99) -> 0.02770494053
C100: Variable costs | D100: - | E100: $/kWh | F100: Residential | G100: =SUMIFS(Calc_Variable_1[Ausnet],Calc_Variable_1[[Customer type]:[Customer type]],"All")+SUMIFS(Calc_Variable_1[Ausnet],Calc_Variable_1[[Customer type]:[Customer type]],$F100) -> 0.1539309845 | H100: =SUMIFS(Calc_Variable_1[Citipower],Calc_Variable_1[[Customer type]:[Customer type]],"All")+SUMIFS(Calc_Variable_1[Citipower],Calc_Variable_1[[Customer type]:[Customer type]],$F100) -> 0.1450018527 | I100: =SUMIFS(Calc_Variable_1[Jemena],Calc_Variable_1[[Customer type]:[Customer type]],"All")+SUMIFS(Calc_Variable_1[Jemena],Calc_Variable_1[[Customer type]:[Customer type]],$F100) -> 0.1528356594 | J100: =SUMIFS(Calc_Variable_1[Powercor],Calc_Variable_1[[Customer type]:[Customer type]],"All")+SUMIFS(Calc_Variable_1[Powercor],Calc_Variable_1[[Customer type]:[Customer type]],$F100) -> 0.1502589361 | K100: =SUMIFS(Calc_Variable_1[United Energy],Calc_Variable_1[[Customer type]:[Customer type]],"All")+SUMIFS(Calc_Variable_1[United Energy],Calc_Variable_1[[Customer type]:[Customer type]],$F100) -> 0.1498981358
C101: Retail operating margin | D101: - | E101: $/kWh | F101: Residential | G101: =IF(G99=0,"-", (G99+G100)*Calc_ROM_1[Ausnet]) -> 0.01071822936 | H101: =IF(H99=0,"-", (H99+H100)*Calc_ROM_1[Citipower]) -> 0.008937474715 | I101: =IF(I99=0,"-", (I99+I100)*Calc_ROM_1[Jemena]) -> 0.01054530499 | J101: =IF(J99=0,"-", (J99+J100)*Calc_ROM_1[Powercor]) -> 0.009360186052 | K101: =IF(K99=0,"-", (K99+K100)*Calc_ROM_1[United Energy]) -> 0.009341921817
C102: GST | D102: - | E102: $/kWh | F102: Residential | G102: =IF(G99=0,"-", (G99+G100+G101)*GST) -> 0.02144868484 | H102: =IF(H99=0,"-", (H99+H100+H101)*GST) -> 0.01788514427 | I102: =IF(I99=0,"-", (I99+I100+I101)*GST) -> 0.02110263884 | J102: =IF(J99=0,"-", (J99+J100+J101)*GST) -> 0.01873104912 | K102: =IF(K99=0,"-", (K99+K100+K101)*GST) -> 0.01869449982
C103: =C98&" charge" -> Controlled load charge | D103: - | E103: $/kWh | F103: Residential | G103: =IF(G99=0,"-", SUM(G99:G102)) -> 0.2359355332 | H103: =IF(H99=0,"-", SUM(H99:H102)) -> 0.196736587 | I103: =IF(I99=0,"-", SUM(I99:I102)) -> 0.2321290272 | J103: =IF(J99=0,"-", SUM(J99:J102)) -> 0.2060415403 | K103: =IF(K99=0,"-", SUM(K99:K102)) -> 0.205639498
G104: =IF(G103="-","-", IF(ROUND(G103,8)=ROUND(((( SUMIFS(Calc_Variable_1[Ausnet],Calc_Variable_1[[Customer type]:[Customer type]],Calc_Rates!$F103)+ SUMIFS(Calc_Variable_1[Ausnet],Calc_Variable_1[[Customer type]:[Customer type]],"All")+G99)*(1+Calc_ROM_1[Ausnet]))*(1+GST)),8),0,1)) -> 0 | H104: =IF(H103="-","-", IF(ROUND(H103,8)=ROUND(((( SUMIFS(Calc_Variable_1[Citipower],Calc_Variable_1[[Customer type]:[Customer type]],Calc_Rates!$F103)+ SUMIFS(Calc_Variable_1[Citipower],Calc_Variable_1[[Customer type]:[Customer type]],"All")+H99)*(1+Calc_ROM_1[Citipower]))*(1+GST)),8),0,1)) -> 0 | I104: =IF(I103="-","-", IF(ROUND(I103,8)=ROUND(((( SUMIFS(Calc_Variable_1[Jemena],Calc_Variable_1[[Customer type]:[Customer type]],Calc_Rates!$F103)+ SUMIFS(Calc_Variable_1[Jemena],Calc_Variable_1[[Customer type]:[Customer type]],"All")+I99)*(1+Calc_ROM_1[Jemena]))*(1+GST)),8),0,1)) -> 0 | J104: =IF(J103="-","-", IF(ROUND(J103,8)=ROUND(((( SUMIFS(Calc_Variable_1[Powercor],Calc_Variable_1[[Customer type]:[Customer type]],Calc_Rates!$F103)+ SUMIFS(Calc_Variable_1[Powercor],Calc_Variable_1[[Customer type]:[Customer type]],"All")+J99)*(1+Calc_ROM_1[Powercor]))*(1+GST)),8),0,1)) -> 0 | K104: =IF(K103="-","-", IF(ROUND(K103,8)=ROUND(((( SUMIFS(Calc_Variable_1[United Energy],Calc_Variable_1[[Customer type]:[Customer type]],Calc_Rates!$F103)+ SUMIFS(Calc_Variable_1[United Energy],Calc_Variable_1[[Customer type]:[Customer type]],"All")+K99)*(1+Calc_ROM_1[United Energy]))*(1+GST)),8),0,1)) -> 0
C105: Small business charges - usage
C106: Anytime usage
C107: Block 1
C108: Network charge | D108: - | E108: $/kWh | F108: Small business | G108: =SUMIFS(Calc_NetworkV_1[Ausnet],Calc_NetworkV_1[[Cost item]:[Cost item]],$C107,Calc_NetworkV_1[[Customer type]:[Customer type]],$F108) -> 0.2055452029 | H108: =SUMIFS(Calc_NetworkV_1[Citipower],Calc_NetworkV_1[[Cost item]:[Cost item]],$C107,Calc_NetworkV_1[[Customer type]:[Customer type]],$F108) -> 0 | I108: =SUMIFS(Calc_NetworkV_1[Jemena],Calc_NetworkV_1[[Cost item]:[Cost item]],$C107,Calc_NetworkV_1[[Customer type]:[Customer type]],$F108) -> 0 | J108: =SUMIFS(Calc_NetworkV_1[Powercor],Calc_NetworkV_1[[Cost item]:[Cost item]],$C107,Calc_NetworkV_1[[Customer type]:[Customer type]],$F108) -> 0 | K108: =SUMIFS(Calc_NetworkV_1[United Energy],Calc_NetworkV_1[[Cost item]:[Cost item]],$C107,Calc_NetworkV_1[[Customer type]:[Customer type]],$F108) -> 0
C109: Variable costs | D109: - | E109: $/kWh | F109: Small business | G109: =SUMIFS(Calc_Variable_1[Ausnet],Calc_Variable_1[[Customer type]:[Customer type]],"All")+SUMIFS(Calc_Variable_1[Ausnet],Calc_Variable_1[[Customer type]:[Customer type]],$F109) -> 0.1366697136 | H109: =SUMIFS(Calc_Variable_1[Citipower],Calc_Variable_1[[Customer type]:[Customer type]],"All")+SUMIFS(Calc_Variable_1[Citipower],Calc_Variable_1[[Customer type]:[Customer type]],$F109) -> 0.1303654393 | I109: =SUMIFS(Calc_Variable_1[Jemena],Calc_Variable_1[[Customer type]:[Customer type]],"All")+SUMIFS(Calc_Variable_1[Jemena],Calc_Variable_1[[Customer type]:[Customer type]],$F109) -> 0.1333781163 | J109: =SUMIFS(Calc_Variable_1[Powercor],Calc_Variable_1[[Customer type]:[Customer type]],"All")+SUMIFS(Calc_Variable_1[Powercor],Calc_Variable_1[[Customer type]:[Customer type]],$F109) -> 0.1330054418 | K109: =SUMIFS(Calc_Variable_1[United Energy],Calc_Variable_1[[Customer type]:[Customer type]],"All")+SUMIFS(Calc_Variable_1[United Energy],Calc_Variable_1[[Customer type]:[Customer type]],$F109) -> 0.1341473285
C110: Retail operating margin | D110: - | E110: $/kWh | F110: Small business | G110: =IF(G108=0,"-", (G108+G109)*Calc_ROM_1[Ausnet]) -> 0.01800050461 | H110: =IF(H108=0,"-", (H108+H109)*Calc_ROM_1[Citipower]) -> - | I110: =IF(I108=0,"-", (I108+I109)*Calc_ROM_1[Jemena]) -> - | J110: =IF(J108=0,"-", (J108+J109)*Calc_ROM_1[Powercor]) -> - | K110: =IF(K108=0,"-", (K108+K109)*Calc_ROM_1[United Energy]) -> -
C111: GST | D111: - | E111: $/kWh | F111: Small business | G111: =IF(G108=0,"-", (G108+G109+G110)*GST) -> 0.03602154211 | H111: =IF(H108=0,"-", (H108+H109+H110)*GST) -> - | I111: =IF(I108=0,"-", (I108+I109+I110)*GST) -> - | J111: =IF(J108=0,"-", (J108+J109+J110)*GST) -> - | K111: =IF(K108=0,"-", (K108+K109+K110)*GST) -> -
C112: =C107&" charge" -> Block 1 charge | D112: - | E112: $/kWh | F112: Small business | G112: =IF(G108=0,"-", SUM(G108:G111)) -> 0.3962369632 | H112: =IF(H108=0,"-", SUM(H108:H111)) -> - | I112: =IF(I108=0,"-", SUM(I108:I111)) -> - | J112: =IF(J108=0,"-", SUM(J108:J111)) -> - | K112: =IF(K108=0,"-", SUM(K108:K111)) -> -
G113: =IF(G112="-","-", IF(ROUND(G112,8)=ROUND(((( SUMIFS(Calc_Variable_1[Ausnet],Calc_Variable_1[[Customer type]:[Customer type]],Calc_Rates!$F112)+ SUMIFS(Calc_Variable_1[Ausnet],Calc_Variable_1[[Customer type]:[Customer type]],"All")+G108)*(1+Calc_ROM_1[Ausnet]))*(1+GST)),8),0,1)) -> 0 | H113: =IF(H112="-","-", IF(ROUND(H112,8)=ROUND(((( SUMIFS(Calc_Variable_1[Citipower],Calc_Variable_1[[Customer type]:[Customer type]],Calc_Rates!$F112)+ SUMIFS(Calc_Variable_1[Citipower],Calc_Variable_1[[Customer type]:[Customer type]],"All")+H108)*(1+Calc_ROM_1[Citipower]))*(1+GST)),8),0,1)) -> - | I113: =IF(I112="-","-", IF(ROUND(I112,8)=ROUND(((( SUMIFS(Calc_Variable_1[Jemena],Calc_Variable_1[[Customer type]:[Customer type]],Calc_Rates!$F112)+ SUMIFS(Calc_Variable_1[Jemena],Calc_Variable_1[[Customer type]:[Customer type]],"All")+I108)*(1+Calc_ROM_1[Jemena]))*(1+GST)),8),0,1)) -> - | J113: =IF(J112="-","-", IF(ROUND(J112,8)=ROUND(((( SUMIFS(Calc_Variable_1[Powercor],Calc_Variable_1[[Customer type]:[Customer type]],Calc_Rates!$F112)+ SUMIFS(Calc_Variable_1[Powercor],Calc_Variable_1[[Customer type]:[Customer type]],"All")+J108)*(1+Calc_ROM_1[Powercor]))*(1+GST)),8),0,1)) -> - | K113: =IF(K112="-","-", IF(ROUND(K112,8)=ROUND(((( SUMIFS(Calc_Variable_1[United Energy],Calc_Variable_1[[Customer type]:[Customer type]],Calc_Rates!$F112)+ SUMIFS(Calc_Variable_1[United Energy],Calc_Variable_1[[Customer type]:[Customer type]],"All")+K108)*(1+Calc_ROM_1[United Energy]))*(1+GST)),8),0,1)) -> -
C114: Balance
C115: Network charge | D115: - | E115: $/kWh | F115: Small business | G115: =SUMIFS(Calc_NetworkV_1[Ausnet],Calc_NetworkV_1[[Cost item]:[Cost item]],$C114,Calc_NetworkV_1[[Customer type]:[Customer type]],$F115) -> 0.2055452029 | H115: =SUMIFS(Calc_NetworkV_1[Citipower],Calc_NetworkV_1[[Cost item]:[Cost item]],$C114,Calc_NetworkV_1[[Customer type]:[Customer type]],$F115) -> 0 | I115: =SUMIFS(Calc_NetworkV_1[Jemena],Calc_NetworkV_1[[Cost item]:[Cost item]],$C114,Calc_NetworkV_1[[Customer type]:[Customer type]],$F115) -> 0 | J115: =SUMIFS(Calc_NetworkV_1[Powercor],Calc_NetworkV_1[[Cost item]:[Cost item]],$C114,Calc_NetworkV_1[[Customer type]:[Customer type]],$F115) -> 0 | K115: =SUMIFS(Calc_NetworkV_1[United Energy],Calc_NetworkV_1[[Cost item]:[Cost item]],$C114,Calc_NetworkV_1[[Customer type]:[Customer type]],$F115) -> 0
C116: Variable costs | D116: - | E116: $/kWh | F116: Small business | G116: =SUMIFS(Calc_Variable_1[Ausnet],Calc_Variable_1[[Customer type]:[Customer type]],"All")+SUMIFS(Calc_Variable_1[Ausnet],Calc_Variable_1[[Customer type]:[Customer type]],$F116) -> 0.1366697136 | H116: =SUMIFS(Calc_Variable_1[Citipower],Calc_Variable_1[[Customer type]:[Customer type]],"All")+SUMIFS(Calc_Variable_1[Citipower],Calc_Variable_1[[Customer type]:[Customer type]],$F116) -> 0.1303654393 | I116: =SUMIFS(Calc_Variable_1[Jemena],Calc_Variable_1[[Customer type]:[Customer type]],"All")+SUMIFS(Calc_Variable_1[Jemena],Calc_Variable_1[[Customer type]:[Customer type]],$F116) -> 0.1333781163 | J116: =SUMIFS(Calc_Variable_1[Powercor],Calc_Variable_1[[Customer type]:[Customer type]],"All")+SUMIFS(Calc_Variable_1[Powercor],Calc_Variable_1[[Customer type]:[Customer type]],$F116) -> 0.1330054418 | K116: =SUMIFS(Calc_Variable_1[United Energy],Calc_Variable_1[[Customer type]:[Customer type]],"All")+SUMIFS(Calc_Variable_1[United Energy],Calc_Variable_1[[Customer type]:[Customer type]],$F116) -> 0.1341473285
C117: Retail operating margin | D117: - | E117: $/kWh | F117: Small business | G117: =IF(G115=0,"-", (G115+G116)*Calc_ROM_1[Ausnet]) -> 0.01800050461 | H117: =IF(H115=0,"-", (H115+H116)*Calc_ROM_1[Citipower]) -> - | I117: =IF(I115=0,"-", (I115+I116)*Calc_ROM_1[Jemena]) -> - | J117: =IF(J115=0,"-", (J115+J116)*Calc_ROM_1[Powercor]) -> - | K117: =IF(K115=0,"-", (K115+K116)*Calc_ROM_1[United Energy]) -> -
C118: GST | D118: - | E118: $/kWh | F118: Small business | G118: =IF(G115=0,"-", (G115+G116+G117)*GST) -> 0.03602154211 | H118: =IF(H115=0,"-", (H115+H116+H117)*GST) -> - | I118: =IF(I115=0,"-", (I115+I116+I117)*GST) -> - | J118: =IF(J115=0,"-", (J115+J116+J117)*GST) -> - | K118: =IF(K115=0,"-", (K115+K116+K117)*GST) -> -
C119: =C114&" charge" -> Balance charge | D119: - | E119: $/kWh | F119: Small business | G119: =IF(G115=0,"-", SUM(G115:G118)) -> 0.3962369632 | H119: =IF(H115=0,"-", SUM(H115:H118)) -> - | I119: =IF(I115=0,"-", SUM(I115:I118)) -> - | J119: =IF(J115=0,"-", SUM(J115:J118)) -> - | K119: =IF(K115=0,"-", SUM(K115:K118)) -> -
G120: =IF(G119="-","-", IF(ROUND(G119,8)=ROUND(((( SUMIFS(Calc_Variable_1[Ausnet],Calc_Variable_1[[Customer type]:[Customer type]],Calc_Rates!$F119)+ SUMIFS(Calc_Variable_1[Ausnet],Calc_Variable_1[[Customer type]:[Customer type]],"All")+G115)*(1+Calc_ROM_1[Ausnet]))*(1+GST)),8),0,1)) -> 0 | H120: =IF(H119="-","-", IF(ROUND(H119,8)=ROUND(((( SUMIFS(Calc_Variable_1[Citipower],Calc_Variable_1[[Customer type]:[Customer type]],Calc_Rates!$F119)+ SUMIFS(Calc_Variable_1[Citipower],Calc_Variable_1[[Customer type]:[Customer type]],"All")+H115)*(1+Calc_ROM_1[Citipower]))*(1+GST)),8),0,1)) -> - | I120: =IF(I119="-","-", IF(ROUND(I119,8)=ROUND(((( SUMIFS(Calc_Variable_1[Jemena],Calc_Variable_1[[Customer type]:[Customer type]],Calc_Rates!$F119)+ SUMIFS(Calc_Variable_1[Jemena],Calc_Variable_1[[Customer type]:[Customer type]],"All")+I115)*(1+Calc_ROM_1[Jemena]))*(1+GST)),8),0,1)) -> - | J120: =IF(J119="-","-", IF(ROUND(J119,8)=ROUND(((( SUMIFS(Calc_Variable_1[Powercor],Calc_Variable_1[[Customer type]:[Customer type]],Calc_Rates!$F119)+ SUMIFS(Calc_Variable_1[Powercor],Calc_Variable_1[[Customer type]:[Customer type]],"All")+J115)*(1+Calc_ROM_1[Powercor]))*(1+GST)),8),0,1)) -> - | K120: =IF(K119="-","-", IF(ROUND(K119,8)=ROUND(((( SUMIFS(Calc_Variable_1[United Energy],Calc_Variable_1[[Customer type]:[Customer type]],Calc_Rates!$F119)+ SUMIFS(Calc_Variable_1[United Energy],Calc_Variable_1[[Customer type]:[Customer type]],"All")+K115)*(1+Calc_ROM_1[United Energy]))*(1+GST)),8),0,1)) -> -
C121: Single rate
C122: Network charge | D122: - | E122: $/kWh | F122: Small business | G122: =SUMIFS(Calc_NetworkV_1[Ausnet],Calc_NetworkV_1[[Cost item]:[Cost item]],$C121,Calc_NetworkV_1[[Customer type]:[Customer type]],$F122) -> 0 | H122: =SUMIFS(Calc_NetworkV_1[Citipower],Calc_NetworkV_1[[Cost item]:[Cost item]],$C121,Calc_NetworkV_1[[Customer type]:[Customer type]],$F122) -> 0.0974039366 | I122: =SUMIFS(Calc_NetworkV_1[Jemena],Calc_NetworkV_1[[Cost item]:[Cost item]],$C121,Calc_NetworkV_1[[Customer type]:[Customer type]],$F122) -> 0.1501795363 | J122: =SUMIFS(Calc_NetworkV_1[Powercor],Calc_NetworkV_1[[Cost item]:[Cost item]],$C121,Calc_NetworkV_1[[Customer type]:[Customer type]],$F122) -> 0.1139361389 | K122: =SUMIFS(Calc_NetworkV_1[United Energy],Calc_NetworkV_1[[Cost item]:[Cost item]],$C121,Calc_NetworkV_1[[Customer type]:[Customer type]],$F122) -> 0.1102992434
C123: Variable costs | D123: - | E123: $/kWh | F123: Small business | G123: =SUMIFS(Calc_Variable_1[Ausnet],Calc_Variable_1[[Customer type]:[Customer type]],"All")+SUMIFS(Calc_Variable_1[Ausnet],Calc_Variable_1[[Customer type]:[Customer type]],$F123) -> 0.1366697136 | H123: =SUMIFS(Calc_Variable_1[Citipower],Calc_Variable_1[[Customer type]:[Customer type]],"All")+SUMIFS(Calc_Variable_1[Citipower],Calc_Variable_1[[Customer type]:[Customer type]],$F123) -> 0.1303654393 | I123: =SUMIFS(Calc_Variable_1[Jemena],Calc_Variable_1[[Customer type]:[Customer type]],"All")+SUMIFS(Calc_Variable_1[Jemena],Calc_Variable_1[[Customer type]:[Customer type]],$F123) -> 0.1333781163 | J123: =SUMIFS(Calc_Variable_1[Powercor],Calc_Variable_1[[Customer type]:[Customer type]],"All")+SUMIFS(Calc_Variable_1[Powercor],Calc_Variable_1[[Customer type]:[Customer type]],$F123) -> 0.1330054418 | K123: =SUMIFS(Calc_Variable_1[United Energy],Calc_Variable_1[[Customer type]:[Customer type]],"All")+SUMIFS(Calc_Variable_1[United Energy],Calc_Variable_1[[Customer type]:[Customer type]],$F123) -> 0.1341473285
C124: Retail operating margin | D124: - | E124: $/kWh | F124: Small business | G124: =IF(G122=0,"-", (G122+G123)*Calc_ROM_1[Ausnet]) -> - | H124: =IF(H122=0,"-", (H122+H123)*Calc_ROM_1[Citipower]) -> 0.01198066917 | I124: =IF(I122=0,"-", (I122+I123)*Calc_ROM_1[Jemena]) -> 0.01491513252 | J124: =IF(J122=0,"-", (J122+J123)*Calc_ROM_1[Powercor]) -> 0.01298912714 | K124: =IF(K122=0,"-", (K122+K123)*Calc_ROM_1[United Energy]) -> 0.01285788969
C125: GST | D125: - | E125: $/kWh | F125: Small business | G125: =IF(G122=0,"-", (G122+G123+G124)*GST) -> - | H125: =IF(H122=0,"-", (H122+H123+H124)*GST) -> 0.0239750045 | I125: =IF(I122=0,"-", (I122+I123+I124)*GST) -> 0.0298472785 | J125: =IF(J122=0,"-", (J122+J123+J124)*GST) -> 0.02599307078 | K125: =IF(K122=0,"-", (K122+K123+K124)*GST) -> 0.02573044616
C126: =C121&" charge" -> Single rate charge | D126: - | E126: $/kWh | F126: Small business | G126: =IF(G122=0,"-", SUM(G122:G125)) -> - | H126: =IF(H122=0,"-", SUM(H122:H125)) -> 0.2637250496 | I126: =IF(I122=0,"-", SUM(I122:I125)) -> 0.3283200635 | J126: =IF(J122=0,"-", SUM(J122:J125)) -> 0.2859237786 | K126: =IF(K122=0,"-", SUM(K122:K125)) -> 0.2830349078
G127: =IF(G126="-","-", IF(ROUND(G126,8)=ROUND(((( SUMIFS(Calc_Variable_1[Ausnet],Calc_Variable_1[[Customer type]:[Customer type]],Calc_Rates!$F126)+ SUMIFS(Calc_Variable_1[Ausnet],Calc_Variable_1[[Customer type]:[Customer type]],"All")+G122)*(1+Calc_ROM_1[Ausnet]))*(1+GST)),8),0,1)) -> - | H127: =IF(H126="-","-", IF(ROUND(H126,8)=ROUND(((( SUMIFS(Calc_Variable_1[Citipower],Calc_Variable_1[[Customer type]:[Customer type]],Calc_Rates!$F126)+ SUMIFS(Calc_Variable_1[Citipower],Calc_Variable_1[[Customer type]:[Customer type]],"All")+H122)*(1+Calc_ROM_1[Citipower]))*(1+GST)),8),0,1)) -> 0 | I127: =IF(I126="-","-", IF(ROUND(I126,8)=ROUND(((( SUMIFS(Calc_Variable_1[Jemena],Calc_Variable_1[[Customer type]:[Customer type]],Calc_Rates!$F126)+ SUMIFS(Calc_Variable_1[Jemena],Calc_Variable_1[[Customer type]:[Customer type]],"All")+I122)*(1+Calc_ROM_1[Jemena]))*(1+GST)),8),0,1)) -> 0 | J127: =IF(J126="-","-", IF(ROUND(J126,8)=ROUND(((( SUMIFS(Calc_Variable_1[Powercor],Calc_Variable_1[[Customer type]:[Customer type]],Calc_Rates!$F126)+ SUMIFS(Calc_Variable_1[Powercor],Calc_Variable_1[[Customer type]:[Customer type]],"All")+J122)*(1+Calc_ROM_1[Powercor]))*(1+GST)),8),0,1)) -> 0 | K127: =IF(K126="-","-", IF(ROUND(K126,8)=ROUND(((( SUMIFS(Calc_Variable_1[United Energy],Calc_Variable_1[[Customer type]:[Customer type]],Calc_Rates!$F126)+ SUMIFS(Calc_Variable_1[United Energy],Calc_Variable_1[[Customer type]:[Customer type]],"All")+K122)*(1+Calc_ROM_1[United Energy]))*(1+GST)),8),0,1)) -> 0
C128: TOU usage
C129: Peak
C130: Network charge | D130: - | E130: $/kWh | F130: Small business | G130: =SUMIFS(Calc_NetworkV_1[Ausnet],Calc_NetworkV_1[[Cost item]:[Cost item]],$C129,Calc_NetworkV_1[[Customer type]:[Customer type]],$F130) -> 0.2111988409 | H130: =SUMIFS(Calc_NetworkV_1[Citipower],Calc_NetworkV_1[[Cost item]:[Cost item]],$C129,Calc_NetworkV_1[[Customer type]:[Customer type]],$F130) -> 0.1552031003 | I130: =SUMIFS(Calc_NetworkV_1[Jemena],Calc_NetworkV_1[[Cost item]:[Cost item]],$C129,Calc_NetworkV_1[[Customer type]:[Customer type]],$F130) -> 0.1944834789 | J130: =SUMIFS(Calc_NetworkV_1[Powercor],Calc_NetworkV_1[[Cost item]:[Cost item]],$C129,Calc_NetworkV_1[[Customer type]:[Customer type]],$F130) -> 0.201426794 | K130: =SUMIFS(Calc_NetworkV_1[United Energy],Calc_NetworkV_1[[Cost item]:[Cost item]],$C129,Calc_NetworkV_1[[Customer type]:[Customer type]],$F130) -> 0.1765353647
C131: Variable costs | D131: - | E131: $/kWh | F131: Small business | G131: =SUMIFS(Calc_Variable_1[Ausnet],Calc_Variable_1[[Customer type]:[Customer type]],"All")+SUMIFS(Calc_Variable_1[Ausnet],Calc_Variable_1[[Customer type]:[Customer type]],$F131) -> 0.1366697136 | H131: =SUMIFS(Calc_Variable_1[Citipower],Calc_Variable_1[[Customer type]:[Customer type]],"All")+SUMIFS(Calc_Variable_1[Citipower],Calc_Variable_1[[Customer type]:[Customer type]],$F131) -> 0.1303654393 | I131: =SUMIFS(Calc_Variable_1[Jemena],Calc_Variable_1[[Customer type]:[Customer type]],"All")+SUMIFS(Calc_Variable_1[Jemena],Calc_Variable_1[[Customer type]:[Customer type]],$F131) -> 0.1333781163 | J131: =SUMIFS(Calc_Variable_1[Powercor],Calc_Variable_1[[Customer type]:[Customer type]],"All")+SUMIFS(Calc_Variable_1[Powercor],Calc_Variable_1[[Customer type]:[Customer type]],$F131) -> 0.1330054418 | K131: =SUMIFS(Calc_Variable_1[United Energy],Calc_Variable_1[[Customer type]:[Customer type]],"All")+SUMIFS(Calc_Variable_1[United Energy],Calc_Variable_1[[Customer type]:[Customer type]],$F131) -> 0.1341473285
C132: Retail operating margin | D132: - | E132: $/kWh | F132: Small business | G132: =IF(G130=0,"-", (G130+G131)*Calc_ROM_1[Ausnet]) -> 0.01829788597 | H132: =IF(H130=0,"-", (H130+H131)*Calc_ROM_1[Citipower]) -> 0.01502090518 | I132: =IF(I130=0,"-", (I130+I131)*Calc_ROM_1[Jemena]) -> 0.01724551991 | J132: =IF(J130=0,"-", (J130+J131)*Calc_ROM_1[Powercor]) -> 0.0175911356 | K132: =IF(K130=0,"-", (K130+K131)*Calc_ROM_1[United Energy]) -> 0.01634190967
C133: GST | D133: - | E133: $/kWh | F133: Small business | G133: =IF(G130=0,"-", (G130+G131+G132)*GST) -> 0.03661664405 | H133: =IF(H130=0,"-", (H130+H131+H132)*GST) -> 0.03005894448 | I133: =IF(I130=0,"-", (I130+I131+I132)*GST) -> 0.03451071151 | J133: =IF(J130=0,"-", (J130+J131+J132)*GST) -> 0.03520233714 | K133: =IF(K130=0,"-", (K130+K131+K132)*GST) -> 0.03270246029
C134: =C129&" charge" -> Peak charge | D134: - | E134: $/kWh | F134: Small business | G134: =IF(G130=0,"-", SUM(G130:G133)) -> 0.4027830845 | H134: =IF(H130=0,"-", SUM(H130:H133)) -> 0.3306483893 | I134: =IF(I130=0,"-", SUM(I130:I133)) -> 0.3796178266 | J134: =IF(J130=0,"-", SUM(J130:J133)) -> 0.3872257086 | K134: =IF(K130=0,"-", SUM(K130:K133)) -> 0.3597270632
G135: =IF(G134="-","-", IF(ROUND(G134,8)=ROUND(((( SUMIFS(Calc_Variable_1[Ausnet],Calc_Variable_1[[Customer type]:[Customer type]],Calc_Rates!$F134)+ SUMIFS(Calc_Variable_1[Ausnet],Calc_Variable_1[[Customer type]:[Customer type]],"All")+G130)*(1+Calc_ROM_1[Ausnet]))*(1+GST)),8),0,1)) -> 0 | H135: =IF(H134="-","-", IF(ROUND(H134,8)=ROUND(((( SUMIFS(Calc_Variable_1[Citipower],Calc_Variable_1[[Customer type]:[Customer type]],Calc_Rates!$F134)+ SUMIFS(Calc_Variable_1[Citipower],Calc_Variable_1[[Customer type]:[Customer type]],"All")+H130)*(1+Calc_ROM_1[Citipower]))*(1+GST)),8),0,1)) -> 0 | I135: =IF(I134="-","-", IF(ROUND(I134,8)=ROUND(((( SUMIFS(Calc_Variable_1[Jemena],Calc_Variable_1[[Customer type]:[Customer type]],Calc_Rates!$F134)+ SUMIFS(Calc_Variable_1[Jemena],Calc_Variable_1[[Customer type]:[Customer type]],"All")+I130)*(1+Calc_ROM_1[Jemena]))*(1+GST)),8),0,1)) -> 0 | J135: =IF(J134="-","-", IF(ROUND(J134,8)=ROUND(((( SUMIFS(Calc_Variable_1[Powercor],Calc_Variable_1[[Customer type]:[Customer type]],Calc_Rates!$F134)+ SUMIFS(Calc_Variable_1[Powercor],Calc_Variable_1[[Customer type]:[Customer type]],"All")+J130)*(1+Calc_ROM_1[Powercor]))*(1+GST)),8),0,1)) -> 0 | K135: =IF(K134="-","-", IF(ROUND(K134,8)=ROUND(((( SUMIFS(Calc_Variable_1[United Energy],Calc_Variable_1[[Customer type]:[Customer type]],Calc_Rates!$F134)+ SUMIFS(Calc_Variable_1[United Energy],Calc_Variable_1[[Customer type]:[Customer type]],"All")+K130)*(1+Calc_ROM_1[United Energy]))*(1+GST)),8),0,1)) -> 0
C136: Off peak
C137: Network charge | D137: - | E137: $/kWh | F137: Small business | G137: =SUMIFS(Calc_NetworkV_1[Ausnet],Calc_NetworkV_1[[Cost item]:[Cost item]],$C136,Calc_NetworkV_1[[Customer type]:[Customer type]],$F137) -> 0.04933365235 | H137: =SUMIFS(Calc_NetworkV_1[Citipower],Calc_NetworkV_1[[Cost item]:[Cost item]],$C136,Calc_NetworkV_1[[Customer type]:[Customer type]],$F137) -> 0.03440878964 | I137: =SUMIFS(Calc_NetworkV_1[Jemena],Calc_NetworkV_1[[Cost item]:[Cost item]],$C136,Calc_NetworkV_1[[Customer type]:[Customer type]],$F137) -> 0.04181477609 | J137: =SUMIFS(Calc_NetworkV_1[Powercor],Calc_NetworkV_1[[Cost item]:[Cost item]],$C136,Calc_NetworkV_1[[Customer type]:[Customer type]],$F137) -> 0.04474535222 | K137: =SUMIFS(Calc_NetworkV_1[United Energy],Calc_NetworkV_1[[Cost item]:[Cost item]],$C136,Calc_NetworkV_1[[Customer type]:[Customer type]],$F137) -> 0.03915931388
C138: Variable costs | D138: - | E138: $/kWh | F138: Small business | G138: =SUMIFS(Calc_Variable_1[Ausnet],Calc_Variable_1[[Customer type]:[Customer type]],"All")+SUMIFS(Calc_Variable_1[Ausnet],Calc_Variable_1[[Customer type]:[Customer type]],$F138) -> 0.1366697136 | H138: =SUMIFS(Calc_Variable_1[Citipower],Calc_Variable_1[[Customer type]:[Customer type]],"All")+SUMIFS(Calc_Variable_1[Citipower],Calc_Variable_1[[Customer type]:[Customer type]],$F138) -> 0.1303654393 | I138: =SUMIFS(Calc_Variable_1[Jemena],Calc_Variable_1[[Customer type]:[Customer type]],"All")+SUMIFS(Calc_Variable_1[Jemena],Calc_Variable_1[[Customer type]:[Customer type]],$F138) -> 0.1333781163 | J138: =SUMIFS(Calc_Variable_1[Powercor],Calc_Variable_1[[Customer type]:[Customer type]],"All")+SUMIFS(Calc_Variable_1[Powercor],Calc_Variable_1[[Customer type]:[Customer type]],$F138) -> 0.1330054418 | K138: =SUMIFS(Calc_Variable_1[United Energy],Calc_Variable_1[[Customer type]:[Customer type]],"All")+SUMIFS(Calc_Variable_1[United Energy],Calc_Variable_1[[Customer type]:[Customer type]],$F138) -> 0.1341473285
A139: Section/Item notes (where necessary) | C139: Retail operating margin | D139: - | E139: $/kWh | F139: Small business | G139: =IF(G137=0,"-", (G137+G138)*Calc_ROM_1[Ausnet]) -> 0.009783777047 | H139: =IF(H137=0,"-", (H137+H138)*Calc_ROM_1[Citipower]) -> 0.008667124441 | I139: =IF(I137=0,"-", (I137+I138)*Calc_ROM_1[Jemena]) -> 0.009215146138 | J139: =IF(J137=0,"-", (J137+J138)*Calc_ROM_1[Powercor]) -> 0.009349691765 | K139: =IF(K137=0,"-", (K137+K138)*Calc_ROM_1[United Energy]) -> 0.009115929391
C140: GST | D140: - | E140: $/kWh | F140: Small business | G140: =IF(G137=0,"-", (G137+G138+G139)*GST) -> 0.0195787143 | H140: =IF(H137=0,"-", (H137+H138+H139)*GST) -> 0.01734413534 | I140: =IF(I137=0,"-", (I137+I138+I139)*GST) -> 0.01844080385 | J140: =IF(J137=0,"-", (J137+J138+J139)*GST) -> 0.01871004858 | K140: =IF(K137=0,"-", (K137+K138+K139)*GST) -> 0.01824225718
C141: =C136&" charge" -> Off peak charge | D141: - | E141: $/kWh | F141: Small business | G141: =IF(G137=0,"-", SUM(G137:G140)) -> 0.2153658573 | H141: =IF(H137=0,"-", SUM(H137:H140)) -> 0.1907854887 | I141: =IF(I137=0,"-", SUM(I137:I140)) -> 0.2028488423 | J141: =IF(J137=0,"-", SUM(J137:J140)) -> 0.2058105344 | K141: =IF(K137=0,"-", SUM(K137:K140)) -> 0.200664829
G142: =IF(G141="-","-", IF(ROUND(G141,8)=ROUND(((( SUMIFS(Calc_Variable_1[Ausnet],Calc_Variable_1[[Customer type]:[Customer type]],Calc_Rates!$F141)+ SUMIFS(Calc_Variable_1[Ausnet],Calc_Variable_1[[Customer type]:[Customer type]],"All")+G137)*(1+Calc_ROM_1[Ausnet]))*(1+GST)),8),0,1)) -> 0 | H142: =IF(H141="-","-", IF(ROUND(H141,8)=ROUND(((( SUMIFS(Calc_Variable_1[Citipower],Calc_Variable_1[[Customer type]:[Customer type]],Calc_Rates!$F141)+ SUMIFS(Calc_Variable_1[Citipower],Calc_Variable_1[[Customer type]:[Customer type]],"All")+H137)*(1+Calc_ROM_1[Citipower]))*(1+GST)),8),0,1)) -> 0 | I142: =IF(I141="-","-", IF(ROUND(I141,8)=ROUND(((( SUMIFS(Calc_Variable_1[Jemena],Calc_Variable_1[[Customer type]:[Customer type]],Calc_Rates!$F141)+ SUMIFS(Calc_Variable_1[Jemena],Calc_Variable_1[[Customer type]:[Customer type]],"All")+I137)*(1+Calc_ROM_1[Jemena]))*(1+GST)),8),0,1)) -> 0 | J142: =IF(J141="-","-", IF(ROUND(J141,8)=ROUND(((( SUMIFS(Calc_Variable_1[Powercor],Calc_Variable_1[[Customer type]:[Customer type]],Calc_Rates!$F141)+ SUMIFS(Calc_Variable_1[Powercor],Calc_Variable_1[[Customer type]:[Customer type]],"All")+J137)*(1+Calc_ROM_1[Powercor]))*(1+GST)),8),0,1)) -> 0 | K142: =IF(K141="-","-", IF(ROUND(K141,8)=ROUND(((( SUMIFS(Calc_Variable_1[United Energy],Calc_Variable_1[[Customer type]:[Customer type]],Calc_Rates!$F141)+ SUMIFS(Calc_Variable_1[United Energy],Calc_Variable_1[[Customer type]:[Customer type]],"All")+K137)*(1+Calc_ROM_1[United Energy]))*(1+GST)),8),0,1)) -> 0
B144: =MAX(B$3:B143)+0.01 -> 5.02 | C144: Non cost items
C146: CPI
C147: Indice at VDO decision | D147: =IFERROR(INDEX(Input_CPI[Indice],MATCH($D$5,Input_CPI[Decision paper],0),1),"-") -> 139.4
C149: Cost item | D149: Fixed/Variable | E149: Unit | F149: Customer type | G149: Adjust? (from CPI tab) | H149: CPI increase | I149: CPI uplift factor
C150: Retail operating cost - base | D150: =_xlfn.XLOOKUP(Calc_CPI_1[[#This Row],[Cost item]],Input_ForRateCalc[Cost item],Input_ForRateCalc[Fixed/Variable]) -> Fixed | E150: =INDEX(Input_ForRateCalc[Unit],MATCH(Calc_CPI_1[[#This Row],[Cost item]],Input_ForRateCalc[Cost item],0),1) -> $ | F150: =INDEX(Input_ForRateCalc[Customer type],MATCH(Calc_CPI_1[[#This Row],[Cost item]],Input_ForRateCalc[Cost item],0),1) -> Residential | G150: =INDEX(Input_CostItemCPI[],MATCH(Calc_CPI_1[[#This Row],[Cost item]],Input_CostItemCPI[Cost item],0),MATCH($D$5,Input_CostItemCPI[#Headers],0)) -> Yes | H150: =IF(Calc_CPI_1[[#This Row],[Adjust? (from CPI tab)]]="No",0, IFERROR( ($D$147- INDEX(CPI[Indice],MATCH( INDEX(Input_ForRateCalc[],MATCH(1,(Calc_CPI_1[[#This Row],[Cost item]:[Cost item]]=Input_ForRateCalc[Cost item])*(Calc_CPI_1[[#This Row],[Customer type]]=Input_ForRateCalc[Customer type]),0),MATCH($D$5&" - input date",Inputs!C$15:AZ$15,0)), CPI[Period],0),1))/ INDEX(CPI[Indice],MATCH( INDEX(Input_ForRateCalc[],MATCH(1,(Calc_CPI_1[[#This Row],[Cost item]:[Cost item]]=Input_ForRateCalc[Cost item])*(Calc_CPI_1[[#This Row],[Customer type]]=Input_ForRateCalc[Customer type]),0),MATCH($D$5&" - input date",Inputs!C$15:AZ$15,0)), CPI[Period],0),1),"-")) -> 0.004322766571 | I150: =IFERROR((H150)* INDEX(Input_ForRateCalc[],MATCH(1,(Calc_CPI_1[[#This Row],[Cost item]:[Cost item]]=Input_ForRateCalc[Cost item])*(Calc_CPI_1[[#This Row],[Customer type]]=Input_ForRateCalc[Customer type]),0),MATCH($D$5,Inputs!$C$15:$AZ$15,0)),"-") -> 0.6288708831
C151: Retail operating cost - consumer data right allowance | D151: =_xlfn.XLOOKUP(Calc_CPI_1[[#This Row],[Cost item]],Input_ForRateCalc[Cost item],Input_ForRateCalc[Fixed/Variable]) -> Fixed | E151: =INDEX(Input_ForRateCalc[Unit],MATCH(Calc_CPI_1[[#This Row],[Cost item]],Input_ForRateCalc[Cost item],0),1) -> $ | F151: =INDEX(Input_ForRateCalc[Customer type],MATCH(Calc_CPI_1[[#This Row],[Cost item]],Input_ForRateCalc[Cost item],0),1) -> Residential | G151: =INDEX(Input_CostItemCPI[],MATCH(Calc_CPI_1[[#This Row],[Cost item]],Input_CostItemCPI[Cost item],0),MATCH($D$5,Input_CostItemCPI[#Headers],0)) -> No | H151: =IF(Calc_CPI_1[[#This Row],[Adjust? (from CPI tab)]]="No",0, IFERROR( ($D$147- INDEX(CPI[Indice],MATCH( INDEX(Input_ForRateCalc[],MATCH(1,(Calc_CPI_1[[#This Row],[Cost item]:[Cost item]]=Input_ForRateCalc[Cost item])*(Calc_CPI_1[[#This Row],[Customer type]]=Input_ForRateCalc[Customer type]),0),MATCH($D$5&" - input date",Inputs!C$15:AZ$15,0)), CPI[Period],0),1))/ INDEX(CPI[Indice],MATCH( INDEX(Input_ForRateCalc[],MATCH(1,(Calc_CPI_1[[#This Row],[Cost item]:[Cost item]]=Input_ForRateCalc[Cost item])*(Calc_CPI_1[[#This Row],[Customer type]]=Input_ForRateCalc[Customer type]),0),MATCH($D$5&" - input date",Inputs!C$15:AZ$15,0)), CPI[Period],0),1),"-")) -> 0 | I151: =IFERROR((H151)* INDEX(Input_ForRateCalc[],MATCH(1,(Calc_CPI_1[[#This Row],[Cost item]:[Cost item]]=Input_ForRateCalc[Cost item])*(Calc_CPI_1[[#This Row],[Customer type]]=Input_ForRateCalc[Customer type]),0),MATCH($D$5,Inputs!$C$15:$AZ$15,0)),"-") -> 0
C152: Retail operating cost - base | D152: =_xlfn.XLOOKUP(Calc_CPI_1[[#This Row],[Cost item]],Input_ForRateCalc[Cost item],Input_ForRateCalc[Fixed/Variable]) -> Fixed | E152: =INDEX(Input_ForRateCalc[Unit],MATCH(Calc_CPI_1[[#This Row],[Cost item]],Input_ForRateCalc[Cost item],0),1) -> $ | F152: Small business | G152: =INDEX(Input_CostItemCPI[],MATCH(Calc_CPI_1[[#This Row],[Cost item]],Input_CostItemCPI[Cost item],0),MATCH($D$5,Input_CostItemCPI[#Headers],0)) -> Yes | H152: =IF(Calc_CPI_1[[#This Row],[Adjust? (from CPI tab)]]="No",0, IFERROR( ($D$147- INDEX(CPI[Indice],MATCH( INDEX(Input_ForRateCalc[],MATCH(1,(Calc_CPI_1[[#This Row],[Cost item]:[Cost item]]=Input_ForRateCalc[Cost item])*(Calc_CPI_1[[#This Row],[Customer type]]=Input_ForRateCalc[Customer type]),0),MATCH($D$5&" - input date",Inputs!C$15:AZ$15,0)), CPI[Period],0),1))/ INDEX(CPI[Indice],MATCH( INDEX(Input_ForRateCalc[],MATCH(1,(Calc_CPI_1[[#This Row],[Cost item]:[Cost item]]=Input_ForRateCalc[Cost item])*(Calc_CPI_1[[#This Row],[Customer type]]=Input_ForRateCalc[Customer type]),0),MATCH($D$5&" - input date",Inputs!C$15:AZ$15,0)), CPI[Period],0),1),"-")) -> 0.004322766571 | I152: =IFERROR((H152)* INDEX(Input_ForRateCalc[],MATCH(1,(Calc_CPI_1[[#This Row],[Cost item]:[Cost item]]=Input_ForRateCalc[Cost item])*(Calc_CPI_1[[#This Row],[Customer type]]=Input_ForRateCalc[Customer type]),0),MATCH($D$5,Inputs!$C$15:$AZ$15,0)),"-") -> 0.6288708831
C153: Retail operating cost - consumer data right allowance | D153: =_xlfn.XLOOKUP(Calc_CPI_1[[#This Row],[Cost item]],Input_ForRateCalc[Cost item],Input_ForRateCalc[Fixed/Variable]) -> Fixed | E153: =INDEX(Input_ForRateCalc[Unit],MATCH(Calc_CPI_1[[#This Row],[Cost item]],Input_ForRateCalc[Cost item],0),1) -> $ | F153: Small business | G153: =INDEX(Input_CostItemCPI[],MATCH(Calc_CPI_1[[#This Row],[Cost item]],Input_CostItemCPI[Cost item],0),MATCH($D$5,Input_CostItemCPI[#Headers],0)) -> No | H153: =IF(Calc_CPI_1[[#This Row],[Adjust? (from CPI tab)]]="No",0, IFERROR( ($D$147- INDEX(CPI[Indice],MATCH( INDEX(Input_ForRateCalc[],MATCH(1,(Calc_CPI_1[[#This Row],[Cost item]:[Cost item]]=Input_ForRateCalc[Cost item])*(Calc_CPI_1[[#This Row],[Customer type]]=Input_ForRateCalc[Customer type]),0),MATCH($D$5&" - input date",Inputs!C$15:AZ$15,0)), CPI[Period],0),1))/ INDEX(CPI[Indice],MATCH( INDEX(Input_ForRateCalc[],MATCH(1,(Calc_CPI_1[[#This Row],[Cost item]:[Cost item]]=Input_ForRateCalc[Cost item])*(Calc_CPI_1[[#This Row],[Customer type]]=Input_ForRateCalc[Customer type]),0),MATCH($D$5&" - input date",Inputs!C$15:AZ$15,0)), CPI[Period],0),1),"-")) -> 0 | I153: =IFERROR((H153)* INDEX(Input_ForRateCalc[],MATCH(1,(Calc_CPI_1[[#This Row],[Cost item]:[Cost item]]=Input_ForRateCalc[Cost item])*(Calc_CPI_1[[#This Row],[Customer type]]=Input_ForRateCalc[Customer type]),0),MATCH($D$5,Inputs!$C$15:$AZ$15,0)),"-") -> 0
C154: Customer acquisition and retention cost | D154: =_xlfn.XLOOKUP(Calc_CPI_1[[#This Row],[Cost item]],Input_ForRateCalc[Cost item],Input_ForRateCalc[Fixed/Variable]) -> Fixed | E154: =INDEX(Input_ForRateCalc[Unit],MATCH(Calc_CPI_1[[#This Row],[Cost item]],Input_ForRateCalc[Cost item],0),1) -> $ | F154: =INDEX(Input_ForRateCalc[Customer type],MATCH(Calc_CPI_1[[#This Row],[Cost item]],Input_ForRateCalc[Cost item],0),1) -> All | G154: =INDEX(Input_CostItemCPI[],MATCH(Calc_CPI_1[[#This Row],[Cost item]],Input_CostItemCPI[Cost item],0),MATCH($D$5,Input_CostItemCPI[#Headers],0)) -> Yes | H154: =IF(Calc_CPI_1[[#This Row],[Adjust? (from CPI tab)]]="No",0, IFERROR( ($D$147- INDEX(CPI[Indice],MATCH( INDEX(Input_ForRateCalc[],MATCH(1,(Calc_CPI_1[[#This Row],[Cost item]:[Cost item]]=Input_ForRateCalc[Cost item])*(Calc_CPI_1[[#This Row],[Customer type]]=Input_ForRateCalc[Customer type]),0),MATCH($D$5&" - input date",Inputs!C$15:AZ$15,0)), CPI[Period],0),1))/ INDEX(CPI[Indice],MATCH( INDEX(Input_ForRateCalc[],MATCH(1,(Calc_CPI_1[[#This Row],[Cost item]:[Cost item]]=Input_ForRateCalc[Cost item])*(Calc_CPI_1[[#This Row],[Customer type]]=Input_ForRateCalc[Customer type]),0),MATCH($D$5&" - input date",Inputs!C$15:AZ$15,0)), CPI[Period],0),1),"-")) -> 0.2142857143 | I154: =IFERROR((H154)* INDEX(Input_ForRateCalc[],MATCH(1,(Calc_CPI_1[[#This Row],[Cost item]:[Cost item]]=Input_ForRateCalc[Cost item])*(Calc_CPI_1[[#This Row],[Customer type]]=Input_ForRateCalc[Customer type]),0),MATCH($D$5,Inputs!$C$15:$AZ$15,0)),"-") -> 8.142857143
C155: Feed-in tariff (FiT) | D155: =_xlfn.XLOOKUP(Calc_CPI_1[[#This Row],[Cost item]],Input_ForRateCalc[Cost item],Input_ForRateCalc[Fixed/Variable]) -> Variable | E155: =INDEX(Input_ForRateCalc[Unit],MATCH(Calc_CPI_1[[#This Row],[Cost item]],Input_ForRateCalc[Cost item],0),1) -> $/MWh | F155: =INDEX(Input_ForRateCalc[Customer type],MATCH(Calc_CPI_1[[#This Row],[Cost item]],Input_ForRateCalc[Cost item],0),1) -> All | G155: =INDEX(Input_CostItemCPI[],MATCH(Calc_CPI_1[[#This Row],[Cost item]],Input_CostItemCPI[Cost item],0),MATCH($D$5,Input_CostItemCPI[#Headers],0)) -> No | H155: =IF(Calc_CPI_1[[#This Row],[Adjust? (from CPI tab)]]="No",0, IFERROR( ($D$147- INDEX(CPI[Indice],MATCH( INDEX(Input_ForRateCalc[],MATCH(1,(Calc_CPI_1[[#This Row],[Cost item]:[Cost item]]=Input_ForRateCalc[Cost item])*(Calc_CPI_1[[#This Row],[Customer type]]=Input_ForRateCalc[Customer type]),0),MATCH($D$5&" - input date",Inputs!C$15:AZ$15,0)), CPI[Period],0),1))/ INDEX(CPI[Indice],MATCH( INDEX(Input_ForRateCalc[],MATCH(1,(Calc_CPI_1[[#This Row],[Cost item]:[Cost item]]=Input_ForRateCalc[Cost item])*(Calc_CPI_1[[#This Row],[Customer type]]=Input_ForRateCalc[Customer type]),0),MATCH($D$5&" - input date",Inputs!C$15:AZ$15,0)), CPI[Period],0),1),"-")) -> 0 | I155: =IFERROR((H155)* INDEX(Input_ForRateCalc[],MATCH(1,(Calc_CPI_1[[#This Row],[Cost item]:[Cost item]]=Input_ForRateCalc[Cost item])*(Calc_CPI_1[[#This Row],[Customer type]]=Input_ForRateCalc[Customer type]),0),MATCH($D$5,Inputs!$C$15:$AZ$15,0)),"-") -> 0
C156: ESC licence fees | D156: =_xlfn.XLOOKUP(Calc_CPI_1[[#This Row],[Cost item]],Input_ForRateCalc[Cost item],Input_ForRateCalc[Fixed/Variable]) -> Fixed | E156: =INDEX(Input_ForRateCalc[Unit],MATCH(Calc_CPI_1[[#This Row],[Cost item]],Input_ForRateCalc[Cost item],0),1) -> $ | F156: =INDEX(Input_ForRateCalc[Customer type],MATCH(Calc_CPI_1[[#This Row],[Cost item]],Input_ForRateCalc[Cost item],0),1) -> All | G156: =INDEX(Input_CostItemCPI[],MATCH(Calc_CPI_1[[#This Row],[Cost item]],Input_CostItemCPI[Cost item],0),MATCH($D$5,Input_CostItemCPI[#Headers],0)) -> Yes | H156: =IF(Calc_CPI_1[[#This Row],[Adjust? (from CPI tab)]]="No",0, IFERROR( ($D$147- INDEX(CPI[Indice],MATCH( INDEX(Input_ForRateCalc[],MATCH(1,(Calc_CPI_1[[#This Row],[Cost item]:[Cost item]]=Input_ForRateCalc[Cost item])*(Calc_CPI_1[[#This Row],[Customer type]]=Input_ForRateCalc[Customer type]),0),MATCH($D$5&" - input date",Inputs!C$15:AZ$15,0)), CPI[Period],0),1))/ INDEX(CPI[Indice],MATCH( INDEX(Input_ForRateCalc[],MATCH(1,(Calc_CPI_1[[#This Row],[Cost item]:[Cost item]]=Input_ForRateCalc[Cost item])*(Calc_CPI_1[[#This Row],[Customer type]]=Input_ForRateCalc[Customer type]),0),MATCH($D$5&" - input date",Inputs!C$15:AZ$15,0)), CPI[Period],0),1),"-")) -> 0.004322766571 | I156: =IFERROR((H156)* INDEX(Input_ForRateCalc[],MATCH(1,(Calc_CPI_1[[#This Row],[Cost item]:[Cost item]]=Input_ForRateCalc[Cost item])*(Calc_CPI_1[[#This Row],[Customer type]]=Input_ForRateCalc[Customer type]),0),MATCH($D$5,Inputs!$C$15:$AZ$15,0)),"-") -> 0.009065514551
C157: Energy Consumers Australia | D157: =_xlfn.XLOOKUP(Calc_CPI_1[[#This Row],[Cost item]],Input_ForRateCalc[Cost item],Input_ForRateCalc[Fixed/Variable]) -> Fixed | E157: =INDEX(Input_ForRateCalc[Unit],MATCH(Calc_CPI_1[[#This Row],[Cost item]],Input_ForRateCalc[Cost item],0),1) -> $/week | F157: =INDEX(Input_ForRateCalc[Customer type],MATCH(Calc_CPI_1[[#This Row],[Cost item]],Input_ForRateCalc[Cost item],0),1) -> All | G157: =INDEX(Input_CostItemCPI[],MATCH(Calc_CPI_1[[#This Row],[Cost item]],Input_CostItemCPI[Cost item],0),MATCH($D$5,Input_CostItemCPI[#Headers],0)) -> No | H157: =IF(Calc_CPI_1[[#This Row],[Adjust? (from CPI tab)]]="No",0, IFERROR( ($D$147- INDEX(CPI[Indice],MATCH( INDEX(Input_ForRateCalc[],MATCH(1,(Calc_CPI_1[[#This Row],[Cost item]:[Cost item]]=Input_ForRateCalc[Cost item])*(Calc_CPI_1[[#This Row],[Customer type]]=Input_ForRateCalc[Customer type]),0),MATCH($D$5&" - input date",Inputs!C$15:AZ$15,0)), CPI[Period],0),1))/ INDEX(CPI[Indice],MATCH( INDEX(Input_ForRateCalc[],MATCH(1,(Calc_CPI_1[[#This Row],[Cost item]:[Cost item]]=Input_ForRateCalc[Cost item])*(Calc_CPI_1[[#This Row],[Customer type]]=Input_ForRateCalc[Customer type]),0),MATCH($D$5&" - input date",Inputs!C$15:AZ$15,0)), CPI[Period],0),1),"-")) -> 0 | I157: =IFERROR((H157)* INDEX(Input_ForRateCalc[],MATCH(1,(Calc_CPI_1[[#This Row],[Cost item]:[Cost item]]=Input_ForRateCalc[Cost item])*(Calc_CPI_1[[#This Row],[Customer type]]=Input_ForRateCalc[Customer type]),0),MATCH($D$5,Inputs!$C$15:$AZ$15,0)),"-") -> 0
C158: Full retail competition (FRC) operations | D158: =_xlfn.XLOOKUP(Calc_CPI_1[[#This Row],[Cost item]],Input_ForRateCalc[Cost item],Input_ForRateCalc[Fixed/Variable]) -> Fixed | E158: =INDEX(Input_ForRateCalc[Unit],MATCH(Calc_CPI_1[[#This Row],[Cost item]],Input_ForRateCalc[Cost item],0),1) -> $/week | F158: =INDEX(Input_ForRateCalc[Customer type],MATCH(Calc_CPI_1[[#This Row],[Cost item]],Input_ForRateCalc[Cost item],0),1) -> All | G158: =INDEX(Input_CostItemCPI[],MATCH(Calc_CPI_1[[#This Row],[Cost item]],Input_CostItemCPI[Cost item],0),MATCH($D$5,Input_CostItemCPI[#Headers],0)) -> No | H158: =IF(Calc_CPI_1[[#This Row],[Adjust? (from CPI tab)]]="No",0, IFERROR( ($D$147- INDEX(CPI[Indice],MATCH( INDEX(Input_ForRateCalc[],MATCH(1,(Calc_CPI_1[[#This Row],[Cost item]:[Cost item]]=Input_ForRateCalc[Cost item])*(Calc_CPI_1[[#This Row],[Customer type]]=Input_ForRateCalc[Customer type]),0),MATCH($D$5&" - input date",Inputs!C$15:AZ$15,0)), CPI[Period],0),1))/ INDEX(CPI[Indice],MATCH( INDEX(Input_ForRateCalc[],MATCH(1,(Calc_CPI_1[[#This Row],[Cost item]:[Cost item]]=Input_ForRateCalc[Cost item])*(Calc_CPI_1[[#This Row],[Customer type]]=Input_ForRateCalc[Customer type]),0),MATCH($D$5&" - input date",Inputs!C$15:AZ$15,0)), CPI[Period],0),1),"-")) -> 0 | I158: =IFERROR((H158)* INDEX(Input_ForRateCalc[],MATCH(1,(Calc_CPI_1[[#This Row],[Cost item]:[Cost item]]=Input_ForRateCalc[Cost item])*(Calc_CPI_1[[#This Row],[Customer type]]=Input_ForRateCalc[Customer type]),0),MATCH($D$5,Inputs!$C$15:$AZ$15,0)),"-") -> 0
C159: General NEM fees | D159: =_xlfn.XLOOKUP(Calc_CPI_1[[#This Row],[Cost item]],Input_ForRateCalc[Cost item],Input_ForRateCalc[Fixed/Variable]) -> Variable | E159: =INDEX(Input_ForRateCalc[Unit],MATCH(Calc_CPI_1[[#This Row],[Cost item]],Input_ForRateCalc[Cost item],0),1) -> $/MWh | F159: =INDEX(Input_ForRateCalc[Customer type],MATCH(Calc_CPI_1[[#This Row],[Cost item]],Input_ForRateCalc[Cost item],0),1) -> All | G159: =INDEX(Input_CostItemCPI[],MATCH(Calc_CPI_1[[#This Row],[Cost item]],Input_CostItemCPI[Cost item],0),MATCH($D$5,Input_CostItemCPI[#Headers],0)) -> No | H159: =IF(Calc_CPI_1[[#This Row],[Adjust? (from CPI tab)]]="No",0, IFERROR( ($D$147- INDEX(CPI[Indice],MATCH( INDEX(Input_ForRateCalc[],MATCH(1,(Calc_CPI_1[[#This Row],[Cost item]:[Cost item]]=Input_ForRateCalc[Cost item])*(Calc_CPI_1[[#This Row],[Customer type]]=Input_ForRateCalc[Customer type]),0),MATCH($D$5&" - input date",Inputs!C$15:AZ$15,0)), CPI[Period],0),1))/ INDEX(CPI[Indice],MATCH( INDEX(Input_ForRateCalc[],MATCH(1,(Calc_CPI_1[[#This Row],[Cost item]:[Cost item]]=Input_ForRateCalc[Cost item])*(Calc_CPI_1[[#This Row],[Customer type]]=Input_ForRateCalc[Customer type]),0),MATCH($D$5&" - input date",Inputs!C$15:AZ$15,0)), CPI[Period],0),1),"-")) -> 0 | I159: =IFERROR((H159)* INDEX(Input_ForRateCalc[],MATCH(1,(Calc_CPI_1[[#This Row],[Cost item]:[Cost item]]=Input_ForRateCalc[Cost item])*(Calc_CPI_1[[#This Row],[Customer type]]=Input_ForRateCalc[Customer type]),0),MATCH($D$5,Inputs!$C$15:$AZ$15,0)),"-") -> 0
C160: IT upgrade and 5MS/GS compliance | D160: =_xlfn.XLOOKUP(Calc_CPI_1[[#This Row],[Cost item]],Input_ForRateCalc[Cost item],Input_ForRateCalc[Fixed/Variable]) -> Variable | E160: =INDEX(Input_ForRateCalc[Unit],MATCH(Calc_CPI_1[[#This Row],[Cost item]],Input_ForRateCalc[Cost item],0),1) -> $/MWh | F160: =INDEX(Input_ForRateCalc[Customer type],MATCH(Calc_CPI_1[[#This Row],[Cost item]],Input_ForRateCalc[Cost item],0),1) -> All | G160: =INDEX(Input_CostItemCPI[],MATCH(Calc_CPI_1[[#This Row],[Cost item]],Input_CostItemCPI[Cost item],0),MATCH($D$5,Input_CostItemCPI[#Headers],0)) -> No | H160: =IF(Calc_CPI_1[[#This Row],[Adjust? (from CPI tab)]]="No",0, IFERROR( ($D$147- INDEX(CPI[Indice],MATCH( INDEX(Input_ForRateCalc[],MATCH(1,(Calc_CPI_1[[#This Row],[Cost item]:[Cost item]]=Input_ForRateCalc[Cost item])*(Calc_CPI_1[[#This Row],[Customer type]]=Input_ForRateCalc[Customer type]),0),MATCH($D$5&" - input date",Inputs!C$15:AZ$15,0)), CPI[Period],0),1))/ INDEX(CPI[Indice],MATCH( INDEX(Input_ForRateCalc[],MATCH(1,(Calc_CPI_1[[#This Row],[Cost item]:[Cost item]]=Input_ForRateCalc[Cost item])*(Calc_CPI_1[[#This Row],[Customer type]]=Input_ForRateCalc[Customer type]),0),MATCH($D$5&" - input date",Inputs!C$15:AZ$15,0)), CPI[Period],0),1),"-")) -> 0 | I160: =IFERROR((H160)* INDEX(Input_ForRateCalc[],MATCH(1,(Calc_CPI_1[[#This Row],[Cost item]:[Cost item]]=Input_ForRateCalc[Cost item])*(Calc_CPI_1[[#This Row],[Customer type]]=Input_ForRateCalc[Customer type]),0),MATCH($D$5,Inputs!$C$15:$AZ$15,0)),"-") -> 0
C161: Distributed Energy Resources Integration Program (DER) | D161: =_xlfn.XLOOKUP(Calc_CPI_1[[#This Row],[Cost item]],Input_ForRateCalc[Cost item],Input_ForRateCalc[Fixed/Variable]) -> Variable | E161: =INDEX(Input_ForRateCalc[Unit],MATCH(Calc_CPI_1[[#This Row],[Cost item]],Input_ForRateCalc[Cost item],0),1) -> $/MWh | F161: =INDEX(Input_ForRateCalc[Customer type],MATCH(Calc_CPI_1[[#This Row],[Cost item]],Input_ForRateCalc[Cost item],0),1) -> All | G161: =INDEX(Input_CostItemCPI[],MATCH(Calc_CPI_1[[#This Row],[Cost item]],Input_CostItemCPI[Cost item],0),MATCH($D$5,Input_CostItemCPI[#Headers],0)) -> No | H161: =IF(Calc_CPI_1[[#This Row],[Adjust? (from CPI tab)]]="No",0, IFERROR( ($D$147- INDEX(CPI[Indice],MATCH( INDEX(Input_ForRateCalc[],MATCH(1,(Calc_CPI_1[[#This Row],[Cost item]:[Cost item]]=Input_ForRateCalc[Cost item])*(Calc_CPI_1[[#This Row],[Customer type]]=Input_ForRateCalc[Customer type]),0),MATCH($D$5&" - input date",Inputs!C$15:AZ$15,0)), CPI[Period],0),1))/ INDEX(CPI[Indice],MATCH( INDEX(Input_ForRateCalc[],MATCH(1,(Calc_CPI_1[[#This Row],[Cost item]:[Cost item]]=Input_ForRateCalc[Cost item])*(Calc_CPI_1[[#This Row],[Customer type]]=Input_ForRateCalc[Customer type]),0),MATCH($D$5&" - input date",Inputs!C$15:AZ$15,0)), CPI[Period],0),1),"-")) -> 0 | I161: =IFERROR((H161)* INDEX(Input_ForRateCalc[],MATCH(1,(Calc_CPI_1[[#This Row],[Cost item]:[Cost item]]=Input_ForRateCalc[Cost item])*(Calc_CPI_1[[#This Row],[Customer type]]=Input_ForRateCalc[Customer type]),0),MATCH($D$5,Inputs!$C$15:$AZ$15,0)),"-") -> 0
C162: General NEM fees - fixed | D162: =_xlfn.XLOOKUP(Calc_CPI_1[[#This Row],[Cost item]],Input_ForRateCalc[Cost item],Input_ForRateCalc[Fixed/Variable]) -> Fixed | E162: =INDEX(Input_ForRateCalc[Unit],MATCH(Calc_CPI_1[[#This Row],[Cost item]],Input_ForRateCalc[Cost item],0),1) -> $/week | F162: =INDEX(Input_ForRateCalc[Customer type],MATCH(Calc_CPI_1[[#This Row],[Cost item]],Input_ForRateCalc[Cost item],0),1) -> All | G162: =INDEX(Input_CostItemCPI[],MATCH(Calc_CPI_1[[#This Row],[Cost item]],Input_CostItemCPI[Cost item],0),MATCH($D$5,Input_CostItemCPI[#Headers],0)) -> No | H162: =IF(Calc_CPI_1[[#This Row],[Adjust? (from CPI tab)]]="No",0, IFERROR( ($D$147- INDEX(CPI[Indice],MATCH( INDEX(Input_ForRateCalc[],MATCH(1,(Calc_CPI_1[[#This Row],[Cost item]:[Cost item]]=Input_ForRateCalc[Cost item])*(Calc_CPI_1[[#This Row],[Customer type]]=Input_ForRateCalc[Customer type]),0),MATCH($D$5&" - input date",Inputs!C$15:AZ$15,0)), CPI[Period],0),1))/ INDEX(CPI[Indice],MATCH( INDEX(Input_ForRateCalc[],MATCH(1,(Calc_CPI_1[[#This Row],[Cost item]:[Cost item]]=Input_ForRateCalc[Cost item])*(Calc_CPI_1[[#This Row],[Customer type]]=Input_ForRateCalc[Customer type]),0),MATCH($D$5&" - input date",Inputs!C$15:AZ$15,0)), CPI[Period],0),1),"-")) -> 0 | I162: =IFERROR((H162)* INDEX(Input_ForRateCalc[],MATCH(1,(Calc_CPI_1[[#This Row],[Cost item]:[Cost item]]=Input_ForRateCalc[Cost item])*(Calc_CPI_1[[#This Row],[Customer type]]=Input_ForRateCalc[Customer type]),0),MATCH($D$5,Inputs!$C$15:$AZ$15,0)),"-") -> 0
C163: Distributed Energy Resources Integration Program (DER) - fixed | D163: =_xlfn.XLOOKUP(Calc_CPI_1[[#This Row],[Cost item]],Input_ForRateCalc[Cost item],Input_ForRateCalc[Fixed/Variable]) -> Fixed | E163: =INDEX(Input_ForRateCalc[Unit],MATCH(Calc_CPI_1[[#This Row],[Cost item]],Input_ForRateCalc[Cost item],0),1) -> $/week | F163: =INDEX(Input_ForRateCalc[Customer type],MATCH(Calc_CPI_1[[#This Row],[Cost item]],Input_ForRateCalc[Cost item],0),1) -> All | G163: =INDEX(Input_CostItemCPI[],MATCH(Calc_CPI_1[[#This Row],[Cost item]],Input_CostItemCPI[Cost item],0),MATCH($D$5,Input_CostItemCPI[#Headers],0)) -> No | H163: =IF(Calc_CPI_1[[#This Row],[Adjust? (from CPI tab)]]="No",0, IFERROR( ($D$147- INDEX(CPI[Indice],MATCH( INDEX(Input_ForRateCalc[],MATCH(1,(Calc_CPI_1[[#This Row],[Cost item]:[Cost item]]=Input_ForRateCalc[Cost item])*(Calc_CPI_1[[#This Row],[Customer type]]=Input_ForRateCalc[Customer type]),0),MATCH($D$5&" - input date",Inputs!C$15:AZ$15,0)), CPI[Period],0),1))/ INDEX(CPI[Indice],MATCH( INDEX(Input_ForRateCalc[],MATCH(1,(Calc_CPI_1[[#This Row],[Cost item]:[Cost item]]=Input_ForRateCalc[Cost item])*(Calc_CPI_1[[#This Row],[Customer type]]=Input_ForRateCalc[Customer type]),0),MATCH($D$5&" - input date",Inputs!C$15:AZ$15,0)), CPI[Period],0),1),"-")) -> 0 | I163: =IFERROR((H163)* INDEX(Input_ForRateCalc[],MATCH(1,(Calc_CPI_1[[#This Row],[Cost item]:[Cost item]]=Input_ForRateCalc[Cost item])*(Calc_CPI_1[[#This Row],[Customer type]]=Input_ForRateCalc[Customer type]),0),MATCH($D$5,Inputs!$C$15:$AZ$15,0)),"-") -> 0
C164: IT upgrade and 5MS/GS compliance - fixed | D164: =_xlfn.XLOOKUP(Calc_CPI_1[[#This Row],[Cost item]],Input_ForRateCalc[Cost item],Input_ForRateCalc[Fixed/Variable]) -> Fixed | E164: =INDEX(Input_ForRateCalc[Unit],MATCH(Calc_CPI_1[[#This Row],[Cost item]],Input_ForRateCalc[Cost item],0),1) -> $/week | F164: =INDEX(Input_ForRateCalc[Customer type],MATCH(Calc_CPI_1[[#This Row],[Cost item]],Input_ForRateCalc[Cost item],0),1) -> All | G164: =INDEX(Input_CostItemCPI[],MATCH(Calc_CPI_1[[#This Row],[Cost item]],Input_CostItemCPI[Cost item],0),MATCH($D$5,Input_CostItemCPI[#Headers],0)) -> No | H164: =IF(Calc_CPI_1[[#This Row],[Adjust? (from CPI tab)]]="No",0, IFERROR( ($D$147- INDEX(CPI[Indice],MATCH( INDEX(Input_ForRateCalc[],MATCH(1,(Calc_CPI_1[[#This Row],[Cost item]:[Cost item]]=Input_ForRateCalc[Cost item])*(Calc_CPI_1[[#This Row],[Customer type]]=Input_ForRateCalc[Customer type]),0),MATCH($D$5&" - input date",Inputs!C$15:AZ$15,0)), CPI[Period],0),1))/ INDEX(CPI[Indice],MATCH( INDEX(Input_ForRateCalc[],MATCH(1,(Calc_CPI_1[[#This Row],[Cost item]:[Cost item]]=Input_ForRateCalc[Cost item])*(Calc_CPI_1[[#This Row],[Customer type]]=Input_ForRateCalc[Customer type]),0),MATCH($D$5&" - input date",Inputs!C$15:AZ$15,0)), CPI[Period],0),1),"-")) -> 0 | I164: =IFERROR((H164)* INDEX(Input_ForRateCalc[],MATCH(1,(Calc_CPI_1[[#This Row],[Cost item]:[Cost item]]=Input_ForRateCalc[Cost item])*(Calc_CPI_1[[#This Row],[Customer type]]=Input_ForRateCalc[Customer type]),0),MATCH($D$5,Inputs!$C$15:$AZ$15,0)),"-") -> 0
C165: Market suspension - usage | D165: =_xlfn.XLOOKUP(Calc_CPI_1[[#This Row],[Cost item]],Input_ForRateCalc[Cost item],Input_ForRateCalc[Fixed/Variable]) -> Variable | E165: =INDEX(Input_ForRateCalc[Unit],MATCH(Calc_CPI_1[[#This Row],[Cost item]],Input_ForRateCalc[Cost item],0),1) -> $/MWh | F165: =INDEX(Input_ForRateCalc[Customer type],MATCH(Calc_CPI_1[[#This Row],[Cost item]],Input_ForRateCalc[Cost item],0),1) -> All | G165: =INDEX(Input_CostItemCPI[],MATCH(Calc_CPI_1[[#This Row],[Cost item]],Input_CostItemCPI[Cost item],0),MATCH($D$5,Input_CostItemCPI[#Headers],0)) -> No | H165: =IF(Calc_CPI_1[[#This Row],[Adjust? (from CPI tab)]]="No",0, IFERROR( ($D$147- INDEX(CPI[Indice],MATCH( INDEX(Input_ForRateCalc[],MATCH(1,(Calc_CPI_1[[#This Row],[Cost item]:[Cost item]]=Input_ForRateCalc[Cost item])*(Calc_CPI_1[[#This Row],[Customer type]]=Input_ForRateCalc[Customer type]),0),MATCH($D$5&" - input date",Inputs!C$15:AZ$15,0)), CPI[Period],0),1))/ INDEX(CPI[Indice],MATCH( INDEX(Input_ForRateCalc[],MATCH(1,(Calc_CPI_1[[#This Row],[Cost item]:[Cost item]]=Input_ForRateCalc[Cost item])*(Calc_CPI_1[[#This Row],[Customer type]]=Input_ForRateCalc[Customer type]),0),MATCH($D$5&" - input date",Inputs!C$15:AZ$15,0)), CPI[Period],0),1),"-")) -> 0 | I165: =IFERROR((H165)* INDEX(Input_ForRateCalc[],MATCH(1,(Calc_CPI_1[[#This Row],[Cost item]:[Cost item]]=Input_ForRateCalc[Cost item])*(Calc_CPI_1[[#This Row],[Customer type]]=Input_ForRateCalc[Customer type]),0),MATCH($D$5,Inputs!$C$15:$AZ$15,0)),"-") -> 0
C166: Directions - usage | D166: =_xlfn.XLOOKUP(Calc_CPI_1[[#This Row],[Cost item]],Input_ForRateCalc[Cost item],Input_ForRateCalc[Fixed/Variable]) -> Variable | E166: =INDEX(Input_ForRateCalc[Unit],MATCH(Calc_CPI_1[[#This Row],[Cost item]],Input_ForRateCalc[Cost item],0),1) -> $/MWh | F166: =INDEX(Input_ForRateCalc[Customer type],MATCH(Calc_CPI_1[[#This Row],[Cost item]],Input_ForRateCalc[Cost item],0),1) -> All | G166: =INDEX(Input_CostItemCPI[],MATCH(Calc_CPI_1[[#This Row],[Cost item]],Input_CostItemCPI[Cost item],0),MATCH($D$5,Input_CostItemCPI[#Headers],0)) -> No | H166: =IF(Calc_CPI_1[[#This Row],[Adjust? (from CPI tab)]]="No",0, IFERROR( ($D$147- INDEX(CPI[Indice],MATCH( INDEX(Input_ForRateCalc[],MATCH(1,(Calc_CPI_1[[#This Row],[Cost item]:[Cost item]]=Input_ForRateCalc[Cost item])*(Calc_CPI_1[[#This Row],[Customer type]]=Input_ForRateCalc[Customer type]),0),MATCH($D$5&" - input date",Inputs!C$15:AZ$15,0)), CPI[Period],0),1))/ INDEX(CPI[Indice],MATCH( INDEX(Input_ForRateCalc[],MATCH(1,(Calc_CPI_1[[#This Row],[Cost item]:[Cost item]]=Input_ForRateCalc[Cost item])*(Calc_CPI_1[[#This Row],[Customer type]]=Input_ForRateCalc[Customer type]),0),MATCH($D$5&" - input date",Inputs!C$15:AZ$15,0)), CPI[Period],0),1),"-")) -> 0 | I166: =IFERROR((H166)* INDEX(Input_ForRateCalc[],MATCH(1,(Calc_CPI_1[[#This Row],[Cost item]:[Cost item]]=Input_ForRateCalc[Cost item])*(Calc_CPI_1[[#This Row],[Customer type]]=Input_ForRateCalc[Customer type]),0),MATCH($D$5,Inputs!$C$15:$AZ$15,0)),"-") -> 0
C167: Administered price cap - usage | D167: =_xlfn.XLOOKUP(Calc_CPI_1[[#This Row],[Cost item]],Input_ForRateCalc[Cost item],Input_ForRateCalc[Fixed/Variable]) -> Variable | E167: =INDEX(Input_ForRateCalc[Unit],MATCH(Calc_CPI_1[[#This Row],[Cost item]],Input_ForRateCalc[Cost item],0),1) -> $/MWh | F167: =INDEX(Input_ForRateCalc[Customer type],MATCH(Calc_CPI_1[[#This Row],[Cost item]],Input_ForRateCalc[Cost item],0),1) -> All | G167: =INDEX(Input_CostItemCPI[],MATCH(Calc_CPI_1[[#This Row],[Cost item]],Input_CostItemCPI[Cost item],0),MATCH($D$5,Input_CostItemCPI[#Headers],0)) -> No | H167: =IF(Calc_CPI_1[[#This Row],[Adjust? (from CPI tab)]]="No",0, IFERROR( ($D$147- INDEX(CPI[Indice],MATCH( INDEX(Input_ForRateCalc[],MATCH(1,(Calc_CPI_1[[#This Row],[Cost item]:[Cost item]]=Input_ForRateCalc[Cost item])*(Calc_CPI_1[[#This Row],[Customer type]]=Input_ForRateCalc[Customer type]),0),MATCH($D$5&" - input date",Inputs!C$15:AZ$15,0)), CPI[Period],0),1))/ INDEX(CPI[Indice],MATCH( INDEX(Input_ForRateCalc[],MATCH(1,(Calc_CPI_1[[#This Row],[Cost item]:[Cost item]]=Input_ForRateCalc[Cost item])*(Calc_CPI_1[[#This Row],[Customer type]]=Input_ForRateCalc[Customer type]),0),MATCH($D$5&" - input date",Inputs!C$15:AZ$15,0)), CPI[Period],0),1),"-")) -> 0 | I167: =IFERROR((H167)* INDEX(Input_ForRateCalc[],MATCH(1,(Calc_CPI_1[[#This Row],[Cost item]:[Cost item]]=Input_ForRateCalc[Cost item])*(Calc_CPI_1[[#This Row],[Customer type]]=Input_ForRateCalc[Customer type]),0),MATCH($D$5,Inputs!$C$15:$AZ$15,0)),"-") -> 0
C168: National Electricity Market (NEM) 2025 Reform Program - Fixed | D168: =_xlfn.XLOOKUP(Calc_CPI_1[[#This Row],[Cost item]],Input_ForRateCalc[Cost item],Input_ForRateCalc[Fixed/Variable]) -> Fixed | E168: =INDEX(Input_ForRateCalc[Unit],MATCH(Calc_CPI_1[[#This Row],[Cost item]],Input_ForRateCalc[Cost item],0),1) -> $/week | F168: =INDEX(Input_ForRateCalc[Customer type],MATCH(Calc_CPI_1[[#This Row],[Cost item]],Input_ForRateCalc[Cost item],0),1) -> All | G168: =INDEX(Input_CostItemCPI[],MATCH(Calc_CPI_1[[#This Row],[Cost item]],Input_CostItemCPI[Cost item],0),MATCH($D$5,Input_CostItemCPI[#Headers],0)) -> No | H168: =IF(Calc_CPI_1[[#This Row],[Adjust? (from CPI tab)]]="No",0, IFERROR( ($D$147- INDEX(CPI[Indice],MATCH( INDEX(Input_ForRateCalc[],MATCH(1,(Calc_CPI_1[[#This Row],[Cost item]:[Cost item]]=Input_ForRateCalc[Cost item])*(Calc_CPI_1[[#This Row],[Customer type]]=Input_ForRateCalc[Customer type]),0),MATCH($D$5&" - input date",Inputs!C$15:AZ$15,0)), CPI[Period],0),1))/ INDEX(CPI[Indice],MATCH( INDEX(Input_ForRateCalc[],MATCH(1,(Calc_CPI_1[[#This Row],[Cost item]:[Cost item]]=Input_ForRateCalc[Cost item])*(Calc_CPI_1[[#This Row],[Customer type]]=Input_ForRateCalc[Customer type]),0),MATCH($D$5&" - input date",Inputs!C$15:AZ$15,0)), CPI[Period],0),1),"-")) -> 0 | I168: =IFERROR((H168)* INDEX(Input_ForRateCalc[],MATCH(1,(Calc_CPI_1[[#This Row],[Cost item]:[Cost item]]=Input_ForRateCalc[Cost item])*(Calc_CPI_1[[#This Row],[Customer type]]=Input_ForRateCalc[Customer type]),0),MATCH($D$5,Inputs!$C$15:$AZ$15,0)),"-") -> 0
C169: National Electricity Market (NEM) 2025 Reform Program - variable | D169: =_xlfn.XLOOKUP(Calc_CPI_1[[#This Row],[Cost item]],Input_ForRateCalc[Cost item],Input_ForRateCalc[Fixed/Variable]) -> Variable | E169: =INDEX(Input_ForRateCalc[Unit],MATCH(Calc_CPI_1[[#This Row],[Cost item]],Input_ForRateCalc[Cost item],0),1) -> $/MWh | F169: =INDEX(Input_ForRateCalc[Customer type],MATCH(Calc_CPI_1[[#This Row],[Cost item]],Input_ForRateCalc[Cost item],0),1) -> All | G169: =INDEX(Input_CostItemCPI[],MATCH(Calc_CPI_1[[#This Row],[Cost item]],Input_CostItemCPI[Cost item],0),MATCH($D$5,Input_CostItemCPI[#Headers],0)) -> No | H169: =IF(Calc_CPI_1[[#This Row],[Adjust? (from CPI tab)]]="No",0, IFERROR( ($D$147- INDEX(CPI[Indice],MATCH( INDEX(Input_ForRateCalc[],MATCH(1,(Calc_CPI_1[[#This Row],[Cost item]:[Cost item]]=Input_ForRateCalc[Cost item])*(Calc_CPI_1[[#This Row],[Customer type]]=Input_ForRateCalc[Customer type]),0),MATCH($D$5&" - input date",Inputs!C$15:AZ$15,0)), CPI[Period],0),1))/ INDEX(CPI[Indice],MATCH( INDEX(Input_ForRateCalc[],MATCH(1,(Calc_CPI_1[[#This Row],[Cost item]:[Cost item]]=Input_ForRateCalc[Cost item])*(Calc_CPI_1[[#This Row],[Customer type]]=Input_ForRateCalc[Customer type]),0),MATCH($D$5&" - input date",Inputs!C$15:AZ$15,0)), CPI[Period],0),1),"-")) -> 0 | I169: =IFERROR((H169)* INDEX(Input_ForRateCalc[],MATCH(1,(Calc_CPI_1[[#This Row],[Cost item]:[Cost item]]=Input_ForRateCalc[Cost item])*(Calc_CPI_1[[#This Row],[Customer type]]=Input_ForRateCalc[Customer type]),0),MATCH($D$5,Inputs!$C$15:$AZ$15,0)),"-") -> 0
C171: Network losses
C172: Cost item | D172: Fixed/Variable | E172: Unit | F172: Customer type | G172: Ausnet | H172: Citipower | I172: Jemena | J172: Powercor | K172: United Energy
C173: Marginal loss factor | D173: - | E173: % | F173: All | G173: =IFERROR(INDEX(Input_ForRateCalc[],MATCH(Calc_Losses_1[[#This Row],[Cost item]:[Cost item]]&" - "&Calc_Losses_1[[#Headers],[Ausnet]],Input_ForRateCalc[[Cost item]:[Cost item]],0),MATCH($D$5,Inputs!$C$15:$AZ$15,0)),"-") -> 1.002469231 | H173: =IFERROR(INDEX(Input_ForRateCalc[],MATCH(Calc_Losses_1[[#This Row],[Cost item]:[Cost item]]&" - "&Calc_Losses_1[[#Headers],[Citipower]],Input_ForRateCalc[[Cost item]:[Cost item]],0),MATCH($D$5,Inputs!$C$15:$AZ$15,0)),"-") -> 0.99983 | I173: =IFERROR(INDEX(Input_ForRateCalc[],MATCH(Calc_Losses_1[[#This Row],[Cost item]:[Cost item]]&" - "&Calc_Losses_1[[#Headers],[Jemena]],Input_ForRateCalc[[Cost item]:[Cost item]],0),MATCH($D$5,Inputs!$C$15:$AZ$15,0)),"-") -> 1.00095 | J173: =IFERROR(INDEX(Input_ForRateCalc[],MATCH(Calc_Losses_1[[#This Row],[Cost item]:[Cost item]]&" - "&Calc_Losses_1[[#Headers],[Powercor]],Input_ForRateCalc[[Cost item]:[Cost item]],0),MATCH($D$5,Inputs!$C$15:$AZ$15,0)),"-") -> 0.9900578947 | K173: =IFERROR(INDEX(Input_ForRateCalc[],MATCH(Calc_Losses_1[[#This Row],[Cost item]:[Cost item]]&" - "&Calc_Losses_1[[#Headers],[United Energy]],Input_ForRateCalc[[Cost item]:[Cost item]],0),MATCH($D$5,Inputs!$C$15:$AZ$15,0)),"-") -> 0.9982636364
C174: Distribution loss factor | D174: - | E174: % | F174: All | G174: =IFERROR(INDEX(Input_ForRateCalc[],MATCH(Calc_Losses_1[[#This Row],[Cost item]:[Cost item]]&" - "&Calc_Losses_1[[#Headers],[Ausnet]],Input_ForRateCalc[[Cost item]:[Cost item]],0),MATCH($D$5,Inputs!$C$15:$AZ$15,0)),"-") -> 1.076845146 | H174: =IFERROR(INDEX(Input_ForRateCalc[],MATCH(Calc_Losses_1[[#This Row],[Cost item]:[Cost item]]&" - "&Calc_Losses_1[[#Headers],[Citipower]],Input_ForRateCalc[[Cost item]:[Cost item]],0),MATCH($D$5,Inputs!$C$15:$AZ$15,0)),"-") -> 1.0434 | I174: =IFERROR(INDEX(Input_ForRateCalc[],MATCH(Calc_Losses_1[[#This Row],[Cost item]:[Cost item]]&" - "&Calc_Losses_1[[#Headers],[Jemena]],Input_ForRateCalc[[Cost item]:[Cost item]],0),MATCH($D$5,Inputs!$C$15:$AZ$15,0)),"-") -> 1.0468 | J174: =IFERROR(INDEX(Input_ForRateCalc[],MATCH(Calc_Losses_1[[#This Row],[Cost item]:[Cost item]]&" - "&Calc_Losses_1[[#Headers],[Powercor]],Input_ForRateCalc[[Cost item]:[Cost item]],0),MATCH($D$5,Inputs!$C$15:$AZ$15,0)),"-") -> 1.07572549 | K174: =IFERROR(INDEX(Input_ForRateCalc[],MATCH(Calc_Losses_1[[#This Row],[Cost item]:[Cost item]]&" - "&Calc_Losses_1[[#Headers],[United Energy]],Input_ForRateCalc[[Cost item]:[Cost item]],0),MATCH($D$5,Inputs!$C$15:$AZ$15,0)),"-") -> 1.0463
C175: Total loss factor | D175: - | E175: % | F175: All | G175: =(G173*G174)-1 -> 0.07950412469 | H175: =(H173*H174)-1 -> 0.043222622 | I175: =(I173*I174)-1 -> 0.04779446 | J175: =(J173*J174)-1 -> 0.06503051439 | K175: =(K173*K174)-1 -> 0.04448324273
A177: Section/Item notes (where necessary) | C177: Retail operating margin
C178: Cost item | D178: Fixed/Variable | E178: Unit | F178: Customer type | G178: Ausnet | H178: Citipower | I178: Jemena | J178: Powercor | K178: United Energy
C179: Retail operating margin | D179: =_xlfn.XLOOKUP(Calc_ROM_1[[#This Row],[Cost item]],Input_ForRateCalc[Cost item],Input_ForRateCalc[Fixed/Variable]) -> - | E179: % | F179: All | G179: =IFERROR(INDEX(Input_ForRateCalc[],MATCH(Calc_ROM_1[[#This Row],[Cost item]:[Cost item]],Input_ForRateCalc[[Cost item]:[Cost item]],0),MATCH($D$5,Inputs!$C$15:$AZ$15,0)),"-") -> 0.0526 | H179: =IFERROR(INDEX(Input_ForRateCalc[],MATCH(Calc_ROM_1[[#This Row],[Cost item]:[Cost item]],Input_ForRateCalc[[Cost item]:[Cost item]],0),MATCH($D$5,Inputs!$C$15:$AZ$15,0)),"-") -> 0.0526 | I179: =IFERROR(INDEX(Input_ForRateCalc[],MATCH(Calc_ROM_1[[#This Row],[Cost item]:[Cost item]],Input_ForRateCalc[[Cost item]:[Cost item]],0),MATCH($D$5,Inputs!$C$15:$AZ$15,0)),"-") -> 0.0526 | J179: =IFERROR(INDEX(Input_ForRateCalc[],MATCH(Calc_ROM_1[[#This Row],[Cost item]:[Cost item]],Input_ForRateCalc[[Cost item]:[Cost item]],0),MATCH($D$5,Inputs!$C$15:$AZ$15,0)),"-") -> 0.0526 | K179: =IFERROR(INDEX(Input_ForRateCalc[],MATCH(Calc_ROM_1[[#This Row],[Cost item]:[Cost item]],Input_ForRateCalc[[Cost item]:[Cost item]],0),MATCH($D$5,Inputs!$C$15:$AZ$15,0)),"-") -> 0.0526
B182: =MAX(B$3:B181)+0.01 -> 5.03 | C182: Retail costs
A184: Section/Item notes (where necessary) | C184: Cost item | D184: Fixed/Variable | E184: Unit | F184: Customer type | G184: Ausnet | H184: Citipower | I184: Jemena | J184: Powercor | K184: United Energy
C185: Retail operating cost | D185: Fixed | E185: $ | F185: Residential | G185: =IFERROR( IFERROR(INDEX(Calc_CPI_1[[CPI uplift factor]:[CPI uplift factor]],MATCH(Calc_Retail_1[[#This Row],[Cost item]:[Cost item]]&" - base",Calc_CPI_1[[Cost item]:[Cost item]],0),1),0)+ IFERROR(INDEX(Calc_CPI_1[[CPI uplift factor]:[CPI uplift factor]],MATCH(Calc_Retail_1[[#This Row],[Cost item]:[Cost item]]&" - consumer data right allowance",Calc_CPI_1[[Cost item]:[Cost item]],0),1),0)+ INDEX(Input_ForRateCalc[],MATCH(1,(Calc_Retail_1[[#This Row],[Cost item]:[Cost item]]&" - base"=Input_ForRateCalc[[Cost item]:[Cost item]])*(Calc_Retail_1[[#This Row],[Customer type]]=Input_ForRateCalc[Customer type]),0),MATCH($D$5,Inputs!$C$15:$AZ$15,0))+ INDEX(Input_ForRateCalc[],MATCH(Calc_Retail_1[[#This Row],[Cost item]:[Cost item]]&" - 5 min settlement allowance",Input_ForRateCalc[[Cost item]:[Cost item]],0),MATCH($D$5,Inputs!$C$15:$AZ$15,0))+ INDEX(Input_ForRateCalc[],MATCH(Calc_Retail_1[[#This Row],[Cost item]:[Cost item]]&" - regulatory cost allowance",Input_ForRateCalc[[Cost item]:[Cost item]],0),MATCH($D$5,Inputs!$C$15:$AZ$15,0))+ INDEX(Input_ForRateCalc[],MATCH(Calc_Retail_1[[#This Row],[Cost item]:[Cost item]]&" - consumer data right allowance",Input_ForRateCalc[[Cost item]:[Cost item]],0),MATCH($D$5,Inputs!$C$15:$AZ$15,0))+ INDEX(Input_ForRateCalc[],MATCH(Calc_Retail_1[[#This Row],[Cost item]:[Cost item]]&" - bad debt allowance",Input_ForRateCalc[[Cost item]:[Cost item]],0),MATCH($D$5,Inputs!$C$15:$AZ$15,0)),"-") -> 146.1076685 | H185: =IFERROR( IFERROR(INDEX(Calc_CPI_1[[CPI uplift factor]:[CPI uplift factor]],MATCH(Calc_Retail_1[[#This Row],[Cost item]:[Cost item]]&" - base",Calc_CPI_1[[Cost item]:[Cost item]],0),1),0)+ IFERROR(INDEX(Calc_CPI_1[[CPI uplift factor]:[CPI uplift factor]],MATCH(Calc_Retail_1[[#This Row],[Cost item]:[Cost item]]&" - consumer data right allowance",Calc_CPI_1[[Cost item]:[Cost item]],0),1),0)+ INDEX(Input_ForRateCalc[],MATCH(1,(Calc_Retail_1[[#This Row],[Cost item]:[Cost item]]&" - base"=Input_ForRateCalc[[Cost item]:[Cost item]])*(Calc_Retail_1[[#This Row],[Customer type]]=Input_ForRateCalc[Customer type]),0),MATCH($D$5,Inputs!$C$15:$AZ$15,0))+ INDEX(Input_ForRateCalc[],MATCH(Calc_Retail_1[[#This Row],[Cost item]:[Cost item]]&" - 5 min settlement allowance",Input_ForRateCalc[[Cost item]:[Cost item]],0),MATCH($D$5,Inputs!$C$15:$AZ$15,0))+ INDEX(Input_ForRateCalc[],MATCH(Calc_Retail_1[[#This Row],[Cost item]:[Cost item]]&" - regulatory cost allowance",Input_ForRateCalc[[Cost item]:[Cost item]],0),MATCH($D$5,Inputs!$C$15:$AZ$15,0))+ INDEX(Input_ForRateCalc[],MATCH(Calc_Retail_1[[#This Row],[Cost item]:[Cost item]]&" - consumer data right allowance",Input_ForRateCalc[[Cost item]:[Cost item]],0),MATCH($D$5,Inputs!$C$15:$AZ$15,0))+ INDEX(Input_ForRateCalc[],MATCH(Calc_Retail_1[[#This Row],[Cost item]:[Cost item]]&" - bad debt allowance",Input_ForRateCalc[[Cost item]:[Cost item]],0),MATCH($D$5,Inputs!$C$15:$AZ$15,0)),"-") -> 146.1076685 | I185: =IFERROR( IFERROR(INDEX(Calc_CPI_1[[CPI uplift factor]:[CPI uplift factor]],MATCH(Calc_Retail_1[[#This Row],[Cost item]:[Cost item]]&" - base",Calc_CPI_1[[Cost item]:[Cost item]],0),1),0)+ IFERROR(INDEX(Calc_CPI_1[[CPI uplift factor]:[CPI uplift factor]],MATCH(Calc_Retail_1[[#This Row],[Cost item]:[Cost item]]&" - consumer data right allowance",Calc_CPI_1[[Cost item]:[Cost item]],0),1),0)+ INDEX(Input_ForRateCalc[],MATCH(1,(Calc_Retail_1[[#This Row],[Cost item]:[Cost item]]&" - base"=Input_ForRateCalc[[Cost item]:[Cost item]])*(Calc_Retail_1[[#This Row],[Customer type]]=Input_ForRateCalc[Customer type]),0),MATCH($D$5,Inputs!$C$15:$AZ$15,0))+ INDEX(Input_ForRateCalc[],MATCH(Calc_Retail_1[[#This Row],[Cost item]:[Cost item]]&" - 5 min settlement allowance",Input_ForRateCalc[[Cost item]:[Cost item]],0),MATCH($D$5,Inputs!$C$15:$AZ$15,0))+ INDEX(Input_ForRateCalc[],MATCH(Calc_Retail_1[[#This Row],[Cost item]:[Cost item]]&" - regulatory cost allowance",Input_ForRateCalc[[Cost item]:[Cost item]],0),MATCH($D$5,Inputs!$C$15:$AZ$15,0))+ INDEX(Input_ForRateCalc[],MATCH(Calc_Retail_1[[#This Row],[Cost item]:[Cost item]]&" - consumer data right allowance",Input_ForRateCalc[[Cost item]:[Cost item]],0),MATCH($D$5,Inputs!$C$15:$AZ$15,0))+ INDEX(Input_ForRateCalc[],MATCH(Calc_Retail_1[[#This Row],[Cost item]:[Cost item]]&" - bad debt allowance",Input_ForRateCalc[[Cost item]:[Cost item]],0),MATCH($D$5,Inputs!$C$15:$AZ$15,0)),"-") -> 146.1076685 | J185: =IFERROR( IFERROR(INDEX(Calc_CPI_1[[CPI uplift factor]:[CPI uplift factor]],MATCH(Calc_Retail_1[[#This Row],[Cost item]:[Cost item]]&" - base",Calc_CPI_1[[Cost item]:[Cost item]],0),1),0)+ IFERROR(INDEX(Calc_CPI_1[[CPI uplift factor]:[CPI uplift factor]],MATCH(Calc_Retail_1[[#This Row],[Cost item]:[Cost item]]&" - consumer data right allowance",Calc_CPI_1[[Cost item]:[Cost item]],0),1),0)+ INDEX(Input_ForRateCalc[],MATCH(1,(Calc_Retail_1[[#This Row],[Cost item]:[Cost item]]&" - base"=Input_ForRateCalc[[Cost item]:[Cost item]])*(Calc_Retail_1[[#This Row],[Customer type]]=Input_ForRateCalc[Customer type]),0),MATCH($D$5,Inputs!$C$15:$AZ$15,0))+ INDEX(Input_ForRateCalc[],MATCH(Calc_Retail_1[[#This Row],[Cost item]:[Cost item]]&" - 5 min settlement allowance",Input_ForRateCalc[[Cost item]:[Cost item]],0),MATCH($D$5,Inputs!$C$15:$AZ$15,0))+ INDEX(Input_ForRateCalc[],MATCH(Calc_Retail_1[[#This Row],[Cost item]:[Cost item]]&" - regulatory cost allowance",Input_ForRateCalc[[Cost item]:[Cost item]],0),MATCH($D$5,Inputs!$C$15:$AZ$15,0))+ INDEX(Input_ForRateCalc[],MATCH(Calc_Retail_1[[#This Row],[Cost item]:[Cost item]]&" - consumer data right allowance",Input_ForRateCalc[[Cost item]:[Cost item]],0),MATCH($D$5,Inputs!$C$15:$AZ$15,0))+ INDEX(Input_ForRateCalc[],MATCH(Calc_Retail_1[[#This Row],[Cost item]:[Cost item]]&" - bad debt allowance",Input_ForRateCalc[[Cost item]:[Cost item]],0),MATCH($D$5,Inputs!$C$15:$AZ$15,0)),"-") -> 146.1076685 | K185: =IFERROR( IFERROR(INDEX(Calc_CPI_1[[CPI uplift factor]:[CPI uplift factor]],MATCH(Calc_Retail_1[[#This Row],[Cost item]:[Cost item]]&" - base",Calc_CPI_1[[Cost item]:[Cost item]],0),1),0)+ IFERROR(INDEX(Calc_CPI_1[[CPI uplift factor]:[CPI uplift factor]],MATCH(Calc_Retail_1[[#This Row],[Cost item]:[Cost item]]&" - consumer data right allowance",Calc_CPI_1[[Cost item]:[Cost item]],0),1),0)+ INDEX(Input_ForRateCalc[],MATCH(1,(Calc_Retail_1[[#This Row],[Cost item]:[Cost item]]&" - base"=Input_ForRateCalc[[Cost item]:[Cost item]])*(Calc_Retail_1[[#This Row],[Customer type]]=Input_ForRateCalc[Customer type]),0),MATCH($D$5,Inputs!$C$15:$AZ$15,0))+ INDEX(Input_ForRateCalc[],MATCH(Calc_Retail_1[[#This Row],[Cost item]:[Cost item]]&" - 5 min settlement allowance",Input_ForRateCalc[[Cost item]:[Cost item]],0),MATCH($D$5,Inputs!$C$15:$AZ$15,0))+ INDEX(Input_ForRateCalc[],MATCH(Calc_Retail_1[[#This Row],[Cost item]:[Cost item]]&" - regulatory cost allowance",Input_ForRateCalc[[Cost item]:[Cost item]],0),MATCH($D$5,Inputs!$C$15:$AZ$15,0))+ INDEX(Input_ForRateCalc[],MATCH(Calc_Retail_1[[#This Row],[Cost item]:[Cost item]]&" - consumer data right allowance",Input_ForRateCalc[[Cost item]:[Cost item]],0),MATCH($D$5,Inputs!$C$15:$AZ$15,0))+ INDEX(Input_ForRateCalc[],MATCH(Calc_Retail_1[[#This Row],[Cost item]:[Cost item]]&" - bad debt allowance",Input_ForRateCalc[[Cost item]:[Cost item]],0),MATCH($D$5,Inputs!$C$15:$AZ$15,0)),"-") -> 146.1076685
C186: Retail operating cost | D186: Fixed | E186: $ | F186: Small business | G186: =IFERROR( IFERROR(INDEX(Calc_CPI_1[[CPI uplift factor]:[CPI uplift factor]],MATCH(1,(Calc_Retail_1[[#This Row],[Cost item]:[Cost item]]&" - base"=Calc_CPI_1[Cost item])*(Calc_Retail_1[[#This Row],[Customer type]]=Calc_CPI_1[Customer type]),0),1),0)+ IFERROR(INDEX(Calc_CPI_1[[CPI uplift factor]:[CPI uplift factor]],MATCH(Calc_Retail_1[[#This Row],[Cost item]:[Cost item]]&" - consumer data right allowance",Calc_CPI_1[[Cost item]:[Cost item]],0),1),0)+ INDEX(Input_ForRateCalc[],MATCH(1,(Calc_Retail_1[[#This Row],[Cost item]:[Cost item]]&" - base"=Input_ForRateCalc[[Cost item]:[Cost item]])*(Calc_Retail_1[[#This Row],[Customer type]]=Input_ForRateCalc[Customer type]),0),MATCH($D$5,Inputs!$C$15:$AZ$15,0))+ INDEX(Input_ForRateCalc[],MATCH(Calc_Retail_1[[#This Row],[Cost item]:[Cost item]]&" - 5 min settlement allowance",Input_ForRateCalc[[Cost item]:[Cost item]],0),MATCH($D$5,Inputs!$C$15:$AZ$15,0))+ INDEX(Input_ForRateCalc[],MATCH(Calc_Retail_1[[#This Row],[Cost item]:[Cost item]]&" - regulatory cost allowance",Input_ForRateCalc[[Cost item]:[Cost item]],0),MATCH($D$5,Inputs!$C$15:$AZ$15,0))+ INDEX(Input_ForRateCalc[],MATCH(Calc_Retail_1[[#This Row],[Cost item]:[Cost item]]&" - consumer data right allowance",Input_ForRateCalc[[Cost item]:[Cost item]],0),MATCH($D$5,Inputs!$C$15:$AZ$15,0))+ INDEX(Input_ForRateCalc[],MATCH(Calc_Retail_1[[#This Row],[Cost item]:[Cost item]]&" - bad debt allowance",Input_ForRateCalc[[Cost item]:[Cost item]],0),MATCH($D$5,Inputs!$C$15:$AZ$15,0)),"-") -> 146.1076685 | H186: =IFERROR( IFERROR(INDEX(Calc_CPI_1[[CPI uplift factor]:[CPI uplift factor]],MATCH(1,(Calc_Retail_1[[#This Row],[Cost item]:[Cost item]]&" - base"=Calc_CPI_1[Cost item])*(Calc_Retail_1[[#This Row],[Customer type]]=Calc_CPI_1[Customer type]),0),1),0)+ IFERROR(INDEX(Calc_CPI_1[[CPI uplift factor]:[CPI uplift factor]],MATCH(Calc_Retail_1[[#This Row],[Cost item]:[Cost item]]&" - consumer data right allowance",Calc_CPI_1[[Cost item]:[Cost item]],0),1),0)+ INDEX(Input_ForRateCalc[],MATCH(1,(Calc_Retail_1[[#This Row],[Cost item]:[Cost item]]&" - base"=Input_ForRateCalc[[Cost item]:[Cost item]])*(Calc_Retail_1[[#This Row],[Customer type]]=Input_ForRateCalc[Customer type]),0),MATCH($D$5,Inputs!$C$15:$AZ$15,0))+ INDEX(Input_ForRateCalc[],MATCH(Calc_Retail_1[[#This Row],[Cost item]:[Cost item]]&" - 5 min settlement allowance",Input_ForRateCalc[[Cost item]:[Cost item]],0),MATCH($D$5,Inputs!$C$15:$AZ$15,0))+ INDEX(Input_ForRateCalc[],MATCH(Calc_Retail_1[[#This Row],[Cost item]:[Cost item]]&" - regulatory cost allowance",Input_ForRateCalc[[Cost item]:[Cost item]],0),MATCH($D$5,Inputs!$C$15:$AZ$15,0))+ INDEX(Input_ForRateCalc[],MATCH(Calc_Retail_1[[#This Row],[Cost item]:[Cost item]]&" - consumer data right allowance",Input_ForRateCalc[[Cost item]:[Cost item]],0),MATCH($D$5,Inputs!$C$15:$AZ$15,0))+ INDEX(Input_ForRateCalc[],MATCH(Calc_Retail_1[[#This Row],[Cost item]:[Cost item]]&" - bad debt allowance",Input_ForRateCalc[[Cost item]:[Cost item]],0),MATCH($D$5,Inputs!$C$15:$AZ$15,0)),"-") -> 146.1076685 | I186: =IFERROR( IFERROR(INDEX(Calc_CPI_1[[CPI uplift factor]:[CPI uplift factor]],MATCH(1,(Calc_Retail_1[[#This Row],[Cost item]:[Cost item]]&" - base"=Calc_CPI_1[Cost item])*(Calc_Retail_1[[#This Row],[Customer type]]=Calc_CPI_1[Customer type]),0),1),0)+ IFERROR(INDEX(Calc_CPI_1[[CPI uplift factor]:[CPI uplift factor]],MATCH(Calc_Retail_1[[#This Row],[Cost item]:[Cost item]]&" - consumer data right allowance",Calc_CPI_1[[Cost item]:[Cost item]],0),1),0)+ INDEX(Input_ForRateCalc[],MATCH(1,(Calc_Retail_1[[#This Row],[Cost item]:[Cost item]]&" - base"=Input_ForRateCalc[[Cost item]:[Cost item]])*(Calc_Retail_1[[#This Row],[Customer type]]=Input_ForRateCalc[Customer type]),0),MATCH($D$5,Inputs!$C$15:$AZ$15,0))+ INDEX(Input_ForRateCalc[],MATCH(Calc_Retail_1[[#This Row],[Cost item]:[Cost item]]&" - 5 min settlement allowance",Input_ForRateCalc[[Cost item]:[Cost item]],0),MATCH($D$5,Inputs!$C$15:$AZ$15,0))+ INDEX(Input_ForRateCalc[],MATCH(Calc_Retail_1[[#This Row],[Cost item]:[Cost item]]&" - regulatory cost allowance",Input_ForRateCalc[[Cost item]:[Cost item]],0),MATCH($D$5,Inputs!$C$15:$AZ$15,0))+ INDEX(Input_ForRateCalc[],MATCH(Calc_Retail_1[[#This Row],[Cost item]:[Cost item]]&" - consumer data right allowance",Input_ForRateCalc[[Cost item]:[Cost item]],0),MATCH($D$5,Inputs!$C$15:$AZ$15,0))+ INDEX(Input_ForRateCalc[],MATCH(Calc_Retail_1[[#This Row],[Cost item]:[Cost item]]&" - bad debt allowance",Input_ForRateCalc[[Cost item]:[Cost item]],0),MATCH($D$5,Inputs!$C$15:$AZ$15,0)),"-") -> 146.1076685 | J186: =IFERROR( IFERROR(INDEX(Calc_CPI_1[[CPI uplift factor]:[CPI uplift factor]],MATCH(1,(Calc_Retail_1[[#This Row],[Cost item]:[Cost item]]&" - base"=Calc_CPI_1[Cost item])*(Calc_Retail_1[[#This Row],[Customer type]]=Calc_CPI_1[Customer type]),0),1),0)+ IFERROR(INDEX(Calc_CPI_1[[CPI uplift factor]:[CPI uplift factor]],MATCH(Calc_Retail_1[[#This Row],[Cost item]:[Cost item]]&" - consumer data right allowance",Calc_CPI_1[[Cost item]:[Cost item]],0),1),0)+ INDEX(Input_ForRateCalc[],MATCH(1,(Calc_Retail_1[[#This Row],[Cost item]:[Cost item]]&" - base"=Input_ForRateCalc[[Cost item]:[Cost item]])*(Calc_Retail_1[[#This Row],[Customer type]]=Input_ForRateCalc[Customer type]),0),MATCH($D$5,Inputs!$C$15:$AZ$15,0))+ INDEX(Input_ForRateCalc[],MATCH(Calc_Retail_1[[#This Row],[Cost item]:[Cost item]]&" - 5 min settlement allowance",Input_ForRateCalc[[Cost item]:[Cost item]],0),MATCH($D$5,Inputs!$C$15:$AZ$15,0))+ INDEX(Input_ForRateCalc[],MATCH(Calc_Retail_1[[#This Row],[Cost item]:[Cost item]]&" - regulatory cost allowance",Input_ForRateCalc[[Cost item]:[Cost item]],0),MATCH($D$5,Inputs!$C$15:$AZ$15,0))+ INDEX(Input_ForRateCalc[],MATCH(Calc_Retail_1[[#This Row],[Cost item]:[Cost item]]&" - consumer data right allowance",Input_ForRateCalc[[Cost item]:[Cost item]],0),MATCH($D$5,Inputs!$C$15:$AZ$15,0))+ INDEX(Input_ForRateCalc[],MATCH(Calc_Retail_1[[#This Row],[Cost item]:[Cost item]]&" - bad debt allowance",Input_ForRateCalc[[Cost item]:[Cost item]],0),MATCH($D$5,Inputs!$C$15:$AZ$15,0)),"-") -> 146.1076685 | K186: =IFERROR( IFERROR(INDEX(Calc_CPI_1[[CPI uplift factor]:[CPI uplift factor]],MATCH(1,(Calc_Retail_1[[#This Row],[Cost item]:[Cost item]]&" - base"=Calc_CPI_1[Cost item])*(Calc_Retail_1[[#This Row],[Customer type]]=Calc_CPI_1[Customer type]),0),1),0)+ IFERROR(INDEX(Calc_CPI_1[[CPI uplift factor]:[CPI uplift factor]],MATCH(Calc_Retail_1[[#This Row],[Cost item]:[Cost item]]&" - consumer data right allowance",Calc_CPI_1[[Cost item]:[Cost item]],0),1),0)+ INDEX(Input_ForRateCalc[],MATCH(1,(Calc_Retail_1[[#This Row],[Cost item]:[Cost item]]&" - base"=Input_ForRateCalc[[Cost item]:[Cost item]])*(Calc_Retail_1[[#This Row],[Customer type]]=Input_ForRateCalc[Customer type]),0),MATCH($D$5,Inputs!$C$15:$AZ$15,0))+ INDEX(Input_ForRateCalc[],MATCH(Calc_Retail_1[[#This Row],[Cost item]:[Cost item]]&" - 5 min settlement allowance",Input_ForRateCalc[[Cost item]:[Cost item]],0),MATCH($D$5,Inputs!$C$15:$AZ$15,0))+ INDEX(Input_ForRateCalc[],MATCH(Calc_Retail_1[[#This Row],[Cost item]:[Cost item]]&" - regulatory cost allowance",Input_ForRateCalc[[Cost item]:[Cost item]],0),MATCH($D$5,Inputs!$C$15:$AZ$15,0))+ INDEX(Input_ForRateCalc[],MATCH(Calc_Retail_1[[#This Row],[Cost item]:[Cost item]]&" - consumer data right allowance",Input_ForRateCalc[[Cost item]:[Cost item]],0),MATCH($D$5,Inputs!$C$15:$AZ$15,0))+ INDEX(Input_ForRateCalc[],MATCH(Calc_Retail_1[[#This Row],[Cost item]:[Cost item]]&" - bad debt allowance",Input_ForRateCalc[[Cost item]:[Cost item]],0),MATCH($D$5,Inputs!$C$15:$AZ$15,0)),"-") -> 146.1076685
C187: Customer acquisition and retention cost | D187: Fixed | E187: $ | F187: All | G187: =IFERROR( IFERROR(INDEX(Calc_CPI_1[[CPI uplift factor]:[CPI uplift factor]],MATCH(Calc_Retail_1[[#This Row],[Cost item]:[Cost item]],Calc_CPI_1[[Cost item]:[Cost item]],0),1),0)+ INDEX(Input_ForRateCalc[],MATCH(Calc_Retail_1[[#This Row],[Cost item]:[Cost item]],Input_ForRateCalc[[Cost item]:[Cost item]],0),MATCH($D$5,Inputs!$C$15:$AZ$15,0)),"-") -> 46.14285714 | H187: =IFERROR( IFERROR(INDEX(Calc_CPI_1[[CPI uplift factor]:[CPI uplift factor]],MATCH(Calc_Retail_1[[#This Row],[Cost item]:[Cost item]],Calc_CPI_1[[Cost item]:[Cost item]],0),1),0)+ INDEX(Input_ForRateCalc[],MATCH(Calc_Retail_1[[#This Row],[Cost item]:[Cost item]],Input_ForRateCalc[[Cost item]:[Cost item]],0),MATCH($D$5,Inputs!$C$15:$AZ$15,0)),"-") -> 46.14285714 | I187: =IFERROR( IFERROR(INDEX(Calc_CPI_1[[CPI uplift factor]:[CPI uplift factor]],MATCH(Calc_Retail_1[[#This Row],[Cost item]:[Cost item]],Calc_CPI_1[[Cost item]:[Cost item]],0),1),0)+ INDEX(Input_ForRateCalc[],MATCH(Calc_Retail_1[[#This Row],[Cost item]:[Cost item]],Input_ForRateCalc[[Cost item]:[Cost item]],0),MATCH($D$5,Inputs!$C$15:$AZ$15,0)),"-") -> 46.14285714 | J187: =IFERROR( IFERROR(INDEX(Calc_CPI_1[[CPI uplift factor]:[CPI uplift factor]],MATCH(Calc_Retail_1[[#This Row],[Cost item]:[Cost item]],Calc_CPI_1[[Cost item]:[Cost item]],0),1),0)+ INDEX(Input_ForRateCalc[],MATCH(Calc_Retail_1[[#This Row],[Cost item]:[Cost item]],Input_ForRateCalc[[Cost item]:[Cost item]],0),MATCH($D$5,Inputs!$C$15:$AZ$15,0)),"-") -> 46.14285714 | K187: =IFERROR( IFERROR(INDEX(Calc_CPI_1[[CPI uplift factor]:[CPI uplift factor]],MATCH(Calc_Retail_1[[#This Row],[Cost item]:[Cost item]],Calc_CPI_1[[Cost item]:[Cost item]],0),1),0)+ INDEX(Input_ForRateCalc[],MATCH(Calc_Retail_1[[#This Row],[Cost item]:[Cost item]],Input_ForRateCalc[[Cost item]:[Cost item]],0),MATCH($D$5,Inputs!$C$15:$AZ$15,0)),"-") -> 46.14285714
B189: =MAX(B$3:B188)+0.01 -> 5.04 | C189: Other
C191: Cost item | D191: Fixed/Variable | E191: Unit | F191: Customer type | G191: Ausnet | H191: Citipower | I191: Jemena | J191: Powercor | K191: United Energy
C192: ESC licence fees | D192: =_xlfn.XLOOKUP(Calc_OtherCosts_1[[#This Row],[Cost item]],Input_ForRateCalc[Cost item],Input_ForRateCalc[Fixed/Variable]) -> Fixed | E192: =_xlfn.XLOOKUP(Calc_OtherCosts_1[[#This Row],[Cost item]],Input_ForRateCalc[Cost item],Input_ForRateCalc[Unit]) -> $ | F192: All | G192: =IFERROR( IF(Calc_OtherCosts_1[[#This Row],[Fixed/Variable]:[Fixed/Variable]]="Fixed", (IFERROR(INDEX(Calc_CPI_1[[CPI uplift factor]:[CPI uplift factor]],MATCH(Calc_OtherCosts_1[[#This Row],[Cost item]:[Cost item]],Calc_CPI_1[[Cost item]:[Cost item]],0),1),0)+ INDEX(Input_ForRateCalc[],MATCH(Calc_OtherCosts_1[[#This Row],[Cost item]:[Cost item]],Input_ForRateCalc[[Cost item]:[Cost item]],0),MATCH($D$5,Inputs!$C$15:$AZ$15,0)))*IF(Calc_OtherCosts_1[[#This Row],[Unit]:[Unit]]="$",1,IF(Calc_OtherCosts_1[[#This Row],[Unit]:[Unit]]="$/week",WiY)), (IFERROR(INDEX(Calc_CPI_1[[CPI uplift factor]:[CPI uplift factor]],MATCH(Calc_OtherCosts_1[[#This Row],[Cost item]:[Cost item]],Calc_CPI_1[[Cost item]:[Cost item]],0),1),0)+ INDEX(Input_ForRateCalc[],MATCH(Calc_OtherCosts_1[[#This Row],[Cost item]:[Cost item]],Input_ForRateCalc[[Cost item]:[Cost item]],0),MATCH($D$5,Inputs!$C$15:$AZ$15,0)))/1000),"-") -> 2.106221214 | H192: =IFERROR( IF(Calc_OtherCosts_1[[#This Row],[Fixed/Variable]:[Fixed/Variable]]="Fixed", (IFERROR(INDEX(Calc_CPI_1[[CPI uplift factor]:[CPI uplift factor]],MATCH(Calc_OtherCosts_1[[#This Row],[Cost item]:[Cost item]],Calc_CPI_1[[Cost item]:[Cost item]],0),1),0)+ INDEX(Input_ForRateCalc[],MATCH(Calc_OtherCosts_1[[#This Row],[Cost item]:[Cost item]],Input_ForRateCalc[[Cost item]:[Cost item]],0),MATCH($D$5,Inputs!$C$15:$AZ$15,0)))*IF(Calc_OtherCosts_1[[#This Row],[Unit]:[Unit]]="$",1,IF(Calc_OtherCosts_1[[#This Row],[Unit]:[Unit]]="$/week",WiY)), (IFERROR(INDEX(Calc_CPI_1[[CPI uplift factor]:[CPI uplift factor]],MATCH(Calc_OtherCosts_1[[#This Row],[Cost item]:[Cost item]],Calc_CPI_1[[Cost item]:[Cost item]],0),1),0)+ INDEX(Input_ForRateCalc[],MATCH(Calc_OtherCosts_1[[#This Row],[Cost item]:[Cost item]],Input_ForRateCalc[[Cost item]:[Cost item]],0),MATCH($D$5,Inputs!$C$15:$AZ$15,0)))/1000),"-") -> 2.106221214 | I192: =IFERROR( IF(Calc_OtherCosts_1[[#This Row],[Fixed/Variable]:[Fixed/Variable]]="Fixed", (IFERROR(INDEX(Calc_CPI_1[[CPI uplift factor]:[CPI uplift factor]],MATCH(Calc_OtherCosts_1[[#This Row],[Cost item]:[Cost item]],Calc_CPI_1[[Cost item]:[Cost item]],0),1),0)+ INDEX(Input_ForRateCalc[],MATCH(Calc_OtherCosts_1[[#This Row],[Cost item]:[Cost item]],Input_ForRateCalc[[Cost item]:[Cost item]],0),MATCH($D$5,Inputs!$C$15:$AZ$15,0)))*IF(Calc_OtherCosts_1[[#This Row],[Unit]:[Unit]]="$",1,IF(Calc_OtherCosts_1[[#This Row],[Unit]:[Unit]]="$/week",WiY)), (IFERROR(INDEX(Calc_CPI_1[[CPI uplift factor]:[CPI uplift factor]],MATCH(Calc_OtherCosts_1[[#This Row],[Cost item]:[Cost item]],Calc_CPI_1[[Cost item]:[Cost item]],0),1),0)+ INDEX(Input_ForRateCalc[],MATCH(Calc_OtherCosts_1[[#This Row],[Cost item]:[Cost item]],Input_ForRateCalc[[Cost item]:[Cost item]],0),MATCH($D$5,Inputs!$C$15:$AZ$15,0)))/1000),"-") -> 2.106221214 | J192: =IFERROR( IF(Calc_OtherCosts_1[[#This Row],[Fixed/Variable]:[Fixed/Variable]]="Fixed", (IFERROR(INDEX(Calc_CPI_1[[CPI uplift factor]:[CPI uplift factor]],MATCH(Calc_OtherCosts_1[[#This Row],[Cost item]:[Cost item]],Calc_CPI_1[[Cost item]:[Cost item]],0),1),0)+ INDEX(Input_ForRateCalc[],MATCH(Calc_OtherCosts_1[[#This Row],[Cost item]:[Cost item]],Input_ForRateCalc[[Cost item]:[Cost item]],0),MATCH($D$5,Inputs!$C$15:$AZ$15,0)))*IF(Calc_OtherCosts_1[[#This Row],[Unit]:[Unit]]="$",1,IF(Calc_OtherCosts_1[[#This Row],[Unit]:[Unit]]="$/week",WiY)), (IFERROR(INDEX(Calc_CPI_1[[CPI uplift factor]:[CPI uplift factor]],MATCH(Calc_OtherCosts_1[[#This Row],[Cost item]:[Cost item]],Calc_CPI_1[[Cost item]:[Cost item]],0),1),0)+ INDEX(Input_ForRateCalc[],MATCH(Calc_OtherCosts_1[[#This Row],[Cost item]:[Cost item]],Input_ForRateCalc[[Cost item]:[Cost item]],0),MATCH($D$5,Inputs!$C$15:$AZ$15,0)))/1000),"-") -> 2.106221214 | K192: =IFERROR( IF(Calc_OtherCosts_1[[#This Row],[Fixed/Variable]:[Fixed/Variable]]="Fixed", (IFERROR(INDEX(Calc_CPI_1[[CPI uplift factor]:[CPI uplift factor]],MATCH(Calc_OtherCosts_1[[#This Row],[Cost item]:[Cost item]],Calc_CPI_1[[Cost item]:[Cost item]],0),1),0)+ INDEX(Input_ForRateCalc[],MATCH(Calc_OtherCosts_1[[#This Row],[Cost item]:[Cost item]],Input_ForRateCalc[[Cost item]:[Cost item]],0),MATCH($D$5,Inputs!$C$15:$AZ$15,0)))*IF(Calc_OtherCosts_1[[#This Row],[Unit]:[Unit]]="$",1,IF(Calc_OtherCosts_1[[#This Row],[Unit]:[Unit]]="$/week",WiY)), (IFERROR(INDEX(Calc_CPI_1[[CPI uplift factor]:[CPI uplift factor]],MATCH(Calc_OtherCosts_1[[#This Row],[Cost item]:[Cost item]],Calc_CPI_1[[Cost item]:[Cost item]],0),1),0)+ INDEX(Input_ForRateCalc[],MATCH(Calc_OtherCosts_1[[#This Row],[Cost item]:[Cost item]],Input_ForRateCalc[[Cost item]:[Cost item]],0),MATCH($D$5,Inputs!$C$15:$AZ$15,0)))/1000),"-") -> 2.106221214
C193: Reliability and emergency reserve trader (RERT) | D193: =_xlfn.XLOOKUP(Calc_OtherCosts_1[[#This Row],[Cost item]],Input_ForRateCalc[Cost item],Input_ForRateCalc[Fixed/Variable]) -> Variable | E193: $/kWh | F193: All | G193: =IFERROR( IF(Calc_OtherCosts_1[[#This Row],[Fixed/Variable]:[Fixed/Variable]]="Fixed", (IFERROR(INDEX(Calc_CPI_1[[CPI uplift factor]:[CPI uplift factor]],MATCH(Calc_OtherCosts_1[[#This Row],[Cost item]:[Cost item]],Calc_CPI_1[[Cost item]:[Cost item]],0),1),0)+ INDEX(Input_ForRateCalc[],MATCH(Calc_OtherCosts_1[[#This Row],[Cost item]:[Cost item]],Input_ForRateCalc[[Cost item]:[Cost item]],0),MATCH($D$5,Inputs!$C$15:$AZ$15,0)))*IF(Calc_OtherCosts_1[[#This Row],[Unit]:[Unit]]="$",1,IF(Calc_OtherCosts_1[[#This Row],[Unit]:[Unit]]="$/week",WiY)), (IFERROR(INDEX(Calc_CPI_1[[CPI uplift factor]:[CPI uplift factor]],MATCH(Calc_OtherCosts_1[[#This Row],[Cost item]:[Cost item]],Calc_CPI_1[[Cost item]:[Cost item]],0),1),0)+ INDEX(Input_ForRateCalc[],MATCH(Calc_OtherCosts_1[[#This Row],[Cost item]:[Cost item]],Input_ForRateCalc[[Cost item]:[Cost item]],0),MATCH($D$5,Inputs!$C$15:$AZ$15,0)))/1000),"-") -> 0.0003810620036 | H193: =IFERROR( IF(Calc_OtherCosts_1[[#This Row],[Fixed/Variable]:[Fixed/Variable]]="Fixed", (IFERROR(INDEX(Calc_CPI_1[[CPI uplift factor]:[CPI uplift factor]],MATCH(Calc_OtherCosts_1[[#This Row],[Cost item]:[Cost item]],Calc_CPI_1[[Cost item]:[Cost item]],0),1),0)+ INDEX(Input_ForRateCalc[],MATCH(Calc_OtherCosts_1[[#This Row],[Cost item]:[Cost item]],Input_ForRateCalc[[Cost item]:[Cost item]],0),MATCH($D$5,Inputs!$C$15:$AZ$15,0)))*IF(Calc_OtherCosts_1[[#This Row],[Unit]:[Unit]]="$",1,IF(Calc_OtherCosts_1[[#This Row],[Unit]:[Unit]]="$/week",WiY)), (IFERROR(INDEX(Calc_CPI_1[[CPI uplift factor]:[CPI uplift factor]],MATCH(Calc_OtherCosts_1[[#This Row],[Cost item]:[Cost item]],Calc_CPI_1[[Cost item]:[Cost item]],0),1),0)+ INDEX(Input_ForRateCalc[],MATCH(Calc_OtherCosts_1[[#This Row],[Cost item]:[Cost item]],Input_ForRateCalc[[Cost item]:[Cost item]],0),MATCH($D$5,Inputs!$C$15:$AZ$15,0)))/1000),"-") -> 0.0003810620036 | I193: =IFERROR( IF(Calc_OtherCosts_1[[#This Row],[Fixed/Variable]:[Fixed/Variable]]="Fixed", (IFERROR(INDEX(Calc_CPI_1[[CPI uplift factor]:[CPI uplift factor]],MATCH(Calc_OtherCosts_1[[#This Row],[Cost item]:[Cost item]],Calc_CPI_1[[Cost item]:[Cost item]],0),1),0)+ INDEX(Input_ForRateCalc[],MATCH(Calc_OtherCosts_1[[#This Row],[Cost item]:[Cost item]],Input_ForRateCalc[[Cost item]:[Cost item]],0),MATCH($D$5,Inputs!$C$15:$AZ$15,0)))*IF(Calc_OtherCosts_1[[#This Row],[Unit]:[Unit]]="$",1,IF(Calc_OtherCosts_1[[#This Row],[Unit]:[Unit]]="$/week",WiY)), (IFERROR(INDEX(Calc_CPI_1[[CPI uplift factor]:[CPI uplift factor]],MATCH(Calc_OtherCosts_1[[#This Row],[Cost item]:[Cost item]],Calc_CPI_1[[Cost item]:[Cost item]],0),1),0)+ INDEX(Input_ForRateCalc[],MATCH(Calc_OtherCosts_1[[#This Row],[Cost item]:[Cost item]],Input_ForRateCalc[[Cost item]:[Cost item]],0),MATCH($D$5,Inputs!$C$15:$AZ$15,0)))/1000),"-") -> 0.0003810620036 | J193: =IFERROR( IF(Calc_OtherCosts_1[[#This Row],[Fixed/Variable]:[Fixed/Variable]]="Fixed", (IFERROR(INDEX(Calc_CPI_1[[CPI uplift factor]:[CPI uplift factor]],MATCH(Calc_OtherCosts_1[[#This Row],[Cost item]:[Cost item]],Calc_CPI_1[[Cost item]:[Cost item]],0),1),0)+ INDEX(Input_ForRateCalc[],MATCH(Calc_OtherCosts_1[[#This Row],[Cost item]:[Cost item]],Input_ForRateCalc[[Cost item]:[Cost item]],0),MATCH($D$5,Inputs!$C$15:$AZ$15,0)))*IF(Calc_OtherCosts_1[[#This Row],[Unit]:[Unit]]="$",1,IF(Calc_OtherCosts_1[[#This Row],[Unit]:[Unit]]="$/week",WiY)), (IFERROR(INDEX(Calc_CPI_1[[CPI uplift factor]:[CPI uplift factor]],MATCH(Calc_OtherCosts_1[[#This Row],[Cost item]:[Cost item]],Calc_CPI_1[[Cost item]:[Cost item]],0),1),0)+ INDEX(Input_ForRateCalc[],MATCH(Calc_OtherCosts_1[[#This Row],[Cost item]:[Cost item]],Input_ForRateCalc[[Cost item]:[Cost item]],0),MATCH($D$5,Inputs!$C$15:$AZ$15,0)))/1000),"-") -> 0.0003810620036 | K193: =IFERROR( IF(Calc_OtherCosts_1[[#This Row],[Fixed/Variable]:[Fixed/Variable]]="Fixed", (IFERROR(INDEX(Calc_CPI_1[[CPI uplift factor]:[CPI uplift factor]],MATCH(Calc_OtherCosts_1[[#This Row],[Cost item]:[Cost item]],Calc_CPI_1[[Cost item]:[Cost item]],0),1),0)+ INDEX(Input_ForRateCalc[],MATCH(Calc_OtherCosts_1[[#This Row],[Cost item]:[Cost item]],Input_ForRateCalc[[Cost item]:[Cost item]],0),MATCH($D$5,Inputs!$C$15:$AZ$15,0)))*IF(Calc_OtherCosts_1[[#This Row],[Unit]:[Unit]]="$",1,IF(Calc_OtherCosts_1[[#This Row],[Unit]:[Unit]]="$/week",WiY)), (IFERROR(INDEX(Calc_CPI_1[[CPI uplift factor]:[CPI uplift factor]],MATCH(Calc_OtherCosts_1[[#This Row],[Cost item]:[Cost item]],Calc_CPI_1[[Cost item]:[Cost item]],0),1),0)+ INDEX(Input_ForRateCalc[],MATCH(Calc_OtherCosts_1[[#This Row],[Cost item]:[Cost item]],Input_ForRateCalc[[Cost item]:[Cost item]],0),MATCH($D$5,Inputs!$C$15:$AZ$15,0)))/1000),"-") -> 0.0003810620036
C194: Energy Consumers Australia | D194: =_xlfn.XLOOKUP(Calc_OtherCosts_1[[#This Row],[Cost item]],Input_ForRateCalc[Cost item],Input_ForRateCalc[Fixed/Variable]) -> Fixed | E194: =_xlfn.XLOOKUP(Calc_OtherCosts_1[[#This Row],[Cost item]],Input_ForRateCalc[Cost item],Input_ForRateCalc[Unit]) -> $/week | F194: All | G194: =IFERROR( IF(Calc_OtherCosts_1[[#This Row],[Fixed/Variable]:[Fixed/Variable]]="Fixed", (IFERROR(INDEX(Calc_CPI_1[[CPI uplift factor]:[CPI uplift factor]],MATCH(Calc_OtherCosts_1[[#This Row],[Cost item]:[Cost item]],Calc_CPI_1[[Cost item]:[Cost item]],0),1),0)+ INDEX(Input_ForRateCalc[],MATCH(Calc_OtherCosts_1[[#This Row],[Cost item]:[Cost item]],Input_ForRateCalc[[Cost item]:[Cost item]],0),MATCH($D$5,Inputs!$C$15:$AZ$15,0)))*IF(Calc_OtherCosts_1[[#This Row],[Unit]:[Unit]]="$",1,IF(Calc_OtherCosts_1[[#This Row],[Unit]:[Unit]]="$/week",WiY)), (IFERROR(INDEX(Calc_CPI_1[[CPI uplift factor]:[CPI uplift factor]],MATCH(Calc_OtherCosts_1[[#This Row],[Cost item]:[Cost item]],Calc_CPI_1[[Cost item]:[Cost item]],0),1),0)+ INDEX(Input_ForRateCalc[],MATCH(Calc_OtherCosts_1[[#This Row],[Cost item]:[Cost item]],Input_ForRateCalc[[Cost item]:[Cost item]],0),MATCH($D$5,Inputs!$C$15:$AZ$15,0)))/1000),"-") -> 0.7317911071 | H194: =IFERROR( IF(Calc_OtherCosts_1[[#This Row],[Fixed/Variable]:[Fixed/Variable]]="Fixed", (IFERROR(INDEX(Calc_CPI_1[[CPI uplift factor]:[CPI uplift factor]],MATCH(Calc_OtherCosts_1[[#This Row],[Cost item]:[Cost item]],Calc_CPI_1[[Cost item]:[Cost item]],0),1),0)+ INDEX(Input_ForRateCalc[],MATCH(Calc_OtherCosts_1[[#This Row],[Cost item]:[Cost item]],Input_ForRateCalc[[Cost item]:[Cost item]],0),MATCH($D$5,Inputs!$C$15:$AZ$15,0)))*IF(Calc_OtherCosts_1[[#This Row],[Unit]:[Unit]]="$",1,IF(Calc_OtherCosts_1[[#This Row],[Unit]:[Unit]]="$/week",WiY)), (IFERROR(INDEX(Calc_CPI_1[[CPI uplift factor]:[CPI uplift factor]],MATCH(Calc_OtherCosts_1[[#This Row],[Cost item]:[Cost item]],Calc_CPI_1[[Cost item]:[Cost item]],0),1),0)+ INDEX(Input_ForRateCalc[],MATCH(Calc_OtherCosts_1[[#This Row],[Cost item]:[Cost item]],Input_ForRateCalc[[Cost item]:[Cost item]],0),MATCH($D$5,Inputs!$C$15:$AZ$15,0)))/1000),"-") -> 0.7317911071 | I194: =IFERROR( IF(Calc_OtherCosts_1[[#This Row],[Fixed/Variable]:[Fixed/Variable]]="Fixed", (IFERROR(INDEX(Calc_CPI_1[[CPI uplift factor]:[CPI uplift factor]],MATCH(Calc_OtherCosts_1[[#This Row],[Cost item]:[Cost item]],Calc_CPI_1[[Cost item]:[Cost item]],0),1),0)+ INDEX(Input_ForRateCalc[],MATCH(Calc_OtherCosts_1[[#This Row],[Cost item]:[Cost item]],Input_ForRateCalc[[Cost item]:[Cost item]],0),MATCH($D$5,Inputs!$C$15:$AZ$15,0)))*IF(Calc_OtherCosts_1[[#This Row],[Unit]:[Unit]]="$",1,IF(Calc_OtherCosts_1[[#This Row],[Unit]:[Unit]]="$/week",WiY)), (IFERROR(INDEX(Calc_CPI_1[[CPI uplift factor]:[CPI uplift factor]],MATCH(Calc_OtherCosts_1[[#This Row],[Cost item]:[Cost item]],Calc_CPI_1[[Cost item]:[Cost item]],0),1),0)+ INDEX(Input_ForRateCalc[],MATCH(Calc_OtherCosts_1[[#This Row],[Cost item]:[Cost item]],Input_ForRateCalc[[Cost item]:[Cost item]],0),MATCH($D$5,Inputs!$C$15:$AZ$15,0)))/1000),"-") -> 0.7317911071 | J194: =IFERROR( IF(Calc_OtherCosts_1[[#This Row],[Fixed/Variable]:[Fixed/Variable]]="Fixed", (IFERROR(INDEX(Calc_CPI_1[[CPI uplift factor]:[CPI uplift factor]],MATCH(Calc_OtherCosts_1[[#This Row],[Cost item]:[Cost item]],Calc_CPI_1[[Cost item]:[Cost item]],0),1),0)+ INDEX(Input_ForRateCalc[],MATCH(Calc_OtherCosts_1[[#This Row],[Cost item]:[Cost item]],Input_ForRateCalc[[Cost item]:[Cost item]],0),MATCH($D$5,Inputs!$C$15:$AZ$15,0)))*IF(Calc_OtherCosts_1[[#This Row],[Unit]:[Unit]]="$",1,IF(Calc_OtherCosts_1[[#This Row],[Unit]:[Unit]]="$/week",WiY)), (IFERROR(INDEX(Calc_CPI_1[[CPI uplift factor]:[CPI uplift factor]],MATCH(Calc_OtherCosts_1[[#This Row],[Cost item]:[Cost item]],Calc_CPI_1[[Cost item]:[Cost item]],0),1),0)+ INDEX(Input_ForRateCalc[],MATCH(Calc_OtherCosts_1[[#This Row],[Cost item]:[Cost item]],Input_ForRateCalc[[Cost item]:[Cost item]],0),MATCH($D$5,Inputs!$C$15:$AZ$15,0)))/1000),"-") -> 0.7317911071 | K194: =IFERROR( IF(Calc_OtherCosts_1[[#This Row],[Fixed/Variable]:[Fixed/Variable]]="Fixed", (IFERROR(INDEX(Calc_CPI_1[[CPI uplift factor]:[CPI uplift factor]],MATCH(Calc_OtherCosts_1[[#This Row],[Cost item]:[Cost item]],Calc_CPI_1[[Cost item]:[Cost item]],0),1),0)+ INDEX(Input_ForRateCalc[],MATCH(Calc_OtherCosts_1[[#This Row],[Cost item]:[Cost item]],Input_ForRateCalc[[Cost item]:[Cost item]],0),MATCH($D$5,Inputs!$C$15:$AZ$15,0)))*IF(Calc_OtherCosts_1[[#This Row],[Unit]:[Unit]]="$",1,IF(Calc_OtherCosts_1[[#This Row],[Unit]:[Unit]]="$/week",WiY)), (IFERROR(INDEX(Calc_CPI_1[[CPI uplift factor]:[CPI uplift factor]],MATCH(Calc_OtherCosts_1[[#This Row],[Cost item]:[Cost item]],Calc_CPI_1[[Cost item]:[Cost item]],0),1),0)+ INDEX(Input_ForRateCalc[],MATCH(Calc_OtherCosts_1[[#This Row],[Cost item]:[Cost item]],Input_ForRateCalc[[Cost item]:[Cost item]],0),MATCH($D$5,Inputs!$C$15:$AZ$15,0)))/1000),"-") -> 0.7317911071
C195: Full retail competition (FRC) operations | D195: =_xlfn.XLOOKUP(Calc_OtherCosts_1[[#This Row],[Cost item]],Input_ForRateCalc[Cost item],Input_ForRateCalc[Fixed/Variable]) -> Fixed | E195: =_xlfn.XLOOKUP(Calc_OtherCosts_1[[#This Row],[Cost item]],Input_ForRateCalc[Cost item],Input_ForRateCalc[Unit]) -> $/week | F195: All | G195: =IFERROR( IF(Calc_OtherCosts_1[[#This Row],[Fixed/Variable]:[Fixed/Variable]]="Fixed", (IFERROR(INDEX(Calc_CPI_1[[CPI uplift factor]:[CPI uplift factor]],MATCH(Calc_OtherCosts_1[[#This Row],[Cost item]:[Cost item]],Calc_CPI_1[[Cost item]:[Cost item]],0),1),0)+ INDEX(Input_ForRateCalc[],MATCH(Calc_OtherCosts_1[[#This Row],[Cost item]:[Cost item]],Input_ForRateCalc[[Cost item]:[Cost item]],0),MATCH($D$5,Inputs!$C$15:$AZ$15,0)))*IF(Calc_OtherCosts_1[[#This Row],[Unit]:[Unit]]="$",1,IF(Calc_OtherCosts_1[[#This Row],[Unit]:[Unit]]="$/week",WiY)), (IFERROR(INDEX(Calc_CPI_1[[CPI uplift factor]:[CPI uplift factor]],MATCH(Calc_OtherCosts_1[[#This Row],[Cost item]:[Cost item]],Calc_CPI_1[[Cost item]:[Cost item]],0),1),0)+ INDEX(Input_ForRateCalc[],MATCH(Calc_OtherCosts_1[[#This Row],[Cost item]:[Cost item]],Input_ForRateCalc[[Cost item]:[Cost item]],0),MATCH($D$5,Inputs!$C$15:$AZ$15,0)))/1000),"-") -> 1.966518321 | H195: =IFERROR( IF(Calc_OtherCosts_1[[#This Row],[Fixed/Variable]:[Fixed/Variable]]="Fixed", (IFERROR(INDEX(Calc_CPI_1[[CPI uplift factor]:[CPI uplift factor]],MATCH(Calc_OtherCosts_1[[#This Row],[Cost item]:[Cost item]],Calc_CPI_1[[Cost item]:[Cost item]],0),1),0)+ INDEX(Input_ForRateCalc[],MATCH(Calc_OtherCosts_1[[#This Row],[Cost item]:[Cost item]],Input_ForRateCalc[[Cost item]:[Cost item]],0),MATCH($D$5,Inputs!$C$15:$AZ$15,0)))*IF(Calc_OtherCosts_1[[#This Row],[Unit]:[Unit]]="$",1,IF(Calc_OtherCosts_1[[#This Row],[Unit]:[Unit]]="$/week",WiY)), (IFERROR(INDEX(Calc_CPI_1[[CPI uplift factor]:[CPI uplift factor]],MATCH(Calc_OtherCosts_1[[#This Row],[Cost item]:[Cost item]],Calc_CPI_1[[Cost item]:[Cost item]],0),1),0)+ INDEX(Input_ForRateCalc[],MATCH(Calc_OtherCosts_1[[#This Row],[Cost item]:[Cost item]],Input_ForRateCalc[[Cost item]:[Cost item]],0),MATCH($D$5,Inputs!$C$15:$AZ$15,0)))/1000),"-") -> 1.966518321 | I195: =IFERROR( IF(Calc_OtherCosts_1[[#This Row],[Fixed/Variable]:[Fixed/Variable]]="Fixed", (IFERROR(INDEX(Calc_CPI_1[[CPI uplift factor]:[CPI uplift factor]],MATCH(Calc_OtherCosts_1[[#This Row],[Cost item]:[Cost item]],Calc_CPI_1[[Cost item]:[Cost item]],0),1),0)+ INDEX(Input_ForRateCalc[],MATCH(Calc_OtherCosts_1[[#This Row],[Cost item]:[Cost item]],Input_ForRateCalc[[Cost item]:[Cost item]],0),MATCH($D$5,Inputs!$C$15:$AZ$15,0)))*IF(Calc_OtherCosts_1[[#This Row],[Unit]:[Unit]]="$",1,IF(Calc_OtherCosts_1[[#This Row],[Unit]:[Unit]]="$/week",WiY)), (IFERROR(INDEX(Calc_CPI_1[[CPI uplift factor]:[CPI uplift factor]],MATCH(Calc_OtherCosts_1[[#This Row],[Cost item]:[Cost item]],Calc_CPI_1[[Cost item]:[Cost item]],0),1),0)+ INDEX(Input_ForRateCalc[],MATCH(Calc_OtherCosts_1[[#This Row],[Cost item]:[Cost item]],Input_ForRateCalc[[Cost item]:[Cost item]],0),MATCH($D$5,Inputs!$C$15:$AZ$15,0)))/1000),"-") -> 1.966518321 | J195: =IFERROR( IF(Calc_OtherCosts_1[[#This Row],[Fixed/Variable]:[Fixed/Variable]]="Fixed", (IFERROR(INDEX(Calc_CPI_1[[CPI uplift factor]:[CPI uplift factor]],MATCH(Calc_OtherCosts_1[[#This Row],[Cost item]:[Cost item]],Calc_CPI_1[[Cost item]:[Cost item]],0),1),0)+ INDEX(Input_ForRateCalc[],MATCH(Calc_OtherCosts_1[[#This Row],[Cost item]:[Cost item]],Input_ForRateCalc[[Cost item]:[Cost item]],0),MATCH($D$5,Inputs!$C$15:$AZ$15,0)))*IF(Calc_OtherCosts_1[[#This Row],[Unit]:[Unit]]="$",1,IF(Calc_OtherCosts_1[[#This Row],[Unit]:[Unit]]="$/week",WiY)), (IFERROR(INDEX(Calc_CPI_1[[CPI uplift factor]:[CPI uplift factor]],MATCH(Calc_OtherCosts_1[[#This Row],[Cost item]:[Cost item]],Calc_CPI_1[[Cost item]:[Cost item]],0),1),0)+ INDEX(Input_ForRateCalc[],MATCH(Calc_OtherCosts_1[[#This Row],[Cost item]:[Cost item]],Input_ForRateCalc[[Cost item]:[Cost item]],0),MATCH($D$5,Inputs!$C$15:$AZ$15,0)))/1000),"-") -> 1.966518321 | K195: =IFERROR( IF(Calc_OtherCosts_1[[#This Row],[Fixed/Variable]:[Fixed/Variable]]="Fixed", (IFERROR(INDEX(Calc_CPI_1[[CPI uplift factor]:[CPI uplift factor]],MATCH(Calc_OtherCosts_1[[#This Row],[Cost item]:[Cost item]],Calc_CPI_1[[Cost item]:[Cost item]],0),1),0)+ INDEX(Input_ForRateCalc[],MATCH(Calc_OtherCosts_1[[#This Row],[Cost item]:[Cost item]],Input_ForRateCalc[[Cost item]:[Cost item]],0),MATCH($D$5,Inputs!$C$15:$AZ$15,0)))*IF(Calc_OtherCosts_1[[#This Row],[Unit]:[Unit]]="$",1,IF(Calc_OtherCosts_1[[#This Row],[Unit]:[Unit]]="$/week",WiY)), (IFERROR(INDEX(Calc_CPI_1[[CPI uplift factor]:[CPI uplift factor]],MATCH(Calc_OtherCosts_1[[#This Row],[Cost item]:[Cost item]],Calc_CPI_1[[Cost item]:[Cost item]],0),1),0)+ INDEX(Input_ForRateCalc[],MATCH(Calc_OtherCosts_1[[#This Row],[Cost item]:[Cost item]],Input_ForRateCalc[[Cost item]:[Cost item]],0),MATCH($D$5,Inputs!$C$15:$AZ$15,0)))/1000),"-") -> 1.966518321
A196: Section/Item notes (where necessary) | C196: General NEM fees | D196: =_xlfn.XLOOKUP(Calc_OtherCosts_1[[#This Row],[Cost item]],Input_ForRateCalc[Cost item],Input_ForRateCalc[Fixed/Variable]) -> Variable | E196: $/kWh | F196: All | G196: =IFERROR( IF(Calc_OtherCosts_1[[#This Row],[Fixed/Variable]:[Fixed/Variable]]="Fixed", (IFERROR(INDEX(Calc_CPI_1[[CPI uplift factor]:[CPI uplift factor]],MATCH(Calc_OtherCosts_1[[#This Row],[Cost item]:[Cost item]],Calc_CPI_1[[Cost item]:[Cost item]],0),1),0)+ INDEX(Input_ForRateCalc[],MATCH(Calc_OtherCosts_1[[#This Row],[Cost item]:[Cost item]],Input_ForRateCalc[[Cost item]:[Cost item]],0),MATCH($D$5,Inputs!$C$15:$AZ$15,0)))*IF(Calc_OtherCosts_1[[#This Row],[Unit]:[Unit]]="$",1,IF(Calc_OtherCosts_1[[#This Row],[Unit]:[Unit]]="$/week",WiY)), (IFERROR(INDEX(Calc_CPI_1[[CPI uplift factor]:[CPI uplift factor]],MATCH(Calc_OtherCosts_1[[#This Row],[Cost item]:[Cost item]],Calc_CPI_1[[Cost item]:[Cost item]],0),1),0)+ INDEX(Input_ForRateCalc[],MATCH(Calc_OtherCosts_1[[#This Row],[Cost item]:[Cost item]],Input_ForRateCalc[[Cost item]:[Cost item]],0),MATCH($D$5,Inputs!$C$15:$AZ$15,0)))/1000),"-") -> 0.00030853625 | H196: =IFERROR( IF(Calc_OtherCosts_1[[#This Row],[Fixed/Variable]:[Fixed/Variable]]="Fixed", (IFERROR(INDEX(Calc_CPI_1[[CPI uplift factor]:[CPI uplift factor]],MATCH(Calc_OtherCosts_1[[#This Row],[Cost item]:[Cost item]],Calc_CPI_1[[Cost item]:[Cost item]],0),1),0)+ INDEX(Input_ForRateCalc[],MATCH(Calc_OtherCosts_1[[#This Row],[Cost item]:[Cost item]],Input_ForRateCalc[[Cost item]:[Cost item]],0),MATCH($D$5,Inputs!$C$15:$AZ$15,0)))*IF(Calc_OtherCosts_1[[#This Row],[Unit]:[Unit]]="$",1,IF(Calc_OtherCosts_1[[#This Row],[Unit]:[Unit]]="$/week",WiY)), (IFERROR(INDEX(Calc_CPI_1[[CPI uplift factor]:[CPI uplift factor]],MATCH(Calc_OtherCosts_1[[#This Row],[Cost item]:[Cost item]],Calc_CPI_1[[Cost item]:[Cost item]],0),1),0)+ INDEX(Input_ForRateCalc[],MATCH(Calc_OtherCosts_1[[#This Row],[Cost item]:[Cost item]],Input_ForRateCalc[[Cost item]:[Cost item]],0),MATCH($D$5,Inputs!$C$15:$AZ$15,0)))/1000),"-") -> 0.00030853625 | I196: =IFERROR( IF(Calc_OtherCosts_1[[#This Row],[Fixed/Variable]:[Fixed/Variable]]="Fixed", (IFERROR(INDEX(Calc_CPI_1[[CPI uplift factor]:[CPI uplift factor]],MATCH(Calc_OtherCosts_1[[#This Row],[Cost item]:[Cost item]],Calc_CPI_1[[Cost item]:[Cost item]],0),1),0)+ INDEX(Input_ForRateCalc[],MATCH(Calc_OtherCosts_1[[#This Row],[Cost item]:[Cost item]],Input_ForRateCalc[[Cost item]:[Cost item]],0),MATCH($D$5,Inputs!$C$15:$AZ$15,0)))*IF(Calc_OtherCosts_1[[#This Row],[Unit]:[Unit]]="$",1,IF(Calc_OtherCosts_1[[#This Row],[Unit]:[Unit]]="$/week",WiY)), (IFERROR(INDEX(Calc_CPI_1[[CPI uplift factor]:[CPI uplift factor]],MATCH(Calc_OtherCosts_1[[#This Row],[Cost item]:[Cost item]],Calc_CPI_1[[Cost item]:[Cost item]],0),1),0)+ INDEX(Input_ForRateCalc[],MATCH(Calc_OtherCosts_1[[#This Row],[Cost item]:[Cost item]],Input_ForRateCalc[[Cost item]:[Cost item]],0),MATCH($D$5,Inputs!$C$15:$AZ$15,0)))/1000),"-") -> 0.00030853625 | J196: =IFERROR( IF(Calc_OtherCosts_1[[#This Row],[Fixed/Variable]:[Fixed/Variable]]="Fixed", (IFERROR(INDEX(Calc_CPI_1[[CPI uplift factor]:[CPI uplift factor]],MATCH(Calc_OtherCosts_1[[#This Row],[Cost item]:[Cost item]],Calc_CPI_1[[Cost item]:[Cost item]],0),1),0)+ INDEX(Input_ForRateCalc[],MATCH(Calc_OtherCosts_1[[#This Row],[Cost item]:[Cost item]],Input_ForRateCalc[[Cost item]:[Cost item]],0),MATCH($D$5,Inputs!$C$15:$AZ$15,0)))*IF(Calc_OtherCosts_1[[#This Row],[Unit]:[Unit]]="$",1,IF(Calc_OtherCosts_1[[#This Row],[Unit]:[Unit]]="$/week",WiY)), (IFERROR(INDEX(Calc_CPI_1[[CPI uplift factor]:[CPI uplift factor]],MATCH(Calc_OtherCosts_1[[#This Row],[Cost item]:[Cost item]],Calc_CPI_1[[Cost item]:[Cost item]],0),1),0)+ INDEX(Input_ForRateCalc[],MATCH(Calc_OtherCosts_1[[#This Row],[Cost item]:[Cost item]],Input_ForRateCalc[[Cost item]:[Cost item]],0),MATCH($D$5,Inputs!$C$15:$AZ$15,0)))/1000),"-") -> 0.00030853625 | K196: =IFERROR( IF(Calc_OtherCosts_1[[#This Row],[Fixed/Variable]:[Fixed/Variable]]="Fixed", (IFERROR(INDEX(Calc_CPI_1[[CPI uplift factor]:[CPI uplift factor]],MATCH(Calc_OtherCosts_1[[#This Row],[Cost item]:[Cost item]],Calc_CPI_1[[Cost item]:[Cost item]],0),1),0)+ INDEX(Input_ForRateCalc[],MATCH(Calc_OtherCosts_1[[#This Row],[Cost item]:[Cost item]],Input_ForRateCalc[[Cost item]:[Cost item]],0),MATCH($D$5,Inputs!$C$15:$AZ$15,0)))*IF(Calc_OtherCosts_1[[#This Row],[Unit]:[Unit]]="$",1,IF(Calc_OtherCosts_1[[#This Row],[Unit]:[Unit]]="$/week",WiY)), (IFERROR(INDEX(Calc_CPI_1[[CPI uplift factor]:[CPI uplift factor]],MATCH(Calc_OtherCosts_1[[#This Row],[Cost item]:[Cost item]],Calc_CPI_1[[Cost item]:[Cost item]],0),1),0)+ INDEX(Input_ForRateCalc[],MATCH(Calc_OtherCosts_1[[#This Row],[Cost item]:[Cost item]],Input_ForRateCalc[[Cost item]:[Cost item]],0),MATCH($D$5,Inputs!$C$15:$AZ$15,0)))/1000),"-") -> 0.00030853625
C197: National transmission planner | D197: =_xlfn.XLOOKUP(Calc_OtherCosts_1[[#This Row],[Cost item]],Input_ForRateCalc[Cost item],Input_ForRateCalc[Fixed/Variable]) -> Variable | E197: $/kWh | F197: All | G197: =IFERROR( IF(Calc_OtherCosts_1[[#This Row],[Fixed/Variable]:[Fixed/Variable]]="Fixed", (IFERROR(INDEX(Calc_CPI_1[[CPI uplift factor]:[CPI uplift factor]],MATCH(Calc_OtherCosts_1[[#This Row],[Cost item]:[Cost item]],Calc_CPI_1[[Cost item]:[Cost item]],0),1),0)+ INDEX(Input_ForRateCalc[],MATCH(Calc_OtherCosts_1[[#This Row],[Cost item]:[Cost item]],Input_ForRateCalc[[Cost item]:[Cost item]],0),MATCH($D$5,Inputs!$C$15:$AZ$15,0)))*IF(Calc_OtherCosts_1[[#This Row],[Unit]:[Unit]]="$",1,IF(Calc_OtherCosts_1[[#This Row],[Unit]:[Unit]]="$/week",WiY)), (IFERROR(INDEX(Calc_CPI_1[[CPI uplift factor]:[CPI uplift factor]],MATCH(Calc_OtherCosts_1[[#This Row],[Cost item]:[Cost item]],Calc_CPI_1[[Cost item]:[Cost item]],0),1),0)+ INDEX(Input_ForRateCalc[],MATCH(Calc_OtherCosts_1[[#This Row],[Cost item]:[Cost item]],Input_ForRateCalc[[Cost item]:[Cost item]],0),MATCH($D$5,Inputs!$C$15:$AZ$15,0)))/1000),"-") -> 0 | H197: =IFERROR( IF(Calc_OtherCosts_1[[#This Row],[Fixed/Variable]:[Fixed/Variable]]="Fixed", (IFERROR(INDEX(Calc_CPI_1[[CPI uplift factor]:[CPI uplift factor]],MATCH(Calc_OtherCosts_1[[#This Row],[Cost item]:[Cost item]],Calc_CPI_1[[Cost item]:[Cost item]],0),1),0)+ INDEX(Input_ForRateCalc[],MATCH(Calc_OtherCosts_1[[#This Row],[Cost item]:[Cost item]],Input_ForRateCalc[[Cost item]:[Cost item]],0),MATCH($D$5,Inputs!$C$15:$AZ$15,0)))*IF(Calc_OtherCosts_1[[#This Row],[Unit]:[Unit]]="$",1,IF(Calc_OtherCosts_1[[#This Row],[Unit]:[Unit]]="$/week",WiY)), (IFERROR(INDEX(Calc_CPI_1[[CPI uplift factor]:[CPI uplift factor]],MATCH(Calc_OtherCosts_1[[#This Row],[Cost item]:[Cost item]],Calc_CPI_1[[Cost item]:[Cost item]],0),1),0)+ INDEX(Input_ForRateCalc[],MATCH(Calc_OtherCosts_1[[#This Row],[Cost item]:[Cost item]],Input_ForRateCalc[[Cost item]:[Cost item]],0),MATCH($D$5,Inputs!$C$15:$AZ$15,0)))/1000),"-") -> 0 | I197: =IFERROR( IF(Calc_OtherCosts_1[[#This Row],[Fixed/Variable]:[Fixed/Variable]]="Fixed", (IFERROR(INDEX(Calc_CPI_1[[CPI uplift factor]:[CPI uplift factor]],MATCH(Calc_OtherCosts_1[[#This Row],[Cost item]:[Cost item]],Calc_CPI_1[[Cost item]:[Cost item]],0),1),0)+ INDEX(Input_ForRateCalc[],MATCH(Calc_OtherCosts_1[[#This Row],[Cost item]:[Cost item]],Input_ForRateCalc[[Cost item]:[Cost item]],0),MATCH($D$5,Inputs!$C$15:$AZ$15,0)))*IF(Calc_OtherCosts_1[[#This Row],[Unit]:[Unit]]="$",1,IF(Calc_OtherCosts_1[[#This Row],[Unit]:[Unit]]="$/week",WiY)), (IFERROR(INDEX(Calc_CPI_1[[CPI uplift factor]:[CPI uplift factor]],MATCH(Calc_OtherCosts_1[[#This Row],[Cost item]:[Cost item]],Calc_CPI_1[[Cost item]:[Cost item]],0),1),0)+ INDEX(Input_ForRateCalc[],MATCH(Calc_OtherCosts_1[[#This Row],[Cost item]:[Cost item]],Input_ForRateCalc[[Cost item]:[Cost item]],0),MATCH($D$5,Inputs!$C$15:$AZ$15,0)))/1000),"-") -> 0 | J197: =IFERROR( IF(Calc_OtherCosts_1[[#This Row],[Fixed/Variable]:[Fixed/Variable]]="Fixed", (IFERROR(INDEX(Calc_CPI_1[[CPI uplift factor]:[CPI uplift factor]],MATCH(Calc_OtherCosts_1[[#This Row],[Cost item]:[Cost item]],Calc_CPI_1[[Cost item]:[Cost item]],0),1),0)+ INDEX(Input_ForRateCalc[],MATCH(Calc_OtherCosts_1[[#This Row],[Cost item]:[Cost item]],Input_ForRateCalc[[Cost item]:[Cost item]],0),MATCH($D$5,Inputs!$C$15:$AZ$15,0)))*IF(Calc_OtherCosts_1[[#This Row],[Unit]:[Unit]]="$",1,IF(Calc_OtherCosts_1[[#This Row],[Unit]:[Unit]]="$/week",WiY)), (IFERROR(INDEX(Calc_CPI_1[[CPI uplift factor]:[CPI uplift factor]],MATCH(Calc_OtherCosts_1[[#This Row],[Cost item]:[Cost item]],Calc_CPI_1[[Cost item]:[Cost item]],0),1),0)+ INDEX(Input_ForRateCalc[],MATCH(Calc_OtherCosts_1[[#This Row],[Cost item]:[Cost item]],Input_ForRateCalc[[Cost item]:[Cost item]],0),MATCH($D$5,Inputs!$C$15:$AZ$15,0)))/1000),"-") -> 0 | K197: =IFERROR( IF(Calc_OtherCosts_1[[#This Row],[Fixed/Variable]:[Fixed/Variable]]="Fixed", (IFERROR(INDEX(Calc_CPI_1[[CPI uplift factor]:[CPI uplift factor]],MATCH(Calc_OtherCosts_1[[#This Row],[Cost item]:[Cost item]],Calc_CPI_1[[Cost item]:[Cost item]],0),1),0)+ INDEX(Input_ForRateCalc[],MATCH(Calc_OtherCosts_1[[#This Row],[Cost item]:[Cost item]],Input_ForRateCalc[[Cost item]:[Cost item]],0),MATCH($D$5,Inputs!$C$15:$AZ$15,0)))*IF(Calc_OtherCosts_1[[#This Row],[Unit]:[Unit]]="$",1,IF(Calc_OtherCosts_1[[#This Row],[Unit]:[Unit]]="$/week",WiY)), (IFERROR(INDEX(Calc_CPI_1[[CPI uplift factor]:[CPI uplift factor]],MATCH(Calc_OtherCosts_1[[#This Row],[Cost item]:[Cost item]],Calc_CPI_1[[Cost item]:[Cost item]],0),1),0)+ INDEX(Input_ForRateCalc[],MATCH(Calc_OtherCosts_1[[#This Row],[Cost item]:[Cost item]],Input_ForRateCalc[[Cost item]:[Cost item]],0),MATCH($D$5,Inputs!$C$15:$AZ$15,0)))/1000),"-") -> 0
C198: IT upgrade and 5MS/GS compliance | D198: =_xlfn.XLOOKUP(Calc_OtherCosts_1[[#This Row],[Cost item]],Input_ForRateCalc[Cost item],Input_ForRateCalc[Fixed/Variable]) -> Variable | E198: $/kWh | F198: All | G198: =IFERROR( IF(Calc_OtherCosts_1[[#This Row],[Fixed/Variable]:[Fixed/Variable]]="Fixed", (IFERROR(INDEX(Calc_CPI_1[[CPI uplift factor]:[CPI uplift factor]],MATCH(Calc_OtherCosts_1[[#This Row],[Cost item]:[Cost item]],Calc_CPI_1[[Cost item]:[Cost item]],0),1),0)+ INDEX(Input_ForRateCalc[],MATCH(Calc_OtherCosts_1[[#This Row],[Cost item]:[Cost item]],Input_ForRateCalc[[Cost item]:[Cost item]],0),MATCH($D$5,Inputs!$C$15:$AZ$15,0)))*IF(Calc_OtherCosts_1[[#This Row],[Unit]:[Unit]]="$",1,IF(Calc_OtherCosts_1[[#This Row],[Unit]:[Unit]]="$/week",WiY)), (IFERROR(INDEX(Calc_CPI_1[[CPI uplift factor]:[CPI uplift factor]],MATCH(Calc_OtherCosts_1[[#This Row],[Cost item]:[Cost item]],Calc_CPI_1[[Cost item]:[Cost item]],0),1),0)+ INDEX(Input_ForRateCalc[],MATCH(Calc_OtherCosts_1[[#This Row],[Cost item]:[Cost item]],Input_ForRateCalc[[Cost item]:[Cost item]],0),MATCH($D$5,Inputs!$C$15:$AZ$15,0)))/1000),"-") -> 0.00010304745 | H198: =IFERROR( IF(Calc_OtherCosts_1[[#This Row],[Fixed/Variable]:[Fixed/Variable]]="Fixed", (IFERROR(INDEX(Calc_CPI_1[[CPI uplift factor]:[CPI uplift factor]],MATCH(Calc_OtherCosts_1[[#This Row],[Cost item]:[Cost item]],Calc_CPI_1[[Cost item]:[Cost item]],0),1),0)+ INDEX(Input_ForRateCalc[],MATCH(Calc_OtherCosts_1[[#This Row],[Cost item]:[Cost item]],Input_ForRateCalc[[Cost item]:[Cost item]],0),MATCH($D$5,Inputs!$C$15:$AZ$15,0)))*IF(Calc_OtherCosts_1[[#This Row],[Unit]:[Unit]]="$",1,IF(Calc_OtherCosts_1[[#This Row],[Unit]:[Unit]]="$/week",WiY)), (IFERROR(INDEX(Calc_CPI_1[[CPI uplift factor]:[CPI uplift factor]],MATCH(Calc_OtherCosts_1[[#This Row],[Cost item]:[Cost item]],Calc_CPI_1[[Cost item]:[Cost item]],0),1),0)+ INDEX(Input_ForRateCalc[],MATCH(Calc_OtherCosts_1[[#This Row],[Cost item]:[Cost item]],Input_ForRateCalc[[Cost item]:[Cost item]],0),MATCH($D$5,Inputs!$C$15:$AZ$15,0)))/1000),"-") -> 0.00010304745 | I198: =IFERROR( IF(Calc_OtherCosts_1[[#This Row],[Fixed/Variable]:[Fixed/Variable]]="Fixed", (IFERROR(INDEX(Calc_CPI_1[[CPI uplift factor]:[CPI uplift factor]],MATCH(Calc_OtherCosts_1[[#This Row],[Cost item]:[Cost item]],Calc_CPI_1[[Cost item]:[Cost item]],0),1),0)+ INDEX(Input_ForRateCalc[],MATCH(Calc_OtherCosts_1[[#This Row],[Cost item]:[Cost item]],Input_ForRateCalc[[Cost item]:[Cost item]],0),MATCH($D$5,Inputs!$C$15:$AZ$15,0)))*IF(Calc_OtherCosts_1[[#This Row],[Unit]:[Unit]]="$",1,IF(Calc_OtherCosts_1[[#This Row],[Unit]:[Unit]]="$/week",WiY)), (IFERROR(INDEX(Calc_CPI_1[[CPI uplift factor]:[CPI uplift factor]],MATCH(Calc_OtherCosts_1[[#This Row],[Cost item]:[Cost item]],Calc_CPI_1[[Cost item]:[Cost item]],0),1),0)+ INDEX(Input_ForRateCalc[],MATCH(Calc_OtherCosts_1[[#This Row],[Cost item]:[Cost item]],Input_ForRateCalc[[Cost item]:[Cost item]],0),MATCH($D$5,Inputs!$C$15:$AZ$15,0)))/1000),"-") -> 0.00010304745 | J198: =IFERROR( IF(Calc_OtherCosts_1[[#This Row],[Fixed/Variable]:[Fixed/Variable]]="Fixed", (IFERROR(INDEX(Calc_CPI_1[[CPI uplift factor]:[CPI uplift factor]],MATCH(Calc_OtherCosts_1[[#This Row],[Cost item]:[Cost item]],Calc_CPI_1[[Cost item]:[Cost item]],0),1),0)+ INDEX(Input_ForRateCalc[],MATCH(Calc_OtherCosts_1[[#This Row],[Cost item]:[Cost item]],Input_ForRateCalc[[Cost item]:[Cost item]],0),MATCH($D$5,Inputs!$C$15:$AZ$15,0)))*IF(Calc_OtherCosts_1[[#This Row],[Unit]:[Unit]]="$",1,IF(Calc_OtherCosts_1[[#This Row],[Unit]:[Unit]]="$/week",WiY)), (IFERROR(INDEX(Calc_CPI_1[[CPI uplift factor]:[CPI uplift factor]],MATCH(Calc_OtherCosts_1[[#This Row],[Cost item]:[Cost item]],Calc_CPI_1[[Cost item]:[Cost item]],0),1),0)+ INDEX(Input_ForRateCalc[],MATCH(Calc_OtherCosts_1[[#This Row],[Cost item]:[Cost item]],Input_ForRateCalc[[Cost item]:[Cost item]],0),MATCH($D$5,Inputs!$C$15:$AZ$15,0)))/1000),"-") -> 0.00010304745 | K198: =IFERROR( IF(Calc_OtherCosts_1[[#This Row],[Fixed/Variable]:[Fixed/Variable]]="Fixed", (IFERROR(INDEX(Calc_CPI_1[[CPI uplift factor]:[CPI uplift factor]],MATCH(Calc_OtherCosts_1[[#This Row],[Cost item]:[Cost item]],Calc_CPI_1[[Cost item]:[Cost item]],0),1),0)+ INDEX(Input_ForRateCalc[],MATCH(Calc_OtherCosts_1[[#This Row],[Cost item]:[Cost item]],Input_ForRateCalc[[Cost item]:[Cost item]],0),MATCH($D$5,Inputs!$C$15:$AZ$15,0)))*IF(Calc_OtherCosts_1[[#This Row],[Unit]:[Unit]]="$",1,IF(Calc_OtherCosts_1[[#This Row],[Unit]:[Unit]]="$/week",WiY)), (IFERROR(INDEX(Calc_CPI_1[[CPI uplift factor]:[CPI uplift factor]],MATCH(Calc_OtherCosts_1[[#This Row],[Cost item]:[Cost item]],Calc_CPI_1[[Cost item]:[Cost item]],0),1),0)+ INDEX(Input_ForRateCalc[],MATCH(Calc_OtherCosts_1[[#This Row],[Cost item]:[Cost item]],Input_ForRateCalc[[Cost item]:[Cost item]],0),MATCH($D$5,Inputs!$C$15:$AZ$15,0)))/1000),"-") -> 0.00010304745
C199: Distributed Energy Resources Integration Program (DER) | D199: =_xlfn.XLOOKUP(Calc_OtherCosts_1[[#This Row],[Cost item]],Input_ForRateCalc[Cost item],Input_ForRateCalc[Fixed/Variable]) -> Variable | E199: $/kWh | F199: All | G199: =IFERROR( IF(Calc_OtherCosts_1[[#This Row],[Fixed/Variable]:[Fixed/Variable]]="Fixed", (IFERROR(INDEX(Calc_CPI_1[[CPI uplift factor]:[CPI uplift factor]],MATCH(Calc_OtherCosts_1[[#This Row],[Cost item]:[Cost item]],Calc_CPI_1[[Cost item]:[Cost item]],0),1),0)+ INDEX(Input_ForRateCalc[],MATCH(Calc_OtherCosts_1[[#This Row],[Cost item]:[Cost item]],Input_ForRateCalc[[Cost item]:[Cost item]],0),MATCH($D$5,Inputs!$C$15:$AZ$15,0)))*IF(Calc_OtherCosts_1[[#This Row],[Unit]:[Unit]]="$",1,IF(Calc_OtherCosts_1[[#This Row],[Unit]:[Unit]]="$/week",WiY)), (IFERROR(INDEX(Calc_CPI_1[[CPI uplift factor]:[CPI uplift factor]],MATCH(Calc_OtherCosts_1[[#This Row],[Cost item]:[Cost item]],Calc_CPI_1[[Cost item]:[Cost item]],0),1),0)+ INDEX(Input_ForRateCalc[],MATCH(Calc_OtherCosts_1[[#This Row],[Cost item]:[Cost item]],Input_ForRateCalc[[Cost item]:[Cost item]],0),MATCH($D$5,Inputs!$C$15:$AZ$15,0)))/1000),"-") -> 1.40448e-05 | H199: =IFERROR( IF(Calc_OtherCosts_1[[#This Row],[Fixed/Variable]:[Fixed/Variable]]="Fixed", (IFERROR(INDEX(Calc_CPI_1[[CPI uplift factor]:[CPI uplift factor]],MATCH(Calc_OtherCosts_1[[#This Row],[Cost item]:[Cost item]],Calc_CPI_1[[Cost item]:[Cost item]],0),1),0)+ INDEX(Input_ForRateCalc[],MATCH(Calc_OtherCosts_1[[#This Row],[Cost item]:[Cost item]],Input_ForRateCalc[[Cost item]:[Cost item]],0),MATCH($D$5,Inputs!$C$15:$AZ$15,0)))*IF(Calc_OtherCosts_1[[#This Row],[Unit]:[Unit]]="$",1,IF(Calc_OtherCosts_1[[#This Row],[Unit]:[Unit]]="$/week",WiY)), (IFERROR(INDEX(Calc_CPI_1[[CPI uplift factor]:[CPI uplift factor]],MATCH(Calc_OtherCosts_1[[#This Row],[Cost item]:[Cost item]],Calc_CPI_1[[Cost item]:[Cost item]],0),1),0)+ INDEX(Input_ForRateCalc[],MATCH(Calc_OtherCosts_1[[#This Row],[Cost item]:[Cost item]],Input_ForRateCalc[[Cost item]:[Cost item]],0),MATCH($D$5,Inputs!$C$15:$AZ$15,0)))/1000),"-") -> 1.40448e-05 | I199: =IFERROR( IF(Calc_OtherCosts_1[[#This Row],[Fixed/Variable]:[Fixed/Variable]]="Fixed", (IFERROR(INDEX(Calc_CPI_1[[CPI uplift factor]:[CPI uplift factor]],MATCH(Calc_OtherCosts_1[[#This Row],[Cost item]:[Cost item]],Calc_CPI_1[[Cost item]:[Cost item]],0),1),0)+ INDEX(Input_ForRateCalc[],MATCH(Calc_OtherCosts_1[[#This Row],[Cost item]:[Cost item]],Input_ForRateCalc[[Cost item]:[Cost item]],0),MATCH($D$5,Inputs!$C$15:$AZ$15,0)))*IF(Calc_OtherCosts_1[[#This Row],[Unit]:[Unit]]="$",1,IF(Calc_OtherCosts_1[[#This Row],[Unit]:[Unit]]="$/week",WiY)), (IFERROR(INDEX(Calc_CPI_1[[CPI uplift factor]:[CPI uplift factor]],MATCH(Calc_OtherCosts_1[[#This Row],[Cost item]:[Cost item]],Calc_CPI_1[[Cost item]:[Cost item]],0),1),0)+ INDEX(Input_ForRateCalc[],MATCH(Calc_OtherCosts_1[[#This Row],[Cost item]:[Cost item]],Input_ForRateCalc[[Cost item]:[Cost item]],0),MATCH($D$5,Inputs!$C$15:$AZ$15,0)))/1000),"-") -> 1.40448e-05 | J199: =IFERROR( IF(Calc_OtherCosts_1[[#This Row],[Fixed/Variable]:[Fixed/Variable]]="Fixed", (IFERROR(INDEX(Calc_CPI_1[[CPI uplift factor]:[CPI uplift factor]],MATCH(Calc_OtherCosts_1[[#This Row],[Cost item]:[Cost item]],Calc_CPI_1[[Cost item]:[Cost item]],0),1),0)+ INDEX(Input_ForRateCalc[],MATCH(Calc_OtherCosts_1[[#This Row],[Cost item]:[Cost item]],Input_ForRateCalc[[Cost item]:[Cost item]],0),MATCH($D$5,Inputs!$C$15:$AZ$15,0)))*IF(Calc_OtherCosts_1[[#This Row],[Unit]:[Unit]]="$",1,IF(Calc_OtherCosts_1[[#This Row],[Unit]:[Unit]]="$/week",WiY)), (IFERROR(INDEX(Calc_CPI_1[[CPI uplift factor]:[CPI uplift factor]],MATCH(Calc_OtherCosts_1[[#This Row],[Cost item]:[Cost item]],Calc_CPI_1[[Cost item]:[Cost item]],0),1),0)+ INDEX(Input_ForRateCalc[],MATCH(Calc_OtherCosts_1[[#This Row],[Cost item]:[Cost item]],Input_ForRateCalc[[Cost item]:[Cost item]],0),MATCH($D$5,Inputs!$C$15:$AZ$15,0)))/1000),"-") -> 1.40448e-05 | K199: =IFERROR( IF(Calc_OtherCosts_1[[#This Row],[Fixed/Variable]:[Fixed/Variable]]="Fixed", (IFERROR(INDEX(Calc_CPI_1[[CPI uplift factor]:[CPI uplift factor]],MATCH(Calc_OtherCosts_1[[#This Row],[Cost item]:[Cost item]],Calc_CPI_1[[Cost item]:[Cost item]],0),1),0)+ INDEX(Input_ForRateCalc[],MATCH(Calc_OtherCosts_1[[#This Row],[Cost item]:[Cost item]],Input_ForRateCalc[[Cost item]:[Cost item]],0),MATCH($D$5,Inputs!$C$15:$AZ$15,0)))*IF(Calc_OtherCosts_1[[#This Row],[Unit]:[Unit]]="$",1,IF(Calc_OtherCosts_1[[#This Row],[Unit]:[Unit]]="$/week",WiY)), (IFERROR(INDEX(Calc_CPI_1[[CPI uplift factor]:[CPI uplift factor]],MATCH(Calc_OtherCosts_1[[#This Row],[Cost item]:[Cost item]],Calc_CPI_1[[Cost item]:[Cost item]],0),1),0)+ INDEX(Input_ForRateCalc[],MATCH(Calc_OtherCosts_1[[#This Row],[Cost item]:[Cost item]],Input_ForRateCalc[[Cost item]:[Cost item]],0),MATCH($D$5,Inputs!$C$15:$AZ$15,0)))/1000),"-") -> 1.40448e-05
C200: Ancillary services | D200: =_xlfn.XLOOKUP(Calc_OtherCosts_1[[#This Row],[Cost item]],Input_ForRateCalc[Cost item],Input_ForRateCalc[Fixed/Variable]) -> Variable | E200: $/kWh | F200: All | G200: =IFERROR( IF(Calc_OtherCosts_1[[#This Row],[Fixed/Variable]:[Fixed/Variable]]="Fixed", (IFERROR(INDEX(Calc_CPI_1[[CPI uplift factor]:[CPI uplift factor]],MATCH(Calc_OtherCosts_1[[#This Row],[Cost item]:[Cost item]],Calc_CPI_1[[Cost item]:[Cost item]],0),1),0)+ INDEX(Input_ForRateCalc[],MATCH(Calc_OtherCosts_1[[#This Row],[Cost item]:[Cost item]],Input_ForRateCalc[[Cost item]:[Cost item]],0),MATCH($D$5,Inputs!$C$15:$AZ$15,0)))*IF(Calc_OtherCosts_1[[#This Row],[Unit]:[Unit]]="$",1,IF(Calc_OtherCosts_1[[#This Row],[Unit]:[Unit]]="$/week",WiY)), (IFERROR(INDEX(Calc_CPI_1[[CPI uplift factor]:[CPI uplift factor]],MATCH(Calc_OtherCosts_1[[#This Row],[Cost item]:[Cost item]],Calc_CPI_1[[Cost item]:[Cost item]],0),1),0)+ INDEX(Input_ForRateCalc[],MATCH(Calc_OtherCosts_1[[#This Row],[Cost item]:[Cost item]],Input_ForRateCalc[[Cost item]:[Cost item]],0),MATCH($D$5,Inputs!$C$15:$AZ$15,0)))/1000),"-") -> 0.0001647621703 | H200: =IFERROR( IF(Calc_OtherCosts_1[[#This Row],[Fixed/Variable]:[Fixed/Variable]]="Fixed", (IFERROR(INDEX(Calc_CPI_1[[CPI uplift factor]:[CPI uplift factor]],MATCH(Calc_OtherCosts_1[[#This Row],[Cost item]:[Cost item]],Calc_CPI_1[[Cost item]:[Cost item]],0),1),0)+ INDEX(Input_ForRateCalc[],MATCH(Calc_OtherCosts_1[[#This Row],[Cost item]:[Cost item]],Input_ForRateCalc[[Cost item]:[Cost item]],0),MATCH($D$5,Inputs!$C$15:$AZ$15,0)))*IF(Calc_OtherCosts_1[[#This Row],[Unit]:[Unit]]="$",1,IF(Calc_OtherCosts_1[[#This Row],[Unit]:[Unit]]="$/week",WiY)), (IFERROR(INDEX(Calc_CPI_1[[CPI uplift factor]:[CPI uplift factor]],MATCH(Calc_OtherCosts_1[[#This Row],[Cost item]:[Cost item]],Calc_CPI_1[[Cost item]:[Cost item]],0),1),0)+ INDEX(Input_ForRateCalc[],MATCH(Calc_OtherCosts_1[[#This Row],[Cost item]:[Cost item]],Input_ForRateCalc[[Cost item]:[Cost item]],0),MATCH($D$5,Inputs!$C$15:$AZ$15,0)))/1000),"-") -> 0.0001647621703 | I200: =IFERROR( IF(Calc_OtherCosts_1[[#This Row],[Fixed/Variable]:[Fixed/Variable]]="Fixed", (IFERROR(INDEX(Calc_CPI_1[[CPI uplift factor]:[CPI uplift factor]],MATCH(Calc_OtherCosts_1[[#This Row],[Cost item]:[Cost item]],Calc_CPI_1[[Cost item]:[Cost item]],0),1),0)+ INDEX(Input_ForRateCalc[],MATCH(Calc_OtherCosts_1[[#This Row],[Cost item]:[Cost item]],Input_ForRateCalc[[Cost item]:[Cost item]],0),MATCH($D$5,Inputs!$C$15:$AZ$15,0)))*IF(Calc_OtherCosts_1[[#This Row],[Unit]:[Unit]]="$",1,IF(Calc_OtherCosts_1[[#This Row],[Unit]:[Unit]]="$/week",WiY)), (IFERROR(INDEX(Calc_CPI_1[[CPI uplift factor]:[CPI uplift factor]],MATCH(Calc_OtherCosts_1[[#This Row],[Cost item]:[Cost item]],Calc_CPI_1[[Cost item]:[Cost item]],0),1),0)+ INDEX(Input_ForRateCalc[],MATCH(Calc_OtherCosts_1[[#This Row],[Cost item]:[Cost item]],Input_ForRateCalc[[Cost item]:[Cost item]],0),MATCH($D$5,Inputs!$C$15:$AZ$15,0)))/1000),"-") -> 0.0001647621703 | J200: =IFERROR( IF(Calc_OtherCosts_1[[#This Row],[Fixed/Variable]:[Fixed/Variable]]="Fixed", (IFERROR(INDEX(Calc_CPI_1[[CPI uplift factor]:[CPI uplift factor]],MATCH(Calc_OtherCosts_1[[#This Row],[Cost item]:[Cost item]],Calc_CPI_1[[Cost item]:[Cost item]],0),1),0)+ INDEX(Input_ForRateCalc[],MATCH(Calc_OtherCosts_1[[#This Row],[Cost item]:[Cost item]],Input_ForRateCalc[[Cost item]:[Cost item]],0),MATCH($D$5,Inputs!$C$15:$AZ$15,0)))*IF(Calc_OtherCosts_1[[#This Row],[Unit]:[Unit]]="$",1,IF(Calc_OtherCosts_1[[#This Row],[Unit]:[Unit]]="$/week",WiY)), (IFERROR(INDEX(Calc_CPI_1[[CPI uplift factor]:[CPI uplift factor]],MATCH(Calc_OtherCosts_1[[#This Row],[Cost item]:[Cost item]],Calc_CPI_1[[Cost item]:[Cost item]],0),1),0)+ INDEX(Input_ForRateCalc[],MATCH(Calc_OtherCosts_1[[#This Row],[Cost item]:[Cost item]],Input_ForRateCalc[[Cost item]:[Cost item]],0),MATCH($D$5,Inputs!$C$15:$AZ$15,0)))/1000),"-") -> 0.0001647621703 | K200: =IFERROR( IF(Calc_OtherCosts_1[[#This Row],[Fixed/Variable]:[Fixed/Variable]]="Fixed", (IFERROR(INDEX(Calc_CPI_1[[CPI uplift factor]:[CPI uplift factor]],MATCH(Calc_OtherCosts_1[[#This Row],[Cost item]:[Cost item]],Calc_CPI_1[[Cost item]:[Cost item]],0),1),0)+ INDEX(Input_ForRateCalc[],MATCH(Calc_OtherCosts_1[[#This Row],[Cost item]:[Cost item]],Input_ForRateCalc[[Cost item]:[Cost item]],0),MATCH($D$5,Inputs!$C$15:$AZ$15,0)))*IF(Calc_OtherCosts_1[[#This Row],[Unit]:[Unit]]="$",1,IF(Calc_OtherCosts_1[[#This Row],[Unit]:[Unit]]="$/week",WiY)), (IFERROR(INDEX(Calc_CPI_1[[CPI uplift factor]:[CPI uplift factor]],MATCH(Calc_OtherCosts_1[[#This Row],[Cost item]:[Cost item]],Calc_CPI_1[[Cost item]:[Cost item]],0),1),0)+ INDEX(Input_ForRateCalc[],MATCH(Calc_OtherCosts_1[[#This Row],[Cost item]:[Cost item]],Input_ForRateCalc[[Cost item]:[Cost item]],0),MATCH($D$5,Inputs!$C$15:$AZ$15,0)))/1000),"-") -> 0.0001647621703
C201: General NEM fees - fixed | D201: =_xlfn.XLOOKUP(Calc_OtherCosts_1[[#This Row],[Cost item]],Input_ForRateCalc[Cost item],Input_ForRateCalc[Fixed/Variable]) -> Fixed | E201: =_xlfn.XLOOKUP(Calc_OtherCosts_1[[#This Row],[Cost item]],Input_ForRateCalc[Cost item],Input_ForRateCalc[Unit]) -> $/week | F201: All | G201: =IFERROR( IF(Calc_OtherCosts_1[[#This Row],[Fixed/Variable]:[Fixed/Variable]]="Fixed", (IFERROR(INDEX(Calc_CPI_1[[CPI uplift factor]:[CPI uplift factor]],MATCH(Calc_OtherCosts_1[[#This Row],[Cost item]:[Cost item]],Calc_CPI_1[[Cost item]:[Cost item]],0),1),0)+ INDEX(Input_ForRateCalc[],MATCH(Calc_OtherCosts_1[[#This Row],[Cost item]:[Cost item]],Input_ForRateCalc[[Cost item]:[Cost item]],0),MATCH($D$5,Inputs!$C$15:$AZ$15,0)))*IF(Calc_OtherCosts_1[[#This Row],[Unit]:[Unit]]="$",1,IF(Calc_OtherCosts_1[[#This Row],[Unit]:[Unit]]="$/week",WiY)), (IFERROR(INDEX(Calc_CPI_1[[CPI uplift factor]:[CPI uplift factor]],MATCH(Calc_OtherCosts_1[[#This Row],[Cost item]:[Cost item]],Calc_CPI_1[[Cost item]:[Cost item]],0),1),0)+ INDEX(Input_ForRateCalc[],MATCH(Calc_OtherCosts_1[[#This Row],[Cost item]:[Cost item]],Input_ForRateCalc[[Cost item]:[Cost item]],0),MATCH($D$5,Inputs!$C$15:$AZ$15,0)))/1000),"-") -> 5.028271286 | H201: =IFERROR( IF(Calc_OtherCosts_1[[#This Row],[Fixed/Variable]:[Fixed/Variable]]="Fixed", (IFERROR(INDEX(Calc_CPI_1[[CPI uplift factor]:[CPI uplift factor]],MATCH(Calc_OtherCosts_1[[#This Row],[Cost item]:[Cost item]],Calc_CPI_1[[Cost item]:[Cost item]],0),1),0)+ INDEX(Input_ForRateCalc[],MATCH(Calc_OtherCosts_1[[#This Row],[Cost item]:[Cost item]],Input_ForRateCalc[[Cost item]:[Cost item]],0),MATCH($D$5,Inputs!$C$15:$AZ$15,0)))*IF(Calc_OtherCosts_1[[#This Row],[Unit]:[Unit]]="$",1,IF(Calc_OtherCosts_1[[#This Row],[Unit]:[Unit]]="$/week",WiY)), (IFERROR(INDEX(Calc_CPI_1[[CPI uplift factor]:[CPI uplift factor]],MATCH(Calc_OtherCosts_1[[#This Row],[Cost item]:[Cost item]],Calc_CPI_1[[Cost item]:[Cost item]],0),1),0)+ INDEX(Input_ForRateCalc[],MATCH(Calc_OtherCosts_1[[#This Row],[Cost item]:[Cost item]],Input_ForRateCalc[[Cost item]:[Cost item]],0),MATCH($D$5,Inputs!$C$15:$AZ$15,0)))/1000),"-") -> 5.028271286 | I201: =IFERROR( IF(Calc_OtherCosts_1[[#This Row],[Fixed/Variable]:[Fixed/Variable]]="Fixed", (IFERROR(INDEX(Calc_CPI_1[[CPI uplift factor]:[CPI uplift factor]],MATCH(Calc_OtherCosts_1[[#This Row],[Cost item]:[Cost item]],Calc_CPI_1[[Cost item]:[Cost item]],0),1),0)+ INDEX(Input_ForRateCalc[],MATCH(Calc_OtherCosts_1[[#This Row],[Cost item]:[Cost item]],Input_ForRateCalc[[Cost item]:[Cost item]],0),MATCH($D$5,Inputs!$C$15:$AZ$15,0)))*IF(Calc_OtherCosts_1[[#This Row],[Unit]:[Unit]]="$",1,IF(Calc_OtherCosts_1[[#This Row],[Unit]:[Unit]]="$/week",WiY)), (IFERROR(INDEX(Calc_CPI_1[[CPI uplift factor]:[CPI uplift factor]],MATCH(Calc_OtherCosts_1[[#This Row],[Cost item]:[Cost item]],Calc_CPI_1[[Cost item]:[Cost item]],0),1),0)+ INDEX(Input_ForRateCalc[],MATCH(Calc_OtherCosts_1[[#This Row],[Cost item]:[Cost item]],Input_ForRateCalc[[Cost item]:[Cost item]],0),MATCH($D$5,Inputs!$C$15:$AZ$15,0)))/1000),"-") -> 5.028271286 | J201: =IFERROR( IF(Calc_OtherCosts_1[[#This Row],[Fixed/Variable]:[Fixed/Variable]]="Fixed", (IFERROR(INDEX(Calc_CPI_1[[CPI uplift factor]:[CPI uplift factor]],MATCH(Calc_OtherCosts_1[[#This Row],[Cost item]:[Cost item]],Calc_CPI_1[[Cost item]:[Cost item]],0),1),0)+ INDEX(Input_ForRateCalc[],MATCH(Calc_OtherCosts_1[[#This Row],[Cost item]:[Cost item]],Input_ForRateCalc[[Cost item]:[Cost item]],0),MATCH($D$5,Inputs!$C$15:$AZ$15,0)))*IF(Calc_OtherCosts_1[[#This Row],[Unit]:[Unit]]="$",1,IF(Calc_OtherCosts_1[[#This Row],[Unit]:[Unit]]="$/week",WiY)), (IFERROR(INDEX(Calc_CPI_1[[CPI uplift factor]:[CPI uplift factor]],MATCH(Calc_OtherCosts_1[[#This Row],[Cost item]:[Cost item]],Calc_CPI_1[[Cost item]:[Cost item]],0),1),0)+ INDEX(Input_ForRateCalc[],MATCH(Calc_OtherCosts_1[[#This Row],[Cost item]:[Cost item]],Input_ForRateCalc[[Cost item]:[Cost item]],0),MATCH($D$5,Inputs!$C$15:$AZ$15,0)))/1000),"-") -> 5.028271286 | K201: =IFERROR( IF(Calc_OtherCosts_1[[#This Row],[Fixed/Variable]:[Fixed/Variable]]="Fixed", (IFERROR(INDEX(Calc_CPI_1[[CPI uplift factor]:[CPI uplift factor]],MATCH(Calc_OtherCosts_1[[#This Row],[Cost item]:[Cost item]],Calc_CPI_1[[Cost item]:[Cost item]],0),1),0)+ INDEX(Input_ForRateCalc[],MATCH(Calc_OtherCosts_1[[#This Row],[Cost item]:[Cost item]],Input_ForRateCalc[[Cost item]:[Cost item]],0),MATCH($D$5,Inputs!$C$15:$AZ$15,0)))*IF(Calc_OtherCosts_1[[#This Row],[Unit]:[Unit]]="$",1,IF(Calc_OtherCosts_1[[#This Row],[Unit]:[Unit]]="$/week",WiY)), (IFERROR(INDEX(Calc_CPI_1[[CPI uplift factor]:[CPI uplift factor]],MATCH(Calc_OtherCosts_1[[#This Row],[Cost item]:[Cost item]],Calc_CPI_1[[Cost item]:[Cost item]],0),1),0)+ INDEX(Input_ForRateCalc[],MATCH(Calc_OtherCosts_1[[#This Row],[Cost item]:[Cost item]],Input_ForRateCalc[[Cost item]:[Cost item]],0),MATCH($D$5,Inputs!$C$15:$AZ$15,0)))/1000),"-") -> 5.028271286
C202: Distributed Energy Resources Integration Program (DER) - fixed | D202: =_xlfn.XLOOKUP(Calc_OtherCosts_1[[#This Row],[Cost item]],Input_ForRateCalc[Cost item],Input_ForRateCalc[Fixed/Variable]) -> Fixed | E202: =_xlfn.XLOOKUP(Calc_OtherCosts_1[[#This Row],[Cost item]],Input_ForRateCalc[Cost item],Input_ForRateCalc[Unit]) -> $/week | F202: All | G202: =IFERROR( IF(Calc_OtherCosts_1[[#This Row],[Fixed/Variable]:[Fixed/Variable]]="Fixed", (IFERROR(INDEX(Calc_CPI_1[[CPI uplift factor]:[CPI uplift factor]],MATCH(Calc_OtherCosts_1[[#This Row],[Cost item]:[Cost item]],Calc_CPI_1[[Cost item]:[Cost item]],0),1),0)+ INDEX(Input_ForRateCalc[],MATCH(Calc_OtherCosts_1[[#This Row],[Cost item]:[Cost item]],Input_ForRateCalc[[Cost item]:[Cost item]],0),MATCH($D$5,Inputs!$C$15:$AZ$15,0)))*IF(Calc_OtherCosts_1[[#This Row],[Unit]:[Unit]]="$",1,IF(Calc_OtherCosts_1[[#This Row],[Unit]:[Unit]]="$/week",WiY)), (IFERROR(INDEX(Calc_CPI_1[[CPI uplift factor]:[CPI uplift factor]],MATCH(Calc_OtherCosts_1[[#This Row],[Cost item]:[Cost item]],Calc_CPI_1[[Cost item]:[Cost item]],0),1),0)+ INDEX(Input_ForRateCalc[],MATCH(Calc_OtherCosts_1[[#This Row],[Cost item]:[Cost item]],Input_ForRateCalc[[Cost item]:[Cost item]],0),MATCH($D$5,Inputs!$C$15:$AZ$15,0)))/1000),"-") -> 0.228855 | H202: =IFERROR( IF(Calc_OtherCosts_1[[#This Row],[Fixed/Variable]:[Fixed/Variable]]="Fixed", (IFERROR(INDEX(Calc_CPI_1[[CPI uplift factor]:[CPI uplift factor]],MATCH(Calc_OtherCosts_1[[#This Row],[Cost item]:[Cost item]],Calc_CPI_1[[Cost item]:[Cost item]],0),1),0)+ INDEX(Input_ForRateCalc[],MATCH(Calc_OtherCosts_1[[#This Row],[Cost item]:[Cost item]],Input_ForRateCalc[[Cost item]:[Cost item]],0),MATCH($D$5,Inputs!$C$15:$AZ$15,0)))*IF(Calc_OtherCosts_1[[#This Row],[Unit]:[Unit]]="$",1,IF(Calc_OtherCosts_1[[#This Row],[Unit]:[Unit]]="$/week",WiY)), (IFERROR(INDEX(Calc_CPI_1[[CPI uplift factor]:[CPI uplift factor]],MATCH(Calc_OtherCosts_1[[#This Row],[Cost item]:[Cost item]],Calc_CPI_1[[Cost item]:[Cost item]],0),1),0)+ INDEX(Input_ForRateCalc[],MATCH(Calc_OtherCosts_1[[#This Row],[Cost item]:[Cost item]],Input_ForRateCalc[[Cost item]:[Cost item]],0),MATCH($D$5,Inputs!$C$15:$AZ$15,0)))/1000),"-") -> 0.228855 | I202: =IFERROR( IF(Calc_OtherCosts_1[[#This Row],[Fixed/Variable]:[Fixed/Variable]]="Fixed", (IFERROR(INDEX(Calc_CPI_1[[CPI uplift factor]:[CPI uplift factor]],MATCH(Calc_OtherCosts_1[[#This Row],[Cost item]:[Cost item]],Calc_CPI_1[[Cost item]:[Cost item]],0),1),0)+ INDEX(Input_ForRateCalc[],MATCH(Calc_OtherCosts_1[[#This Row],[Cost item]:[Cost item]],Input_ForRateCalc[[Cost item]:[Cost item]],0),MATCH($D$5,Inputs!$C$15:$AZ$15,0)))*IF(Calc_OtherCosts_1[[#This Row],[Unit]:[Unit]]="$",1,IF(Calc_OtherCosts_1[[#This Row],[Unit]:[Unit]]="$/week",WiY)), (IFERROR(INDEX(Calc_CPI_1[[CPI uplift factor]:[CPI uplift factor]],MATCH(Calc_OtherCosts_1[[#This Row],[Cost item]:[Cost item]],Calc_CPI_1[[Cost item]:[Cost item]],0),1),0)+ INDEX(Input_ForRateCalc[],MATCH(Calc_OtherCosts_1[[#This Row],[Cost item]:[Cost item]],Input_ForRateCalc[[Cost item]:[Cost item]],0),MATCH($D$5,Inputs!$C$15:$AZ$15,0)))/1000),"-") -> 0.228855 | J202: =IFERROR( IF(Calc_OtherCosts_1[[#This Row],[Fixed/Variable]:[Fixed/Variable]]="Fixed", (IFERROR(INDEX(Calc_CPI_1[[CPI uplift factor]:[CPI uplift factor]],MATCH(Calc_OtherCosts_1[[#This Row],[Cost item]:[Cost item]],Calc_CPI_1[[Cost item]:[Cost item]],0),1),0)+ INDEX(Input_ForRateCalc[],MATCH(Calc_OtherCosts_1[[#This Row],[Cost item]:[Cost item]],Input_ForRateCalc[[Cost item]:[Cost item]],0),MATCH($D$5,Inputs!$C$15:$AZ$15,0)))*IF(Calc_OtherCosts_1[[#This Row],[Unit]:[Unit]]="$",1,IF(Calc_OtherCosts_1[[#This Row],[Unit]:[Unit]]="$/week",WiY)), (IFERROR(INDEX(Calc_CPI_1[[CPI uplift factor]:[CPI uplift factor]],MATCH(Calc_OtherCosts_1[[#This Row],[Cost item]:[Cost item]],Calc_CPI_1[[Cost item]:[Cost item]],0),1),0)+ INDEX(Input_ForRateCalc[],MATCH(Calc_OtherCosts_1[[#This Row],[Cost item]:[Cost item]],Input_ForRateCalc[[Cost item]:[Cost item]],0),MATCH($D$5,Inputs!$C$15:$AZ$15,0)))/1000),"-") -> 0.228855 | K202: =IFERROR( IF(Calc_OtherCosts_1[[#This Row],[Fixed/Variable]:[Fixed/Variable]]="Fixed", (IFERROR(INDEX(Calc_CPI_1[[CPI uplift factor]:[CPI uplift factor]],MATCH(Calc_OtherCosts_1[[#This Row],[Cost item]:[Cost item]],Calc_CPI_1[[Cost item]:[Cost item]],0),1),0)+ INDEX(Input_ForRateCalc[],MATCH(Calc_OtherCosts_1[[#This Row],[Cost item]:[Cost item]],Input_ForRateCalc[[Cost item]:[Cost item]],0),MATCH($D$5,Inputs!$C$15:$AZ$15,0)))*IF(Calc_OtherCosts_1[[#This Row],[Unit]:[Unit]]="$",1,IF(Calc_OtherCosts_1[[#This Row],[Unit]:[Unit]]="$/week",WiY)), (IFERROR(INDEX(Calc_CPI_1[[CPI uplift factor]:[CPI uplift factor]],MATCH(Calc_OtherCosts_1[[#This Row],[Cost item]:[Cost item]],Calc_CPI_1[[Cost item]:[Cost item]],0),1),0)+ INDEX(Input_ForRateCalc[],MATCH(Calc_OtherCosts_1[[#This Row],[Cost item]:[Cost item]],Input_ForRateCalc[[Cost item]:[Cost item]],0),MATCH($D$5,Inputs!$C$15:$AZ$15,0)))/1000),"-") -> 0.228855
C203: IT upgrade and 5MS/GS compliance - fixed | D203: =_xlfn.XLOOKUP(Calc_OtherCosts_1[[#This Row],[Cost item]],Input_ForRateCalc[Cost item],Input_ForRateCalc[Fixed/Variable]) -> Fixed | E203: =_xlfn.XLOOKUP(Calc_OtherCosts_1[[#This Row],[Cost item]],Input_ForRateCalc[Cost item],Input_ForRateCalc[Unit]) -> $/week | F203: All | G203: =IFERROR( IF(Calc_OtherCosts_1[[#This Row],[Fixed/Variable]:[Fixed/Variable]]="Fixed", (IFERROR(INDEX(Calc_CPI_1[[CPI uplift factor]:[CPI uplift factor]],MATCH(Calc_OtherCosts_1[[#This Row],[Cost item]:[Cost item]],Calc_CPI_1[[Cost item]:[Cost item]],0),1),0)+ INDEX(Input_ForRateCalc[],MATCH(Calc_OtherCosts_1[[#This Row],[Cost item]:[Cost item]],Input_ForRateCalc[[Cost item]:[Cost item]],0),MATCH($D$5,Inputs!$C$15:$AZ$15,0)))*IF(Calc_OtherCosts_1[[#This Row],[Unit]:[Unit]]="$",1,IF(Calc_OtherCosts_1[[#This Row],[Unit]:[Unit]]="$/week",WiY)), (IFERROR(INDEX(Calc_CPI_1[[CPI uplift factor]:[CPI uplift factor]],MATCH(Calc_OtherCosts_1[[#This Row],[Cost item]:[Cost item]],Calc_CPI_1[[Cost item]:[Cost item]],0),1),0)+ INDEX(Input_ForRateCalc[],MATCH(Calc_OtherCosts_1[[#This Row],[Cost item]:[Cost item]],Input_ForRateCalc[[Cost item]:[Cost item]],0),MATCH($D$5,Inputs!$C$15:$AZ$15,0)))/1000),"-") -> 1.679359786 | H203: =IFERROR( IF(Calc_OtherCosts_1[[#This Row],[Fixed/Variable]:[Fixed/Variable]]="Fixed", (IFERROR(INDEX(Calc_CPI_1[[CPI uplift factor]:[CPI uplift factor]],MATCH(Calc_OtherCosts_1[[#This Row],[Cost item]:[Cost item]],Calc_CPI_1[[Cost item]:[Cost item]],0),1),0)+ INDEX(Input_ForRateCalc[],MATCH(Calc_OtherCosts_1[[#This Row],[Cost item]:[Cost item]],Input_ForRateCalc[[Cost item]:[Cost item]],0),MATCH($D$5,Inputs!$C$15:$AZ$15,0)))*IF(Calc_OtherCosts_1[[#This Row],[Unit]:[Unit]]="$",1,IF(Calc_OtherCosts_1[[#This Row],[Unit]:[Unit]]="$/week",WiY)), (IFERROR(INDEX(Calc_CPI_1[[CPI uplift factor]:[CPI uplift factor]],MATCH(Calc_OtherCosts_1[[#This Row],[Cost item]:[Cost item]],Calc_CPI_1[[Cost item]:[Cost item]],0),1),0)+ INDEX(Input_ForRateCalc[],MATCH(Calc_OtherCosts_1[[#This Row],[Cost item]:[Cost item]],Input_ForRateCalc[[Cost item]:[Cost item]],0),MATCH($D$5,Inputs!$C$15:$AZ$15,0)))/1000),"-") -> 1.679359786 | I203: =IFERROR( IF(Calc_OtherCosts_1[[#This Row],[Fixed/Variable]:[Fixed/Variable]]="Fixed", (IFERROR(INDEX(Calc_CPI_1[[CPI uplift factor]:[CPI uplift factor]],MATCH(Calc_OtherCosts_1[[#This Row],[Cost item]:[Cost item]],Calc_CPI_1[[Cost item]:[Cost item]],0),1),0)+ INDEX(Input_ForRateCalc[],MATCH(Calc_OtherCosts_1[[#This Row],[Cost item]:[Cost item]],Input_ForRateCalc[[Cost item]:[Cost item]],0),MATCH($D$5,Inputs!$C$15:$AZ$15,0)))*IF(Calc_OtherCosts_1[[#This Row],[Unit]:[Unit]]="$",1,IF(Calc_OtherCosts_1[[#This Row],[Unit]:[Unit]]="$/week",WiY)), (IFERROR(INDEX(Calc_CPI_1[[CPI uplift factor]:[CPI uplift factor]],MATCH(Calc_OtherCosts_1[[#This Row],[Cost item]:[Cost item]],Calc_CPI_1[[Cost item]:[Cost item]],0),1),0)+ INDEX(Input_ForRateCalc[],MATCH(Calc_OtherCosts_1[[#This Row],[Cost item]:[Cost item]],Input_ForRateCalc[[Cost item]:[Cost item]],0),MATCH($D$5,Inputs!$C$15:$AZ$15,0)))/1000),"-") -> 1.679359786 | J203: =IFERROR( IF(Calc_OtherCosts_1[[#This Row],[Fixed/Variable]:[Fixed/Variable]]="Fixed", (IFERROR(INDEX(Calc_CPI_1[[CPI uplift factor]:[CPI uplift factor]],MATCH(Calc_OtherCosts_1[[#This Row],[Cost item]:[Cost item]],Calc_CPI_1[[Cost item]:[Cost item]],0),1),0)+ INDEX(Input_ForRateCalc[],MATCH(Calc_OtherCosts_1[[#This Row],[Cost item]:[Cost item]],Input_ForRateCalc[[Cost item]:[Cost item]],0),MATCH($D$5,Inputs!$C$15:$AZ$15,0)))*IF(Calc_OtherCosts_1[[#This Row],[Unit]:[Unit]]="$",1,IF(Calc_OtherCosts_1[[#This Row],[Unit]:[Unit]]="$/week",WiY)), (IFERROR(INDEX(Calc_CPI_1[[CPI uplift factor]:[CPI uplift factor]],MATCH(Calc_OtherCosts_1[[#This Row],[Cost item]:[Cost item]],Calc_CPI_1[[Cost item]:[Cost item]],0),1),0)+ INDEX(Input_ForRateCalc[],MATCH(Calc_OtherCosts_1[[#This Row],[Cost item]:[Cost item]],Input_ForRateCalc[[Cost item]:[Cost item]],0),MATCH($D$5,Inputs!$C$15:$AZ$15,0)))/1000),"-") -> 1.679359786 | K203: =IFERROR( IF(Calc_OtherCosts_1[[#This Row],[Fixed/Variable]:[Fixed/Variable]]="Fixed", (IFERROR(INDEX(Calc_CPI_1[[CPI uplift factor]:[CPI uplift factor]],MATCH(Calc_OtherCosts_1[[#This Row],[Cost item]:[Cost item]],Calc_CPI_1[[Cost item]:[Cost item]],0),1),0)+ INDEX(Input_ForRateCalc[],MATCH(Calc_OtherCosts_1[[#This Row],[Cost item]:[Cost item]],Input_ForRateCalc[[Cost item]:[Cost item]],0),MATCH($D$5,Inputs!$C$15:$AZ$15,0)))*IF(Calc_OtherCosts_1[[#This Row],[Unit]:[Unit]]="$",1,IF(Calc_OtherCosts_1[[#This Row],[Unit]:[Unit]]="$/week",WiY)), (IFERROR(INDEX(Calc_CPI_1[[CPI uplift factor]:[CPI uplift factor]],MATCH(Calc_OtherCosts_1[[#This Row],[Cost item]:[Cost item]],Calc_CPI_1[[Cost item]:[Cost item]],0),1),0)+ INDEX(Input_ForRateCalc[],MATCH(Calc_OtherCosts_1[[#This Row],[Cost item]:[Cost item]],Input_ForRateCalc[[Cost item]:[Cost item]],0),MATCH($D$5,Inputs!$C$15:$AZ$15,0)))/1000),"-") -> 1.679359786
C204: Market suspension - usage | D204: =_xlfn.XLOOKUP(Calc_OtherCosts_1[[#This Row],[Cost item]],Input_ForRateCalc[Cost item],Input_ForRateCalc[Fixed/Variable]) -> Variable | E204: $/kWh | F204: All | G204: =IFERROR( IF(Calc_OtherCosts_1[[#This Row],[Fixed/Variable]:[Fixed/Variable]]="Fixed", (IFERROR(INDEX(Calc_CPI_1[[CPI uplift factor]:[CPI uplift factor]],MATCH(Calc_OtherCosts_1[[#This Row],[Cost item]:[Cost item]],Calc_CPI_1[[Cost item]:[Cost item]],0),1),0)+ INDEX(Input_ForRateCalc[],MATCH(Calc_OtherCosts_1[[#This Row],[Cost item]:[Cost item]],Input_ForRateCalc[[Cost item]:[Cost item]],0),MATCH($D$5,Inputs!$C$15:$AZ$15,0)))*IF(Calc_OtherCosts_1[[#This Row],[Unit]:[Unit]]="$",1,IF(Calc_OtherCosts_1[[#This Row],[Unit]:[Unit]]="$/week",WiY)), (IFERROR(INDEX(Calc_CPI_1[[CPI uplift factor]:[CPI uplift factor]],MATCH(Calc_OtherCosts_1[[#This Row],[Cost item]:[Cost item]],Calc_CPI_1[[Cost item]:[Cost item]],0),1),0)+ INDEX(Input_ForRateCalc[],MATCH(Calc_OtherCosts_1[[#This Row],[Cost item]:[Cost item]],Input_ForRateCalc[[Cost item]:[Cost item]],0),MATCH($D$5,Inputs!$C$15:$AZ$15,0)))/1000),"-") -> 3.271030864e-07 | H204: =IFERROR( IF(Calc_OtherCosts_1[[#This Row],[Fixed/Variable]:[Fixed/Variable]]="Fixed", (IFERROR(INDEX(Calc_CPI_1[[CPI uplift factor]:[CPI uplift factor]],MATCH(Calc_OtherCosts_1[[#This Row],[Cost item]:[Cost item]],Calc_CPI_1[[Cost item]:[Cost item]],0),1),0)+ INDEX(Input_ForRateCalc[],MATCH(Calc_OtherCosts_1[[#This Row],[Cost item]:[Cost item]],Input_ForRateCalc[[Cost item]:[Cost item]],0),MATCH($D$5,Inputs!$C$15:$AZ$15,0)))*IF(Calc_OtherCosts_1[[#This Row],[Unit]:[Unit]]="$",1,IF(Calc_OtherCosts_1[[#This Row],[Unit]:[Unit]]="$/week",WiY)), (IFERROR(INDEX(Calc_CPI_1[[CPI uplift factor]:[CPI uplift factor]],MATCH(Calc_OtherCosts_1[[#This Row],[Cost item]:[Cost item]],Calc_CPI_1[[Cost item]:[Cost item]],0),1),0)+ INDEX(Input_ForRateCalc[],MATCH(Calc_OtherCosts_1[[#This Row],[Cost item]:[Cost item]],Input_ForRateCalc[[Cost item]:[Cost item]],0),MATCH($D$5,Inputs!$C$15:$AZ$15,0)))/1000),"-") -> 3.271030864e-07 | I204: =IFERROR( IF(Calc_OtherCosts_1[[#This Row],[Fixed/Variable]:[Fixed/Variable]]="Fixed", (IFERROR(INDEX(Calc_CPI_1[[CPI uplift factor]:[CPI uplift factor]],MATCH(Calc_OtherCosts_1[[#This Row],[Cost item]:[Cost item]],Calc_CPI_1[[Cost item]:[Cost item]],0),1),0)+ INDEX(Input_ForRateCalc[],MATCH(Calc_OtherCosts_1[[#This Row],[Cost item]:[Cost item]],Input_ForRateCalc[[Cost item]:[Cost item]],0),MATCH($D$5,Inputs!$C$15:$AZ$15,0)))*IF(Calc_OtherCosts_1[[#This Row],[Unit]:[Unit]]="$",1,IF(Calc_OtherCosts_1[[#This Row],[Unit]:[Unit]]="$/week",WiY)), (IFERROR(INDEX(Calc_CPI_1[[CPI uplift factor]:[CPI uplift factor]],MATCH(Calc_OtherCosts_1[[#This Row],[Cost item]:[Cost item]],Calc_CPI_1[[Cost item]:[Cost item]],0),1),0)+ INDEX(Input_ForRateCalc[],MATCH(Calc_OtherCosts_1[[#This Row],[Cost item]:[Cost item]],Input_ForRateCalc[[Cost item]:[Cost item]],0),MATCH($D$5,Inputs!$C$15:$AZ$15,0)))/1000),"-") -> 3.271030864e-07 | J204: =IFERROR( IF(Calc_OtherCosts_1[[#This Row],[Fixed/Variable]:[Fixed/Variable]]="Fixed", (IFERROR(INDEX(Calc_CPI_1[[CPI uplift factor]:[CPI uplift factor]],MATCH(Calc_OtherCosts_1[[#This Row],[Cost item]:[Cost item]],Calc_CPI_1[[Cost item]:[Cost item]],0),1),0)+ INDEX(Input_ForRateCalc[],MATCH(Calc_OtherCosts_1[[#This Row],[Cost item]:[Cost item]],Input_ForRateCalc[[Cost item]:[Cost item]],0),MATCH($D$5,Inputs!$C$15:$AZ$15,0)))*IF(Calc_OtherCosts_1[[#This Row],[Unit]:[Unit]]="$",1,IF(Calc_OtherCosts_1[[#This Row],[Unit]:[Unit]]="$/week",WiY)), (IFERROR(INDEX(Calc_CPI_1[[CPI uplift factor]:[CPI uplift factor]],MATCH(Calc_OtherCosts_1[[#This Row],[Cost item]:[Cost item]],Calc_CPI_1[[Cost item]:[Cost item]],0),1),0)+ INDEX(Input_ForRateCalc[],MATCH(Calc_OtherCosts_1[[#This Row],[Cost item]:[Cost item]],Input_ForRateCalc[[Cost item]:[Cost item]],0),MATCH($D$5,Inputs!$C$15:$AZ$15,0)))/1000),"-") -> 3.271030864e-07 | K204: =IFERROR( IF(Calc_OtherCosts_1[[#This Row],[Fixed/Variable]:[Fixed/Variable]]="Fixed", (IFERROR(INDEX(Calc_CPI_1[[CPI uplift factor]:[CPI uplift factor]],MATCH(Calc_OtherCosts_1[[#This Row],[Cost item]:[Cost item]],Calc_CPI_1[[Cost item]:[Cost item]],0),1),0)+ INDEX(Input_ForRateCalc[],MATCH(Calc_OtherCosts_1[[#This Row],[Cost item]:[Cost item]],Input_ForRateCalc[[Cost item]:[Cost item]],0),MATCH($D$5,Inputs!$C$15:$AZ$15,0)))*IF(Calc_OtherCosts_1[[#This Row],[Unit]:[Unit]]="$",1,IF(Calc_OtherCosts_1[[#This Row],[Unit]:[Unit]]="$/week",WiY)), (IFERROR(INDEX(Calc_CPI_1[[CPI uplift factor]:[CPI uplift factor]],MATCH(Calc_OtherCosts_1[[#This Row],[Cost item]:[Cost item]],Calc_CPI_1[[Cost item]:[Cost item]],0),1),0)+ INDEX(Input_ForRateCalc[],MATCH(Calc_OtherCosts_1[[#This Row],[Cost item]:[Cost item]],Input_ForRateCalc[[Cost item]:[Cost item]],0),MATCH($D$5,Inputs!$C$15:$AZ$15,0)))/1000),"-") -> 3.271030864e-07
C205: Directions - usage | D205: =_xlfn.XLOOKUP(Calc_OtherCosts_1[[#This Row],[Cost item]],Input_ForRateCalc[Cost item],Input_ForRateCalc[Fixed/Variable]) -> Variable | E205: $/kWh | F205: All | G205: =IFERROR( IF(Calc_OtherCosts_1[[#This Row],[Fixed/Variable]:[Fixed/Variable]]="Fixed", (IFERROR(INDEX(Calc_CPI_1[[CPI uplift factor]:[CPI uplift factor]],MATCH(Calc_OtherCosts_1[[#This Row],[Cost item]:[Cost item]],Calc_CPI_1[[Cost item]:[Cost item]],0),1),0)+ INDEX(Input_ForRateCalc[],MATCH(Calc_OtherCosts_1[[#This Row],[Cost item]:[Cost item]],Input_ForRateCalc[[Cost item]:[Cost item]],0),MATCH($D$5,Inputs!$C$15:$AZ$15,0)))*IF(Calc_OtherCosts_1[[#This Row],[Unit]:[Unit]]="$",1,IF(Calc_OtherCosts_1[[#This Row],[Unit]:[Unit]]="$/week",WiY)), (IFERROR(INDEX(Calc_CPI_1[[CPI uplift factor]:[CPI uplift factor]],MATCH(Calc_OtherCosts_1[[#This Row],[Cost item]:[Cost item]],Calc_CPI_1[[Cost item]:[Cost item]],0),1),0)+ INDEX(Input_ForRateCalc[],MATCH(Calc_OtherCosts_1[[#This Row],[Cost item]:[Cost item]],Input_ForRateCalc[[Cost item]:[Cost item]],0),MATCH($D$5,Inputs!$C$15:$AZ$15,0)))/1000),"-") -> 7.323511091e-05 | H205: =IFERROR( IF(Calc_OtherCosts_1[[#This Row],[Fixed/Variable]:[Fixed/Variable]]="Fixed", (IFERROR(INDEX(Calc_CPI_1[[CPI uplift factor]:[CPI uplift factor]],MATCH(Calc_OtherCosts_1[[#This Row],[Cost item]:[Cost item]],Calc_CPI_1[[Cost item]:[Cost item]],0),1),0)+ INDEX(Input_ForRateCalc[],MATCH(Calc_OtherCosts_1[[#This Row],[Cost item]:[Cost item]],Input_ForRateCalc[[Cost item]:[Cost item]],0),MATCH($D$5,Inputs!$C$15:$AZ$15,0)))*IF(Calc_OtherCosts_1[[#This Row],[Unit]:[Unit]]="$",1,IF(Calc_OtherCosts_1[[#This Row],[Unit]:[Unit]]="$/week",WiY)), (IFERROR(INDEX(Calc_CPI_1[[CPI uplift factor]:[CPI uplift factor]],MATCH(Calc_OtherCosts_1[[#This Row],[Cost item]:[Cost item]],Calc_CPI_1[[Cost item]:[Cost item]],0),1),0)+ INDEX(Input_ForRateCalc[],MATCH(Calc_OtherCosts_1[[#This Row],[Cost item]:[Cost item]],Input_ForRateCalc[[Cost item]:[Cost item]],0),MATCH($D$5,Inputs!$C$15:$AZ$15,0)))/1000),"-") -> 7.323511091e-05 | I205: =IFERROR( IF(Calc_OtherCosts_1[[#This Row],[Fixed/Variable]:[Fixed/Variable]]="Fixed", (IFERROR(INDEX(Calc_CPI_1[[CPI uplift factor]:[CPI uplift factor]],MATCH(Calc_OtherCosts_1[[#This Row],[Cost item]:[Cost item]],Calc_CPI_1[[Cost item]:[Cost item]],0),1),0)+ INDEX(Input_ForRateCalc[],MATCH(Calc_OtherCosts_1[[#This Row],[Cost item]:[Cost item]],Input_ForRateCalc[[Cost item]:[Cost item]],0),MATCH($D$5,Inputs!$C$15:$AZ$15,0)))*IF(Calc_OtherCosts_1[[#This Row],[Unit]:[Unit]]="$",1,IF(Calc_OtherCosts_1[[#This Row],[Unit]:[Unit]]="$/week",WiY)), (IFERROR(INDEX(Calc_CPI_1[[CPI uplift factor]:[CPI uplift factor]],MATCH(Calc_OtherCosts_1[[#This Row],[Cost item]:[Cost item]],Calc_CPI_1[[Cost item]:[Cost item]],0),1),0)+ INDEX(Input_ForRateCalc[],MATCH(Calc_OtherCosts_1[[#This Row],[Cost item]:[Cost item]],Input_ForRateCalc[[Cost item]:[Cost item]],0),MATCH($D$5,Inputs!$C$15:$AZ$15,0)))/1000),"-") -> 7.323511091e-05 | J205: =IFERROR( IF(Calc_OtherCosts_1[[#This Row],[Fixed/Variable]:[Fixed/Variable]]="Fixed", (IFERROR(INDEX(Calc_CPI_1[[CPI uplift factor]:[CPI uplift factor]],MATCH(Calc_OtherCosts_1[[#This Row],[Cost item]:[Cost item]],Calc_CPI_1[[Cost item]:[Cost item]],0),1),0)+ INDEX(Input_ForRateCalc[],MATCH(Calc_OtherCosts_1[[#This Row],[Cost item]:[Cost item]],Input_ForRateCalc[[Cost item]:[Cost item]],0),MATCH($D$5,Inputs!$C$15:$AZ$15,0)))*IF(Calc_OtherCosts_1[[#This Row],[Unit]:[Unit]]="$",1,IF(Calc_OtherCosts_1[[#This Row],[Unit]:[Unit]]="$/week",WiY)), (IFERROR(INDEX(Calc_CPI_1[[CPI uplift factor]:[CPI uplift factor]],MATCH(Calc_OtherCosts_1[[#This Row],[Cost item]:[Cost item]],Calc_CPI_1[[Cost item]:[Cost item]],0),1),0)+ INDEX(Input_ForRateCalc[],MATCH(Calc_OtherCosts_1[[#This Row],[Cost item]:[Cost item]],Input_ForRateCalc[[Cost item]:[Cost item]],0),MATCH($D$5,Inputs!$C$15:$AZ$15,0)))/1000),"-") -> 7.323511091e-05 | K205: =IFERROR( IF(Calc_OtherCosts_1[[#This Row],[Fixed/Variable]:[Fixed/Variable]]="Fixed", (IFERROR(INDEX(Calc_CPI_1[[CPI uplift factor]:[CPI uplift factor]],MATCH(Calc_OtherCosts_1[[#This Row],[Cost item]:[Cost item]],Calc_CPI_1[[Cost item]:[Cost item]],0),1),0)+ INDEX(Input_ForRateCalc[],MATCH(Calc_OtherCosts_1[[#This Row],[Cost item]:[Cost item]],Input_ForRateCalc[[Cost item]:[Cost item]],0),MATCH($D$5,Inputs!$C$15:$AZ$15,0)))*IF(Calc_OtherCosts_1[[#This Row],[Unit]:[Unit]]="$",1,IF(Calc_OtherCosts_1[[#This Row],[Unit]:[Unit]]="$/week",WiY)), (IFERROR(INDEX(Calc_CPI_1[[CPI uplift factor]:[CPI uplift factor]],MATCH(Calc_OtherCosts_1[[#This Row],[Cost item]:[Cost item]],Calc_CPI_1[[Cost item]:[Cost item]],0),1),0)+ INDEX(Input_ForRateCalc[],MATCH(Calc_OtherCosts_1[[#This Row],[Cost item]:[Cost item]],Input_ForRateCalc[[Cost item]:[Cost item]],0),MATCH($D$5,Inputs!$C$15:$AZ$15,0)))/1000),"-") -> 7.323511091e-05
C206: Administered price cap - usage | D206: =_xlfn.XLOOKUP(Calc_OtherCosts_1[[#This Row],[Cost item]],Input_ForRateCalc[Cost item],Input_ForRateCalc[Fixed/Variable]) -> Variable | E206: $/kWh | F206: All | G206: =IFERROR( IF(Calc_OtherCosts_1[[#This Row],[Fixed/Variable]:[Fixed/Variable]]="Fixed", (IFERROR(INDEX(Calc_CPI_1[[CPI uplift factor]:[CPI uplift factor]],MATCH(Calc_OtherCosts_1[[#This Row],[Cost item]:[Cost item]],Calc_CPI_1[[Cost item]:[Cost item]],0),1),0)+ INDEX(Input_ForRateCalc[],MATCH(Calc_OtherCosts_1[[#This Row],[Cost item]:[Cost item]],Input_ForRateCalc[[Cost item]:[Cost item]],0),MATCH($D$5,Inputs!$C$15:$AZ$15,0)))*IF(Calc_OtherCosts_1[[#This Row],[Unit]:[Unit]]="$",1,IF(Calc_OtherCosts_1[[#This Row],[Unit]:[Unit]]="$/week",WiY)), (IFERROR(INDEX(Calc_CPI_1[[CPI uplift factor]:[CPI uplift factor]],MATCH(Calc_OtherCosts_1[[#This Row],[Cost item]:[Cost item]],Calc_CPI_1[[Cost item]:[Cost item]],0),1),0)+ INDEX(Input_ForRateCalc[],MATCH(Calc_OtherCosts_1[[#This Row],[Cost item]:[Cost item]],Input_ForRateCalc[[Cost item]:[Cost item]],0),MATCH($D$5,Inputs!$C$15:$AZ$15,0)))/1000),"-") -> 0 | H206: =IFERROR( IF(Calc_OtherCosts_1[[#This Row],[Fixed/Variable]:[Fixed/Variable]]="Fixed", (IFERROR(INDEX(Calc_CPI_1[[CPI uplift factor]:[CPI uplift factor]],MATCH(Calc_OtherCosts_1[[#This Row],[Cost item]:[Cost item]],Calc_CPI_1[[Cost item]:[Cost item]],0),1),0)+ INDEX(Input_ForRateCalc[],MATCH(Calc_OtherCosts_1[[#This Row],[Cost item]:[Cost item]],Input_ForRateCalc[[Cost item]:[Cost item]],0),MATCH($D$5,Inputs!$C$15:$AZ$15,0)))*IF(Calc_OtherCosts_1[[#This Row],[Unit]:[Unit]]="$",1,IF(Calc_OtherCosts_1[[#This Row],[Unit]:[Unit]]="$/week",WiY)), (IFERROR(INDEX(Calc_CPI_1[[CPI uplift factor]:[CPI uplift factor]],MATCH(Calc_OtherCosts_1[[#This Row],[Cost item]:[Cost item]],Calc_CPI_1[[Cost item]:[Cost item]],0),1),0)+ INDEX(Input_ForRateCalc[],MATCH(Calc_OtherCosts_1[[#This Row],[Cost item]:[Cost item]],Input_ForRateCalc[[Cost item]:[Cost item]],0),MATCH($D$5,Inputs!$C$15:$AZ$15,0)))/1000),"-") -> 0 | I206: =IFERROR( IF(Calc_OtherCosts_1[[#This Row],[Fixed/Variable]:[Fixed/Variable]]="Fixed", (IFERROR(INDEX(Calc_CPI_1[[CPI uplift factor]:[CPI uplift factor]],MATCH(Calc_OtherCosts_1[[#This Row],[Cost item]:[Cost item]],Calc_CPI_1[[Cost item]:[Cost item]],0),1),0)+ INDEX(Input_ForRateCalc[],MATCH(Calc_OtherCosts_1[[#This Row],[Cost item]:[Cost item]],Input_ForRateCalc[[Cost item]:[Cost item]],0),MATCH($D$5,Inputs!$C$15:$AZ$15,0)))*IF(Calc_OtherCosts_1[[#This Row],[Unit]:[Unit]]="$",1,IF(Calc_OtherCosts_1[[#This Row],[Unit]:[Unit]]="$/week",WiY)), (IFERROR(INDEX(Calc_CPI_1[[CPI uplift factor]:[CPI uplift factor]],MATCH(Calc_OtherCosts_1[[#This Row],[Cost item]:[Cost item]],Calc_CPI_1[[Cost item]:[Cost item]],0),1),0)+ INDEX(Input_ForRateCalc[],MATCH(Calc_OtherCosts_1[[#This Row],[Cost item]:[Cost item]],Input_ForRateCalc[[Cost item]:[Cost item]],0),MATCH($D$5,Inputs!$C$15:$AZ$15,0)))/1000),"-") -> 0 | J206: =IFERROR( IF(Calc_OtherCosts_1[[#This Row],[Fixed/Variable]:[Fixed/Variable]]="Fixed", (IFERROR(INDEX(Calc_CPI_1[[CPI uplift factor]:[CPI uplift factor]],MATCH(Calc_OtherCosts_1[[#This Row],[Cost item]:[Cost item]],Calc_CPI_1[[Cost item]:[Cost item]],0),1),0)+ INDEX(Input_ForRateCalc[],MATCH(Calc_OtherCosts_1[[#This Row],[Cost item]:[Cost item]],Input_ForRateCalc[[Cost item]:[Cost item]],0),MATCH($D$5,Inputs!$C$15:$AZ$15,0)))*IF(Calc_OtherCosts_1[[#This Row],[Unit]:[Unit]]="$",1,IF(Calc_OtherCosts_1[[#This Row],[Unit]:[Unit]]="$/week",WiY)), (IFERROR(INDEX(Calc_CPI_1[[CPI uplift factor]:[CPI uplift factor]],MATCH(Calc_OtherCosts_1[[#This Row],[Cost item]:[Cost item]],Calc_CPI_1[[Cost item]:[Cost item]],0),1),0)+ INDEX(Input_ForRateCalc[],MATCH(Calc_OtherCosts_1[[#This Row],[Cost item]:[Cost item]],Input_ForRateCalc[[Cost item]:[Cost item]],0),MATCH($D$5,Inputs!$C$15:$AZ$15,0)))/1000),"-") -> 0 | K206: =IFERROR( IF(Calc_OtherCosts_1[[#This Row],[Fixed/Variable]:[Fixed/Variable]]="Fixed", (IFERROR(INDEX(Calc_CPI_1[[CPI uplift factor]:[CPI uplift factor]],MATCH(Calc_OtherCosts_1[[#This Row],[Cost item]:[Cost item]],Calc_CPI_1[[Cost item]:[Cost item]],0),1),0)+ INDEX(Input_ForRateCalc[],MATCH(Calc_OtherCosts_1[[#This Row],[Cost item]:[Cost item]],Input_ForRateCalc[[Cost item]:[Cost item]],0),MATCH($D$5,Inputs!$C$15:$AZ$15,0)))*IF(Calc_OtherCosts_1[[#This Row],[Unit]:[Unit]]="$",1,IF(Calc_OtherCosts_1[[#This Row],[Unit]:[Unit]]="$/week",WiY)), (IFERROR(INDEX(Calc_CPI_1[[CPI uplift factor]:[CPI uplift factor]],MATCH(Calc_OtherCosts_1[[#This Row],[Cost item]:[Cost item]],Calc_CPI_1[[Cost item]:[Cost item]],0),1),0)+ INDEX(Input_ForRateCalc[],MATCH(Calc_OtherCosts_1[[#This Row],[Cost item]:[Cost item]],Input_ForRateCalc[[Cost item]:[Cost item]],0),MATCH($D$5,Inputs!$C$15:$AZ$15,0)))/1000),"-") -> 0
C207: National Electricity Market (NEM) 2025 Reform Program - Fixed | D207: =_xlfn.XLOOKUP(Calc_OtherCosts_1[[#This Row],[Cost item]],Input_ForRateCalc[Cost item],Input_ForRateCalc[Fixed/Variable]) -> Fixed | E207: =_xlfn.XLOOKUP(Calc_OtherCosts_1[[#This Row],[Cost item]],Input_ForRateCalc[Cost item],Input_ForRateCalc[Unit]) -> $/week | F207: All | G207: =IFERROR( IF(Calc_OtherCosts_1[[#This Row],[Fixed/Variable]:[Fixed/Variable]]="Fixed", (IFERROR(INDEX(Calc_CPI_1[[CPI uplift factor]:[CPI uplift factor]],MATCH(Calc_OtherCosts_1[[#This Row],[Cost item]:[Cost item]],Calc_CPI_1[[Cost item]:[Cost item]],0),1),0)+ INDEX(Input_ForRateCalc[],MATCH(Calc_OtherCosts_1[[#This Row],[Cost item]:[Cost item]],Input_ForRateCalc[[Cost item]:[Cost item]],0),MATCH($D$5,Inputs!$C$15:$AZ$15,0)))*IF(Calc_OtherCosts_1[[#This Row],[Unit]:[Unit]]="$",1,IF(Calc_OtherCosts_1[[#This Row],[Unit]:[Unit]]="$/week",WiY)), (IFERROR(INDEX(Calc_CPI_1[[CPI uplift factor]:[CPI uplift factor]],MATCH(Calc_OtherCosts_1[[#This Row],[Cost item]:[Cost item]],Calc_CPI_1[[Cost item]:[Cost item]],0),1),0)+ INDEX(Input_ForRateCalc[],MATCH(Calc_OtherCosts_1[[#This Row],[Cost item]:[Cost item]],Input_ForRateCalc[[Cost item]:[Cost item]],0),MATCH($D$5,Inputs!$C$15:$AZ$15,0)))/1000),"-") -> 2.806743107 | H207: =IFERROR( IF(Calc_OtherCosts_1[[#This Row],[Fixed/Variable]:[Fixed/Variable]]="Fixed", (IFERROR(INDEX(Calc_CPI_1[[CPI uplift factor]:[CPI uplift factor]],MATCH(Calc_OtherCosts_1[[#This Row],[Cost item]:[Cost item]],Calc_CPI_1[[Cost item]:[Cost item]],0),1),0)+ INDEX(Input_ForRateCalc[],MATCH(Calc_OtherCosts_1[[#This Row],[Cost item]:[Cost item]],Input_ForRateCalc[[Cost item]:[Cost item]],0),MATCH($D$5,Inputs!$C$15:$AZ$15,0)))*IF(Calc_OtherCosts_1[[#This Row],[Unit]:[Unit]]="$",1,IF(Calc_OtherCosts_1[[#This Row],[Unit]:[Unit]]="$/week",WiY)), (IFERROR(INDEX(Calc_CPI_1[[CPI uplift factor]:[CPI uplift factor]],MATCH(Calc_OtherCosts_1[[#This Row],[Cost item]:[Cost item]],Calc_CPI_1[[Cost item]:[Cost item]],0),1),0)+ INDEX(Input_ForRateCalc[],MATCH(Calc_OtherCosts_1[[#This Row],[Cost item]:[Cost item]],Input_ForRateCalc[[Cost item]:[Cost item]],0),MATCH($D$5,Inputs!$C$15:$AZ$15,0)))/1000),"-") -> 2.806743107 | I207: =IFERROR( IF(Calc_OtherCosts_1[[#This Row],[Fixed/Variable]:[Fixed/Variable]]="Fixed", (IFERROR(INDEX(Calc_CPI_1[[CPI uplift factor]:[CPI uplift factor]],MATCH(Calc_OtherCosts_1[[#This Row],[Cost item]:[Cost item]],Calc_CPI_1[[Cost item]:[Cost item]],0),1),0)+ INDEX(Input_ForRateCalc[],MATCH(Calc_OtherCosts_1[[#This Row],[Cost item]:[Cost item]],Input_ForRateCalc[[Cost item]:[Cost item]],0),MATCH($D$5,Inputs!$C$15:$AZ$15,0)))*IF(Calc_OtherCosts_1[[#This Row],[Unit]:[Unit]]="$",1,IF(Calc_OtherCosts_1[[#This Row],[Unit]:[Unit]]="$/week",WiY)), (IFERROR(INDEX(Calc_CPI_1[[CPI uplift factor]:[CPI uplift factor]],MATCH(Calc_OtherCosts_1[[#This Row],[Cost item]:[Cost item]],Calc_CPI_1[[Cost item]:[Cost item]],0),1),0)+ INDEX(Input_ForRateCalc[],MATCH(Calc_OtherCosts_1[[#This Row],[Cost item]:[Cost item]],Input_ForRateCalc[[Cost item]:[Cost item]],0),MATCH($D$5,Inputs!$C$15:$AZ$15,0)))/1000),"-") -> 2.806743107 | J207: =IFERROR( IF(Calc_OtherCosts_1[[#This Row],[Fixed/Variable]:[Fixed/Variable]]="Fixed", (IFERROR(INDEX(Calc_CPI_1[[CPI uplift factor]:[CPI uplift factor]],MATCH(Calc_OtherCosts_1[[#This Row],[Cost item]:[Cost item]],Calc_CPI_1[[Cost item]:[Cost item]],0),1),0)+ INDEX(Input_ForRateCalc[],MATCH(Calc_OtherCosts_1[[#This Row],[Cost item]:[Cost item]],Input_ForRateCalc[[Cost item]:[Cost item]],0),MATCH($D$5,Inputs!$C$15:$AZ$15,0)))*IF(Calc_OtherCosts_1[[#This Row],[Unit]:[Unit]]="$",1,IF(Calc_OtherCosts_1[[#This Row],[Unit]:[Unit]]="$/week",WiY)), (IFERROR(INDEX(Calc_CPI_1[[CPI uplift factor]:[CPI uplift factor]],MATCH(Calc_OtherCosts_1[[#This Row],[Cost item]:[Cost item]],Calc_CPI_1[[Cost item]:[Cost item]],0),1),0)+ INDEX(Input_ForRateCalc[],MATCH(Calc_OtherCosts_1[[#This Row],[Cost item]:[Cost item]],Input_ForRateCalc[[Cost item]:[Cost item]],0),MATCH($D$5,Inputs!$C$15:$AZ$15,0)))/1000),"-") -> 2.806743107 | K207: =IFERROR( IF(Calc_OtherCosts_1[[#This Row],[Fixed/Variable]:[Fixed/Variable]]="Fixed", (IFERROR(INDEX(Calc_CPI_1[[CPI uplift factor]:[CPI uplift factor]],MATCH(Calc_OtherCosts_1[[#This Row],[Cost item]:[Cost item]],Calc_CPI_1[[Cost item]:[Cost item]],0),1),0)+ INDEX(Input_ForRateCalc[],MATCH(Calc_OtherCosts_1[[#This Row],[Cost item]:[Cost item]],Input_ForRateCalc[[Cost item]:[Cost item]],0),MATCH($D$5,Inputs!$C$15:$AZ$15,0)))*IF(Calc_OtherCosts_1[[#This Row],[Unit]:[Unit]]="$",1,IF(Calc_OtherCosts_1[[#This Row],[Unit]:[Unit]]="$/week",WiY)), (IFERROR(INDEX(Calc_CPI_1[[CPI uplift factor]:[CPI uplift factor]],MATCH(Calc_OtherCosts_1[[#This Row],[Cost item]:[Cost item]],Calc_CPI_1[[Cost item]:[Cost item]],0),1),0)+ INDEX(Input_ForRateCalc[],MATCH(Calc_OtherCosts_1[[#This Row],[Cost item]:[Cost item]],Input_ForRateCalc[[Cost item]:[Cost item]],0),MATCH($D$5,Inputs!$C$15:$AZ$15,0)))/1000),"-") -> 2.806743107
C208: National Electricity Market (NEM) 2025 Reform Program - variable | D208: =_xlfn.XLOOKUP(Calc_OtherCosts_1[[#This Row],[Cost item]],Input_ForRateCalc[Cost item],Input_ForRateCalc[Fixed/Variable]) -> Variable | E208: $/kWh | F208: All | G208: =IFERROR( IF(Calc_OtherCosts_1[[#This Row],[Fixed/Variable]:[Fixed/Variable]]="Fixed", (IFERROR(INDEX(Calc_CPI_1[[CPI uplift factor]:[CPI uplift factor]],MATCH(Calc_OtherCosts_1[[#This Row],[Cost item]:[Cost item]],Calc_CPI_1[[Cost item]:[Cost item]],0),1),0)+ INDEX(Input_ForRateCalc[],MATCH(Calc_OtherCosts_1[[#This Row],[Cost item]:[Cost item]],Input_ForRateCalc[[Cost item]:[Cost item]],0),MATCH($D$5,Inputs!$C$15:$AZ$15,0)))*IF(Calc_OtherCosts_1[[#This Row],[Unit]:[Unit]]="$",1,IF(Calc_OtherCosts_1[[#This Row],[Unit]:[Unit]]="$/week",WiY)), (IFERROR(INDEX(Calc_CPI_1[[CPI uplift factor]:[CPI uplift factor]],MATCH(Calc_OtherCosts_1[[#This Row],[Cost item]:[Cost item]],Calc_CPI_1[[Cost item]:[Cost item]],0),1),0)+ INDEX(Input_ForRateCalc[],MATCH(Calc_OtherCosts_1[[#This Row],[Cost item]:[Cost item]],Input_ForRateCalc[[Cost item]:[Cost item]],0),MATCH($D$5,Inputs!$C$15:$AZ$15,0)))/1000),"-") -> 0.00010114555 | H208: =IFERROR( IF(Calc_OtherCosts_1[[#This Row],[Fixed/Variable]:[Fixed/Variable]]="Fixed", (IFERROR(INDEX(Calc_CPI_1[[CPI uplift factor]:[CPI uplift factor]],MATCH(Calc_OtherCosts_1[[#This Row],[Cost item]:[Cost item]],Calc_CPI_1[[Cost item]:[Cost item]],0),1),0)+ INDEX(Input_ForRateCalc[],MATCH(Calc_OtherCosts_1[[#This Row],[Cost item]:[Cost item]],Input_ForRateCalc[[Cost item]:[Cost item]],0),MATCH($D$5,Inputs!$C$15:$AZ$15,0)))*IF(Calc_OtherCosts_1[[#This Row],[Unit]:[Unit]]="$",1,IF(Calc_OtherCosts_1[[#This Row],[Unit]:[Unit]]="$/week",WiY)), (IFERROR(INDEX(Calc_CPI_1[[CPI uplift factor]:[CPI uplift factor]],MATCH(Calc_OtherCosts_1[[#This Row],[Cost item]:[Cost item]],Calc_CPI_1[[Cost item]:[Cost item]],0),1),0)+ INDEX(Input_ForRateCalc[],MATCH(Calc_OtherCosts_1[[#This Row],[Cost item]:[Cost item]],Input_ForRateCalc[[Cost item]:[Cost item]],0),MATCH($D$5,Inputs!$C$15:$AZ$15,0)))/1000),"-") -> 0.00010114555 | I208: =IFERROR( IF(Calc_OtherCosts_1[[#This Row],[Fixed/Variable]:[Fixed/Variable]]="Fixed", (IFERROR(INDEX(Calc_CPI_1[[CPI uplift factor]:[CPI uplift factor]],MATCH(Calc_OtherCosts_1[[#This Row],[Cost item]:[Cost item]],Calc_CPI_1[[Cost item]:[Cost item]],0),1),0)+ INDEX(Input_ForRateCalc[],MATCH(Calc_OtherCosts_1[[#This Row],[Cost item]:[Cost item]],Input_ForRateCalc[[Cost item]:[Cost item]],0),MATCH($D$5,Inputs!$C$15:$AZ$15,0)))*IF(Calc_OtherCosts_1[[#This Row],[Unit]:[Unit]]="$",1,IF(Calc_OtherCosts_1[[#This Row],[Unit]:[Unit]]="$/week",WiY)), (IFERROR(INDEX(Calc_CPI_1[[CPI uplift factor]:[CPI uplift factor]],MATCH(Calc_OtherCosts_1[[#This Row],[Cost item]:[Cost item]],Calc_CPI_1[[Cost item]:[Cost item]],0),1),0)+ INDEX(Input_ForRateCalc[],MATCH(Calc_OtherCosts_1[[#This Row],[Cost item]:[Cost item]],Input_ForRateCalc[[Cost item]:[Cost item]],0),MATCH($D$5,Inputs!$C$15:$AZ$15,0)))/1000),"-") -> 0.00010114555 | J208: =IFERROR( IF(Calc_OtherCosts_1[[#This Row],[Fixed/Variable]:[Fixed/Variable]]="Fixed", (IFERROR(INDEX(Calc_CPI_1[[CPI uplift factor]:[CPI uplift factor]],MATCH(Calc_OtherCosts_1[[#This Row],[Cost item]:[Cost item]],Calc_CPI_1[[Cost item]:[Cost item]],0),1),0)+ INDEX(Input_ForRateCalc[],MATCH(Calc_OtherCosts_1[[#This Row],[Cost item]:[Cost item]],Input_ForRateCalc[[Cost item]:[Cost item]],0),MATCH($D$5,Inputs!$C$15:$AZ$15,0)))*IF(Calc_OtherCosts_1[[#This Row],[Unit]:[Unit]]="$",1,IF(Calc_OtherCosts_1[[#This Row],[Unit]:[Unit]]="$/week",WiY)), (IFERROR(INDEX(Calc_CPI_1[[CPI uplift factor]:[CPI uplift factor]],MATCH(Calc_OtherCosts_1[[#This Row],[Cost item]:[Cost item]],Calc_CPI_1[[Cost item]:[Cost item]],0),1),0)+ INDEX(Input_ForRateCalc[],MATCH(Calc_OtherCosts_1[[#This Row],[Cost item]:[Cost item]],Input_ForRateCalc[[Cost item]:[Cost item]],0),MATCH($D$5,Inputs!$C$15:$AZ$15,0)))/1000),"-") -> 0.00010114555 | K208: =IFERROR( IF(Calc_OtherCosts_1[[#This Row],[Fixed/Variable]:[Fixed/Variable]]="Fixed", (IFERROR(INDEX(Calc_CPI_1[[CPI uplift factor]:[CPI uplift factor]],MATCH(Calc_OtherCosts_1[[#This Row],[Cost item]:[Cost item]],Calc_CPI_1[[Cost item]:[Cost item]],0),1),0)+ INDEX(Input_ForRateCalc[],MATCH(Calc_OtherCosts_1[[#This Row],[Cost item]:[Cost item]],Input_ForRateCalc[[Cost item]:[Cost item]],0),MATCH($D$5,Inputs!$C$15:$AZ$15,0)))*IF(Calc_OtherCosts_1[[#This Row],[Unit]:[Unit]]="$",1,IF(Calc_OtherCosts_1[[#This Row],[Unit]:[Unit]]="$/week",WiY)), (IFERROR(INDEX(Calc_CPI_1[[CPI uplift factor]:[CPI uplift factor]],MATCH(Calc_OtherCosts_1[[#This Row],[Cost item]:[Cost item]],Calc_CPI_1[[Cost item]:[Cost item]],0),1),0)+ INDEX(Input_ForRateCalc[],MATCH(Calc_OtherCosts_1[[#This Row],[Cost item]:[Cost item]],Input_ForRateCalc[[Cost item]:[Cost item]],0),MATCH($D$5,Inputs!$C$15:$AZ$15,0)))/1000),"-") -> 0.00010114555
B210: =MAX(B$3:B207)+0.01 -> 5.05 | C210: Network
C212: Fixed network charges
C213: Cost item | D213: Fixed/Variable | E213: Unit | F213: Customer type | G213: Ausnet | H213: Citipower | I213: Jemena | J213: Powercor | K213: United Energy
C214: Anytime - supply | D214: Fixed | E214: $/year | F214: Residential | G214: =IFERROR( IFERROR(INDEX(Calc_CPI_1[[CPI uplift factor]:[CPI uplift factor]],MATCH($C214,Calc_CPI_1[[Cost item]:[Cost item]],0),1),0)+ INDEX(Input_ForRateCalc[],MATCH( IF(Calc_NetworkF_1[[#This Row],[Cost item]:[Cost item]]="Metering", Calc_NetworkF_1[[#This Row],[Cost item]:[Cost item]]&" - "&Calc_NetworkF_1[[#Headers],[Ausnet]], Calc_NetworkF_1[[#This Row],[Cost item]:[Cost item]]&" charge - "&IF(Calc_NetworkF_1[[#This Row],[Customer type]:[Customer type]]="Residential","RES - ","SME - ")&Calc_NetworkF_1[[#Headers],[Ausnet]]),Input_ForRateCalc[[Cost item]:[Cost item]],0),MATCH($D$5,Inputs!$C$15:$AZ$15,0)),"-") -> 147.3680769 | H214: =IFERROR( IFERROR(INDEX(Calc_CPI_1[[CPI uplift factor]:[CPI uplift factor]],MATCH($C214,Calc_CPI_1[[Cost item]:[Cost item]],0),1),0)+ INDEX(Input_ForRateCalc[],MATCH( IF(Calc_NetworkF_1[[#This Row],[Cost item]:[Cost item]]="Metering", Calc_NetworkF_1[[#This Row],[Cost item]:[Cost item]]&" - "&Calc_NetworkF_1[[#Headers],[Citipower]], Calc_NetworkF_1[[#This Row],[Cost item]:[Cost item]]&" charge - "&IF(Calc_NetworkF_1[[#This Row],[Customer type]:[Customer type]]="Residential","RES - ","SME - ")&Calc_NetworkF_1[[#Headers],[Citipower]]),Input_ForRateCalc[[Cost item]:[Cost item]],0),MATCH($D$5,Inputs!$C$15:$AZ$15,0)),"-") -> 102.2105644 | I214: =IFERROR( IFERROR(INDEX(Calc_CPI_1[[CPI uplift factor]:[CPI uplift factor]],MATCH($C214,Calc_CPI_1[[Cost item]:[Cost item]],0),1),0)+ INDEX(Input_ForRateCalc[],MATCH( IF(Calc_NetworkF_1[[#This Row],[Cost item]:[Cost item]]="Metering", Calc_NetworkF_1[[#This Row],[Cost item]:[Cost item]]&" - "&Calc_NetworkF_1[[#Headers],[Jemena]], Calc_NetworkF_1[[#This Row],[Cost item]:[Cost item]]&" charge - "&IF(Calc_NetworkF_1[[#This Row],[Customer type]:[Customer type]]="Residential","RES - ","SME - ")&Calc_NetworkF_1[[#Headers],[Jemena]]),Input_ForRateCalc[[Cost item]:[Cost item]],0),MATCH($D$5,Inputs!$C$15:$AZ$15,0)),"-") -> 124.6116928 | J214: =IFERROR( IFERROR(INDEX(Calc_CPI_1[[CPI uplift factor]:[CPI uplift factor]],MATCH($C214,Calc_CPI_1[[Cost item]:[Cost item]],0),1),0)+ INDEX(Input_ForRateCalc[],MATCH( IF(Calc_NetworkF_1[[#This Row],[Cost item]:[Cost item]]="Metering", Calc_NetworkF_1[[#This Row],[Cost item]:[Cost item]]&" - "&Calc_NetworkF_1[[#Headers],[Powercor]], Calc_NetworkF_1[[#This Row],[Cost item]:[Cost item]]&" charge - "&IF(Calc_NetworkF_1[[#This Row],[Customer type]:[Customer type]]="Residential","RES - ","SME - ")&Calc_NetworkF_1[[#Headers],[Powercor]]),Input_ForRateCalc[[Cost item]:[Cost item]],0),MATCH($D$5,Inputs!$C$15:$AZ$15,0)),"-") -> 157.7741877 | K214: =IFERROR( IFERROR(INDEX(Calc_CPI_1[[CPI uplift factor]:[CPI uplift factor]],MATCH($C214,Calc_CPI_1[[Cost item]:[Cost item]],0),1),0)+ INDEX(Input_ForRateCalc[],MATCH( IF(Calc_NetworkF_1[[#This Row],[Cost item]:[Cost item]]="Metering", Calc_NetworkF_1[[#This Row],[Cost item]:[Cost item]]&" - "&Calc_NetworkF_1[[#Headers],[United Energy]], Calc_NetworkF_1[[#This Row],[Cost item]:[Cost item]]&" charge - "&IF(Calc_NetworkF_1[[#This Row],[Customer type]:[Customer type]]="Residential","RES - ","SME - ")&Calc_NetworkF_1[[#Headers],[United Energy]]),Input_ForRateCalc[[Cost item]:[Cost item]],0),MATCH($D$5,Inputs!$C$15:$AZ$15,0)),"-") -> 101.4014982
C215: Anytime - supply | D215: Fixed | E215: $/year | F215: Small business | G215: =IFERROR( IFERROR(INDEX(Calc_CPI_1[[CPI uplift factor]:[CPI uplift factor]],MATCH($C215,Calc_CPI_1[[Cost item]:[Cost item]],0),1),0)+ INDEX(Input_ForRateCalc[],MATCH( IF(Calc_NetworkF_1[[#This Row],[Cost item]:[Cost item]]="Metering", Calc_NetworkF_1[[#This Row],[Cost item]:[Cost item]]&" - "&Calc_NetworkF_1[[#Headers],[Ausnet]], Calc_NetworkF_1[[#This Row],[Cost item]:[Cost item]]&" charge - "&IF(Calc_NetworkF_1[[#This Row],[Customer type]:[Customer type]]="Residential","RES - ","SME - ")&Calc_NetworkF_1[[#Headers],[Ausnet]]),Input_ForRateCalc[[Cost item]:[Cost item]],0),MATCH($D$5,Inputs!$C$15:$AZ$15,0)),"-") -> 147.3680769 | H215: =IFERROR( IFERROR(INDEX(Calc_CPI_1[[CPI uplift factor]:[CPI uplift factor]],MATCH($C215,Calc_CPI_1[[Cost item]:[Cost item]],0),1),0)+ INDEX(Input_ForRateCalc[],MATCH( IF(Calc_NetworkF_1[[#This Row],[Cost item]:[Cost item]]="Metering", Calc_NetworkF_1[[#This Row],[Cost item]:[Cost item]]&" - "&Calc_NetworkF_1[[#Headers],[Citipower]], Calc_NetworkF_1[[#This Row],[Cost item]:[Cost item]]&" charge - "&IF(Calc_NetworkF_1[[#This Row],[Customer type]:[Customer type]]="Residential","RES - ","SME - ")&Calc_NetworkF_1[[#Headers],[Citipower]]),Input_ForRateCalc[[Cost item]:[Cost item]],0),MATCH($D$5,Inputs!$C$15:$AZ$15,0)),"-") -> 166.7894145 | I215: =IFERROR( IFERROR(INDEX(Calc_CPI_1[[CPI uplift factor]:[CPI uplift factor]],MATCH($C215,Calc_CPI_1[[Cost item]:[Cost item]],0),1),0)+ INDEX(Input_ForRateCalc[],MATCH( IF(Calc_NetworkF_1[[#This Row],[Cost item]:[Cost item]]="Metering", Calc_NetworkF_1[[#This Row],[Cost item]:[Cost item]]&" - "&Calc_NetworkF_1[[#Headers],[Jemena]], Calc_NetworkF_1[[#This Row],[Cost item]:[Cost item]]&" charge - "&IF(Calc_NetworkF_1[[#This Row],[Customer type]:[Customer type]]="Residential","RES - ","SME - ")&Calc_NetworkF_1[[#Headers],[Jemena]]),Input_ForRateCalc[[Cost item]:[Cost item]],0),MATCH($D$5,Inputs!$C$15:$AZ$15,0)),"-") -> 190.1751187 | J215: =IFERROR( IFERROR(INDEX(Calc_CPI_1[[CPI uplift factor]:[CPI uplift factor]],MATCH($C215,Calc_CPI_1[[Cost item]:[Cost item]],0),1),0)+ INDEX(Input_ForRateCalc[],MATCH( IF(Calc_NetworkF_1[[#This Row],[Cost item]:[Cost item]]="Metering", Calc_NetworkF_1[[#This Row],[Cost item]:[Cost item]]&" - "&Calc_NetworkF_1[[#Headers],[Powercor]], Calc_NetworkF_1[[#This Row],[Cost item]:[Cost item]]&" charge - "&IF(Calc_NetworkF_1[[#This Row],[Customer type]:[Customer type]]="Residential","RES - ","SME - ")&Calc_NetworkF_1[[#Headers],[Powercor]]),Input_ForRateCalc[[Cost item]:[Cost item]],0),MATCH($D$5,Inputs!$C$15:$AZ$15,0)),"-") -> 206.6988792 | K215: =IFERROR( IFERROR(INDEX(Calc_CPI_1[[CPI uplift factor]:[CPI uplift factor]],MATCH($C215,Calc_CPI_1[[Cost item]:[Cost item]],0),1),0)+ INDEX(Input_ForRateCalc[],MATCH( IF(Calc_NetworkF_1[[#This Row],[Cost item]:[Cost item]]="Metering", Calc_NetworkF_1[[#This Row],[Cost item]:[Cost item]]&" - "&Calc_NetworkF_1[[#Headers],[United Energy]], Calc_NetworkF_1[[#This Row],[Cost item]:[Cost item]]&" charge - "&IF(Calc_NetworkF_1[[#This Row],[Customer type]:[Customer type]]="Residential","RES - ","SME - ")&Calc_NetworkF_1[[#Headers],[United Energy]]),Input_ForRateCalc[[Cost item]:[Cost item]],0),MATCH($D$5,Inputs!$C$15:$AZ$15,0)),"-") -> 166.8527841
C216: TOU - supply | D216: Fixed | E216: $/year | F216: Residential | G216: =IFERROR( IFERROR(INDEX(Calc_CPI_1[[CPI uplift factor]:[CPI uplift factor]],MATCH($C216,Calc_CPI_1[[Cost item]:[Cost item]],0),1),0)+ INDEX(Input_ForRateCalc[],MATCH( IF(Calc_NetworkF_1[[#This Row],[Cost item]:[Cost item]]="Metering", Calc_NetworkF_1[[#This Row],[Cost item]:[Cost item]]&" - "&Calc_NetworkF_1[[#Headers],[Ausnet]], Calc_NetworkF_1[[#This Row],[Cost item]:[Cost item]]&" charge - "&IF(Calc_NetworkF_1[[#This Row],[Customer type]:[Customer type]]="Residential","RES - ","SME - ")&Calc_NetworkF_1[[#Headers],[Ausnet]]),Input_ForRateCalc[[Cost item]:[Cost item]],0),MATCH($D$5,Inputs!$C$15:$AZ$15,0)),"-") -> 147.3680769 | H216: =IFERROR( IFERROR(INDEX(Calc_CPI_1[[CPI uplift factor]:[CPI uplift factor]],MATCH($C216,Calc_CPI_1[[Cost item]:[Cost item]],0),1),0)+ INDEX(Input_ForRateCalc[],MATCH( IF(Calc_NetworkF_1[[#This Row],[Cost item]:[Cost item]]="Metering", Calc_NetworkF_1[[#This Row],[Cost item]:[Cost item]]&" - "&Calc_NetworkF_1[[#Headers],[Citipower]], Calc_NetworkF_1[[#This Row],[Cost item]:[Cost item]]&" charge - "&IF(Calc_NetworkF_1[[#This Row],[Customer type]:[Customer type]]="Residential","RES - ","SME - ")&Calc_NetworkF_1[[#Headers],[Citipower]]),Input_ForRateCalc[[Cost item]:[Cost item]],0),MATCH($D$5,Inputs!$C$15:$AZ$15,0)),"-") -> 102.2105644 | I216: =IFERROR( IFERROR(INDEX(Calc_CPI_1[[CPI uplift factor]:[CPI uplift factor]],MATCH($C216,Calc_CPI_1[[Cost item]:[Cost item]],0),1),0)+ INDEX(Input_ForRateCalc[],MATCH( IF(Calc_NetworkF_1[[#This Row],[Cost item]:[Cost item]]="Metering", Calc_NetworkF_1[[#This Row],[Cost item]:[Cost item]]&" - "&Calc_NetworkF_1[[#Headers],[Jemena]], Calc_NetworkF_1[[#This Row],[Cost item]:[Cost item]]&" charge - "&IF(Calc_NetworkF_1[[#This Row],[Customer type]:[Customer type]]="Residential","RES - ","SME - ")&Calc_NetworkF_1[[#Headers],[Jemena]]),Input_ForRateCalc[[Cost item]:[Cost item]],0),MATCH($D$5,Inputs!$C$15:$AZ$15,0)),"-") -> 124.6116928 | J216: =IFERROR( IFERROR(INDEX(Calc_CPI_1[[CPI uplift factor]:[CPI uplift factor]],MATCH($C216,Calc_CPI_1[[Cost item]:[Cost item]],0),1),0)+ INDEX(Input_ForRateCalc[],MATCH( IF(Calc_NetworkF_1[[#This Row],[Cost item]:[Cost item]]="Metering", Calc_NetworkF_1[[#This Row],[Cost item]:[Cost item]]&" - "&Calc_NetworkF_1[[#Headers],[Powercor]], Calc_NetworkF_1[[#This Row],[Cost item]:[Cost item]]&" charge - "&IF(Calc_NetworkF_1[[#This Row],[Customer type]:[Customer type]]="Residential","RES - ","SME - ")&Calc_NetworkF_1[[#Headers],[Powercor]]),Input_ForRateCalc[[Cost item]:[Cost item]],0),MATCH($D$5,Inputs!$C$15:$AZ$15,0)),"-") -> 157.7741877 | K216: =IFERROR( IFERROR(INDEX(Calc_CPI_1[[CPI uplift factor]:[CPI uplift factor]],MATCH($C216,Calc_CPI_1[[Cost item]:[Cost item]],0),1),0)+ INDEX(Input_ForRateCalc[],MATCH( IF(Calc_NetworkF_1[[#This Row],[Cost item]:[Cost item]]="Metering", Calc_NetworkF_1[[#This Row],[Cost item]:[Cost item]]&" - "&Calc_NetworkF_1[[#Headers],[United Energy]], Calc_NetworkF_1[[#This Row],[Cost item]:[Cost item]]&" charge - "&IF(Calc_NetworkF_1[[#This Row],[Customer type]:[Customer type]]="Residential","RES - ","SME - ")&Calc_NetworkF_1[[#Headers],[United Energy]]),Input_ForRateCalc[[Cost item]:[Cost item]],0),MATCH($D$5,Inputs!$C$15:$AZ$15,0)),"-") -> 101.4014982
C217: TOU - supply | D217: Fixed | E217: $/year | F217: Small business | G217: =IFERROR( IFERROR(INDEX(Calc_CPI_1[[CPI uplift factor]:[CPI uplift factor]],MATCH($C217,Calc_CPI_1[[Cost item]:[Cost item]],0),1),0)+ INDEX(Input_ForRateCalc[],MATCH( IF(Calc_NetworkF_1[[#This Row],[Cost item]:[Cost item]]="Metering", Calc_NetworkF_1[[#This Row],[Cost item]:[Cost item]]&" - "&Calc_NetworkF_1[[#Headers],[Ausnet]], Calc_NetworkF_1[[#This Row],[Cost item]:[Cost item]]&" charge - "&IF(Calc_NetworkF_1[[#This Row],[Customer type]:[Customer type]]="Residential","RES - ","SME - ")&Calc_NetworkF_1[[#Headers],[Ausnet]]),Input_ForRateCalc[[Cost item]:[Cost item]],0),MATCH($D$5,Inputs!$C$15:$AZ$15,0)),"-") -> 147.3680769 | H217: =IFERROR( IFERROR(INDEX(Calc_CPI_1[[CPI uplift factor]:[CPI uplift factor]],MATCH($C217,Calc_CPI_1[[Cost item]:[Cost item]],0),1),0)+ INDEX(Input_ForRateCalc[],MATCH( IF(Calc_NetworkF_1[[#This Row],[Cost item]:[Cost item]]="Metering", Calc_NetworkF_1[[#This Row],[Cost item]:[Cost item]]&" - "&Calc_NetworkF_1[[#Headers],[Citipower]], Calc_NetworkF_1[[#This Row],[Cost item]:[Cost item]]&" charge - "&IF(Calc_NetworkF_1[[#This Row],[Customer type]:[Customer type]]="Residential","RES - ","SME - ")&Calc_NetworkF_1[[#Headers],[Citipower]]),Input_ForRateCalc[[Cost item]:[Cost item]],0),MATCH($D$5,Inputs!$C$15:$AZ$15,0)),"-") -> 166.7894145 | I217: =IFERROR( IFERROR(INDEX(Calc_CPI_1[[CPI uplift factor]:[CPI uplift factor]],MATCH($C217,Calc_CPI_1[[Cost item]:[Cost item]],0),1),0)+ INDEX(Input_ForRateCalc[],MATCH( IF(Calc_NetworkF_1[[#This Row],[Cost item]:[Cost item]]="Metering", Calc_NetworkF_1[[#This Row],[Cost item]:[Cost item]]&" - "&Calc_NetworkF_1[[#Headers],[Jemena]], Calc_NetworkF_1[[#This Row],[Cost item]:[Cost item]]&" charge - "&IF(Calc_NetworkF_1[[#This Row],[Customer type]:[Customer type]]="Residential","RES - ","SME - ")&Calc_NetworkF_1[[#Headers],[Jemena]]),Input_ForRateCalc[[Cost item]:[Cost item]],0),MATCH($D$5,Inputs!$C$15:$AZ$15,0)),"-") -> 300.8288807 | J217: =IFERROR( IFERROR(INDEX(Calc_CPI_1[[CPI uplift factor]:[CPI uplift factor]],MATCH($C217,Calc_CPI_1[[Cost item]:[Cost item]],0),1),0)+ INDEX(Input_ForRateCalc[],MATCH( IF(Calc_NetworkF_1[[#This Row],[Cost item]:[Cost item]]="Metering", Calc_NetworkF_1[[#This Row],[Cost item]:[Cost item]]&" - "&Calc_NetworkF_1[[#Headers],[Powercor]], Calc_NetworkF_1[[#This Row],[Cost item]:[Cost item]]&" charge - "&IF(Calc_NetworkF_1[[#This Row],[Customer type]:[Customer type]]="Residential","RES - ","SME - ")&Calc_NetworkF_1[[#Headers],[Powercor]]),Input_ForRateCalc[[Cost item]:[Cost item]],0),MATCH($D$5,Inputs!$C$15:$AZ$15,0)),"-") -> 206.6988792 | K217: =IFERROR( IFERROR(INDEX(Calc_CPI_1[[CPI uplift factor]:[CPI uplift factor]],MATCH($C217,Calc_CPI_1[[Cost item]:[Cost item]],0),1),0)+ INDEX(Input_ForRateCalc[],MATCH( IF(Calc_NetworkF_1[[#This Row],[Cost item]:[Cost item]]="Metering", Calc_NetworkF_1[[#This Row],[Cost item]:[Cost item]]&" - "&Calc_NetworkF_1[[#Headers],[United Energy]], Calc_NetworkF_1[[#This Row],[Cost item]:[Cost item]]&" charge - "&IF(Calc_NetworkF_1[[#This Row],[Customer type]:[Customer type]]="Residential","RES - ","SME - ")&Calc_NetworkF_1[[#Headers],[United Energy]]),Input_ForRateCalc[[Cost item]:[Cost item]],0),MATCH($D$5,Inputs!$C$15:$AZ$15,0)),"-") -> 166.8527841
C218: Metering | D218: Fixed | E218: $/year | F218: All | G218: =IFERROR( IFERROR(INDEX(Calc_CPI_1[[CPI uplift factor]:[CPI uplift factor]],MATCH($C218,Calc_CPI_1[[Cost item]:[Cost item]],0),1),0)+ INDEX(Input_ForRateCalc[],MATCH( IF(Calc_NetworkF_1[[#This Row],[Cost item]:[Cost item]]="Metering", Calc_NetworkF_1[[#This Row],[Cost item]:[Cost item]]&" - "&Calc_NetworkF_1[[#Headers],[Ausnet]], Calc_NetworkF_1[[#This Row],[Cost item]:[Cost item]]&" charge - "&IF(Calc_NetworkF_1[[#This Row],[Customer type]:[Customer type]]="Residential","RES - ","SME - ")&Calc_NetworkF_1[[#Headers],[Ausnet]]),Input_ForRateCalc[[Cost item]:[Cost item]],0),MATCH($D$5,Inputs!$C$15:$AZ$15,0)),"-") -> 85.71423106 | H218: =IFERROR( IFERROR(INDEX(Calc_CPI_1[[CPI uplift factor]:[CPI uplift factor]],MATCH($C218,Calc_CPI_1[[Cost item]:[Cost item]],0),1),0)+ INDEX(Input_ForRateCalc[],MATCH( IF(Calc_NetworkF_1[[#This Row],[Cost item]:[Cost item]]="Metering", Calc_NetworkF_1[[#This Row],[Cost item]:[Cost item]]&" - "&Calc_NetworkF_1[[#Headers],[Citipower]], Calc_NetworkF_1[[#This Row],[Cost item]:[Cost item]]&" charge - "&IF(Calc_NetworkF_1[[#This Row],[Customer type]:[Customer type]]="Residential","RES - ","SME - ")&Calc_NetworkF_1[[#Headers],[Citipower]]),Input_ForRateCalc[[Cost item]:[Cost item]],0),MATCH($D$5,Inputs!$C$15:$AZ$15,0)),"-") -> 77.8116195 | I218: =IFERROR( IFERROR(INDEX(Calc_CPI_1[[CPI uplift factor]:[CPI uplift factor]],MATCH($C218,Calc_CPI_1[[Cost item]:[Cost item]],0),1),0)+ INDEX(Input_ForRateCalc[],MATCH( IF(Calc_NetworkF_1[[#This Row],[Cost item]:[Cost item]]="Metering", Calc_NetworkF_1[[#This Row],[Cost item]:[Cost item]]&" - "&Calc_NetworkF_1[[#Headers],[Jemena]], Calc_NetworkF_1[[#This Row],[Cost item]:[Cost item]]&" charge - "&IF(Calc_NetworkF_1[[#This Row],[Customer type]:[Customer type]]="Residential","RES - ","SME - ")&Calc_NetworkF_1[[#Headers],[Jemena]]),Input_ForRateCalc[[Cost item]:[Cost item]],0),MATCH($D$5,Inputs!$C$15:$AZ$15,0)),"-") -> 66.59274765 | J218: =IFERROR( IFERROR(INDEX(Calc_CPI_1[[CPI uplift factor]:[CPI uplift factor]],MATCH($C218,Calc_CPI_1[[Cost item]:[Cost item]],0),1),0)+ INDEX(Input_ForRateCalc[],MATCH( IF(Calc_NetworkF_1[[#This Row],[Cost item]:[Cost item]]="Metering", Calc_NetworkF_1[[#This Row],[Cost item]:[Cost item]]&" - "&Calc_NetworkF_1[[#Headers],[Powercor]], Calc_NetworkF_1[[#This Row],[Cost item]:[Cost item]]&" charge - "&IF(Calc_NetworkF_1[[#This Row],[Customer type]:[Customer type]]="Residential","RES - ","SME - ")&Calc_NetworkF_1[[#Headers],[Powercor]]),Input_ForRateCalc[[Cost item]:[Cost item]],0),MATCH($D$5,Inputs!$C$15:$AZ$15,0)),"-") -> 73.43501926 | K218: =IFERROR( IFERROR(INDEX(Calc_CPI_1[[CPI uplift factor]:[CPI uplift factor]],MATCH($C218,Calc_CPI_1[[Cost item]:[Cost item]],0),1),0)+ INDEX(Input_ForRateCalc[],MATCH( IF(Calc_NetworkF_1[[#This Row],[Cost item]:[Cost item]]="Metering", Calc_NetworkF_1[[#This Row],[Cost item]:[Cost item]]&" - "&Calc_NetworkF_1[[#Headers],[United Energy]], Calc_NetworkF_1[[#This Row],[Cost item]:[Cost item]]&" charge - "&IF(Calc_NetworkF_1[[#This Row],[Customer type]:[Customer type]]="Residential","RES - ","SME - ")&Calc_NetworkF_1[[#Headers],[United Energy]]),Input_ForRateCalc[[Cost item]:[Cost item]],0),MATCH($D$5,Inputs!$C$15:$AZ$15,0)),"-") -> 52.87791171
... 285 more rows

Sheet Calc_TU_values
A1: Worksheet description: | B1: << Back to Contents
A2: [Please provide a description of what this sheet does and any specific details or other notes the user needs to know] | C2: =Disclaimer!$B$1 -> VDO calculation model
B3: =_xlfn.SHEET() -> 6 | C3: True up
C5: VDO decision | D5: =Calc_Rates!$D$5 -> VDO 2025-26 - Draft
B7: =MAX(B$3:B6)+0.01 -> 6.01 | C7: Environmental costs
C9: Actual time period, months | D9: 12 | H9: Cost item | I9: Unit | J9: Customer type | K9: Ausnet | L9: Citipower | M9: Jemena | N9: Powercor | O9: United Energy | P9: VIC avg
C10: Proportion of annual | D10: =D9/MiY -> 1 | H10: LRET True up | I10: $/MWh | J10: All | K10: =INDEX(Calc_TUV_Env_1[[Ausnet]:[United Energy]],MATCH($H10,Calc_TUV_Env_1[[Cost item]:[Cost item]],0),MATCH(K$9,Calc_TUV_Env_1[[#Headers],[Ausnet]:[United Energy]],0))*1000 -> -0.1752241879 | L10: =INDEX(Calc_TUV_Env_1[[Ausnet]:[United Energy]],MATCH($H10,Calc_TUV_Env_1[[Cost item]:[Cost item]],0),MATCH(L$9,Calc_TUV_Env_1[[#Headers],[Ausnet]:[United Energy]],0))*1000 -> -0.1693325126 | M10: =INDEX(Calc_TUV_Env_1[[Ausnet]:[United Energy]],MATCH($H10,Calc_TUV_Env_1[[Cost item]:[Cost item]],0),MATCH(M$9,Calc_TUV_Env_1[[#Headers],[Ausnet]:[United Energy]],0))*1000 -> -0.1700745985 | N10: =INDEX(Calc_TUV_Env_1[[Ausnet]:[United Energy]],MATCH($H10,Calc_TUV_Env_1[[Cost item]:[Cost item]],0),MATCH(N$9,Calc_TUV_Env_1[[#Headers],[Ausnet]:[United Energy]],0))*1000 -> -0.1728679423 | O10: =INDEX(Calc_TUV_Env_1[[Ausnet]:[United Energy]],MATCH($H10,Calc_TUV_Env_1[[Cost item]:[Cost item]],0),MATCH(O$9,Calc_TUV_Env_1[[#Headers],[Ausnet]:[United Energy]],0))*1000 -> -0.1695371325 | P10: =IFERROR(AVERAGE(K10:O10),"-") -> -0.1714072748
C11: WACC adjustment | D11: No | H11: SRES True up | I11: $/MWh | J11: All | K11: =INDEX(Calc_TUV_Env_1[[Ausnet]:[United Energy]],MATCH($H11,Calc_TUV_Env_1[[Cost item]:[Cost item]],0),MATCH(K$9,Calc_TUV_Env_1[[#Headers],[Ausnet]:[United Energy]],0))*1000 -> -0.5642867028 | L11: =INDEX(Calc_TUV_Env_1[[Ausnet]:[United Energy]],MATCH($H11,Calc_TUV_Env_1[[Cost item]:[Cost item]],0),MATCH(L$9,Calc_TUV_Env_1[[#Headers],[Ausnet]:[United Energy]],0))*1000 -> -0.545313329 | M11: =INDEX(Calc_TUV_Env_1[[Ausnet]:[United Energy]],MATCH($H11,Calc_TUV_Env_1[[Cost item]:[Cost item]],0),MATCH(M$9,Calc_TUV_Env_1[[#Headers],[Ausnet]:[United Energy]],0))*1000 -> -0.5477031201 | N11: =INDEX(Calc_TUV_Env_1[[Ausnet]:[United Energy]],MATCH($H11,Calc_TUV_Env_1[[Cost item]:[Cost item]],0),MATCH(N$9,Calc_TUV_Env_1[[#Headers],[Ausnet]:[United Energy]],0))*1000 -> -0.5566987202 | O11: =INDEX(Calc_TUV_Env_1[[Ausnet]:[United Energy]],MATCH($H11,Calc_TUV_Env_1[[Cost item]:[Cost item]],0),MATCH(O$9,Calc_TUV_Env_1[[#Headers],[Ausnet]:[United Energy]],0))*1000 -> -0.5459722806 | P11: =IFERROR(AVERAGE(K11:O11),"-") -> -0.5519948305
H12: VEU True up | I12: $/MWh | J12: All | K12: =INDEX(Calc_TUV_Env_1[[Ausnet]:[United Energy]],MATCH($H12,Calc_TUV_Env_1[[Cost item]:[Cost item]],0),MATCH(K$9,Calc_TUV_Env_1[[#Headers],[Ausnet]:[United Energy]],0))*1000 -> -9.035278798e-07 | L12: =INDEX(Calc_TUV_Env_1[[Ausnet]:[United Energy]],MATCH($H12,Calc_TUV_Env_1[[Cost item]:[Cost item]],0),MATCH(L$9,Calc_TUV_Env_1[[#Headers],[Ausnet]:[United Energy]],0))*1000 -> -8.731479823e-07 | M12: =INDEX(Calc_TUV_Env_1[[Ausnet]:[United Energy]],MATCH($H12,Calc_TUV_Env_1[[Cost item]:[Cost item]],0),MATCH(M$9,Calc_TUV_Env_1[[#Headers],[Ausnet]:[United Energy]],0))*1000 -> -8.76974482e-07 | N12: =INDEX(Calc_TUV_Env_1[[Ausnet]:[United Energy]],MATCH($H12,Calc_TUV_Env_1[[Cost item]:[Cost item]],0),MATCH(N$9,Calc_TUV_Env_1[[#Headers],[Ausnet]:[United Energy]],0))*1000 -> -8.913781095e-07 | O12: =INDEX(Calc_TUV_Env_1[[Ausnet]:[United Energy]],MATCH($H12,Calc_TUV_Env_1[[Cost item]:[Cost item]],0),MATCH(O$9,Calc_TUV_Env_1[[#Headers],[Ausnet]:[United Energy]],0))*1000 -> -8.742030864e-07 | P12: =IFERROR(AVERAGE(K12:O12),"-") -> -8.83846308e-07
C14: Calc_TUV_Env_1
C15: Cost item | D15: VDO decision | E15: Decision/Actual | F15: Decision ref | G15: Pass through (Yes/No) | H15: Fixed/Variable | I15: Unit | J15: Customer type | K15: Ausnet | L15: Citipower | M15: Jemena | N15: Powercor | O15: United Energy
C17: Large-scale renewable energy target (LRET) | G17: =INDEX(Input_TU_YesNo[],MATCH(Calc_TUV_Env_1[[#This Row],[Cost item]],Input_TU_YesNo[Component],0),MATCH($D$5,Inputs!$C$227:$BM$227,0)) -> Yes
C18: Large-scale renewable energy target (LRET) - Price | D18: =$D$5 -> VDO 2025-26 - Draft | E18: Actual | F18: =INDEX(Inputs!$C$17:$AZ$17,1,MATCH($D18,Inputs!$C$15:$AZ$15,0)) -> D-NextVDO_Input2 | H18: Variable | I18: $/certificate | J18: All | K18: =IFERROR(INDEX(Input_TUEnv_Actual[],MATCH($C18,Input_TUEnv_Actual[Cost item],0),MATCH($F18,Input_TUEnv_Actual[#Headers],0)),"-") -> 49.03 | L18: =IFERROR(INDEX(Input_TUEnv_Actual[],MATCH($C18,Input_TUEnv_Actual[Cost item],0),MATCH($F18,Input_TUEnv_Actual[#Headers],0)),"-") -> 49.03 | M18: =IFERROR(INDEX(Input_TUEnv_Actual[],MATCH($C18,Input_TUEnv_Actual[Cost item],0),MATCH($F18,Input_TUEnv_Actual[#Headers],0)),"-") -> 49.03 | N18: =IFERROR(INDEX(Input_TUEnv_Actual[],MATCH($C18,Input_TUEnv_Actual[Cost item],0),MATCH($F18,Input_TUEnv_Actual[#Headers],0)),"-") -> 49.03 | O18: =IFERROR(INDEX(Input_TUEnv_Actual[],MATCH($C18,Input_TUEnv_Actual[Cost item],0),MATCH($F18,Input_TUEnv_Actual[#Headers],0)),"-") -> 49.03
C19: Large-scale renewable energy target (LRET) - Liability | D19: =$D$5 -> VDO 2025-26 - Draft | E19: Actual | F19: =INDEX(Inputs!$C$17:$AZ$17,1,MATCH($D19,Inputs!$C$15:$AZ$15,0)) -> D-NextVDO_Input2 | H19: Variable | I19: %/year | J19: All | K19: =IFERROR(INDEX(Input_TUEnv_Actual[],MATCH($C19,Input_TUEnv_Actual[Cost item],0),MATCH($F19,Input_TUEnv_Actual[#Headers],0)),"-") -> 0.18195 | L19: =IFERROR(INDEX(Input_TUEnv_Actual[],MATCH($C19,Input_TUEnv_Actual[Cost item],0),MATCH($F19,Input_TUEnv_Actual[#Headers],0)),"-") -> 0.18195 | M19: =IFERROR(INDEX(Input_TUEnv_Actual[],MATCH($C19,Input_TUEnv_Actual[Cost item],0),MATCH($F19,Input_TUEnv_Actual[#Headers],0)),"-") -> 0.18195 | N19: =IFERROR(INDEX(Input_TUEnv_Actual[],MATCH($C19,Input_TUEnv_Actual[Cost item],0),MATCH($F19,Input_TUEnv_Actual[#Headers],0)),"-") -> 0.18195 | O19: =IFERROR(INDEX(Input_TUEnv_Actual[],MATCH($C19,Input_TUEnv_Actual[Cost item],0),MATCH($F19,Input_TUEnv_Actual[#Headers],0)),"-") -> 0.18195
C20: Cost | D20: =$D$5 -> VDO 2025-26 - Draft | E20: Actual | F20: =INDEX(Inputs!$C$17:$AZ$17,1,MATCH($D20,Inputs!$C$15:$AZ$15,0)) -> D-NextVDO_Input2 | H20: Variable | I20: $/kWh | J20: All | K20: =K18*K19/1000 -> 0.0089210085 | L20: =L18*L19/1000 -> 0.0089210085 | M20: =M18*M19/1000 -> 0.0089210085 | N20: =N18*N19/1000 -> 0.0089210085 | O20: =O18*O19/1000 -> 0.0089210085
C21: Large-scale renewable energy target (LRET) - Price | D21: =INDEX(Input_DecisionActual[[Decision]:[Decision]],MATCH($D$5,Input_DecisionActual[[VDO period]:[VDO period]],0),1) -> VDO 2024-25 - Final | E21: Decision | F21: =IF($D21="-","-",INDEX(Inputs!$C$17:$AZ$17,1,MATCH($D21,Inputs!$C$15:$AZ$15,0))) -> F-NextVDO_Input | H21: Variable | I21: $/certificate | J21: All | K21: =IFERROR(INDEX(Inputs!$C$18:$AZ$148,MATCH($C21,Input_ForRateCalc[Cost item],0),MATCH($F21,Inputs!$C$17:$AZ$17,0)),"-") -> 49.03 | L21: =IFERROR(INDEX(Inputs!$C$18:$AZ$148,MATCH($C21,Input_ForRateCalc[Cost item],0),MATCH($F21,Inputs!$C$17:$AZ$17,0)),"-") -> 49.03 | M21: =IFERROR(INDEX(Inputs!$C$18:$AZ$148,MATCH($C21,Input_ForRateCalc[Cost item],0),MATCH($F21,Inputs!$C$17:$AZ$17,0)),"-") -> 49.03 | N21: =IFERROR(INDEX(Inputs!$C$18:$AZ$148,MATCH($C21,Input_ForRateCalc[Cost item],0),MATCH($F21,Inputs!$C$17:$AZ$17,0)),"-") -> 49.03 | O21: =IFERROR(INDEX(Inputs!$C$18:$AZ$148,MATCH($C21,Input_ForRateCalc[Cost item],0),MATCH($F21,Inputs!$C$17:$AZ$17,0)),"-") -> 49.03
C22: Large-scale renewable energy target (LRET) - Liability | D22: =INDEX(Input_DecisionActual[[Decision]:[Decision]],MATCH($D$5,Input_DecisionActual[[VDO period]:[VDO period]],0),1) -> VDO 2024-25 - Final | E22: Decision | F22: =IF($D22="-","-",INDEX(Inputs!$C$17:$AZ$17,1,MATCH($D22,Inputs!$C$15:$AZ$15,0))) -> F-NextVDO_Input | H22: Variable | I22: %/year | J22: All | K22: =IFERROR(INDEX(Inputs!$C$18:$AZ$148,MATCH($C22,Input_ForRateCalc[Cost item],0),MATCH($F22,Inputs!$C$17:$AZ$17,0)),"-") -> 0.1848 | L22: =IFERROR(INDEX(Inputs!$C$18:$AZ$148,MATCH($C22,Input_ForRateCalc[Cost item],0),MATCH($F22,Inputs!$C$17:$AZ$17,0)),"-") -> 0.1848 | M22: =IFERROR(INDEX(Inputs!$C$18:$AZ$148,MATCH($C22,Input_ForRateCalc[Cost item],0),MATCH($F22,Inputs!$C$17:$AZ$17,0)),"-") -> 0.1848 | N22: =IFERROR(INDEX(Inputs!$C$18:$AZ$148,MATCH($C22,Input_ForRateCalc[Cost item],0),MATCH($F22,Inputs!$C$17:$AZ$17,0)),"-") -> 0.1848 | O22: =IFERROR(INDEX(Inputs!$C$18:$AZ$148,MATCH($C22,Input_ForRateCalc[Cost item],0),MATCH($F22,Inputs!$C$17:$AZ$17,0)),"-") -> 0.1848
C23: Cost | D23: =INDEX(Input_DecisionActual[[Decision]:[Decision]],MATCH($D$5,Input_DecisionActual[[VDO period]:[VDO period]],0),1) -> VDO 2024-25 - Final | E23: Decision | F23: =IF($D23="-","-",INDEX(Inputs!$C$17:$AZ$17,1,MATCH($D23,Inputs!$C$15:$AZ$15,0))) -> F-NextVDO_Input | H23: Variable | I23: $/kWh | J23: All | K23: =IFERROR(K21*K22/1000,"-") -> 0.009060744 | L23: =IFERROR(L21*L22/1000,"-") -> 0.009060744 | M23: =IFERROR(M21*M22/1000,"-") -> 0.009060744 | N23: =IFERROR(N21*N22/1000,"-") -> 0.009060744 | O23: =IFERROR(O21*O22/1000,"-") -> 0.009060744
C24: Difference | H24: Variable | I24: $/kWh | J24: All | K24: =IFERROR(K20-K23,"-") -> -0.0001397355 | L24: =IFERROR(L20-L23,"-") -> -0.0001397355 | M24: =IFERROR(M20-M23,"-") -> -0.0001397355 | N24: =IFERROR(N20-N23,"-") -> -0.0001397355 | O24: =IFERROR(O20-O23,"-") -> -0.0001397355
C25: Network loss adjustment | D25: =INDEX(Input_DecisionActual[[Decision]:[Decision]],MATCH($D$5,Input_DecisionActual[[VDO period]:[VDO period]],0),1) -> VDO 2024-25 - Final | E25: Decision | F25: =IF($D25="-","-",INDEX(Inputs!$C$17:$AZ$17,1,MATCH($D25,Inputs!$C$15:$AZ$15,0))) -> F-NextVDO_Input | H25: Variable | I25: $/kWh | J25: All | K25: =IFERROR(K24*(INDEX(Inputs!$C$18:$AZ$148,MATCH("Marginal loss factor - "&K$15,Input_ForRateCalc[Cost item],0),MATCH($F25,Inputs!$C$17:$AZ$17,0))*INDEX(Inputs!$C$18:$AZ$148,MATCH("Distribution loss factor - "&K$15,Input_ForRateCalc[Cost item],0),MATCH($F25,Inputs!$C$17:$AZ$17,0))-1),"-") -> -1.11117692e-05 | L25: =IFERROR(L24*(INDEX(Inputs!$C$18:$AZ$148,MATCH("Marginal loss factor - "&L$15,Input_ForRateCalc[Cost item],0),MATCH($F25,Inputs!$C$17:$AZ$17,0))*INDEX(Inputs!$C$18:$AZ$148,MATCH("Distribution loss factor - "&L$15,Input_ForRateCalc[Cost item],0),MATCH($F25,Inputs!$C$17:$AZ$17,0))-1),"-") -> -6.039734696e-06 | M25: =IFERROR(M24*(INDEX(Inputs!$C$18:$AZ$148,MATCH("Marginal loss factor - "&M$15,Input_ForRateCalc[Cost item],0),MATCH($F25,Inputs!$C$17:$AZ$17,0))*INDEX(Inputs!$C$18:$AZ$148,MATCH("Distribution loss factor - "&M$15,Input_ForRateCalc[Cost item],0),MATCH($F25,Inputs!$C$17:$AZ$17,0))-1),"-") -> -6.678582765e-06 | N25: =IFERROR(N24*(INDEX(Inputs!$C$18:$AZ$148,MATCH("Marginal loss factor - "&N$15,Input_ForRateCalc[Cost item],0),MATCH($F25,Inputs!$C$17:$AZ$17,0))*INDEX(Inputs!$C$18:$AZ$148,MATCH("Distribution loss factor - "&N$15,Input_ForRateCalc[Cost item],0),MATCH($F25,Inputs!$C$17:$AZ$17,0))-1),"-") -> -9.08332081e-06 | O25: =IFERROR(O24*(INDEX(Inputs!$C$18:$AZ$148,MATCH("Marginal loss factor - "&O$15,Input_ForRateCalc[Cost item],0),MATCH($F25,Inputs!$C$17:$AZ$17,0))*INDEX(Inputs!$C$18:$AZ$148,MATCH("Distribution loss factor - "&O$15,Input_ForRateCalc[Cost item],0),MATCH($F25,Inputs!$C$17:$AZ$17,0))-1),"-") -> -6.215888164e-06
C26: Profit margin adjustment | D26: =INDEX(Input_DecisionActual[[Decision]:[Decision]],MATCH($D$5,Input_DecisionActual[[VDO period]:[VDO period]],0),1) -> VDO 2024-25 - Final | E26: Decision | F26: =IF($D26="-","-",INDEX(Inputs!$C$17:$AZ$17,1,MATCH($D26,Inputs!$C$15:$AZ$15,0))) -> F-NextVDO_Input | H26: Variable | I26: $/kWh | J26: All | K26: =IFERROR(SUM(K24:K25)*(INDEX(Inputs!$C$18:$AZ$148,MATCH("Retail operating margin",Input_ForRateCalc[Cost item],0),MATCH($F26,Inputs!$C$17:$AZ$17,0))),"-") -> -8.447447075e-06 | L26: =IFERROR(SUM(L24:L25)*(INDEX(Inputs!$C$18:$AZ$148,MATCH("Retail operating margin",Input_ForRateCalc[Cost item],0),MATCH($F26,Inputs!$C$17:$AZ$17,0))),"-") -> -8.163413143e-06 | M26: =IFERROR(SUM(M24:M25)*(INDEX(Inputs!$C$18:$AZ$148,MATCH("Retail operating margin",Input_ForRateCalc[Cost item],0),MATCH($F26,Inputs!$C$17:$AZ$17,0))),"-") -> -8.199188635e-06 | N26: =IFERROR(SUM(N24:N25)*(INDEX(Inputs!$C$18:$AZ$148,MATCH("Retail operating margin",Input_ForRateCalc[Cost item],0),MATCH($F26,Inputs!$C$17:$AZ$17,0))),"-") -> -8.333853965e-06 | O26: =IFERROR(SUM(O24:O25)*(INDEX(Inputs!$C$18:$AZ$148,MATCH("Retail operating margin",Input_ForRateCalc[Cost item],0),MATCH($F26,Inputs!$C$17:$AZ$17,0))),"-") -> -8.173277737e-06
C27: GST adjustment | H27: Variable | I27: $/kWh | J27: All | K27: =SUM(K24:K26)*GST -> -1.592947163e-05 | L27: =SUM(L24:L26)*GST -> -1.539386478e-05 | M27: =SUM(M24:M26)*GST -> -1.546132714e-05 | N27: =SUM(N24:N26)*GST -> -1.571526748e-05 | O27: =SUM(O24:O26)*GST -> -1.541246659e-05
C28: LRET True up | H28: Variable | I28: $/kWh | J28: All | K28: =SUM(K24:K27) -> -0.0001752241879 | L28: =SUM(L24:L27) -> -0.0001693325126 | M28: =SUM(M24:M27) -> -0.0001700745985 | N28: =SUM(N24:N27) -> -0.0001728679423 | O28: =SUM(O24:O27) -> -0.0001695371325
C30: Small-scale renewable energy scheme (SRES) | G30: =INDEX(Input_TU_YesNo[],MATCH(Calc_TUV_Env_1[[#This Row],[Cost item]],Input_TU_YesNo[Component],0),MATCH($D$5,Inputs!$C$227:$BM$227,0)) -> Yes
C31: Small-scale renewable energy scheme (SRES) - Price | D31: =$D$5 -> VDO 2025-26 - Draft | E31: Actual | F31: =INDEX(Inputs!$C$17:$AZ$17,1,MATCH($D31,Inputs!$C$15:$AZ$15,0)) -> D-NextVDO_Input2 | H31: Variable | I31: $/certificate | J31: All | K31: =IFERROR(INDEX(Input_TUEnv_Actual[],MATCH($C31,Input_TUEnv_Actual[Cost item],0),MATCH($F31,Input_TUEnv_Actual[#Headers],0)),"-") -> 40 | L31: =IFERROR(INDEX(Input_TUEnv_Actual[],MATCH($C31,Input_TUEnv_Actual[Cost item],0),MATCH($F31,Input_TUEnv_Actual[#Headers],0)),"-") -> 40 | M31: =IFERROR(INDEX(Input_TUEnv_Actual[],MATCH($C31,Input_TUEnv_Actual[Cost item],0),MATCH($F31,Input_TUEnv_Actual[#Headers],0)),"-") -> 40 | N31: =IFERROR(INDEX(Input_TUEnv_Actual[],MATCH($C31,Input_TUEnv_Actual[Cost item],0),MATCH($F31,Input_TUEnv_Actual[#Headers],0)),"-") -> 40 | O31: =IFERROR(INDEX(Input_TUEnv_Actual[],MATCH($C31,Input_TUEnv_Actual[Cost item],0),MATCH($F31,Input_TUEnv_Actual[#Headers],0)),"-") -> 40
C32: Small-scale renewable energy scheme (SRES) - Liability | D32: =$D$5 -> VDO 2025-26 - Draft | E32: Actual | F32: =INDEX(Inputs!$C$17:$AZ$17,1,MATCH($D32,Inputs!$C$15:$AZ$15,0)) -> D-NextVDO_Input2 | H32: Variable | I32: %/year | J32: All | K32: =IFERROR(INDEX(Input_TUEnv_Actual[],MATCH($C32,Input_TUEnv_Actual[Cost item],0),MATCH($F32,Input_TUEnv_Actual[#Headers],0)),"-") -> 0.17575 | L32: =IFERROR(INDEX(Input_TUEnv_Actual[],MATCH($C32,Input_TUEnv_Actual[Cost item],0),MATCH($F32,Input_TUEnv_Actual[#Headers],0)),"-") -> 0.17575 | M32: =IFERROR(INDEX(Input_TUEnv_Actual[],MATCH($C32,Input_TUEnv_Actual[Cost item],0),MATCH($F32,Input_TUEnv_Actual[#Headers],0)),"-") -> 0.17575 | N32: =IFERROR(INDEX(Input_TUEnv_Actual[],MATCH($C32,Input_TUEnv_Actual[Cost item],0),MATCH($F32,Input_TUEnv_Actual[#Headers],0)),"-") -> 0.17575 | O32: =IFERROR(INDEX(Input_TUEnv_Actual[],MATCH($C32,Input_TUEnv_Actual[Cost item],0),MATCH($F32,Input_TUEnv_Actual[#Headers],0)),"-") -> 0.17575
C33: Cost | D33: =$D$5 -> VDO 2025-26 - Draft | E33: Actual | F33: =INDEX(Inputs!$C$17:$AZ$17,1,MATCH($D33,Inputs!$C$15:$AZ$15,0)) -> D-NextVDO_Input2 | H33: Variable | I33: $/kWh | J33: All | K33: =K31*K32/1000 -> 0.00703 | L33: =L31*L32/1000 -> 0.00703 | M33: =M31*M32/1000 -> 0.00703 | N33: =N31*N32/1000 -> 0.00703 | O33: =O31*O32/1000 -> 0.00703
C34: Small-scale renewable energy scheme (SRES) - Price | D34: =INDEX(Input_DecisionActual[[Decision]:[Decision]],MATCH($D$5,Input_DecisionActual[[VDO period]:[VDO period]],0),1) -> VDO 2024-25 - Final | E34: Decision | F34: =IF($D34="-","-",INDEX(Inputs!$C$17:$AZ$17,1,MATCH($D34,Inputs!$C$15:$AZ$15,0))) -> F-NextVDO_Input | H34: Variable | I34: $/certificate | J34: All | K34: =IFERROR(INDEX(Inputs!$C$18:$AZ$148,MATCH($C34,Input_ForRateCalc[Cost item],0),MATCH($F34,Inputs!$C$17:$AZ$17,0)),"-") -> 40 | L34: =IFERROR(INDEX(Inputs!$C$18:$AZ$148,MATCH($C34,Input_ForRateCalc[Cost item],0),MATCH($F34,Inputs!$C$17:$AZ$17,0)),"-") -> 40 | M34: =IFERROR(INDEX(Inputs!$C$18:$AZ$148,MATCH($C34,Input_ForRateCalc[Cost item],0),MATCH($F34,Inputs!$C$17:$AZ$17,0)),"-") -> 40 | N34: =IFERROR(INDEX(Inputs!$C$18:$AZ$148,MATCH($C34,Input_ForRateCalc[Cost item],0),MATCH($F34,Inputs!$C$17:$AZ$17,0)),"-") -> 40 | O34: =IFERROR(INDEX(Inputs!$C$18:$AZ$148,MATCH($C34,Input_ForRateCalc[Cost item],0),MATCH($F34,Inputs!$C$17:$AZ$17,0)),"-") -> 40
C35: Small-scale renewable energy scheme (SRES) - Liability | D35: =INDEX(Input_DecisionActual[[Decision]:[Decision]],MATCH($D$5,Input_DecisionActual[[VDO period]:[VDO period]],0),1) -> VDO 2024-25 - Final | E35: Decision | F35: =IF($D35="-","-",INDEX(Inputs!$C$17:$AZ$17,1,MATCH($D35,Inputs!$C$15:$AZ$15,0))) -> F-NextVDO_Input | H35: Variable | I35: %/year | J35: All | K35: =IFERROR(INDEX(Inputs!$C$18:$AZ$148,MATCH($C35,Input_ForRateCalc[Cost item],0),MATCH($F35,Inputs!$C$17:$AZ$17,0)),"-") -> 0.187 | L35: =IFERROR(INDEX(Inputs!$C$18:$AZ$148,MATCH($C35,Input_ForRateCalc[Cost item],0),MATCH($F35,Inputs!$C$17:$AZ$17,0)),"-") -> 0.187 | M35: =IFERROR(INDEX(Inputs!$C$18:$AZ$148,MATCH($C35,Input_ForRateCalc[Cost item],0),MATCH($F35,Inputs!$C$17:$AZ$17,0)),"-") -> 0.187 | N35: =IFERROR(INDEX(Inputs!$C$18:$AZ$148,MATCH($C35,Input_ForRateCalc[Cost item],0),MATCH($F35,Inputs!$C$17:$AZ$17,0)),"-") -> 0.187 | O35: =IFERROR(INDEX(Inputs!$C$18:$AZ$148,MATCH($C35,Input_ForRateCalc[Cost item],0),MATCH($F35,Inputs!$C$17:$AZ$17,0)),"-") -> 0.187
C36: Cost | D36: =INDEX(Input_DecisionActual[[Decision]:[Decision]],MATCH($D$5,Input_DecisionActual[[VDO period]:[VDO period]],0),1) -> VDO 2024-25 - Final | E36: Decision | F36: =IF($D36="-","-",INDEX(Inputs!$C$17:$AZ$17,1,MATCH($D36,Inputs!$C$15:$AZ$15,0))) -> F-NextVDO_Input | H36: Variable | I36: $/kWh | J36: All | K36: =IFERROR(K34*K35/1000,"-") -> 0.00748 | L36: =IFERROR(L34*L35/1000,"-") -> 0.00748 | M36: =IFERROR(M34*M35/1000,"-") -> 0.00748 | N36: =IFERROR(N34*N35/1000,"-") -> 0.00748 | O36: =IFERROR(O34*O35/1000,"-") -> 0.00748
C37: Difference | H37: Variable | I37: $/kWh | J37: All | K37: =IFERROR(K33-K36,"-") -> -0.00045 | L37: =IFERROR(L33-L36,"-") -> -0.00045 | M37: =IFERROR(M33-M36,"-") -> -0.00045 | N37: =IFERROR(N33-N36,"-") -> -0.00045 | O37: =IFERROR(O33-O36,"-") -> -0.00045
C38: Network loss adjustment | D38: =INDEX(Input_DecisionActual[[Decision]:[Decision]],MATCH($D$5,Input_DecisionActual[[VDO period]:[VDO period]],0),1) -> VDO 2024-25 - Final | E38: Decision | F38: =IF($D38="-","-",INDEX(Inputs!$C$17:$AZ$17,1,MATCH($D38,Inputs!$C$15:$AZ$15,0))) -> F-NextVDO_Input | H38: Variable | I38: $/kWh | J38: All | K38: =IFERROR(K37*(INDEX(Inputs!$C$18:$AZ$148,MATCH("Marginal loss factor - "&K$15,Input_ForRateCalc[Cost item],0),MATCH($F38,Inputs!$C$17:$AZ$17,0))*INDEX(Inputs!$C$18:$AZ$148,MATCH("Distribution loss factor - "&K$15,Input_ForRateCalc[Cost item],0),MATCH($F38,Inputs!$C$17:$AZ$17,0))-1),"-") -> -3.578400721e-05 | L38: =IFERROR(L37*(INDEX(Inputs!$C$18:$AZ$148,MATCH("Marginal loss factor - "&L$15,Input_ForRateCalc[Cost item],0),MATCH($F38,Inputs!$C$17:$AZ$17,0))*INDEX(Inputs!$C$18:$AZ$148,MATCH("Distribution loss factor - "&L$15,Input_ForRateCalc[Cost item],0),MATCH($F38,Inputs!$C$17:$AZ$17,0))-1),"-") -> -1.94501799e-05 | M38: =IFERROR(M37*(INDEX(Inputs!$C$18:$AZ$148,MATCH("Marginal loss factor - "&M$15,Input_ForRateCalc[Cost item],0),MATCH($F38,Inputs!$C$17:$AZ$17,0))*INDEX(Inputs!$C$18:$AZ$148,MATCH("Distribution loss factor - "&M$15,Input_ForRateCalc[Cost item],0),MATCH($F38,Inputs!$C$17:$AZ$17,0))-1),"-") -> -2.1507507e-05 | N38: =IFERROR(N37*(INDEX(Inputs!$C$18:$AZ$148,MATCH("Marginal loss factor - "&N$15,Input_ForRateCalc[Cost item],0),MATCH($F38,Inputs!$C$17:$AZ$17,0))*INDEX(Inputs!$C$18:$AZ$148,MATCH("Distribution loss factor - "&N$15,Input_ForRateCalc[Cost item],0),MATCH($F38,Inputs!$C$17:$AZ$17,0))-1),"-") -> -2.925165305e-05 | O38: =IFERROR(O37*(INDEX(Inputs!$C$18:$AZ$148,MATCH("Marginal loss factor - "&O$15,Input_ForRateCalc[Cost item],0),MATCH($F38,Inputs!$C$17:$AZ$17,0))*INDEX(Inputs!$C$18:$AZ$148,MATCH("Distribution loss factor - "&O$15,Input_ForRateCalc[Cost item],0),MATCH($F38,Inputs!$C$17:$AZ$17,0))-1),"-") -> -2.001745923e-05
C39: Profit margin adjustment | D39: =INDEX(Input_DecisionActual[[Decision]:[Decision]],MATCH($D$5,Input_DecisionActual[[VDO period]:[VDO period]],0),1) -> VDO 2024-25 - Final | E39: Decision | F39: =IF($D39="-","-",INDEX(Inputs!$C$17:$AZ$17,1,MATCH($D39,Inputs!$C$15:$AZ$15,0))) -> F-NextVDO_Input | H39: Variable | I39: $/kWh | J39: All | K39: =IFERROR(SUM(K37:K38)*(INDEX(Inputs!$C$18:$AZ$148,MATCH("Retail operating margin",Input_ForRateCalc[Cost item],0),MATCH($F39,Inputs!$C$17:$AZ$17,0))),"-") -> -2.72039044e-05 | L39: =IFERROR(SUM(L37:L38)*(INDEX(Inputs!$C$18:$AZ$148,MATCH("Retail operating margin",Input_ForRateCalc[Cost item],0),MATCH($F39,Inputs!$C$17:$AZ$17,0))),"-") -> -2.628921007e-05 | M39: =IFERROR(SUM(M37:M38)*(INDEX(Inputs!$C$18:$AZ$148,MATCH("Retail operating margin",Input_ForRateCalc[Cost item],0),MATCH($F39,Inputs!$C$17:$AZ$17,0))),"-") -> -2.640442039e-05 | N39: =IFERROR(SUM(N37:N38)*(INDEX(Inputs!$C$18:$AZ$148,MATCH("Retail operating margin",Input_ForRateCalc[Cost item],0),MATCH($F39,Inputs!$C$17:$AZ$17,0))),"-") -> -2.683809257e-05 | O39: =IFERROR(SUM(O37:O38)*(INDEX(Inputs!$C$18:$AZ$148,MATCH("Retail operating margin",Input_ForRateCalc[Cost item],0),MATCH($F39,Inputs!$C$17:$AZ$17,0))),"-") -> -2.632097772e-05
C40: GST adjustment | H40: Variable | I40: $/kWh | J40: All | K40: =SUM(K37:K39)*GST -> -5.129879116e-05 | L40: =SUM(L37:L39)*GST -> -4.9573939e-05 | M40: =SUM(M37:M39)*GST -> -4.979119274e-05 | N40: =SUM(N37:N39)*GST -> -5.060897456e-05 | O40: =SUM(O37:O39)*GST -> -4.963384369e-05
C41: SRES True up | H41: Variable | I41: $/kWh | J41: All | K41: =SUM(K37:K40) -> -0.0005642867028 | L41: =SUM(L37:L40) -> -0.000545313329 | M41: =SUM(M37:M40) -> -0.0005477031201 | N41: =SUM(N37:N40) -> -0.0005566987202 | O41: =SUM(O37:O40) -> -0.0005459722806
C43: Victorian energy upgrades (VEU) | G43: =INDEX(Input_TU_YesNo[],MATCH(Calc_TUV_Env_1[[#This Row],[Cost item]],Input_TU_YesNo[Component],0),MATCH($D$5,Inputs!$C$227:$BM$227,0)) -> No
C44: Victorian energy upgrades (VEU) - Price | D44: =$D$5 -> VDO 2025-26 - Draft | E44: Actual | F44: =INDEX(Inputs!$C$17:$AZ$17,1,MATCH($D44,Inputs!$C$15:$AZ$15,0)) -> D-NextVDO_Input2 | H44: Variable | I44: $/certificate | J44: All | K44: =IFERROR(INDEX(Input_TUEnv_Actual[],MATCH($C44,Input_TUEnv_Actual[Cost item],0),MATCH($F44,Input_TUEnv_Actual[#Headers],0)),"-") -> 87.00931 | L44: =IFERROR(INDEX(Input_TUEnv_Actual[],MATCH($C44,Input_TUEnv_Actual[Cost item],0),MATCH($F44,Input_TUEnv_Actual[#Headers],0)),"-") -> 87.00931 | M44: =IFERROR(INDEX(Input_TUEnv_Actual[],MATCH($C44,Input_TUEnv_Actual[Cost item],0),MATCH($F44,Input_TUEnv_Actual[#Headers],0)),"-") -> 87.00931 | N44: =IFERROR(INDEX(Input_TUEnv_Actual[],MATCH($C44,Input_TUEnv_Actual[Cost item],0),MATCH($F44,Input_TUEnv_Actual[#Headers],0)),"-") -> 87.00931 | O44: =IFERROR(INDEX(Input_TUEnv_Actual[],MATCH($C44,Input_TUEnv_Actual[Cost item],0),MATCH($F44,Input_TUEnv_Actual[#Headers],0)),"-") -> 87.00931
C45: Victorian energy upgrades (VEU) - Liability | D45: =$D$5 -> VDO 2025-26 - Draft | E45: Actual | F45: =INDEX(Inputs!$C$17:$AZ$17,1,MATCH($D45,Inputs!$C$15:$AZ$15,0)) -> D-NextVDO_Input2 | H45: Variable | I45: %/year | J45: All | K45: =IFERROR(INDEX(Input_TUEnv_Actual[],MATCH($C45,Input_TUEnv_Actual[Cost item],0),MATCH($F45,Input_TUEnv_Actual[#Headers],0)),"-") -> 0.15244 | L45: =IFERROR(INDEX(Input_TUEnv_Actual[],MATCH($C45,Input_TUEnv_Actual[Cost item],0),MATCH($F45,Input_TUEnv_Actual[#Headers],0)),"-") -> 0.15244 | M45: =IFERROR(INDEX(Input_TUEnv_Actual[],MATCH($C45,Input_TUEnv_Actual[Cost item],0),MATCH($F45,Input_TUEnv_Actual[#Headers],0)),"-") -> 0.15244 | N45: =IFERROR(INDEX(Input_TUEnv_Actual[],MATCH($C45,Input_TUEnv_Actual[Cost item],0),MATCH($F45,Input_TUEnv_Actual[#Headers],0)),"-") -> 0.15244 | O45: =IFERROR(INDEX(Input_TUEnv_Actual[],MATCH($C45,Input_TUEnv_Actual[Cost item],0),MATCH($F45,Input_TUEnv_Actual[#Headers],0)),"-") -> 0.15244
C46: Cost | D46: =$D$5 -> VDO 2025-26 - Draft | E46: Actual | F46: =INDEX(Inputs!$C$17:$AZ$17,1,MATCH($D46,Inputs!$C$15:$AZ$15,0)) -> D-NextVDO_Input2 | H46: Variable | I46: $/kWh | J46: All | K46: =K44*K45/1000 -> 0.01326369922 | L46: =L44*L45/1000 -> 0.01326369922 | M46: =M44*M45/1000 -> 0.01326369922 | N46: =N44*N45/1000 -> 0.01326369922 | O46: =O44*O45/1000 -> 0.01326369922
C47: Victorian energy upgrades (VEU) - Price | D47: =INDEX(Input_DecisionActual[[Decision]:[Decision]],MATCH($D$5,Input_DecisionActual[[VDO period]:[VDO period]],0),1) -> VDO 2024-25 - Final | E47: Decision | F47: =IF($D47="-","-",INDEX(Inputs!$C$17:$AZ$17,1,MATCH($D47,Inputs!$C$15:$AZ$15,0))) -> F-NextVDO_Input | H47: Variable | I47: $/certificate | J47: All | K47: =IFERROR(INDEX(Inputs!$C$18:$AZ$148,MATCH($C47,Input_ForRateCalc[Cost item],0),MATCH($F47,Inputs!$C$17:$AZ$17,0)),"-") -> 87.00931473 | L47: =IFERROR(INDEX(Inputs!$C$18:$AZ$148,MATCH($C47,Input_ForRateCalc[Cost item],0),MATCH($F47,Inputs!$C$17:$AZ$17,0)),"-") -> 87.00931473 | M47: =IFERROR(INDEX(Inputs!$C$18:$AZ$148,MATCH($C47,Input_ForRateCalc[Cost item],0),MATCH($F47,Inputs!$C$17:$AZ$17,0)),"-") -> 87.00931473 | N47: =IFERROR(INDEX(Inputs!$C$18:$AZ$148,MATCH($C47,Input_ForRateCalc[Cost item],0),MATCH($F47,Inputs!$C$17:$AZ$17,0)),"-") -> 87.00931473 | O47: =IFERROR(INDEX(Inputs!$C$18:$AZ$148,MATCH($C47,Input_ForRateCalc[Cost item],0),MATCH($F47,Inputs!$C$17:$AZ$17,0)),"-") -> 87.00931473
C48: Victorian energy upgrades (VEU) - Liability | D48: =INDEX(Input_DecisionActual[[Decision]:[Decision]],MATCH($D$5,Input_DecisionActual[[VDO period]:[VDO period]],0),1) -> VDO 2024-25 - Final | E48: Decision | F48: =IF($D48="-","-",INDEX(Inputs!$C$17:$AZ$17,1,MATCH($D48,Inputs!$C$15:$AZ$15,0))) -> F-NextVDO_Input | H48: Variable | I48: %/year | J48: All | K48: =IFERROR(INDEX(Inputs!$C$18:$AZ$148,MATCH($C48,Input_ForRateCalc[Cost item],0),MATCH($F48,Inputs!$C$17:$AZ$17,0)),"-") -> 0.15244 | L48: =IFERROR(INDEX(Inputs!$C$18:$AZ$148,MATCH($C48,Input_ForRateCalc[Cost item],0),MATCH($F48,Inputs!$C$17:$AZ$17,0)),"-") -> 0.15244 | M48: =IFERROR(INDEX(Inputs!$C$18:$AZ$148,MATCH($C48,Input_ForRateCalc[Cost item],0),MATCH($F48,Inputs!$C$17:$AZ$17,0)),"-") -> 0.15244 | N48: =IFERROR(INDEX(Inputs!$C$18:$AZ$148,MATCH($C48,Input_ForRateCalc[Cost item],0),MATCH($F48,Inputs!$C$17:$AZ$17,0)),"-") -> 0.15244 | O48: =IFERROR(INDEX(Inputs!$C$18:$AZ$148,MATCH($C48,Input_ForRateCalc[Cost item],0),MATCH($F48,Inputs!$C$17:$AZ$17,0)),"-") -> 0.15244
C49: Cost | D49: =INDEX(Input_DecisionActual[[Decision]:[Decision]],MATCH($D$5,Input_DecisionActual[[VDO period]:[VDO period]],0),1) -> VDO 2024-25 - Final | E49: Decision | F49: =IF($D49="-","-",INDEX(Inputs!$C$17:$AZ$17,1,MATCH($D49,Inputs!$C$15:$AZ$15,0))) -> F-NextVDO_Input | H49: Variable | I49: $/kWh | J49: All | K49: =IFERROR(K47*K48/1000,"-") -> 0.01326369994 | L49: =IFERROR(L47*L48/1000,"-") -> 0.01326369994 | M49: =IFERROR(M47*M48/1000,"-") -> 0.01326369994 | N49: =IFERROR(N47*N48/1000,"-") -> 0.01326369994 | O49: =IFERROR(O47*O48/1000,"-") -> 0.01326369994
C50: Difference | H50: Variable | I50: $/kWh | J50: All | K50: =IFERROR(K46-K49,"-") -> -7.205336293e-10 | L50: =IFERROR(L46-L49,"-") -> -7.205336293e-10 | M50: =IFERROR(M46-M49,"-") -> -7.205336293e-10 | N50: =IFERROR(N46-N49,"-") -> -7.205336293e-10 | O50: =IFERROR(O46-O49,"-") -> -7.205336293e-10
C51: Network loss adjustment | D51: =INDEX(Input_DecisionActual[[Decision]:[Decision]],MATCH($D$5,Input_DecisionActual[[VDO period]:[VDO period]],0),1) -> VDO 2024-25 - Final | E51: Decision | F51: =IF($D51="-","-",INDEX(Inputs!$C$17:$AZ$17,1,MATCH($D51,Inputs!$C$15:$AZ$15,0))) -> F-NextVDO_Input | H51: Variable | I51: $/kWh | J51: All | K51: =IFERROR(K50*(INDEX(Inputs!$C$18:$AZ$148,MATCH("Marginal loss factor - "&K$15,Input_ForRateCalc[Cost item],0),MATCH($F51,Inputs!$C$17:$AZ$17,0))*INDEX(Inputs!$C$18:$AZ$148,MATCH("Distribution loss factor - "&K$15,Input_ForRateCalc[Cost item],0),MATCH($F51,Inputs!$C$17:$AZ$17,0))-1),"-") -> -5.729684575e-11 | L51: =IFERROR(L50*(INDEX(Inputs!$C$18:$AZ$148,MATCH("Marginal loss factor - "&L$15,Input_ForRateCalc[Cost item],0),MATCH($F51,Inputs!$C$17:$AZ$17,0))*INDEX(Inputs!$C$18:$AZ$148,MATCH("Distribution loss factor - "&L$15,Input_ForRateCalc[Cost item],0),MATCH($F51,Inputs!$C$17:$AZ$17,0))-1),"-") -> -3.11433527e-11 | M51: =IFERROR(M50*(INDEX(Inputs!$C$18:$AZ$148,MATCH("Marginal loss factor - "&M$15,Input_ForRateCalc[Cost item],0),MATCH($F51,Inputs!$C$17:$AZ$17,0))*INDEX(Inputs!$C$18:$AZ$148,MATCH("Distribution loss factor - "&M$15,Input_ForRateCalc[Cost item],0),MATCH($F51,Inputs!$C$17:$AZ$17,0))-1),"-") -> -3.443751572e-11 | N51: =IFERROR(N50*(INDEX(Inputs!$C$18:$AZ$148,MATCH("Marginal loss factor - "&N$15,Input_ForRateCalc[Cost item],0),MATCH($F51,Inputs!$C$17:$AZ$17,0))*INDEX(Inputs!$C$18:$AZ$148,MATCH("Distribution loss factor - "&N$15,Input_ForRateCalc[Cost item],0),MATCH($F51,Inputs!$C$17:$AZ$17,0))-1),"-") -> -4.683733274e-11 | O51: =IFERROR(O50*(INDEX(Inputs!$C$18:$AZ$148,MATCH("Marginal loss factor - "&O$15,Input_ForRateCalc[Cost item],0),MATCH($F51,Inputs!$C$17:$AZ$17,0))*INDEX(Inputs!$C$18:$AZ$148,MATCH("Distribution loss factor - "&O$15,Input_ForRateCalc[Cost item],0),MATCH($F51,Inputs!$C$17:$AZ$17,0))-1),"-") -> -3.205167232e-11
C52: Profit margin adjustment | D52: =INDEX(Input_DecisionActual[[Decision]:[Decision]],MATCH($D$5,Input_DecisionActual[[VDO period]:[VDO period]],0),1) -> VDO 2024-25 - Final | E52: Decision | F52: =IF($D52="-","-",INDEX(Inputs!$C$17:$AZ$17,1,MATCH($D52,Inputs!$C$15:$AZ$15,0))) -> F-NextVDO_Input | H52: Variable | I52: $/kWh | J52: All | K52: =IFERROR(SUM(K50:K51)*(INDEX(Inputs!$C$18:$AZ$148,MATCH("Retail operating margin",Input_ForRateCalc[Cost item],0),MATCH($F52,Inputs!$C$17:$AZ$17,0))),"-") -> -4.35585066e-11 | L52: =IFERROR(SUM(L50:L51)*(INDEX(Inputs!$C$18:$AZ$148,MATCH("Retail operating margin",Input_ForRateCalc[Cost item],0),MATCH($F52,Inputs!$C$17:$AZ$17,0))),"-") -> -4.209391099e-11 | M52: =IFERROR(SUM(M50:M51)*(INDEX(Inputs!$C$18:$AZ$148,MATCH("Retail operating margin",Input_ForRateCalc[Cost item],0),MATCH($F52,Inputs!$C$17:$AZ$17,0))),"-") -> -4.227838412e-11 | N52: =IFERROR(SUM(N50:N51)*(INDEX(Inputs!$C$18:$AZ$148,MATCH("Retail operating margin",Input_ForRateCalc[Cost item],0),MATCH($F52,Inputs!$C$17:$AZ$17,0))),"-") -> -4.297277387e-11 | O52: =IFERROR(SUM(O50:O51)*(INDEX(Inputs!$C$18:$AZ$148,MATCH("Retail operating margin",Input_ForRateCalc[Cost item],0),MATCH($F52,Inputs!$C$17:$AZ$17,0))),"-") -> -4.214477689e-11
C53: GST adjustment | H53: Variable | I53: $/kWh | J53: All | K53: =SUM(K50:K52)*GST -> -8.213889816e-11 | L53: =SUM(L50:L52)*GST -> -7.93770893e-11 | M53: =SUM(M50:M52)*GST -> -7.972495291e-11 | N53: =SUM(N50:N52)*GST -> -8.103437359e-11 | O53: =SUM(O50:O52)*GST -> -7.947300785e-11
C54: VEU True up | H54: Variable | I54: $/kWh | J54: All | K54: =SUM(K50:K53) -> -9.035278798e-10 | L54: =SUM(L50:L53) -> -8.731479823e-10 | M54: =SUM(M50:M53) -> -8.76974482e-10 | N54: =SUM(N50:N53) -> -8.913781095e-10 | O54: =SUM(O50:O53) -> -8.742030864e-10
B56: =MAX(B$3:B55)+0.01 -> 6.02 | C56: Network costs
C58: Cost item | D58: Time period, decision/actual | G58: Pass through (Yes/No) | H58: Fixed/Variable | I58: Unit | J58: Customer type | K58: Ausnet | L58: Citipower | M58: Jemena | N58: Powercor | O58: United Energy | P58: VIC avg | Q58: AVG per month
C59: Anytime - Residential | K59: =SUM(K60:K61) -> 0 | L59: =SUM(L60:L61) -> 0 | M59: =SUM(M60:M61) -> 0 | N59: =SUM(N60:N61) -> 0 | O59: =SUM(O60:O61) -> 0 | P59: =IFERROR(AVERAGE(K59:O59),"-") -> 0 | Q59: =IFERROR(P59/ROUND($D$75/30,0),"-") -> -
C60: Fixed | K60: =K113 -> - | L60: =L113 -> - | M60: =M113 -> - | N60: =N113 -> - | O60: =O113 -> - | P60: =IFERROR(AVERAGE(K60:O60),"-") -> - | Q60: =IFERROR(P60/ROUND($D$75/30,0),"-") -> -
C61: Variable | K61: =K127 -> - | L61: =L127 -> - | M61: =M127 -> - | N61: =N127 -> - | O61: =O127 -> - | P61: - | Q61: -
C62: Anytime - Small business | K62: =SUM(K63:K64) -> 0 | L62: =SUM(L63:L64) -> 0 | M62: =SUM(M63:M64) -> 0 | N62: =SUM(N63:N64) -> 0 | O62: =SUM(O63:O64) -> 0 | P62: 0 | Q62: -
C63: Fixed | K63: =K151 -> - | L63: =L151 -> - | M63: =M151 -> - | N63: =N151 -> - | O63: =O151 -> - | P63: - | Q63: -
C64: Variable | K64: =K165 -> - | L64: =L165 -> - | M64: =M165 -> - | N64: =N165 -> - | O64: =O165 -> - | P64: - | Q64: -
C65: TOU - Residential | K65: =SUM(K66:K67) -> 0 | L65: =SUM(L66:L67) -> 0 | M65: =SUM(M66:M67) -> 0 | N65: =SUM(N66:N67) -> 0 | O65: =SUM(O66:O67) -> 0 | P65: 0 | Q65: -
C66: Fixed | K66: =K179 -> - | L66: =L179 -> - | M66: =M179 -> - | N66: =N179 -> - | O66: =O179 -> - | P66: - | Q66: -
C67: Variable | K67: =K192 -> - | L67: =L192 -> - | M67: =M192 -> - | N67: =N192 -> - | O67: =O192 -> - | P67: - | Q67: -
C68: TOU - Small business | K68: =SUM(K69:K70) -> 0 | L68: =SUM(L69:L70) -> 0 | M68: =SUM(M69:M70) -> 0 | N68: =SUM(N69:N70) -> 0 | O68: =SUM(O69:O70) -> 0 | P68: 0 | Q68: -
C69: Fixed | K69: =K205 -> - | L69: =L205 -> - | M69: =M205 -> - | N69: =N205 -> - | O69: =O205 -> - | P69: - | Q69: -
C70: Variable | K70: =K218 -> - | L70: =L218 -> - | M70: =M218 -> - | N70: =N218 -> - | O70: =O218 -> - | P70: - | Q70: -
I72: 1 month impact (TOU) | J72: Residential | K72: =IFERROR(K65/ROUND($D$75/30,0),"-") -> - | L72: =IFERROR(L65/ROUND($D$75/30,0),"-") -> - | M72: =IFERROR(M65/ROUND($D$75/30,0),"-") -> - | N72: =IFERROR(N65/ROUND($D$75/30,0),"-") -> - | O72: =IFERROR(O65/ROUND($D$75/30,0),"-") -> -
C73: Network true up cost start date | D73: =IFERROR(INDEX(Inputs!$H$17:$U$17,1,MATCH($D$5,Inputs!$H$15:$U$15,0)),"-") -> - | E73: =IFERROR(INDEX(#REF!,MATCH($C73,#REF!,0),MATCH($D73,#REF!,0)),"-") -> - | I73: 1 month impact (TOU) | J73: Small business | K73: =IFERROR(K68/ROUND($D$75/30,0),"-") -> - | L73: =IFERROR(L68/ROUND($D$75/30,0),"-") -> - | M73: =IFERROR(M68/ROUND($D$75/30,0),"-") -> - | N73: =IFERROR(N68/ROUND($D$75/30,0),"-") -> - | O73: =IFERROR(O68/ROUND($D$75/30,0),"-") -> -
C74: Network true up cost end date | D74: =IFERROR(INDEX(Inputs!$H$17:$U$17,1,MATCH($D$5,Inputs!$H$15:$U$15,0)),"-") -> - | E74: =IFERROR(INDEX(#REF!,MATCH($C74,#REF!,0),MATCH($D74,#REF!,0)),"-") -> -
C75: Cost recovery days | D75: =IFERROR(_xlfn.DAYS(E74,E73)+1,"-") -> -
C76: Proportion of annual | D76: =IFERROR(D75/DiY,0) -> 0
C80: TUNet_Usage_Actual_1
C81: Description | D81: VDO decision | E81: Customer type | F81: Value
C82: Total usage | D82: =INDEX(Inputs!$C$17:$AZ$17,1,MATCH($D$5,Inputs!$C$15:$AZ$15,0)) -> D-NextVDO_Input2 | E82: Residential | F82: =IFERROR(SUMIFS( INDEX(#REF!,0,MATCH(TUNet_Usage_Actual_1[[#This Row],[VDO decision]],#REF!,0)),#REF!, Calc_TU_values!E82,#REF!,Calc_TU_values!C82),"-") -> -
C83: Total customers | D83: =INDEX(Inputs!$C$17:$AZ$17,1,MATCH($D$5,Inputs!$C$15:$AZ$15,0)) -> D-NextVDO_Input2 | E83: Residential | F83: =IFERROR(SUMIFS( INDEX(#REF!,0,MATCH(TUNet_Usage_Actual_1[[#This Row],[VDO decision]],#REF!,0)),#REF!, Calc_TU_values!E83,#REF!,Calc_TU_values!C83),"-") -> -
C84: Usage per customer | D84: =INDEX(Inputs!$C$17:$AZ$17,1,MATCH($D$5,Inputs!$C$15:$AZ$15,0)) -> D-NextVDO_Input2 | E84: Residential | F84: =IFERROR(F82/F83,"-") -> -
C85: Total usage | D85: =INDEX(Inputs!$C$17:$AZ$17,1,MATCH($D$5,Inputs!$C$15:$AZ$15,0)) -> D-NextVDO_Input2 | E85: Small business | F85: =IFERROR(SUMIFS( INDEX(#REF!,0,MATCH(TUNet_Usage_Actual_1[[#This Row],[VDO decision]],#REF!,0)),#REF!, Calc_TU_values!E85,#REF!,Calc_TU_values!C85),"-") -> -
C86: Total customers | D86: =INDEX(Inputs!$C$17:$AZ$17,1,MATCH($D$5,Inputs!$C$15:$AZ$15,0)) -> D-NextVDO_Input2 | E86: Small business | F86: =IFERROR(SUMIFS( INDEX(#REF!,0,MATCH(TUNet_Usage_Actual_1[[#This Row],[VDO decision]],#REF!,0)),#REF!, Calc_TU_values!E86,#REF!,Calc_TU_values!C86),"-") -> -
C87: Usage per customer | D87: =INDEX(Inputs!$C$17:$AZ$17,1,MATCH($D$5,Inputs!$C$15:$AZ$15,0)) -> D-NextVDO_Input2 | E87: Small business | F87: =IFERROR(F85/F86,"-") -> -
C88: CL usage - True up proportion | D88: =INDEX(Inputs!$C$17:$AZ$17,1,MATCH($D$5,Inputs!$C$15:$AZ$15,0)) -> D-NextVDO_Input2 | E88: Residential | F88: =IFERROR(SUMIFS( INDEX(#REF!,0,MATCH(TUNet_Usage_Actual_1[[#This Row],[VDO decision]],#REF!,0)),#REF!, "Total usage - Controlled load",#REF!,TUNet_Usage_Actual_1[[#This Row],[Customer type]],#REF!,"July 2020 to August 2020") /SUMIFS( INDEX(#REF!,0,MATCH(TUNet_Usage_Actual_1[[#This Row],[VDO decision]],#REF!,0)),#REF!, "Total usage - Controlled load",#REF!,TUNet_Usage_Actual_1[[#This Row],[Customer type]],#REF!,"July 2020 to June 2021"),"-") -> -
C90: TUNet_Usage_PerRate_1
C91: Description | D91: VDO decision | E91: Customer type | F91: Ausnet | G91: Citipower | H91: Jemena | I91: Powercor | J91: United Energy
C92: Usage per customer - Block 1 | D92: =INDEX(Inputs!$C$17:$AZ$17,1,MATCH($D$5,Inputs!$C$15:$AZ$15,0)) -> D-NextVDO_Input2 | E92: Residential | F92: =IFERROR(IF(SUMIFS( INDEX(#REF!,0,MATCH(TUNet_Usage_PerRate_1[[#This Row],[VDO decision]],#REF!,0)),#REF!, $E92,#REF!,$C92&" - "&F$91)=0,"-",MIN(SUMIFS(TUNet_Usage_Actual_1[Value],TUNet_Usage_Actual_1[Customer type],$E92,TUNet_Usage_Actual_1[Description],"Usage per customer"),SUMIFS( INDEX(#REF!,0,MATCH(TUNet_Usage_PerRate_1[[#This Row],[VDO decision]],#REF!,0)),#REF!, $E92,#REF!,$C92&" - "&F$91))),"-") -> - | G92: =IFERROR(IF(SUMIFS( INDEX(#REF!,0,MATCH(TUNet_Usage_PerRate_1[[#This Row],[Customer type]],#REF!,0)),#REF!, $E92,#REF!,$C92&" - "&G$91)=0,"-",MIN(SUMIFS(TUNet_Usage_Actual_1[Description],TUNet_Usage_Actual_1[Value],$E92,TUNet_Usage_Actual_1[VDO decision],"Usage per customer"),SUMIFS( INDEX(#REF!,0,MATCH(TUNet_Usage_PerRate_1[[#This Row],[Customer type]],#REF!,0)),#REF!, $E92,#REF!,$C92&" - "&G$91))),"-") -> - | H92: =IFERROR(IF(SUMIFS( INDEX(#REF!,0,MATCH(TUNet_Usage_PerRate_1[[#This Row],[Ausnet]],#REF!,0)),#REF!, $E92,#REF!,$C92&" - "&H$91)=0,"-",MIN(SUMIFS(TUNet_Usage_Actual_1[VDO decision],TUNet_Usage_Actual_1[Description],$E92,TUNet_Usage_Actual_1[Customer type],"Usage per customer"),SUMIFS( INDEX(#REF!,0,MATCH(TUNet_Usage_PerRate_1[[#This Row],[Ausnet]],#REF!,0)),#REF!, $E92,#REF!,$C92&" - "&H$91))),"-") -> - | I92: =IFERROR(IF(SUMIFS( INDEX(#REF!,0,MATCH(TUNet_Usage_PerRate_1[[#This Row],[Citipower]],#REF!,0)),#REF!, $E92,#REF!,$C92&" - "&I$91)=0,"-",MIN(SUMIFS(TUNet_Usage_Actual_1[Customer type],TUNet_Usage_Actual_1[VDO decision],$E92,TUNet_Usage_Actual_1[Value],"Usage per customer"),SUMIFS( INDEX(#REF!,0,MATCH(TUNet_Usage_PerRate_1[[#This Row],[Citipower]],#REF!,0)),#REF!, $E92,#REF!,$C92&" - "&I$91))),"-") -> - | J92: =IFERROR(IF(SUMIFS( INDEX(#REF!,0,MATCH(TUNet_Usage_PerRate_1[[#This Row],[Jemena]],#REF!,0)),#REF!, $E92,#REF!,$C92&" - "&J$91)=0,"-",MIN(SUMIFS(TUNet_Usage_Actual_1[Value],TUNet_Usage_Actual_1[Customer type],$E92,TUNet_Usage_Actual_1[Description],"Usage per customer"),SUMIFS( INDEX(#REF!,0,MATCH(TUNet_Usage_PerRate_1[[#This Row],[Jemena]],#REF!,0)),#REF!, $E92,#REF!,$C92&" - "&J$91))),"-") -> -
C93: Usage per customer - Block 1 | D93: =INDEX(Inputs!$C$17:$AZ$17,1,MATCH($D$5,Inputs!$C$15:$AZ$15,0)) -> D-NextVDO_Input2 | E93: Small business | F93: =IFERROR(IF(SUMIFS( INDEX(#REF!,0,MATCH(TUNet_Usage_PerRate_1[[#This Row],[VDO decision]],#REF!,0)),#REF!, $E93,#REF!,$C93&" - "&F$91)=0,"-",MIN(SUMIFS(TUNet_Usage_Actual_1[Value],TUNet_Usage_Actual_1[Customer type],$E93,TUNet_Usage_Actual_1[Description],"Usage per customer"),SUMIFS( INDEX(#REF!,0,MATCH(TUNet_Usage_PerRate_1[[#This Row],[VDO decision]],#REF!,0)),#REF!, $E93,#REF!,$C93&" - "&F$91))),"-") -> - | G93: =IFERROR(IF(SUMIFS( INDEX(#REF!,0,MATCH(TUNet_Usage_PerRate_1[[#This Row],[Customer type]],#REF!,0)),#REF!, $E93,#REF!,$C93&" - "&G$91)=0,"-",MIN(SUMIFS(TUNet_Usage_Actual_1[Description],TUNet_Usage_Actual_1[Value],$E93,TUNet_Usage_Actual_1[VDO decision],"Usage per customer"),SUMIFS( INDEX(#REF!,0,MATCH(TUNet_Usage_PerRate_1[[#This Row],[Customer type]],#REF!,0)),#REF!, $E93,#REF!,$C93&" - "&G$91))),"-") -> - | H93: =IFERROR(IF(SUMIFS( INDEX(#REF!,0,MATCH(TUNet_Usage_PerRate_1[[#This Row],[Ausnet]],#REF!,0)),#REF!, $E93,#REF!,$C93&" - "&H$91)=0,"-",MIN(SUMIFS(TUNet_Usage_Actual_1[VDO decision],TUNet_Usage_Actual_1[Description],$E93,TUNet_Usage_Actual_1[Customer type],"Usage per customer"),SUMIFS( INDEX(#REF!,0,MATCH(TUNet_Usage_PerRate_1[[#This Row],[Ausnet]],#REF!,0)),#REF!, $E93,#REF!,$C93&" - "&H$91))),"-") -> - | I93: =IFERROR(IF(SUMIFS( INDEX(#REF!,0,MATCH(TUNet_Usage_PerRate_1[[#This Row],[Citipower]],#REF!,0)),#REF!, $E93,#REF!,$C93&" - "&I$91)=0,"-",MIN(SUMIFS(TUNet_Usage_Actual_1[Customer type],TUNet_Usage_Actual_1[VDO decision],$E93,TUNet_Usage_Actual_1[Value],"Usage per customer"),SUMIFS( INDEX(#REF!,0,MATCH(TUNet_Usage_PerRate_1[[#This Row],[Citipower]],#REF!,0)),#REF!, $E93,#REF!,$C93&" - "&I$91))),"-") -> - | J93: =IFERROR(IF(SUMIFS( INDEX(#REF!,0,MATCH(TUNet_Usage_PerRate_1[[#This Row],[Jemena]],#REF!,0)),#REF!, $E93,#REF!,$C93&" - "&J$91)=0,"-",MIN(SUMIFS(TUNet_Usage_Actual_1[Value],TUNet_Usage_Actual_1[Customer type],$E93,TUNet_Usage_Actual_1[Description],"Usage per customer"),SUMIFS( INDEX(#REF!,0,MATCH(TUNet_Usage_PerRate_1[[#This Row],[Jemena]],#REF!,0)),#REF!, $E93,#REF!,$C93&" - "&J$91))),"-") -> -
C94: Usage per customer - Balance | D94: =INDEX(Inputs!$C$17:$AZ$17,1,MATCH($D$5,Inputs!$C$15:$AZ$15,0)) -> D-NextVDO_Input2 | E94: Residential | F94: =IFERROR(IF(SUMIFS(F$92:F$93,$E$92:$E$93,$E94,$C$92:$C$93,"Usage per customer - Block 1")=0,"-",SUMIFS(TUNet_Usage_Actual_1[Value],TUNet_Usage_Actual_1[Customer type],$E94,TUNet_Usage_Actual_1[Description],"Usage per customer")-SUMIFS(F$92:F$93,$E$92:$E$93,$E94,$C$92:$C$93,"Usage per customer - Block 1")),"-") -> - | G94: =IFERROR(IF(SUMIFS(G$92:G$93,$E$92:$E$93,$E94,$C$92:$C$93,"Usage per customer - Block 1")=0,"-",SUMIFS(TUNet_Usage_Actual_1[Description],TUNet_Usage_Actual_1[Value],$E94,TUNet_Usage_Actual_1[VDO decision],"Usage per customer")-SUMIFS(G$92:G$93,$E$92:$E$93,$E94,$C$92:$C$93,"Usage per customer - Block 1")),"-") -> - | H94: =IFERROR(IF(SUMIFS(H$92:H$93,$E$92:$E$93,$E94,$C$92:$C$93,"Usage per customer - Block 1")=0,"-",SUMIFS(TUNet_Usage_Actual_1[VDO decision],TUNet_Usage_Actual_1[Description],$E94,TUNet_Usage_Actual_1[Customer type],"Usage per customer")-SUMIFS(H$92:H$93,$E$92:$E$93,$E94,$C$92:$C$93,"Usage per customer - Block 1")),"-") -> - | I94: =IFERROR(IF(SUMIFS(I$92:I$93,$E$92:$E$93,$E94,$C$92:$C$93,"Usage per customer - Block 1")=0,"-",SUMIFS(TUNet_Usage_Actual_1[Customer type],TUNet_Usage_Actual_1[VDO decision],$E94,TUNet_Usage_Actual_1[Value],"Usage per customer")-SUMIFS(I$92:I$93,$E$92:$E$93,$E94,$C$92:$C$93,"Usage per customer - Block 1")),"-") -> - | J94: =IFERROR(IF(SUMIFS(J$92:J$93,$E$92:$E$93,$E94,$C$92:$C$93,"Usage per customer - Block 1")=0,"-",SUMIFS(TUNet_Usage_Actual_1[Value],TUNet_Usage_Actual_1[Customer type],$E94,TUNet_Usage_Actual_1[Description],"Usage per customer")-SUMIFS(J$92:J$93,$E$92:$E$93,$E94,$C$92:$C$93,"Usage per customer - Block 1")),"-") -> -
C95: Usage per customer - Balance | D95: =INDEX(Inputs!$C$17:$AZ$17,1,MATCH($D$5,Inputs!$C$15:$AZ$15,0)) -> D-NextVDO_Input2 | E95: Small business | F95: =IFERROR(IF(SUMIFS(F$92:F$93,$E$92:$E$93,$E95,$C$92:$C$93,"Usage per customer - Block 1")=0,"-",SUMIFS(TUNet_Usage_Actual_1[Value],TUNet_Usage_Actual_1[Customer type],$E95,TUNet_Usage_Actual_1[Description],"Usage per customer")-SUMIFS(F$92:F$93,$E$92:$E$93,$E95,$C$92:$C$93,"Usage per customer - Block 1")),"-") -> - | G95: =IFERROR(IF(SUMIFS(G$92:G$93,$E$92:$E$93,$E95,$C$92:$C$93,"Usage per customer - Block 1")=0,"-",SUMIFS(TUNet_Usage_Actual_1[Description],TUNet_Usage_Actual_1[Value],$E95,TUNet_Usage_Actual_1[VDO decision],"Usage per customer")-SUMIFS(G$92:G$93,$E$92:$E$93,$E95,$C$92:$C$93,"Usage per customer - Block 1")),"-") -> - | H95: =IFERROR(IF(SUMIFS(H$92:H$93,$E$92:$E$93,$E95,$C$92:$C$93,"Usage per customer - Block 1")=0,"-",SUMIFS(TUNet_Usage_Actual_1[VDO decision],TUNet_Usage_Actual_1[Description],$E95,TUNet_Usage_Actual_1[Customer type],"Usage per customer")-SUMIFS(H$92:H$93,$E$92:$E$93,$E95,$C$92:$C$93,"Usage per customer - Block 1")),"-") -> - | I95: =IFERROR(IF(SUMIFS(I$92:I$93,$E$92:$E$93,$E95,$C$92:$C$93,"Usage per customer - Block 1")=0,"-",SUMIFS(TUNet_Usage_Actual_1[Customer type],TUNet_Usage_Actual_1[VDO decision],$E95,TUNet_Usage_Actual_1[Value],"Usage per customer")-SUMIFS(I$92:I$93,$E$92:$E$93,$E95,$C$92:$C$93,"Usage per customer - Block 1")),"-") -> - | J95: =IFERROR(IF(SUMIFS(J$92:J$93,$E$92:$E$93,$E95,$C$92:$C$93,"Usage per customer - Block 1")=0,"-",SUMIFS(TUNet_Usage_Actual_1[Value],TUNet_Usage_Actual_1[Customer type],$E95,TUNet_Usage_Actual_1[Description],"Usage per customer")-SUMIFS(J$92:J$93,$E$92:$E$93,$E95,$C$92:$C$93,"Usage per customer - Block 1")),"-") -> -
C96: Usage per customer - Single rate | D96: =INDEX(Inputs!$C$17:$AZ$17,1,MATCH($D$5,Inputs!$C$15:$AZ$15,0)) -> D-NextVDO_Input2 | E96: Residential | F96: =IFERROR(IF(SUMIFS( INDEX(#REF!,0,MATCH(TUNet_Usage_PerRate_1[[#This Row],[VDO decision]],#REF!,0)),#REF!, $E96,#REF!,"Usage per customer - Block 1 - "&F$91)=0,SUMIFS(TUNet_Usage_Actual_1[Value],TUNet_Usage_Actual_1[Customer type],$E96,TUNet_Usage_Actual_1[Description],"Usage per customer"),"-"),"-") -> - | G96: =IFERROR(IF(SUMIFS( INDEX(#REF!,0,MATCH(TUNet_Usage_PerRate_1[[#This Row],[Customer type]],#REF!,0)),#REF!, $E96,#REF!,"Usage per customer - Block 1 - "&G$91)=0,SUMIFS(TUNet_Usage_Actual_1[Description],TUNet_Usage_Actual_1[Value],$E96,TUNet_Usage_Actual_1[VDO decision],"Usage per customer"),"-"),"-") -> - | H96: =IFERROR(IF(SUMIFS( INDEX(#REF!,0,MATCH(TUNet_Usage_PerRate_1[[#This Row],[Ausnet]],#REF!,0)),#REF!, $E96,#REF!,"Usage per customer - Block 1 - "&H$91)=0,SUMIFS(TUNet_Usage_Actual_1[VDO decision],TUNet_Usage_Actual_1[Description],$E96,TUNet_Usage_Actual_1[Customer type],"Usage per customer"),"-"),"-") -> - | I96: =IFERROR(IF(SUMIFS( INDEX(#REF!,0,MATCH(TUNet_Usage_PerRate_1[[#This Row],[Citipower]],#REF!,0)),#REF!, $E96,#REF!,"Usage per customer - Block 1 - "&I$91)=0,SUMIFS(TUNet_Usage_Actual_1[Customer type],TUNet_Usage_Actual_1[VDO decision],$E96,TUNet_Usage_Actual_1[Value],"Usage per customer"),"-"),"-") -> - | J96: =IFERROR(IF(SUMIFS( INDEX(#REF!,0,MATCH(TUNet_Usage_PerRate_1[[#This Row],[Jemena]],#REF!,0)),#REF!, $E96,#REF!,"Usage per customer - Block 1 - "&J$91)=0,SUMIFS(TUNet_Usage_Actual_1[Value],TUNet_Usage_Actual_1[Customer type],$E96,TUNet_Usage_Actual_1[Description],"Usage per customer"),"-"),"-") -> -
C97: Usage per customer - Single rate | D97: =INDEX(Inputs!$C$17:$AZ$17,1,MATCH($D$5,Inputs!$C$15:$AZ$15,0)) -> D-NextVDO_Input2 | E97: Small business | F97: =IFERROR(IF(SUMIFS( INDEX(#REF!,0,MATCH(TUNet_Usage_PerRate_1[[#This Row],[VDO decision]],#REF!,0)),#REF!, $E97,#REF!,"Usage per customer - Block 1 - "&F$91)=0,SUMIFS(TUNet_Usage_Actual_1[Value],TUNet_Usage_Actual_1[Customer type],$E97,TUNet_Usage_Actual_1[Description],"Usage per customer"),"-"),"-") -> - | G97: =IFERROR(IF(SUMIFS( INDEX(#REF!,0,MATCH(TUNet_Usage_PerRate_1[[#This Row],[Customer type]],#REF!,0)),#REF!, $E97,#REF!,"Usage per customer - Block 1 - "&G$91)=0,SUMIFS(TUNet_Usage_Actual_1[Description],TUNet_Usage_Actual_1[Value],$E97,TUNet_Usage_Actual_1[VDO decision],"Usage per customer"),"-"),"-") -> - | H97: =IFERROR(IF(SUMIFS( INDEX(#REF!,0,MATCH(TUNet_Usage_PerRate_1[[#This Row],[Ausnet]],#REF!,0)),#REF!, $E97,#REF!,"Usage per customer - Block 1 - "&H$91)=0,SUMIFS(TUNet_Usage_Actual_1[VDO decision],TUNet_Usage_Actual_1[Description],$E97,TUNet_Usage_Actual_1[Customer type],"Usage per customer"),"-"),"-") -> - | I97: =IFERROR(IF(SUMIFS( INDEX(#REF!,0,MATCH(TUNet_Usage_PerRate_1[[#This Row],[Citipower]],#REF!,0)),#REF!, $E97,#REF!,"Usage per customer - Block 1 - "&I$91)=0,SUMIFS(TUNet_Usage_Actual_1[Customer type],TUNet_Usage_Actual_1[VDO decision],$E97,TUNet_Usage_Actual_1[Value],"Usage per customer"),"-"),"-") -> - | J97: =IFERROR(IF(SUMIFS( INDEX(#REF!,0,MATCH(TUNet_Usage_PerRate_1[[#This Row],[Jemena]],#REF!,0)),#REF!, $E97,#REF!,"Usage per customer - Block 1 - "&J$91)=0,SUMIFS(TUNet_Usage_Actual_1[Value],TUNet_Usage_Actual_1[Customer type],$E97,TUNet_Usage_Actual_1[Description],"Usage per customer"),"-"),"-") -> -
C99: Calc_TUV_Net_1
C100: Cost item | D100: VDO decision | E100: Decision/Actual | F100: Decision ref | G100: Pass through (Yes/No) | H100: Fixed/Variable | I100: Unit | J100: Customer type | K100: Ausnet | L100: Citipower | M100: Jemena | N100: Powercor | O100: United Energy
C102: Anytime - Residential | G102: =INDEX(Input_TU_YesNo[],MATCH(Calc_TUV_Net_1[[#This Row],[Cost item]],Input_TU_YesNo[Component],0),MATCH($D$5,Inputs!$C$227:$BM$227,0)) -> No
C103: Anytime - supply cost - residential
C104: Anytime - supply charge - RES | D104: =$D$5 -> VDO 2025-26 - Draft | E104: Actual | F104: =INDEX(Inputs!$C$17:$AZ$17,1,MATCH($D104,Inputs!$C$15:$AZ$15,0)) -> D-NextVDO_Input2 | H104: Fixed | I104: $ | J104: Residential | K104: =IFERROR(INDEX(Input_ForRateCalc[],MATCH($C104&" - "&K$100,Input_ForRateCalc[[Cost item]:[Cost item]],0),MATCH(Calc_TUV_Net_1[[#This Row],[Decision ref]:[Decision ref]],Input_ForRateCalc[#Headers],0))*TUProp_Days_1,"-") -> 0 | L104: =IFERROR(INDEX(Input_ForRateCalc[],MATCH($C104&" - "&L$100,Input_ForRateCalc[[Cost item]:[Cost item]],0),MATCH(Calc_TUV_Net_1[[#This Row],[Decision ref]:[Decision ref]],Input_ForRateCalc[#Headers],0))*TUProp_Days_1,"-") -> 0 | M104: =IFERROR(INDEX(Input_ForRateCalc[],MATCH($C104&" - "&M$100,Input_ForRateCalc[[Cost item]:[Cost item]],0),MATCH(Calc_TUV_Net_1[[#This Row],[Decision ref]:[Decision ref]],Input_ForRateCalc[#Headers],0))*TUProp_Days_1,"-") -> 0 | N104: =IFERROR(INDEX(Input_ForRateCalc[],MATCH($C104&" - "&N$100,Input_ForRateCalc[[Cost item]:[Cost item]],0),MATCH(Calc_TUV_Net_1[[#This Row],[Decision ref]:[Decision ref]],Input_ForRateCalc[#Headers],0))*TUProp_Days_1,"-") -> 0 | O104: =IFERROR(INDEX(Input_ForRateCalc[],MATCH($C104&" - "&O$100,Input_ForRateCalc[[Cost item]:[Cost item]],0),MATCH(Calc_TUV_Net_1[[#This Row],[Decision ref]:[Decision ref]],Input_ForRateCalc[#Headers],0))*TUProp_Days_1,"-") -> 0
C105: Metering | D105: =$D$5 -> VDO 2025-26 - Draft | E105: Actual | F105: =INDEX(Inputs!$C$17:$AZ$17,1,MATCH($D105,Inputs!$C$15:$AZ$15,0)) -> D-NextVDO_Input2 | H105: Fixed | I105: $ | J105: Residential | K105: =IFERROR(INDEX(Input_ForRateCalc[],MATCH($C105&" - "&K$100,Input_ForRateCalc[[Cost item]:[Cost item]],0),MATCH(Calc_TUV_Net_1[[#This Row],[Decision ref]:[Decision ref]],Input_ForRateCalc[#Headers],0))*TUProp_Days_1,"-") -> 0 | L105: =IFERROR(INDEX(Input_ForRateCalc[],MATCH($C105&" - "&L$100,Input_ForRateCalc[[Cost item]:[Cost item]],0),MATCH(Calc_TUV_Net_1[[#This Row],[Decision ref]:[Decision ref]],Input_ForRateCalc[#Headers],0))*TUProp_Days_1,"-") -> 0 | M105: =IFERROR(INDEX(Input_ForRateCalc[],MATCH($C105&" - "&M$100,Input_ForRateCalc[[Cost item]:[Cost item]],0),MATCH(Calc_TUV_Net_1[[#This Row],[Decision ref]:[Decision ref]],Input_ForRateCalc[#Headers],0))*TUProp_Days_1,"-") -> 0 | N105: =IFERROR(INDEX(Input_ForRateCalc[],MATCH($C105&" - "&N$100,Input_ForRateCalc[[Cost item]:[Cost item]],0),MATCH(Calc_TUV_Net_1[[#This Row],[Decision ref]:[Decision ref]],Input_ForRateCalc[#Headers],0))*TUProp_Days_1,"-") -> 0 | O105: =IFERROR(INDEX(Input_ForRateCalc[],MATCH($C105&" - "&O$100,Input_ForRateCalc[[Cost item]:[Cost item]],0),MATCH(Calc_TUV_Net_1[[#This Row],[Decision ref]:[Decision ref]],Input_ForRateCalc[#Headers],0))*TUProp_Days_1,"-") -> 0
C106: Cost | D106: =$D$5 -> VDO 2025-26 - Draft | E106: Actual | F106: =INDEX(Inputs!$C$17:$AZ$17,1,MATCH($D106,Inputs!$C$15:$AZ$15,0)) -> D-NextVDO_Input2 | H106: Fixed | I106: $ | J106: Residential | K106: =IFERROR(SUM(K104:K105),"-") -> 0 | L106: =IFERROR(SUM(L104:L105),"-") -> 0 | M106: =IFERROR(SUM(M104:M105),"-") -> 0 | N106: =IFERROR(SUM(N104:N105),"-") -> 0 | O106: =IFERROR(SUM(O104:O105),"-") -> 0
C107: Anytime - supply charge - RES | D107: =INDEX(Input_DecisionActual[[Decision]:[Decision]],MATCH($D$5,Input_DecisionActual[[VDO period]:[VDO period]],0),1) -> VDO 2024-25 - Final | E107: Decision | F107: =IF($D107="-","-",INDEX(Inputs!$C$17:$AZ$17,1,MATCH($D107,Inputs!$C$15:$AZ$15,0))) -> F-NextVDO_Input | H107: Fixed | I107: $ | J107: Residential | K107: =IFERROR(INDEX(Input_ForRateCalc[],MATCH($C107&" - "&K$100,Input_ForRateCalc[[Cost item]:[Cost item]],0),MATCH(Calc_TUV_Net_1[[#This Row],[Decision ref]:[Decision ref]],Input_ForRateCalc[#Headers],0)),"-")*TUProp_Days_1 -> 0 | L107: =IFERROR(INDEX(Input_ForRateCalc[],MATCH($C107&" - "&L$100,Input_ForRateCalc[[Cost item]:[Cost item]],0),MATCH(Calc_TUV_Net_1[[#This Row],[Decision ref]:[Decision ref]],Input_ForRateCalc[#Headers],0)),"-")*TUProp_Days_1 -> 0 | M107: =IFERROR(INDEX(Input_ForRateCalc[],MATCH($C107&" - "&M$100,Input_ForRateCalc[[Cost item]:[Cost item]],0),MATCH(Calc_TUV_Net_1[[#This Row],[Decision ref]:[Decision ref]],Input_ForRateCalc[#Headers],0)),"-")*TUProp_Days_1 -> 0 | N107: =IFERROR(INDEX(Input_ForRateCalc[],MATCH($C107&" - "&N$100,Input_ForRateCalc[[Cost item]:[Cost item]],0),MATCH(Calc_TUV_Net_1[[#This Row],[Decision ref]:[Decision ref]],Input_ForRateCalc[#Headers],0)),"-")*TUProp_Days_1 -> 0 | O107: =IFERROR(INDEX(Input_ForRateCalc[],MATCH($C107&" - "&O$100,Input_ForRateCalc[[Cost item]:[Cost item]],0),MATCH(Calc_TUV_Net_1[[#This Row],[Decision ref]:[Decision ref]],Input_ForRateCalc[#Headers],0)),"-")*TUProp_Days_1 -> 0
C108: Metering | D108: =INDEX(Input_DecisionActual[[Decision]:[Decision]],MATCH($D$5,Input_DecisionActual[[VDO period]:[VDO period]],0),1) -> VDO 2024-25 - Final | E108: Decision | F108: =IF($D108="-","-",INDEX(Inputs!$C$17:$AZ$17,1,MATCH($D108,Inputs!$C$15:$AZ$15,0))) -> F-NextVDO_Input | H108: Fixed | I108: $ | J108: Residential | K108: =IFERROR(INDEX(Input_ForRateCalc[],MATCH($C108&" - "&K$100,Input_ForRateCalc[[Cost item]:[Cost item]],0),MATCH(Calc_TUV_Net_1[[#This Row],[Decision ref]:[Decision ref]],Input_ForRateCalc[#Headers],0)),"-")*TUProp_Days_1 -> 0 | L108: =IFERROR(INDEX(Input_ForRateCalc[],MATCH($C108&" - "&L$100,Input_ForRateCalc[[Cost item]:[Cost item]],0),MATCH(Calc_TUV_Net_1[[#This Row],[Decision ref]:[Decision ref]],Input_ForRateCalc[#Headers],0)),"-")*TUProp_Days_1 -> 0 | M108: =IFERROR(INDEX(Input_ForRateCalc[],MATCH($C108&" - "&M$100,Input_ForRateCalc[[Cost item]:[Cost item]],0),MATCH(Calc_TUV_Net_1[[#This Row],[Decision ref]:[Decision ref]],Input_ForRateCalc[#Headers],0)),"-")*TUProp_Days_1 -> 0 | N108: =IFERROR(INDEX(Input_ForRateCalc[],MATCH($C108&" - "&N$100,Input_ForRateCalc[[Cost item]:[Cost item]],0),MATCH(Calc_TUV_Net_1[[#This Row],[Decision ref]:[Decision ref]],Input_ForRateCalc[#Headers],0)),"-")*TUProp_Days_1 -> 0 | O108: =IFERROR(INDEX(Input_ForRateCalc[],MATCH($C108&" - "&O$100,Input_ForRateCalc[[Cost item]:[Cost item]],0),MATCH(Calc_TUV_Net_1[[#This Row],[Decision ref]:[Decision ref]],Input_ForRateCalc[#Headers],0)),"-")*TUProp_Days_1 -> 0
C109: Cost | D109: =INDEX(Input_DecisionActual[[Decision]:[Decision]],MATCH($D$5,Input_DecisionActual[[VDO period]:[VDO period]],0),1) -> VDO 2024-25 - Final | E109: Decision | F109: =IF($D109="-","-",INDEX(Inputs!$C$17:$AZ$17,1,MATCH($D109,Inputs!$C$15:$AZ$15,0))) -> F-NextVDO_Input | H109: Fixed | I109: $ | J109: Residential | K109: =SUM(K107:K108) -> 0 | L109: =SUM(L107:L108) -> 0 | M109: =SUM(M107:M108) -> 0 | N109: =SUM(N107:N108) -> 0 | O109: =SUM(O107:O108) -> 0
C110: Difference | H110: Fixed | I110: $ | J110: Residential | K110: =IF(K109=0,"-",K106-K109) -> - | L110: =IF(L109=0,"-",L106-L109) -> - | M110: =IF(M109=0,"-",M106-M109) -> - | N110: =IF(N109=0,"-",N106-N109) -> - | O110: =IF(O109=0,"-",O106-O109) -> -
